Workbook

Sheet Základní list
A1: Základní popis závodů
C2: Místo konání: | E2: Pasohlávky
C3: Druh závodu: | E3: AWA-S cup 2017
C4: Od: | D4: 26.8.2017 | E4: do: | F4: 26.8.2017
C5: Pořadatel: | E5: MRS BRNO
C6: Hl. rozhodčí: | E6: Lucie Černá
A8: Sektory | B8: Index | C8: Počet míst | E8: Popis úseků | I8: 1 závod | K8: 2 závod | M8: CELKEM
C9: 1.záv. | D9: 2.záv. | I9: naloveno | J9: prům. na závodníka | K9: Naloveno | L9: prům na závodníka | M9: Naloveno | N9: prům na závodníka
A10: Suma | C10: =SUM(C11:C25) -> 24 | D10: =SUM(D11:D25) -> 24 | E10: Suma | I10: =SUM(I11:I18) -> 155200 | J10: =IF(I10>0,I10/$C10,"") -> 6466.666667 | K10: =SUM(K11:K18) -> 165460 | L10: =IF(K10>0,K10/$D10,"") -> 6894.166667 | M10: =SUM(M11:M18) -> 320660 | N10: =IF(M10>0,M10/($C10+$D10),"") -> 6680.416667
A11: A | B11: 4 | C11: =IF(ISBLANK($A11),"",COUNTA('1. závod'!D$6:D$35)) -> 8 | D11: =IF(ISBLANK($A11),"",COUNTA('2. závod'!D$6:D$35)) -> 8 | I11: =SUM('1. závod'!D$6:D$35) -> 47500 | J11: 5937.5 | K11: =SUM('2. závod'!D$6:D$35) -> 53720 | L11: 6715 | M11: =SUM(I11,K11) -> 101220 | N11: =IF(M11>0,M11/($C11+$D11),"") -> 6326.25
A12: B | B12: =IF(ISBLANK(A12),"",B11+6) -> 10 | C12: =IF(ISBLANK($A12),"",COUNTA('1. závod'!J$6:J$35)) -> 8 | D12: =IF(ISBLANK($A12),"",COUNTA('2. závod'!J$6:J$35)) -> 8 | I12: =SUM('1. závod'!J$6:J$35) -> 51280 | J12: 6410 | K12: =SUM('2. závod'!J$6:J$35) -> 70120 | L12: 8765 | M12: 121400 | N12: =IF(M12>0,M12/($C12+$D12),"") -> 7587.5
A13: C | B13: =IF(ISBLANK(A13),"",B12+6) -> 16 | C13: =IF(ISBLANK($A13),"",COUNTA('1. závod'!P$6:P$35)) -> 8 | D13: =IF(ISBLANK($A13),"",COUNTA('2. závod'!P$6:P$35)) -> 8 | I13: =SUM('1. závod'!P$6:P$35) -> 56420 | J13: 7052.5 | K13: =SUM('2. závod'!P$6:P$35) -> 41620 | L13: 5202.5 | M13: 98040 | N13: 6127.5
A14: D | B14: 22 | C14: =IF(ISBLANK($A14),"",COUNTA('1. závod'!V$6:V$35)) -> 0 | D14: =IF(ISBLANK($A14),"",COUNTA('2. závod'!V$6:V$35)) -> 0 | I14: =SUM('1. závod'!V$6:V$35) -> 0 | K14: =SUM('2. závod'!V$6:V$35) -> 0 | M14: 0
A15: E | B15: 28 | C15: =IF(ISBLANK($A15),"",COUNTA('1. závod'!AB$6:AB$35)) -> 0 | D15: =IF(ISBLANK($A15),"",COUNTA('2. závod'!AB$6:AB$35)) -> 0 | I15: =SUM('1. závod'!AB$6:AB$35) -> 0 | K15: =SUM('2. závod'!AB$6:AB$35) -> 0 | M15: 0
A16: F | B16: 34 | C16: =IF(ISBLANK($A16),"",COUNTA('1. závod'!AH$6:AH$35)) -> 0 | D16: =IF(ISBLANK($A16),"",COUNTA('2. závod'!AH$6:AH$35)) -> 0 | I16: =SUM('1. závod'!AH$6:AH$35) -> 0 | K16: =SUM('2. závod'!AH$6:AH$35) -> 0 | M16: 0
A17: G | B17: 40 | C17: =IF(ISBLANK($A17),"",COUNTA('1. závod'!AN$6:AN$35)) -> 0 | D17: =IF(ISBLANK($A17),"",COUNTA('2. závod'!AN$6:AN$35)) -> 0 | I17: =SUM('1. závod'!AN$6:AN$35) -> 0 | K17: =SUM('2. závod'!AN$6:AN$35) -> 0 | M17: 0
A18: H | B18: 46 | C18: =IF(ISBLANK($A18),"",COUNTA('1. závod'!AT$6:AT$35)) -> 0 | D18: =IF(ISBLANK($A18),"",COUNTA('2. závod'!AT$6:AT$35)) -> 0 | I18: =SUM('1. závod'!AT$6:AT$35) -> 0 | K18: =SUM('2. závod'!AT$6:AT$35) -> 0 | M18: 0
A19: I | B19: 52 | C19: =IF(ISBLANK($A19),"",COUNTA('1. závod'!AZ$6:AZ$35)) -> 0 | D19: =IF(ISBLANK($A19),"",COUNTA('2. závod'!AZ$6:AZ$35)) -> 0 | I19: =SUM('1. závod'!AZ$6:AZ$35) -> 0 | K19: =SUM('2. závod'!AZ$6:AZ$35) -> 0 | M19: =SUM(I19,K19) -> 0
A20: J | B20: 58 | C20: =IF(ISBLANK($A20),"",COUNTA('1. závod'!BF$6:BF$35)) -> 0 | D20: =IF(ISBLANK($A20),"",COUNTA('2. závod'!BF$6:BF$35)) -> 0 | I20: =SUM('1. závod'!BF$6:BF$35) -> 0 | K20: =SUM('2. závod'!BF$6:BF$35) -> 0 | M20: 0
A21: K | B21: 64 | C21: =IF(ISBLANK($A21),"",COUNTA('1. závod'!BL$6:BL$35)) -> 0 | D21: =IF(ISBLANK($A21),"",COUNTA('2. závod'!BL$6:BL$35)) -> 0 | I21: =SUM('1. závod'!BL$6:BL$35) -> 0 | K21: =SUM('2. závod'!BL$6:BL$35) -> 0 | M21: 0
A22: L | B22: 70 | C22: =IF(ISBLANK($A22),"",COUNTA('1. závod'!BQ$6:BQ$35)) -> 0 | D22: =IF(ISBLANK($A22),"",COUNTA('2. závod'!BQ$6:BQ$35)) -> 0 | I22: =SUM('1. závod'!BQ$6:BQ$35) -> 0 | K22: =SUM('2. závod'!BQ$6:BQ$35) -> 0 | M22: 0
A23: M | B23: 76 | C23: =IF(ISBLANK($A23),"",COUNTA('1. závod'!BV$6:BV$35)) -> 0 | D23: =IF(ISBLANK($A23),"",COUNTA('2. závod'!BV$6:BV$35)) -> 0 | I23: =SUM('1. závod'!BV$6:BV$35) -> 0 | K23: =SUM('2. závod'!BV$6:BV$35) -> 0 | M23: 0
A24: O | B24: 82 | C24: =IF(ISBLANK($A24),"",COUNTA('1. závod'!CA$6:CA$35)) -> 0 | D24: =IF(ISBLANK($A24),"",COUNTA('2. závod'!CA$6:CA$35)) -> 0 | I24: =SUM('1. závod'!CA$6:CA$35) -> 0 | K24: =SUM('2. závod'!CA$6:CA$35) -> 0 | M24: 0
A25: P | B25: 88 | C25: =IF(ISBLANK($A25),"",COUNTA('1. závod'!CF$6:CF$35)) -> 0 | D25: =IF(ISBLANK($A25),"",COUNTA('2. závod'!CF$6:CF$35)) -> 0 | I25: =SUM('1. závod'!CF$6:CF$35) -> 0 | K25: =SUM('2. závod'!CF$6:CF$35) -> 0 | M25: 0
D26: Maximální výsledek | I26: =MAX('1. závod'!$D$6:$CF$35) -> 14560 | K26: =MAX('2. závod'!$D$6:$CF$35) -> 12380 | M26: =MAX(I26,K26) -> 14560
L27: HLAVNÍ PARTNEŘI RYBÁŘSKÉHO SPORTU:
D28: Počet mužů (M) | I28: =COUNTIF('Výsledková listina'!$D:$D,"*M*") -> 0
D29: Počet juniorů do 23let (U23,U23Ž) | I29: =COUNTIF('Výsledková listina'!$D:$D,"*23*") -> 0
D30: Počet juniorů do 18let (U18,U18Ž) | I30: =COUNTIF('Výsledková listina'!$D:$D,"*18*") -> 0
D31: Počet kadetů do 14 let (U14,U14Ž) | I31: =COUNTIF('Výsledková listina'!$D:$D,"*14*") -> 0
D32: Počet žen (Ž,U14Ž,U18Ž,U23Ž) | I32: =COUNTIF('Výsledková listina'!$D:$D,"*Ž*") -> 0
D33: Počet hendikepovaných (H) | I33: =COUNTIF('Výsledková listina'!$D:$D,"*H*") -> 0
A34: ©JankuJiri
A35: Zelené označení forhont.
A36: Penalizace a napomenutí
A39: Přestupky
C40: 1 závod
C41: závodník | E41: družstvo | H41: ground | I41: místo | J41: důvod | N41: karta
C63: 2 závod
C64: závodník | E64: družstvo | H64: ground | I64: místo | J64: důvod | N64: karta
A95: Postup:
A96: 1) Na základním listě
A97: se vyplňují jen hlavička (místo(E2), druh(E3), Od….) popřípadě, když máte speciální označení sektorů (A,B,C,..).
A98: nevyužitá řádky sektorů je možno smazat, případně skrýt.
A99: 2) na Výsledkové listině
A100: Vypisují se údaje:
A101: - o závodníkovi (sloupec KAT je možno využít k označení kategorií a k vytřídění jednotlivých skupin.
A102: - los pořadí losování ( potom je možné i setřídit podle pořadí losování)
A103: - sektor a pořadí v sektoru ( tj. každý sektor začíná jedničkou)
A104: Další řádky je možné přikopírovat, nebo nadbytečné i smazat ( vždy celé řádky)
A105: Na základě takto zadaných údajů se samo vyplní údaje na listech x. závod
A106: 3) na listech x. závod
A107: Vypisují se údaje:
A108: - jenom hmotnost, případně do kolonky podpis můžeme napsat poznámku o napomenutí či co.
A109: Pořadí se vypočítává
A110: Takto zadané a vypočítané údaje se přenáší samy na list Výsledková listina a do grafu ( i do statistiky na základním listě)
A111: Rozsah tisku je možno měnit buď definováním oblasti tisku nebo vymazáním nepotřebných sektorů a řádků
A112: 4) Výsledková listina celkem
A113: Setřídím tabulku podle sloupců (se záhlavím) (Data seřadit)
A114: Q (poč) sestupně
A115: S (BODY) vzestupně
A116: R (CIPS) sestupně
A117: A je to
A118: 5) Případná diskvalifikace, +5 atd.
A119: je možno řešit:
A120: -na listu x.závod do podpisu napsat důvod, odemknou list a opravit vypočítané úmístění, nebo
A121: -na výsledkové listině opravit dotaženou hodnotu umístění
A122: 6) GRAF
A123: Data se dotahují podle údajů uvedených v sloupcích C,D a I,J. Proto je nutno "postavit trať, a nadbytečné řádky klidně odmazat

Sheet Výsledková listina
A1: Výsledková listina
A2: =CONCATENATE("Místo konání: ",'Základní list'!E2) -> Místo konání: Pasohlávky | L2: =CONCATENATE("Pořadatel: ",'Základní list'!E5) -> Pořadatel: MRS BRNO
A3: =CONCATENATE("Druh závodu: ",'Základní list'!E3) -> Druh závodu: AWA-S cup 2017 | L3: =CONCATENATE("Hlavní rozhodčí: ",'Základní list'!E6) -> Hlavní rozhodčí: Lucie Černá
A4: =CONCATENATE("Datum konání: ",'Základní list'!D4," - ",'Základní list'!F4) -> Datum konání: 26.8.2017 - 26.8.2017
A6: Los | B6: Závodník | F6: 1. závod | J6: 2. závod | N6: 1 k | O6: 2 k | P6: dr | Q6: CELKEM
F7: Sektor | H7: CIPS | I7: Poř. | J7: =F7 -> Sektor | L7: CIPS | M7: Poř. | Q7: poč. | R7: CIPS | S7: Body | T7: Poř
B8: REG | C8: Příjmení jméno | D8: kat | E8: Organizace | F8: sk | G8: čís | J8: =F8 -> sk | K8: =G8 -> čís
A9: 2 | C9: Kunst Antonín | E9: Fish Angels | F9: A | G9: 5 | H9: =IF($G9="","",INDEX('1. závod'!$A:$CH,$G9+5,INDEX('Základní list'!$B:$B,MATCH($F9,'Základní list'!$A:$A,0),1))) -> 9880 | I9: =IF($G9="","",INDEX('1. závod'!$A:$CH,$G9+5,INDEX('Základní list'!$B:$B,MATCH($F9,'Základní list'!$A:$A,0),1)+2)) -> 1 | J9: C | K9: 1 | L9: =IF($K9="","",INDEX('2. závod'!$A:$CH,$K9+5,INDEX('Základní list'!$B:$B,MATCH($J9,'Základní list'!$A:$A,0),1))) -> 9300 | M9: =IF($K9="","",INDEX('2. závod'!$A:$CH,$K9+5,INDEX('Základní list'!$B:$B,MATCH($J9,'Základní list'!$A:$A,0),1)+2)) -> 1 | N9: =CONCATENATE(F9,G9) -> A5 | O9: =CONCATENATE(J9,K9) -> C1 | P9: =IF(ISBLANK(E9),"",E9) -> Fish Angels | Q9: =IF(ISBLANK($C9),"",COUNT(I9,M9)) -> 2 | R9: =IF(ISBLANK($C9),"",SUM(H9,L9)) -> 19180 | S9: =IF(ISBLANK($C9),"",SUM(I9,M9)) -> 2 | T9: =IF(ISBLANK($C9),"",IF(ISTEXT(T8),1,T8+1)) -> 1
A10: 16 | C10: Stárek Jan | E10: Ždárský kavky | F10: C | G10: 3 | H10: =IF($G10="","",INDEX('1. závod'!$A:$CH,$G10+5,INDEX('Základní list'!$B:$B,MATCH($F10,'Základní list'!$A:$A,0),1))) -> 12600 | I10: =IF($G10="","",INDEX('1. závod'!$A:$CH,$G10+5,INDEX('Základní list'!$B:$B,MATCH($F10,'Základní list'!$A:$A,0),1)+2)) -> 2 | J10: B | K10: 5 | L10: =IF($K10="","",INDEX('2. závod'!$A:$CH,$K10+5,INDEX('Základní list'!$B:$B,MATCH($J10,'Základní list'!$A:$A,0),1))) -> 12380 | M10: =IF($K10="","",INDEX('2. závod'!$A:$CH,$K10+5,INDEX('Základní list'!$B:$B,MATCH($J10,'Základní list'!$A:$A,0),1)+2)) -> 1 | N10: C3 | O10: B5 | P10: Ždárský kavky | Q10: 2 | R10: 24980 | S10: 3 | T10: 2
A11: 23 | C11: Zavřel Jan | E11: Zauwíci | F11: B | G11: 7 | H11: =IF($G11="","",INDEX('1. závod'!$A:$CH,$G11+5,INDEX('Základní list'!$B:$B,MATCH($F11,'Základní list'!$A:$A,0),1))) -> 10340 | I11: =IF($G11="","",INDEX('1. závod'!$A:$CH,$G11+5,INDEX('Základní list'!$B:$B,MATCH($F11,'Základní list'!$A:$A,0),1)+2)) -> 1 | J11: C | K11: 3 | L11: =IF($K11="","",INDEX('2. závod'!$A:$CH,$K11+5,INDEX('Základní list'!$B:$B,MATCH($J11,'Základní list'!$A:$A,0),1))) -> 8220 | M11: =IF($K11="","",INDEX('2. závod'!$A:$CH,$K11+5,INDEX('Základní list'!$B:$B,MATCH($J11,'Základní list'!$A:$A,0),1)+2)) -> 2 | N11: B7 | O11: C3 | P11: Zauwíci | Q11: 2 | R11: 18560 | S11: 3 | T11: 3
A12: 7 | C12: Šabata Jakub | E12: Fish Angels | F12: B | G12: 5 | H12: =IF($G12="","",INDEX('1. závod'!$A:$CH,$G12+5,INDEX('Základní list'!$B:$B,MATCH($F12,'Základní list'!$A:$A,0),1))) -> 9760 | I12: =IF($G12="","",INDEX('1. závod'!$A:$CH,$G12+5,INDEX('Základní list'!$B:$B,MATCH($F12,'Základní list'!$A:$A,0),1)+2)) -> 2 | J12: A | K12: 1 | L12: =IF($K12="","",INDEX('2. závod'!$A:$CH,$K12+5,INDEX('Základní list'!$B:$B,MATCH($J12,'Základní list'!$A:$A,0),1))) -> 9780 | M12: =IF($K12="","",INDEX('2. závod'!$A:$CH,$K12+5,INDEX('Základní list'!$B:$B,MATCH($J12,'Základní list'!$A:$A,0),1)+2)) -> 2 | N12: B5 | O12: A1 | P12: Fish Angels | Q12: 2 | R12: 19540 | S12: 4 | T12: 4
A13: 13 | C13: Chadraba Petr | E13: MILO Feeder Team JIHOSEVERÁCI | F13: C | G13: 1 | H13: =IF($G13="","",INDEX('1. závod'!$A:$CH,$G13+5,INDEX('Základní list'!$B:$B,MATCH($F13,'Základní list'!$A:$A,0),1))) -> 7960 | I13: =IF($G13="","",INDEX('1. závod'!$A:$CH,$G13+5,INDEX('Základní list'!$B:$B,MATCH($F13,'Základní list'!$A:$A,0),1)+2)) -> 3 | J13: A | K13: 6 | L13: =IF($K13="","",INDEX('2. závod'!$A:$CH,$K13+5,INDEX('Základní list'!$B:$B,MATCH($J13,'Základní list'!$A:$A,0),1))) -> 10780 | M13: =IF($K13="","",INDEX('2. závod'!$A:$CH,$K13+5,INDEX('Základní list'!$B:$B,MATCH($J13,'Základní list'!$A:$A,0),1)+2)) -> 1 | N13: C1 | O13: A6 | P13: MILO Feeder Team JIHOSEVERÁCI | Q13: 2 | R13: 18740 | S13: 4 | T13: 5
A14: 3 | C14: Radek Černý | E14: Ševčovi pacholci | F14: C | G14: 2 | H14: =IF($G14="","",INDEX('1. závod'!$A:$CH,$G14+5,INDEX('Základní list'!$B:$B,MATCH($F14,'Základní list'!$A:$A,0),1))) -> 14560 | I14: =IF($G14="","",INDEX('1. závod'!$A:$CH,$G14+5,INDEX('Základní list'!$B:$B,MATCH($F14,'Základní list'!$A:$A,0),1)+2)) -> 1 | J14: A | K14: 7 | L14: =IF($K14="","",INDEX('2. závod'!$A:$CH,$K14+5,INDEX('Základní list'!$B:$B,MATCH($J14,'Základní list'!$A:$A,0),1))) -> 6540 | M14: =IF($K14="","",INDEX('2. závod'!$A:$CH,$K14+5,INDEX('Základní list'!$B:$B,MATCH($J14,'Základní list'!$A:$A,0),1)+2)) -> 4 | N14: C2 | O14: A7 | P14: Ševčovi pacholci | Q14: 2 | R14: 21100 | S14: 5 | T14: 6
A15: 12 | C15: Pečta Radek st. | E15: Zauwíci | F15: A | G15: 7 | H15: =IF($G15="","",INDEX('1. závod'!$A:$CH,$G15+5,INDEX('Základní list'!$B:$B,MATCH($F15,'Základní list'!$A:$A,0),1))) -> 6420 | I15: =IF($G15="","",INDEX('1. závod'!$A:$CH,$G15+5,INDEX('Základní list'!$B:$B,MATCH($F15,'Základní list'!$A:$A,0),1)+2)) -> 4 | J15: B | K15: 3 | L15: =IF($K15="","",INDEX('2. závod'!$A:$CH,$K15+5,INDEX('Základní list'!$B:$B,MATCH($J15,'Základní list'!$A:$A,0),1))) -> 10980 | M15: =IF($K15="","",INDEX('2. závod'!$A:$CH,$K15+5,INDEX('Základní list'!$B:$B,MATCH($J15,'Základní list'!$A:$A,0),1)+2)) -> 2 | N15: A7 | O15: B3 | P15: Zauwíci | Q15: 2 | R15: 17400 | S15: 6 | T15: 7
A16: 8 | C16: Pečta Radek | E16: Fídrové komando | F16: A | G16: 4 | H16: =IF($G16="","",INDEX('1. závod'!$A:$CH,$G16+5,INDEX('Základní list'!$B:$B,MATCH($F16,'Základní list'!$A:$A,0),1))) -> 7880 | I16: =IF($G16="","",INDEX('1. závod'!$A:$CH,$G16+5,INDEX('Základní list'!$B:$B,MATCH($F16,'Základní list'!$A:$A,0),1)+2)) -> 2 | J16: C | K16: 8 | L16: =IF($K16="","",INDEX('2. závod'!$A:$CH,$K16+5,INDEX('Základní list'!$B:$B,MATCH($J16,'Základní list'!$A:$A,0),1))) -> 4420 | M16: =IF($K16="","",INDEX('2. závod'!$A:$CH,$K16+5,INDEX('Základní list'!$B:$B,MATCH($J16,'Základní list'!$A:$A,0),1)+2)) -> 5 | N16: A4 | O16: C8 | P16: Fídrové komando | Q16: 2 | R16: 12300 | S16: 7 | T16: 8
A17: 15 | C17: Tomšík Jan | E17: Speed feeder team | F17: C | G17: 8 | H17: =IF($G17="","",INDEX('1. závod'!$A:$CH,$G17+5,INDEX('Základní list'!$B:$B,MATCH($F17,'Základní list'!$A:$A,0),1))) -> 5920 | I17: =IF($G17="","",INDEX('1. závod'!$A:$CH,$G17+5,INDEX('Základní list'!$B:$B,MATCH($F17,'Základní list'!$A:$A,0),1)+2)) -> 4 | J17: C | K17: 2 | L17: =IF($K17="","",INDEX('2. závod'!$A:$CH,$K17+5,INDEX('Základní list'!$B:$B,MATCH($J17,'Základní list'!$A:$A,0),1))) -> 5000 | M17: =IF($K17="","",INDEX('2. závod'!$A:$CH,$K17+5,INDEX('Základní list'!$B:$B,MATCH($J17,'Základní list'!$A:$A,0),1)+2)) -> 3 | N17: C8 | O17: C2 | P17: Speed feeder team | Q17: 2 | R17: 10920 | S17: 7 | T17: 9
A18: 4 | C18: Koucký Milan | E18: Feeder team Vlci-Mrs | F18: B | G18: 6 | H18: =IF($G18="","",INDEX('1. závod'!$A:$CH,$G18+5,INDEX('Základní list'!$B:$B,MATCH($F18,'Základní list'!$A:$A,0),1))) -> 6260 | I18: =IF($G18="","",INDEX('1. závod'!$A:$CH,$G18+5,INDEX('Základní list'!$B:$B,MATCH($F18,'Základní list'!$A:$A,0),1)+2)) -> 4 | J18: B | K18: 4 | L18: =IF($K18="","",INDEX('2. závod'!$A:$CH,$K18+5,INDEX('Základní list'!$B:$B,MATCH($J18,'Základní list'!$A:$A,0),1))) -> 10100 | M18: =IF($K18="","",INDEX('2. závod'!$A:$CH,$K18+5,INDEX('Základní list'!$B:$B,MATCH($J18,'Základní list'!$A:$A,0),1)+2)) -> 4 | N18: B6 | O18: B4 | P18: Feeder team Vlci-Mrs | Q18: 2 | R18: 16360 | S18: 8 | T18: 10
A19: 22 | C19: Denemarek Jiří | E19: Fish Angels | F19: C | G19: 5 | H19: =IF($G19="","",INDEX('1. závod'!$A:$CH,$G19+5,INDEX('Základní list'!$B:$B,MATCH($F19,'Základní list'!$A:$A,0),1))) -> 5240 | I19: =IF($G19="","",INDEX('1. závod'!$A:$CH,$G19+5,INDEX('Základní list'!$B:$B,MATCH($F19,'Základní list'!$A:$A,0),1)+2)) -> 6 | J19: B | K19: 1 | L19: =IF($K19="","",INDEX('2. závod'!$A:$CH,$K19+5,INDEX('Základní list'!$B:$B,MATCH($J19,'Základní list'!$A:$A,0),1))) -> 10820 | M19: =IF($K19="","",INDEX('2. závod'!$A:$CH,$K19+5,INDEX('Základní list'!$B:$B,MATCH($J19,'Základní list'!$A:$A,0),1)+2)) -> 3 | N19: C5 | O19: B1 | P19: Fish Angels | Q19: 2 | R19: 16060 | S19: 9 | T19: 11
A20: 11 | C20: Fabík Zdeněk | E20: Ždárský kavky | F20: A | G20: 3 | H20: =IF($G20="","",INDEX('1. závod'!$A:$CH,$G20+5,INDEX('Základní list'!$B:$B,MATCH($F20,'Základní list'!$A:$A,0),1))) -> 5860 | I20: =IF($G20="","",INDEX('1. závod'!$A:$CH,$G20+5,INDEX('Základní list'!$B:$B,MATCH($F20,'Základní list'!$A:$A,0),1)+2)) -> 5 | J20: C | K20: 5 | L20: =IF($K20="","",INDEX('2. závod'!$A:$CH,$K20+5,INDEX('Základní list'!$B:$B,MATCH($J20,'Základní list'!$A:$A,0),1))) -> 4880 | M20: =IF($K20="","",INDEX('2. závod'!$A:$CH,$K20+5,INDEX('Základní list'!$B:$B,MATCH($J20,'Základní list'!$A:$A,0),1)+2)) -> 4 | N20: A3 | O20: C5 | P20: Ždárský kavky | Q20: 2 | R20: 10740 | S20: 9 | T20: 12
A21: 1 | C21: Vitásek Jiří | E21: Ševčovi pacholci | F21: A | G21: 2 | H21: =IF($G21="","",INDEX('1. závod'!$A:$CH,$G21+5,INDEX('Základní list'!$B:$B,MATCH($F21,'Základní list'!$A:$A,0),1))) -> 6780 | I21: =IF($G21="","",INDEX('1. závod'!$A:$CH,$G21+5,INDEX('Základní list'!$B:$B,MATCH($F21,'Základní list'!$A:$A,0),1)+2)) -> 3 | J21: B | K21: 7 | L21: =IF($K21="","",INDEX('2. závod'!$A:$CH,$K21+5,INDEX('Základní list'!$B:$B,MATCH($J21,'Základní list'!$A:$A,0),1))) -> 6020 | M21: =IF($K21="","",INDEX('2. závod'!$A:$CH,$K21+5,INDEX('Základní list'!$B:$B,MATCH($J21,'Základní list'!$A:$A,0),1)+2)) -> 7 | N21: A2 | O21: B7 | P21: Ševčovi pacholci | Q21: 2 | R21: 12800 | S21: 10 | T21: 13
A22: 14 | C22: Bruckner Martin | E22: Fídrové komando | F22: B | G22: 4 | H22: =IF($G22="","",INDEX('1. závod'!$A:$CH,$G22+5,INDEX('Základní list'!$B:$B,MATCH($F22,'Základní list'!$A:$A,0),1))) -> 6880 | I22: =IF($G22="","",INDEX('1. závod'!$A:$CH,$G22+5,INDEX('Základní list'!$B:$B,MATCH($F22,'Základní list'!$A:$A,0),1)+2)) -> 3 | J22: B | K22: 8 | L22: =IF($K22="","",INDEX('2. závod'!$A:$CH,$K22+5,INDEX('Základní list'!$B:$B,MATCH($J22,'Základní list'!$A:$A,0),1))) -> 4060 | M22: =IF($K22="","",INDEX('2. závod'!$A:$CH,$K22+5,INDEX('Základní list'!$B:$B,MATCH($J22,'Základní list'!$A:$A,0),1)+2)) -> 8 | N22: B4 | O22: B8 | P22: Fídrové komando | Q22: 2 | R22: 10940 | S22: 11 | T22: 14
A23: 10 | C23: Frič Michal | E23: Fídrové komando | F23: C | G23: 4 | H23: =IF($G23="","",INDEX('1. závod'!$A:$CH,$G23+5,INDEX('Základní list'!$B:$B,MATCH($F23,'Základní list'!$A:$A,0),1))) -> 1960 | I23: =IF($G23="","",INDEX('1. závod'!$A:$CH,$G23+5,INDEX('Základní list'!$B:$B,MATCH($F23,'Základní list'!$A:$A,0),1)+2)) -> 8 | J23: A | K23: 8 | L23: =IF($K23="","",INDEX('2. závod'!$A:$CH,$K23+5,INDEX('Základní list'!$B:$B,MATCH($J23,'Základní list'!$A:$A,0),1))) -> 7560 | M23: =IF($K23="","",INDEX('2. závod'!$A:$CH,$K23+5,INDEX('Základní list'!$B:$B,MATCH($J23,'Základní list'!$A:$A,0),1)+2)) -> 3 | N23: C4 | O23: A8 | P23: Fídrové komando | Q23: 2 | R23: 9520 | S23: 11 | T23: 15
A24: 20 | C24: Prášek Josef | E24: Speed feeder team | F24: B | G24: 8 | H24: =IF($G24="","",INDEX('1. závod'!$A:$CH,$G24+5,INDEX('Základní list'!$B:$B,MATCH($F24,'Základní list'!$A:$A,0),1))) -> 4480 | I24: =IF($G24="","",INDEX('1. závod'!$A:$CH,$G24+5,INDEX('Základní list'!$B:$B,MATCH($F24,'Základní list'!$A:$A,0),1)+2)) -> 7 | J24: B | K24: 2 | L24: =IF($K24="","",INDEX('2. závod'!$A:$CH,$K24+5,INDEX('Základní list'!$B:$B,MATCH($J24,'Základní list'!$A:$A,0),1))) -> 9460 | M24: =IF($K24="","",INDEX('2. závod'!$A:$CH,$K24+5,INDEX('Základní list'!$B:$B,MATCH($J24,'Základní list'!$A:$A,0),1)+2)) -> 5 | N24: B8 | O24: B2 | P24: Speed feeder team | Q24: 2 | R24: 13940 | S24: 12 | T24: 16
A25: 18 | C25: Ohera Tomáš | E25: MILO Feeder Team JIHOSEVERÁCI | F25: B | G25: 1 | H25: =IF($G25="","",INDEX('1. závod'!$A:$CH,$G25+5,INDEX('Základní list'!$B:$B,MATCH($F25,'Základní list'!$A:$A,0),1))) -> 4700 | I25: =IF($G25="","",INDEX('1. závod'!$A:$CH,$G25+5,INDEX('Základní list'!$B:$B,MATCH($F25,'Základní list'!$A:$A,0),1)+2)) -> 6 | J25: B | K25: 6 | L25: =IF($K25="","",INDEX('2. závod'!$A:$CH,$K25+5,INDEX('Základní list'!$B:$B,MATCH($J25,'Základní list'!$A:$A,0),1))) -> 6300 | M25: =IF($K25="","",INDEX('2. závod'!$A:$CH,$K25+5,INDEX('Základní list'!$B:$B,MATCH($J25,'Základní list'!$A:$A,0),1)+2)) -> 6 | N25: B1 | O25: B6 | P25: MILO Feeder Team JIHOSEVERÁCI | Q25: 2 | R25: 11000 | S25: 12 | T25: 17
A26: 6 | C26: Bartl Petr | E26: Feeder team Vlci-Mrs | F26: C | G26: 6 | H26: =IF($G26="","",INDEX('1. závod'!$A:$CH,$G26+5,INDEX('Základní list'!$B:$B,MATCH($F26,'Základní list'!$A:$A,0),1))) -> 5280 | I26: =IF($G26="","",INDEX('1. závod'!$A:$CH,$G26+5,INDEX('Základní list'!$B:$B,MATCH($F26,'Základní list'!$A:$A,0),1)+2)) -> 5 | J26: A | K26: 4 | L26: =IF($K26="","",INDEX('2. závod'!$A:$CH,$K26+5,INDEX('Základní list'!$B:$B,MATCH($J26,'Základní list'!$A:$A,0),1))) -> 4300 | M26: =IF($K26="","",INDEX('2. závod'!$A:$CH,$K26+5,INDEX('Základní list'!$B:$B,MATCH($J26,'Základní list'!$A:$A,0),1)+2)) -> 7 | N26: C6 | O26: A4 | P26: Feeder team Vlci-Mrs | Q26: 2 | R26: 9580 | S26: 12 | T26: 18
A27: 17 | C27: Peřina Josef | E27: MILO Feeder Team JIHOSEVERÁCI | F27: A | G27: 1 | H27: =IF($G27="","",INDEX('1. závod'!$A:$CH,$G27+5,INDEX('Základní list'!$B:$B,MATCH($F27,'Základní list'!$A:$A,0),1))) -> 4360 | I27: =IF($G27="","",INDEX('1. závod'!$A:$CH,$G27+5,INDEX('Základní list'!$B:$B,MATCH($F27,'Základní list'!$A:$A,0),1)+2)) -> 6 | J27: C | K27: 6 | L27: =IF($K27="","",INDEX('2. závod'!$A:$CH,$K27+5,INDEX('Základní list'!$B:$B,MATCH($J27,'Základní list'!$A:$A,0),1))) -> 3820 | M27: =IF($K27="","",INDEX('2. závod'!$A:$CH,$K27+5,INDEX('Základní list'!$B:$B,MATCH($J27,'Základní list'!$A:$A,0),1)+2)) -> 6 | N27: A1 | O27: C6 | P27: MILO Feeder Team JIHOSEVERÁCI | Q27: 2 | R27: 8180 | S27: 12 | T27: 19
A28: 5 | C28: Ondráček Petr | E28: Ždárský kavky | F28: B | G28: 3 | H28: =IF($G28="","",INDEX('1. závod'!$A:$CH,$G28+5,INDEX('Základní list'!$B:$B,MATCH($F28,'Základní list'!$A:$A,0),1))) -> 2700 | I28: =IF($G28="","",INDEX('1. závod'!$A:$CH,$G28+5,INDEX('Základní list'!$B:$B,MATCH($F28,'Základní list'!$A:$A,0),1)+2)) -> 8 | J28: A | K28: 5 | L28: =IF($K28="","",INDEX('2. závod'!$A:$CH,$K28+5,INDEX('Základní list'!$B:$B,MATCH($J28,'Základní list'!$A:$A,0),1))) -> 5860 | M28: =IF($K28="","",INDEX('2. závod'!$A:$CH,$K28+5,INDEX('Základní list'!$B:$B,MATCH($J28,'Základní list'!$A:$A,0),1)+2)) -> 5 | N28: B3 | O28: A5 | P28: Ždárský kavky | Q28: 2 | R28: 8560 | S28: 13 | T28: 20
A29: 21 | C29: Ševčík Ladislav | E29: Ševčovi pacholci | F29: B | G29: 2 | H29: =IF($G29="","",INDEX('1. závod'!$A:$CH,$G29+5,INDEX('Základní list'!$B:$B,MATCH($F29,'Základní list'!$A:$A,0),1))) -> 6160 | I29: =IF($G29="","",INDEX('1. závod'!$A:$CH,$G29+5,INDEX('Základní list'!$B:$B,MATCH($F29,'Základní list'!$A:$A,0),1)+2)) -> 5 | J29: C | K29: 7 | L29: =IF($K29="","",INDEX('2. závod'!$A:$CH,$K29+5,INDEX('Základní list'!$B:$B,MATCH($J29,'Základní list'!$A:$A,0),1))) -> 2260 | M29: =IF($K29="","",INDEX('2. závod'!$A:$CH,$K29+5,INDEX('Základní list'!$B:$B,MATCH($J29,'Základní list'!$A:$A,0),1)+2)) -> 8 | N29: B2 | O29: C7 | P29: Ševčovi pacholci | Q29: 2 | R29: 8420 | S29: 13 | T29: 21
A30: 19 | C30: Novotný Erik | E30: Speed feeder team | F30: A | G30: 8 | H30: =IF($G30="","",INDEX('1. závod'!$A:$CH,$G30+5,INDEX('Základní list'!$B:$B,MATCH($F30,'Základní list'!$A:$A,0),1))) -> 2960 | I30: =IF($G30="","",INDEX('1. závod'!$A:$CH,$G30+5,INDEX('Základní list'!$B:$B,MATCH($F30,'Základní list'!$A:$A,0),1)+2)) -> 8 | J30: A | K30: 2 | L30: =IF($K30="","",INDEX('2. závod'!$A:$CH,$K30+5,INDEX('Základní list'!$B:$B,MATCH($J30,'Základní list'!$A:$A,0),1))) -> 5020 | M30: =IF($K30="","",INDEX('2. závod'!$A:$CH,$K30+5,INDEX('Základní list'!$B:$B,MATCH($J30,'Základní list'!$A:$A,0),1)+2)) -> 6 | N30: A8 | O30: A2 | P30: Speed feeder team | Q30: 2 | R30: 7980 | S30: 14 | T30: 22
A31: 9 | C31: Revai Miroslav | E31: Feeder team Vlci-MRS | F31: A | G31: 6 | H31: =IF($G31="","",INDEX('1. závod'!$A:$CH,$G31+5,INDEX('Základní list'!$B:$B,MATCH($F31,'Základní list'!$A:$A,0),1))) -> 3360 | I31: =IF($G31="","",INDEX('1. závod'!$A:$CH,$G31+5,INDEX('Základní list'!$B:$B,MATCH($F31,'Základní list'!$A:$A,0),1)+2)) -> 7 | J31: C | K31: 4 | L31: =IF($K31="","",INDEX('2. závod'!$A:$CH,$K31+5,INDEX('Základní list'!$B:$B,MATCH($J31,'Základní list'!$A:$A,0),1))) -> 3720 | M31: =IF($K31="","",INDEX('2. závod'!$A:$CH,$K31+5,INDEX('Základní list'!$B:$B,MATCH($J31,'Základní list'!$A:$A,0),1)+2)) -> 7 | N31: A6 | O31: C4 | P31: Feeder team Vlci-MRS | Q31: 2 | R31: 7080 | S31: 14 | T31: 23
A32: 24 | C32: Šťovčík Viktor | E32: Zauwíci | F32: C | G32: 7 | H32: =IF($G32="","",INDEX('1. závod'!$A:$CH,$G32+5,INDEX('Základní list'!$B:$B,MATCH($F32,'Základní list'!$A:$A,0),1))) -> 2900 | I32: =IF($G32="","",INDEX('1. závod'!$A:$CH,$G32+5,INDEX('Základní list'!$B:$B,MATCH($F32,'Základní list'!$A:$A,0),1)+2)) -> 7 | J32: A | K32: 3 | L32: =IF($K32="","",INDEX('2. závod'!$A:$CH,$K32+5,INDEX('Základní list'!$B:$B,MATCH($J32,'Základní list'!$A:$A,0),1))) -> 3880 | M32: =IF($K32="","",INDEX('2. závod'!$A:$CH,$K32+5,INDEX('Základní list'!$B:$B,MATCH($J32,'Základní list'!$A:$A,0),1)+2)) -> 8 | N32: C7 | O32: A3 | P32: Zauwíci | Q32: 2 | R32: 6780 | S32: 15 | T32: 24
A33: 25 | H33: =IF($G33="","",INDEX('1. závod'!$A:$CH,$G33+5,INDEX('Základní list'!$B:$B,MATCH($F33,'Základní list'!$A:$A,0),1))) ->  | I33: =IF($G33="","",INDEX('1. závod'!$A:$CH,$G33+5,INDEX('Základní list'!$B:$B,MATCH($F33,'Základní list'!$A:$A,0),1)+2)) ->  | L33: =IF($K33="","",INDEX('2. závod'!$A:$CH,$K33+5,INDEX('Základní list'!$B:$B,MATCH($J33,'Základní list'!$A:$A,0),1))) ->  | M33: =IF($K33="","",INDEX('2. závod'!$A:$CH,$K33+5,INDEX('Základní list'!$B:$B,MATCH($J33,'Základní list'!$A:$A,0),1)+2)) ->  | N33: =CONCATENATE(F33,G33) ->  | O33: =CONCATENATE(J33,K33) ->  | P33: =IF(ISBLANK(E33),"",E33) ->  | Q33: =IF(ISBLANK($C33),"",COUNT(I33,M33)) ->  | R33: =IF(ISBLANK($C33),"",SUM(H33,L33)) ->  | S33: =IF(ISBLANK($C33),"",SUM(I33,M33)) ->  | T33: =IF(ISBLANK($C33),"",IF(ISTEXT(T32),1,T32+1)) -> 
A34: 26 | H34: =IF($G34="","",INDEX('1. závod'!$A:$CH,$G34+5,INDEX('Základní list'!$B:$B,MATCH($F34,'Základní list'!$A:$A,0),1))) ->  | I34: =IF($G34="","",INDEX('1. závod'!$A:$CH,$G34+5,INDEX('Základní list'!$B:$B,MATCH($F34,'Základní list'!$A:$A,0),1)+2)) ->  | L34: =IF($K34="","",INDEX('2. závod'!$A:$CH,$K34+5,INDEX('Základní list'!$B:$B,MATCH($J34,'Základní list'!$A:$A,0),1))) ->  | M34: =IF($K34="","",INDEX('2. závod'!$A:$CH,$K34+5,INDEX('Základní list'!$B:$B,MATCH($J34,'Základní list'!$A:$A,0),1)+2)) -> 
A35: 27 | H35: =IF($G35="","",INDEX('1. závod'!$A:$CH,$G35+5,INDEX('Základní list'!$B:$B,MATCH($F35,'Základní list'!$A:$A,0),1))) ->  | I35: =IF($G35="","",INDEX('1. závod'!$A:$CH,$G35+5,INDEX('Základní list'!$B:$B,MATCH($F35,'Základní list'!$A:$A,0),1)+2)) ->  | L35: =IF($K35="","",INDEX('2. závod'!$A:$CH,$K35+5,INDEX('Základní list'!$B:$B,MATCH($J35,'Základní list'!$A:$A,0),1))) ->  | M35: =IF($K35="","",INDEX('2. závod'!$A:$CH,$K35+5,INDEX('Základní list'!$B:$B,MATCH($J35,'Základní list'!$A:$A,0),1)+2)) -> 
A36: 28 | H36: =IF($G36="","",INDEX('1. závod'!$A:$CH,$G36+5,INDEX('Základní list'!$B:$B,MATCH($F36,'Základní list'!$A:$A,0),1))) ->  | I36: =IF($G36="","",INDEX('1. závod'!$A:$CH,$G36+5,INDEX('Základní list'!$B:$B,MATCH($F36,'Základní list'!$A:$A,0),1)+2)) ->  | L36: =IF($K36="","",INDEX('2. závod'!$A:$CH,$K36+5,INDEX('Základní list'!$B:$B,MATCH($J36,'Základní list'!$A:$A,0),1))) ->  | M36: =IF($K36="","",INDEX('2. závod'!$A:$CH,$K36+5,INDEX('Základní list'!$B:$B,MATCH($J36,'Základní list'!$A:$A,0),1)+2)) -> 
A37: 29 | H37: =IF($G37="","",INDEX('1. závod'!$A:$CH,$G37+5,INDEX('Základní list'!$B:$B,MATCH($F37,'Základní list'!$A:$A,0),1))) ->  | I37: =IF($G37="","",INDEX('1. závod'!$A:$CH,$G37+5,INDEX('Základní list'!$B:$B,MATCH($F37,'Základní list'!$A:$A,0),1)+2)) ->  | L37: =IF($K37="","",INDEX('2. závod'!$A:$CH,$K37+5,INDEX('Základní list'!$B:$B,MATCH($J37,'Základní list'!$A:$A,0),1))) ->  | M37: =IF($K37="","",INDEX('2. závod'!$A:$CH,$K37+5,INDEX('Základní list'!$B:$B,MATCH($J37,'Základní list'!$A:$A,0),1)+2)) -> 
A38: 30 | H38: =IF($G38="","",INDEX('1. závod'!$A:$CH,$G38+5,INDEX('Základní list'!$B:$B,MATCH($F38,'Základní list'!$A:$A,0),1))) ->  | I38: =IF($G38="","",INDEX('1. závod'!$A:$CH,$G38+5,INDEX('Základní list'!$B:$B,MATCH($F38,'Základní list'!$A:$A,0),1)+2)) ->  | L38: =IF($K38="","",INDEX('2. závod'!$A:$CH,$K38+5,INDEX('Základní list'!$B:$B,MATCH($J38,'Základní list'!$A:$A,0),1))) ->  | M38: =IF($K38="","",INDEX('2. závod'!$A:$CH,$K38+5,INDEX('Základní list'!$B:$B,MATCH($J38,'Základní list'!$A:$A,0),1)+2)) -> 
A39: 31 | H39: =IF($G39="","",INDEX('1. závod'!$A:$CH,$G39+5,INDEX('Základní list'!$B:$B,MATCH($F39,'Základní list'!$A:$A,0),1))) ->  | I39: =IF($G39="","",INDEX('1. závod'!$A:$CH,$G39+5,INDEX('Základní list'!$B:$B,MATCH($F39,'Základní list'!$A:$A,0),1)+2)) ->  | L39: =IF($K39="","",INDEX('2. závod'!$A:$CH,$K39+5,INDEX('Základní list'!$B:$B,MATCH($J39,'Základní list'!$A:$A,0),1))) ->  | M39: =IF($K39="","",INDEX('2. závod'!$A:$CH,$K39+5,INDEX('Základní list'!$B:$B,MATCH($J39,'Základní list'!$A:$A,0),1)+2)) -> 
A40: 32 | H40: =IF($G40="","",INDEX('1. závod'!$A:$CH,$G40+5,INDEX('Základní list'!$B:$B,MATCH($F40,'Základní list'!$A:$A,0),1))) ->  | I40: =IF($G40="","",INDEX('1. závod'!$A:$CH,$G40+5,INDEX('Základní list'!$B:$B,MATCH($F40,'Základní list'!$A:$A,0),1)+2)) ->  | L40: =IF($K40="","",INDEX('2. závod'!$A:$CH,$K40+5,INDEX('Základní list'!$B:$B,MATCH($J40,'Základní list'!$A:$A,0),1))) ->  | M40: =IF($K40="","",INDEX('2. závod'!$A:$CH,$K40+5,INDEX('Základní list'!$B:$B,MATCH($J40,'Základní list'!$A:$A,0),1)+2)) -> 
A41: 33 | H41: =IF($G41="","",INDEX('1. závod'!$A:$CH,$G41+5,INDEX('Základní list'!$B:$B,MATCH($F41,'Základní list'!$A:$A,0),1))) ->  | I41: =IF($G41="","",INDEX('1. závod'!$A:$CH,$G41+5,INDEX('Základní list'!$B:$B,MATCH($F41,'Základní list'!$A:$A,0),1)+2)) ->  | L41: =IF($K41="","",INDEX('2. závod'!$A:$CH,$K41+5,INDEX('Základní list'!$B:$B,MATCH($J41,'Základní list'!$A:$A,0),1))) ->  | M41: =IF($K41="","",INDEX('2. závod'!$A:$CH,$K41+5,INDEX('Základní list'!$B:$B,MATCH($J41,'Základní list'!$A:$A,0),1)+2)) ->  | N41: =CONCATENATE(F41,G41) ->  | O41: =CONCATENATE(J41,K41) ->  | P41: =IF(ISBLANK(E41),"",E41) ->  | Q41: =IF(ISBLANK($C41),"",COUNT(I41,M41)) ->  | R41: =IF(ISBLANK($C41),"",SUM(H41,L41)) ->  | S41: =IF(ISBLANK($C41),"",SUM(I41,M41)) -> 
A42: 34 | H42: =IF($G42="","",INDEX('1. závod'!$A:$CH,$G42+5,INDEX('Základní list'!$B:$B,MATCH($F42,'Základní list'!$A:$A,0),1))) ->  | I42: =IF($G42="","",INDEX('1. závod'!$A:$CH,$G42+5,INDEX('Základní list'!$B:$B,MATCH($F42,'Základní list'!$A:$A,0),1)+2)) ->  | L42: =IF($K42="","",INDEX('2. závod'!$A:$CH,$K42+5,INDEX('Základní list'!$B:$B,MATCH($J42,'Základní list'!$A:$A,0),1))) ->  | M42: =IF($K42="","",INDEX('2. závod'!$A:$CH,$K42+5,INDEX('Základní list'!$B:$B,MATCH($J42,'Základní list'!$A:$A,0),1)+2)) -> 
A43: 35 | H43: =IF($G43="","",INDEX('1. závod'!$A:$CH,$G43+5,INDEX('Základní list'!$B:$B,MATCH($F43,'Základní list'!$A:$A,0),1))) ->  | I43: =IF($G43="","",INDEX('1. závod'!$A:$CH,$G43+5,INDEX('Základní list'!$B:$B,MATCH($F43,'Základní list'!$A:$A,0),1)+2)) ->  | L43: =IF($K43="","",INDEX('2. závod'!$A:$CH,$K43+5,INDEX('Základní list'!$B:$B,MATCH($J43,'Základní list'!$A:$A,0),1))) ->  | M43: =IF($K43="","",INDEX('2. závod'!$A:$CH,$K43+5,INDEX('Základní list'!$B:$B,MATCH($J43,'Základní list'!$A:$A,0),1)+2)) -> 
A44: 36 | H44: =IF($G44="","",INDEX('1. závod'!$A:$CH,$G44+5,INDEX('Základní list'!$B:$B,MATCH($F44,'Základní list'!$A:$A,0),1))) ->  | I44: =IF($G44="","",INDEX('1. závod'!$A:$CH,$G44+5,INDEX('Základní list'!$B:$B,MATCH($F44,'Základní list'!$A:$A,0),1)+2)) ->  | L44: =IF($K44="","",INDEX('2. závod'!$A:$CH,$K44+5,INDEX('Základní list'!$B:$B,MATCH($J44,'Základní list'!$A:$A,0),1))) ->  | M44: =IF($K44="","",INDEX('2. závod'!$A:$CH,$K44+5,INDEX('Základní list'!$B:$B,MATCH($J44,'Základní list'!$A:$A,0),1)+2)) -> 
A45: 37 | H45: =IF($G45="","",INDEX('1. závod'!$A:$CH,$G45+5,INDEX('Základní list'!$B:$B,MATCH($F45,'Základní list'!$A:$A,0),1))) ->  | I45: =IF($G45="","",INDEX('1. závod'!$A:$CH,$G45+5,INDEX('Základní list'!$B:$B,MATCH($F45,'Základní list'!$A:$A,0),1)+2)) ->  | L45: =IF($K45="","",INDEX('2. závod'!$A:$CH,$K45+5,INDEX('Základní list'!$B:$B,MATCH($J45,'Základní list'!$A:$A,0),1))) ->  | M45: =IF($K45="","",INDEX('2. závod'!$A:$CH,$K45+5,INDEX('Základní list'!$B:$B,MATCH($J45,'Základní list'!$A:$A,0),1)+2)) -> 
A46: 38 | H46: =IF($G46="","",INDEX('1. závod'!$A:$CH,$G46+5,INDEX('Základní list'!$B:$B,MATCH($F46,'Základní list'!$A:$A,0),1))) ->  | I46: =IF($G46="","",INDEX('1. závod'!$A:$CH,$G46+5,INDEX('Základní list'!$B:$B,MATCH($F46,'Základní list'!$A:$A,0),1)+2)) ->  | L46: =IF($K46="","",INDEX('2. závod'!$A:$CH,$K46+5,INDEX('Základní list'!$B:$B,MATCH($J46,'Základní list'!$A:$A,0),1))) ->  | M46: =IF($K46="","",INDEX('2. závod'!$A:$CH,$K46+5,INDEX('Základní list'!$B:$B,MATCH($J46,'Základní list'!$A:$A,0),1)+2)) -> 
A47: 39 | H47: =IF($G47="","",INDEX('1. závod'!$A:$CH,$G47+5,INDEX('Základní list'!$B:$B,MATCH($F47,'Základní list'!$A:$A,0),1))) ->  | I47: =IF($G47="","",INDEX('1. závod'!$A:$CH,$G47+5,INDEX('Základní list'!$B:$B,MATCH($F47,'Základní list'!$A:$A,0),1)+2)) ->  | L47: =IF($K47="","",INDEX('2. závod'!$A:$CH,$K47+5,INDEX('Základní list'!$B:$B,MATCH($J47,'Základní list'!$A:$A,0),1))) ->  | M47: =IF($K47="","",INDEX('2. závod'!$A:$CH,$K47+5,INDEX('Základní list'!$B:$B,MATCH($J47,'Základní list'!$A:$A,0),1)+2)) -> 
A48: 40 | H48: =IF($G48="","",INDEX('1. závod'!$A:$CH,$G48+5,INDEX('Základní list'!$B:$B,MATCH($F48,'Základní list'!$A:$A,0),1))) ->  | I48: =IF($G48="","",INDEX('1. závod'!$A:$CH,$G48+5,INDEX('Základní list'!$B:$B,MATCH($F48,'Základní list'!$A:$A,0),1)+2)) ->  | L48: =IF($K48="","",INDEX('2. závod'!$A:$CH,$K48+5,INDEX('Základní list'!$B:$B,MATCH($J48,'Základní list'!$A:$A,0),1))) ->  | M48: =IF($K48="","",INDEX('2. závod'!$A:$CH,$K48+5,INDEX('Základní list'!$B:$B,MATCH($J48,'Základní list'!$A:$A,0),1)+2)) -> 
A49: 41 | H49: =IF($G49="","",INDEX('1. závod'!$A:$CH,$G49+5,INDEX('Základní list'!$B:$B,MATCH($F49,'Základní list'!$A:$A,0),1))) ->  | I49: =IF($G49="","",INDEX('1. závod'!$A:$CH,$G49+5,INDEX('Základní list'!$B:$B,MATCH($F49,'Základní list'!$A:$A,0),1)+2)) ->  | L49: =IF($K49="","",INDEX('2. závod'!$A:$CH,$K49+5,INDEX('Základní list'!$B:$B,MATCH($J49,'Základní list'!$A:$A,0),1))) ->  | M49: =IF($K49="","",INDEX('2. závod'!$A:$CH,$K49+5,INDEX('Základní list'!$B:$B,MATCH($J49,'Základní list'!$A:$A,0),1)+2)) -> 
A50: 42 | H50: =IF($G50="","",INDEX('1. závod'!$A:$CH,$G50+5,INDEX('Základní list'!$B:$B,MATCH($F50,'Základní list'!$A:$A,0),1))) ->  | I50: =IF($G50="","",INDEX('1. závod'!$A:$CH,$G50+5,INDEX('Základní list'!$B:$B,MATCH($F50,'Základní list'!$A:$A,0),1)+2)) ->  | L50: =IF($K50="","",INDEX('2. závod'!$A:$CH,$K50+5,INDEX('Základní list'!$B:$B,MATCH($J50,'Základní list'!$A:$A,0),1))) ->  | M50: =IF($K50="","",INDEX('2. závod'!$A:$CH,$K50+5,INDEX('Základní list'!$B:$B,MATCH($J50,'Základní list'!$A:$A,0),1)+2)) -> 
A51: 43 | H51: =IF($G51="","",INDEX('1. závod'!$A:$CH,$G51+5,INDEX('Základní list'!$B:$B,MATCH($F51,'Základní list'!$A:$A,0),1))) ->  | I51: =IF($G51="","",INDEX('1. závod'!$A:$CH,$G51+5,INDEX('Základní list'!$B:$B,MATCH($F51,'Základní list'!$A:$A,0),1)+2)) ->  | L51: =IF($K51="","",INDEX('2. závod'!$A:$CH,$K51+5,INDEX('Základní list'!$B:$B,MATCH($J51,'Základní list'!$A:$A,0),1))) ->  | M51: =IF($K51="","",INDEX('2. závod'!$A:$CH,$K51+5,INDEX('Základní list'!$B:$B,MATCH($J51,'Základní list'!$A:$A,0),1)+2)) -> 
A52: 44 | H52: =IF($G52="","",INDEX('1. závod'!$A:$CH,$G52+5,INDEX('Základní list'!$B:$B,MATCH($F52,'Základní list'!$A:$A,0),1))) ->  | I52: =IF($G52="","",INDEX('1. závod'!$A:$CH,$G52+5,INDEX('Základní list'!$B:$B,MATCH($F52,'Základní list'!$A:$A,0),1)+2)) ->  | L52: =IF($K52="","",INDEX('2. závod'!$A:$CH,$K52+5,INDEX('Základní list'!$B:$B,MATCH($J52,'Základní list'!$A:$A,0),1))) ->  | M52: =IF($K52="","",INDEX('2. závod'!$A:$CH,$K52+5,INDEX('Základní list'!$B:$B,MATCH($J52,'Základní list'!$A:$A,0),1)+2)) -> 
A53: 45 | H53: =IF($G53="","",INDEX('1. závod'!$A:$CH,$G53+5,INDEX('Základní list'!$B:$B,MATCH($F53,'Základní list'!$A:$A,0),1))) ->  | I53: =IF($G53="","",INDEX('1. závod'!$A:$CH,$G53+5,INDEX('Základní list'!$B:$B,MATCH($F53,'Základní list'!$A:$A,0),1)+2)) ->  | L53: =IF($K53="","",INDEX('2. závod'!$A:$CH,$K53+5,INDEX('Základní list'!$B:$B,MATCH($J53,'Základní list'!$A:$A,0),1))) ->  | M53: =IF($K53="","",INDEX('2. závod'!$A:$CH,$K53+5,INDEX('Základní list'!$B:$B,MATCH($J53,'Základní list'!$A:$A,0),1)+2)) -> 
A54: 46 | H54: =IF($G54="","",INDEX('1. závod'!$A:$CH,$G54+5,INDEX('Základní list'!$B:$B,MATCH($F54,'Základní list'!$A:$A,0),1))) ->  | I54: =IF($G54="","",INDEX('1. závod'!$A:$CH,$G54+5,INDEX('Základní list'!$B:$B,MATCH($F54,'Základní list'!$A:$A,0),1)+2)) ->  | L54: =IF($K54="","",INDEX('2. závod'!$A:$CH,$K54+5,INDEX('Základní list'!$B:$B,MATCH($J54,'Základní list'!$A:$A,0),1))) ->  | M54: =IF($K54="","",INDEX('2. závod'!$A:$CH,$K54+5,INDEX('Základní list'!$B:$B,MATCH($J54,'Základní list'!$A:$A,0),1)+2)) -> 
A55: 47 | H55: =IF($G55="","",INDEX('1. závod'!$A:$CH,$G55+5,INDEX('Základní list'!$B:$B,MATCH($F55,'Základní list'!$A:$A,0),1))) ->  | I55: =IF($G55="","",INDEX('1. závod'!$A:$CH,$G55+5,INDEX('Základní list'!$B:$B,MATCH($F55,'Základní list'!$A:$A,0),1)+2)) ->  | L55: =IF($K55="","",INDEX('2. závod'!$A:$CH,$K55+5,INDEX('Základní list'!$B:$B,MATCH($J55,'Základní list'!$A:$A,0),1))) ->  | M55: =IF($K55="","",INDEX('2. závod'!$A:$CH,$K55+5,INDEX('Základní list'!$B:$B,MATCH($J55,'Základní list'!$A:$A,0),1)+2)) -> 
A56: 48 | H56: =IF($G56="","",INDEX('1. závod'!$A:$CH,$G56+5,INDEX('Základní list'!$B:$B,MATCH($F56,'Základní list'!$A:$A,0),1))) ->  | I56: =IF($G56="","",INDEX('1. závod'!$A:$CH,$G56+5,INDEX('Základní list'!$B:$B,MATCH($F56,'Základní list'!$A:$A,0),1)+2)) ->  | L56: =IF($K56="","",INDEX('2. závod'!$A:$CH,$K56+5,INDEX('Základní list'!$B:$B,MATCH($J56,'Základní list'!$A:$A,0),1))) ->  | M56: =IF($K56="","",INDEX('2. závod'!$A:$CH,$K56+5,INDEX('Základní list'!$B:$B,MATCH($J56,'Základní list'!$A:$A,0),1)+2)) -> 
A57: 49 | H57: =IF($G57="","",INDEX('1. závod'!$A:$CH,$G57+5,INDEX('Základní list'!$B:$B,MATCH($F57,'Základní list'!$A:$A,0),1))) ->  | I57: =IF($G57="","",INDEX('1. závod'!$A:$CH,$G57+5,INDEX('Základní list'!$B:$B,MATCH($F57,'Základní list'!$A:$A,0),1)+2)) ->  | L57: =IF($K57="","",INDEX('2. závod'!$A:$CH,$K57+5,INDEX('Základní list'!$B:$B,MATCH($J57,'Základní list'!$A:$A,0),1))) ->  | M57: =IF($K57="","",INDEX('2. závod'!$A:$CH,$K57+5,INDEX('Základní list'!$B:$B,MATCH($J57,'Základní list'!$A:$A,0),1)+2)) -> 
A58: 50 | H58: =IF($G58="","",INDEX('1. závod'!$A:$CH,$G58+5,INDEX('Základní list'!$B:$B,MATCH($F58,'Základní list'!$A:$A,0),1))) ->  | I58: =IF($G58="","",INDEX('1. závod'!$A:$CH,$G58+5,INDEX('Základní list'!$B:$B,MATCH($F58,'Základní list'!$A:$A,0),1)+2)) ->  | L58: =IF($K58="","",INDEX('2. závod'!$A:$CH,$K58+5,INDEX('Základní list'!$B:$B,MATCH($J58,'Základní list'!$A:$A,0),1))) ->  | M58: =IF($K58="","",INDEX('2. závod'!$A:$CH,$K58+5,INDEX('Základní list'!$B:$B,MATCH($J58,'Základní list'!$A:$A,0),1)+2)) -> 
A59: 51 | H59: =IF($G59="","",INDEX('1. závod'!$A:$CH,$G59+5,INDEX('Základní list'!$B:$B,MATCH($F59,'Základní list'!$A:$A,0),1))) ->  | I59: =IF($G59="","",INDEX('1. závod'!$A:$CH,$G59+5,INDEX('Základní list'!$B:$B,MATCH($F59,'Základní list'!$A:$A,0),1)+2)) ->  | L59: =IF($K59="","",INDEX('2. závod'!$A:$CH,$K59+5,INDEX('Základní list'!$B:$B,MATCH($J59,'Základní list'!$A:$A,0),1))) ->  | M59: =IF($K59="","",INDEX('2. závod'!$A:$CH,$K59+5,INDEX('Základní list'!$B:$B,MATCH($J59,'Základní list'!$A:$A,0),1)+2)) -> 
A60: 52 | H60: =IF($G60="","",INDEX('1. závod'!$A:$CH,$G60+5,INDEX('Základní list'!$B:$B,MATCH($F60,'Základní list'!$A:$A,0),1))) ->  | I60: =IF($G60="","",INDEX('1. závod'!$A:$CH,$G60+5,INDEX('Základní list'!$B:$B,MATCH($F60,'Základní list'!$A:$A,0),1)+2)) ->  | L60: =IF($K60="","",INDEX('2. závod'!$A:$CH,$K60+5,INDEX('Základní list'!$B:$B,MATCH($J60,'Základní list'!$A:$A,0),1))) ->  | M60: =IF($K60="","",INDEX('2. závod'!$A:$CH,$K60+5,INDEX('Základní list'!$B:$B,MATCH($J60,'Základní list'!$A:$A,0),1)+2)) -> 
A61: 53 | H61: =IF($G61="","",INDEX('1. závod'!$A:$CH,$G61+5,INDEX('Základní list'!$B:$B,MATCH($F61,'Základní list'!$A:$A,0),1))) ->  | I61: =IF($G61="","",INDEX('1. závod'!$A:$CH,$G61+5,INDEX('Základní list'!$B:$B,MATCH($F61,'Základní list'!$A:$A,0),1)+2)) ->  | L61: =IF($K61="","",INDEX('2. závod'!$A:$CH,$K61+5,INDEX('Základní list'!$B:$B,MATCH($J61,'Základní list'!$A:$A,0),1))) ->  | M61: =IF($K61="","",INDEX('2. závod'!$A:$CH,$K61+5,INDEX('Základní list'!$B:$B,MATCH($J61,'Základní list'!$A:$A,0),1)+2)) -> 
A62: 54 | H62: =IF($G62="","",INDEX('1. závod'!$A:$CH,$G62+5,INDEX('Základní list'!$B:$B,MATCH($F62,'Základní list'!$A:$A,0),1))) ->  | I62: =IF($G62="","",INDEX('1. závod'!$A:$CH,$G62+5,INDEX('Základní list'!$B:$B,MATCH($F62,'Základní list'!$A:$A,0),1)+2)) ->  | L62: =IF($K62="","",INDEX('2. závod'!$A:$CH,$K62+5,INDEX('Základní list'!$B:$B,MATCH($J62,'Základní list'!$A:$A,0),1))) ->  | M62: =IF($K62="","",INDEX('2. závod'!$A:$CH,$K62+5,INDEX('Základní list'!$B:$B,MATCH($J62,'Základní list'!$A:$A,0),1)+2)) -> 
A63: 55 | H63: =IF($G63="","",INDEX('1. závod'!$A:$CH,$G63+5,INDEX('Základní list'!$B:$B,MATCH($F63,'Základní list'!$A:$A,0),1))) ->  | I63: =IF($G63="","",INDEX('1. závod'!$A:$CH,$G63+5,INDEX('Základní list'!$B:$B,MATCH($F63,'Základní list'!$A:$A,0),1)+2)) ->  | L63: =IF($K63="","",INDEX('2. závod'!$A:$CH,$K63+5,INDEX('Základní list'!$B:$B,MATCH($J63,'Základní list'!$A:$A,0),1))) ->  | M63: =IF($K63="","",INDEX('2. závod'!$A:$CH,$K63+5,INDEX('Základní list'!$B:$B,MATCH($J63,'Základní list'!$A:$A,0),1)+2)) -> 
A64: 56 | H64: =IF($G64="","",INDEX('1. závod'!$A:$CH,$G64+5,INDEX('Základní list'!$B:$B,MATCH($F64,'Základní list'!$A:$A,0),1))) ->  | I64: =IF($G64="","",INDEX('1. závod'!$A:$CH,$G64+5,INDEX('Základní list'!$B:$B,MATCH($F64,'Základní list'!$A:$A,0),1)+2)) ->  | L64: =IF($K64="","",INDEX('2. závod'!$A:$CH,$K64+5,INDEX('Základní list'!$B:$B,MATCH($J64,'Základní list'!$A:$A,0),1))) ->  | M64: =IF($K64="","",INDEX('2. závod'!$A:$CH,$K64+5,INDEX('Základní list'!$B:$B,MATCH($J64,'Základní list'!$A:$A,0),1)+2)) -> 
A65: 57 | H65: =IF($G65="","",INDEX('1. závod'!$A:$CH,$G65+5,INDEX('Základní list'!$B:$B,MATCH($F65,'Základní list'!$A:$A,0),1))) ->  | I65: =IF($G65="","",INDEX('1. závod'!$A:$CH,$G65+5,INDEX('Základní list'!$B:$B,MATCH($F65,'Základní list'!$A:$A,0),1)+2)) ->  | L65: =IF($K65="","",INDEX('2. závod'!$A:$CH,$K65+5,INDEX('Základní list'!$B:$B,MATCH($J65,'Základní list'!$A:$A,0),1))) ->  | M65: =IF($K65="","",INDEX('2. závod'!$A:$CH,$K65+5,INDEX('Základní list'!$B:$B,MATCH($J65,'Základní list'!$A:$A,0),1)+2)) -> 
A66: 58 | H66: =IF($G66="","",INDEX('1. závod'!$A:$CH,$G66+5,INDEX('Základní list'!$B:$B,MATCH($F66,'Základní list'!$A:$A,0),1))) ->  | I66: =IF($G66="","",INDEX('1. závod'!$A:$CH,$G66+5,INDEX('Základní list'!$B:$B,MATCH($F66,'Základní list'!$A:$A,0),1)+2)) ->  | L66: =IF($K66="","",INDEX('2. závod'!$A:$CH,$K66+5,INDEX('Základní list'!$B:$B,MATCH($J66,'Základní list'!$A:$A,0),1))) ->  | M66: =IF($K66="","",INDEX('2. závod'!$A:$CH,$K66+5,INDEX('Základní list'!$B:$B,MATCH($J66,'Základní list'!$A:$A,0),1)+2)) ->  | N66: =CONCATENATE(F66,G66) ->  | O66: =CONCATENATE(J66,K66) ->  | P66: =IF(ISBLANK(E66),"",E66) ->  | Q66: =IF(ISBLANK($C66),"",COUNT(I66,M66)) ->  | R66: =IF(ISBLANK($C66),"",SUM(H66,L66)) ->  | S66: =IF(ISBLANK($C66),"",SUM(I66,M66)) -> 
A67: 59 | H67: =IF($G67="","",INDEX('1. závod'!$A:$CH,$G67+5,INDEX('Základní list'!$B:$B,MATCH($F67,'Základní list'!$A:$A,0),1))) ->  | I67: =IF($G67="","",INDEX('1. závod'!$A:$CH,$G67+5,INDEX('Základní list'!$B:$B,MATCH($F67,'Základní list'!$A:$A,0),1)+2)) ->  | L67: =IF($K67="","",INDEX('2. závod'!$A:$CH,$K67+5,INDEX('Základní list'!$B:$B,MATCH($J67,'Základní list'!$A:$A,0),1))) ->  | M67: =IF($K67="","",INDEX('2. závod'!$A:$CH,$K67+5,INDEX('Základní list'!$B:$B,MATCH($J67,'Základní list'!$A:$A,0),1)+2)) -> 
A68: 60 | H68: =IF($G68="","",INDEX('1. závod'!$A:$CH,$G68+5,INDEX('Základní list'!$B:$B,MATCH($F68,'Základní list'!$A:$A,0),1))) ->  | I68: =IF($G68="","",INDEX('1. závod'!$A:$CH,$G68+5,INDEX('Základní list'!$B:$B,MATCH($F68,'Základní list'!$A:$A,0),1)+2)) ->  | L68: =IF($K68="","",INDEX('2. závod'!$A:$CH,$K68+5,INDEX('Základní list'!$B:$B,MATCH($J68,'Základní list'!$A:$A,0),1))) ->  | M68: =IF($K68="","",INDEX('2. závod'!$A:$CH,$K68+5,INDEX('Základní list'!$B:$B,MATCH($J68,'Základní list'!$A:$A,0),1)+2)) -> 
A69: 61 | H69: =IF($G69="","",INDEX('1. závod'!$A:$CH,$G69+5,INDEX('Základní list'!$B:$B,MATCH($F69,'Základní list'!$A:$A,0),1))) ->  | I69: =IF($G69="","",INDEX('1. závod'!$A:$CH,$G69+5,INDEX('Základní list'!$B:$B,MATCH($F69,'Základní list'!$A:$A,0),1)+2)) ->  | L69: =IF($K69="","",INDEX('2. závod'!$A:$CH,$K69+5,INDEX('Základní list'!$B:$B,MATCH($J69,'Základní list'!$A:$A,0),1))) ->  | M69: =IF($K69="","",INDEX('2. závod'!$A:$CH,$K69+5,INDEX('Základní list'!$B:$B,MATCH($J69,'Základní list'!$A:$A,0),1)+2)) -> 
A70: 62 | H70: =IF($G70="","",INDEX('1. závod'!$A:$CH,$G70+5,INDEX('Základní list'!$B:$B,MATCH($F70,'Základní list'!$A:$A,0),1))) ->  | I70: =IF($G70="","",INDEX('1. závod'!$A:$CH,$G70+5,INDEX('Základní list'!$B:$B,MATCH($F70,'Základní list'!$A:$A,0),1)+2)) ->  | L70: =IF($K70="","",INDEX('2. závod'!$A:$CH,$K70+5,INDEX('Základní list'!$B:$B,MATCH($J70,'Základní list'!$A:$A,0),1))) ->  | M70: =IF($K70="","",INDEX('2. závod'!$A:$CH,$K70+5,INDEX('Základní list'!$B:$B,MATCH($J70,'Základní list'!$A:$A,0),1)+2)) -> 
A71: 63 | H71: =IF($G71="","",INDEX('1. závod'!$A:$CH,$G71+5,INDEX('Základní list'!$B:$B,MATCH($F71,'Základní list'!$A:$A,0),1))) ->  | I71: =IF($G71="","",INDEX('1. závod'!$A:$CH,$G71+5,INDEX('Základní list'!$B:$B,MATCH($F71,'Základní list'!$A:$A,0),1)+2)) ->  | L71: =IF($K71="","",INDEX('2. závod'!$A:$CH,$K71+5,INDEX('Základní list'!$B:$B,MATCH($J71,'Základní list'!$A:$A,0),1))) ->  | M71: =IF($K71="","",INDEX('2. závod'!$A:$CH,$K71+5,INDEX('Základní list'!$B:$B,MATCH($J71,'Základní list'!$A:$A,0),1)+2)) -> 
A72: 64 | H72: =IF($G72="","",INDEX('1. závod'!$A:$CH,$G72+5,INDEX('Základní list'!$B:$B,MATCH($F72,'Základní list'!$A:$A,0),1))) ->  | I72: =IF($G72="","",INDEX('1. závod'!$A:$CH,$G72+5,INDEX('Základní list'!$B:$B,MATCH($F72,'Základní list'!$A:$A,0),1)+2)) ->  | L72: =IF($K72="","",INDEX('2. závod'!$A:$CH,$K72+5,INDEX('Základní list'!$B:$B,MATCH($J72,'Základní list'!$A:$A,0),1))) ->  | M72: =IF($K72="","",INDEX('2. závod'!$A:$CH,$K72+5,INDEX('Základní list'!$B:$B,MATCH($J72,'Základní list'!$A:$A,0),1)+2)) -> 
A73: 65 | H73: =IF($G73="","",INDEX('1. závod'!$A:$CH,$G73+5,INDEX('Základní list'!$B:$B,MATCH($F73,'Základní list'!$A:$A,0),1))) ->  | I73: =IF($G73="","",INDEX('1. závod'!$A:$CH,$G73+5,INDEX('Základní list'!$B:$B,MATCH($F73,'Základní list'!$A:$A,0),1)+2)) ->  | L73: =IF($K73="","",INDEX('2. závod'!$A:$CH,$K73+5,INDEX('Základní list'!$B:$B,MATCH($J73,'Základní list'!$A:$A,0),1))) ->  | M73: =IF($K73="","",INDEX('2. závod'!$A:$CH,$K73+5,INDEX('Základní list'!$B:$B,MATCH($J73,'Základní list'!$A:$A,0),1)+2)) -> 
A74: 66 | H74: =IF($G74="","",INDEX('1. závod'!$A:$CH,$G74+5,INDEX('Základní list'!$B:$B,MATCH($F74,'Základní list'!$A:$A,0),1))) ->  | I74: =IF($G74="","",INDEX('1. závod'!$A:$CH,$G74+5,INDEX('Základní list'!$B:$B,MATCH($F74,'Základní list'!$A:$A,0),1)+2)) ->  | L74: =IF($K74="","",INDEX('2. závod'!$A:$CH,$K74+5,INDEX('Základní list'!$B:$B,MATCH($J74,'Základní list'!$A:$A,0),1))) ->  | M74: =IF($K74="","",INDEX('2. závod'!$A:$CH,$K74+5,INDEX('Základní list'!$B:$B,MATCH($J74,'Základní list'!$A:$A,0),1)+2)) ->  | N74: =CONCATENATE(F74,G74) ->  | O74: =CONCATENATE(J74,K74) ->  | P74: =IF(ISBLANK(E74),"",E74) ->  | Q74: =IF(ISBLANK($C74),"",COUNT(I74,M74)) ->  | R74: =IF(ISBLANK($C74),"",SUM(H74,L74)) ->  | S74: =IF(ISBLANK($C74),"",SUM(I74,M74)) -> 
A75: 67 | H75: =IF($G75="","",INDEX('1. závod'!$A:$CH,$G75+5,INDEX('Základní list'!$B:$B,MATCH($F75,'Základní list'!$A:$A,0),1))) ->  | I75: =IF($G75="","",INDEX('1. závod'!$A:$CH,$G75+5,INDEX('Základní list'!$B:$B,MATCH($F75,'Základní list'!$A:$A,0),1)+2)) ->  | L75: =IF($K75="","",INDEX('2. závod'!$A:$CH,$K75+5,INDEX('Základní list'!$B:$B,MATCH($J75,'Základní list'!$A:$A,0),1))) ->  | M75: =IF($K75="","",INDEX('2. závod'!$A:$CH,$K75+5,INDEX('Základní list'!$B:$B,MATCH($J75,'Základní list'!$A:$A,0),1)+2)) -> 
A76: 68 | H76: =IF($G76="","",INDEX('1. závod'!$A:$CH,$G76+5,INDEX('Základní list'!$B:$B,MATCH($F76,'Základní list'!$A:$A,0),1))) ->  | I76: =IF($G76="","",INDEX('1. závod'!$A:$CH,$G76+5,INDEX('Základní list'!$B:$B,MATCH($F76,'Základní list'!$A:$A,0),1)+2)) ->  | L76: =IF($K76="","",INDEX('2. závod'!$A:$CH,$K76+5,INDEX('Základní list'!$B:$B,MATCH($J76,'Základní list'!$A:$A,0),1))) ->  | M76: =IF($K76="","",INDEX('2. závod'!$A:$CH,$K76+5,INDEX('Základní list'!$B:$B,MATCH($J76,'Základní list'!$A:$A,0),1)+2)) -> 
A77: 69 | H77: =IF($G77="","",INDEX('1. závod'!$A:$CH,$G77+5,INDEX('Základní list'!$B:$B,MATCH($F77,'Základní list'!$A:$A,0),1))) ->  | I77: =IF($G77="","",INDEX('1. závod'!$A:$CH,$G77+5,INDEX('Základní list'!$B:$B,MATCH($F77,'Základní list'!$A:$A,0),1)+2)) ->  | L77: =IF($K77="","",INDEX('2. závod'!$A:$CH,$K77+5,INDEX('Základní list'!$B:$B,MATCH($J77,'Základní list'!$A:$A,0),1))) ->  | M77: =IF($K77="","",INDEX('2. závod'!$A:$CH,$K77+5,INDEX('Základní list'!$B:$B,MATCH($J77,'Základní list'!$A:$A,0),1)+2)) -> 
A78: 70 | H78: =IF($G78="","",INDEX('1. závod'!$A:$CH,$G78+5,INDEX('Základní list'!$B:$B,MATCH($F78,'Základní list'!$A:$A,0),1))) ->  | I78: =IF($G78="","",INDEX('1. závod'!$A:$CH,$G78+5,INDEX('Základní list'!$B:$B,MATCH($F78,'Základní list'!$A:$A,0),1)+2)) ->  | L78: =IF($K78="","",INDEX('2. závod'!$A:$CH,$K78+5,INDEX('Základní list'!$B:$B,MATCH($J78,'Základní list'!$A:$A,0),1))) ->  | M78: =IF($K78="","",INDEX('2. závod'!$A:$CH,$K78+5,INDEX('Základní list'!$B:$B,MATCH($J78,'Základní list'!$A:$A,0),1)+2)) -> 
A79: 71 | H79: =IF($G79="","",INDEX('1. závod'!$A:$CH,$G79+5,INDEX('Základní list'!$B:$B,MATCH($F79,'Základní list'!$A:$A,0),1))) ->  | I79: =IF($G79="","",INDEX('1. závod'!$A:$CH,$G79+5,INDEX('Základní list'!$B:$B,MATCH($F79,'Základní list'!$A:$A,0),1)+2)) ->  | L79: =IF($K79="","",INDEX('2. závod'!$A:$CH,$K79+5,INDEX('Základní list'!$B:$B,MATCH($J79,'Základní list'!$A:$A,0),1))) ->  | M79: =IF($K79="","",INDEX('2. závod'!$A:$CH,$K79+5,INDEX('Základní list'!$B:$B,MATCH($J79,'Základní list'!$A:$A,0),1)+2)) -> 
A80: 72 | H80: =IF($G80="","",INDEX('1. závod'!$A:$CH,$G80+5,INDEX('Základní list'!$B:$B,MATCH($F80,'Základní list'!$A:$A,0),1))) ->  | I80: =IF($G80="","",INDEX('1. závod'!$A:$CH,$G80+5,INDEX('Základní list'!$B:$B,MATCH($F80,'Základní list'!$A:$A,0),1)+2)) ->  | L80: =IF($K80="","",INDEX('2. závod'!$A:$CH,$K80+5,INDEX('Základní list'!$B:$B,MATCH($J80,'Základní list'!$A:$A,0),1))) ->  | M80: =IF($K80="","",INDEX('2. závod'!$A:$CH,$K80+5,INDEX('Základní list'!$B:$B,MATCH($J80,'Základní list'!$A:$A,0),1)+2)) -> 
A81: 73 | H81: =IF($G81="","",INDEX('1. závod'!$A:$CH,$G81+5,INDEX('Základní list'!$B:$B,MATCH($F81,'Základní list'!$A:$A,0),1))) ->  | I81: =IF($G81="","",INDEX('1. závod'!$A:$CH,$G81+5,INDEX('Základní list'!$B:$B,MATCH($F81,'Základní list'!$A:$A,0),1)+2)) ->  | L81: =IF($K81="","",INDEX('2. závod'!$A:$CH,$K81+5,INDEX('Základní list'!$B:$B,MATCH($J81,'Základní list'!$A:$A,0),1))) ->  | M81: =IF($K81="","",INDEX('2. závod'!$A:$CH,$K81+5,INDEX('Základní list'!$B:$B,MATCH($J81,'Základní list'!$A:$A,0),1)+2)) -> 
A82: 74 | H82: =IF($G82="","",INDEX('1. závod'!$A:$CH,$G82+5,INDEX('Základní list'!$B:$B,MATCH($F82,'Základní list'!$A:$A,0),1))) ->  | I82: =IF($G82="","",INDEX('1. závod'!$A:$CH,$G82+5,INDEX('Základní list'!$B:$B,MATCH($F82,'Základní list'!$A:$A,0),1)+2)) ->  | L82: =IF($K82="","",INDEX('2. závod'!$A:$CH,$K82+5,INDEX('Základní list'!$B:$B,MATCH($J82,'Základní list'!$A:$A,0),1))) ->  | M82: =IF($K82="","",INDEX('2. závod'!$A:$CH,$K82+5,INDEX('Základní list'!$B:$B,MATCH($J82,'Základní list'!$A:$A,0),1)+2)) -> 
A83: 75 | H83: =IF($G83="","",INDEX('1. závod'!$A:$CH,$G83+5,INDEX('Základní list'!$B:$B,MATCH($F83,'Základní list'!$A:$A,0),1))) ->  | I83: =IF($G83="","",INDEX('1. závod'!$A:$CH,$G83+5,INDEX('Základní list'!$B:$B,MATCH($F83,'Základní list'!$A:$A,0),1)+2)) ->  | L83: =IF($K83="","",INDEX('2. závod'!$A:$CH,$K83+5,INDEX('Základní list'!$B:$B,MATCH($J83,'Základní list'!$A:$A,0),1))) ->  | M83: =IF($K83="","",INDEX('2. závod'!$A:$CH,$K83+5,INDEX('Základní list'!$B:$B,MATCH($J83,'Základní list'!$A:$A,0),1)+2)) -> 
A84: 76 | H84: =IF($G84="","",INDEX('1. závod'!$A:$CH,$G84+5,INDEX('Základní list'!$B:$B,MATCH($F84,'Základní list'!$A:$A,0),1))) ->  | I84: =IF($G84="","",INDEX('1. závod'!$A:$CH,$G84+5,INDEX('Základní list'!$B:$B,MATCH($F84,'Základní list'!$A:$A,0),1)+2)) ->  | L84: =IF($K84="","",INDEX('2. závod'!$A:$CH,$K84+5,INDEX('Základní list'!$B:$B,MATCH($J84,'Základní list'!$A:$A,0),1))) ->  | M84: =IF($K84="","",INDEX('2. závod'!$A:$CH,$K84+5,INDEX('Základní list'!$B:$B,MATCH($J84,'Základní list'!$A:$A,0),1)+2)) -> 
A85: 77 | H85: =IF($G85="","",INDEX('1. závod'!$A:$CH,$G85+5,INDEX('Základní list'!$B:$B,MATCH($F85,'Základní list'!$A:$A,0),1))) ->  | I85: =IF($G85="","",INDEX('1. závod'!$A:$CH,$G85+5,INDEX('Základní list'!$B:$B,MATCH($F85,'Základní list'!$A:$A,0),1)+2)) ->  | L85: =IF($K85="","",INDEX('2. závod'!$A:$CH,$K85+5,INDEX('Základní list'!$B:$B,MATCH($J85,'Základní list'!$A:$A,0),1))) ->  | M85: =IF($K85="","",INDEX('2. závod'!$A:$CH,$K85+5,INDEX('Základní list'!$B:$B,MATCH($J85,'Základní list'!$A:$A,0),1)+2)) -> 
A86: 78 | H86: =IF($G86="","",INDEX('1. závod'!$A:$CH,$G86+5,INDEX('Základní list'!$B:$B,MATCH($F86,'Základní list'!$A:$A,0),1))) ->  | I86: =IF($G86="","",INDEX('1. závod'!$A:$CH,$G86+5,INDEX('Základní list'!$B:$B,MATCH($F86,'Základní list'!$A:$A,0),1)+2)) ->  | L86: =IF($K86="","",INDEX('2. závod'!$A:$CH,$K86+5,INDEX('Základní list'!$B:$B,MATCH($J86,'Základní list'!$A:$A,0),1))) ->  | M86: =IF($K86="","",INDEX('2. závod'!$A:$CH,$K86+5,INDEX('Základní list'!$B:$B,MATCH($J86,'Základní list'!$A:$A,0),1)+2)) -> 
A87: 79 | H87: =IF($G87="","",INDEX('1. závod'!$A:$CH,$G87+5,INDEX('Základní list'!$B:$B,MATCH($F87,'Základní list'!$A:$A,0),1))) ->  | I87: =IF($G87="","",INDEX('1. závod'!$A:$CH,$G87+5,INDEX('Základní list'!$B:$B,MATCH($F87,'Základní list'!$A:$A,0),1)+2)) ->  | L87: =IF($K87="","",INDEX('2. závod'!$A:$CH,$K87+5,INDEX('Základní list'!$B:$B,MATCH($J87,'Základní list'!$A:$A,0),1))) ->  | M87: =IF($K87="","",INDEX('2. závod'!$A:$CH,$K87+5,INDEX('Základní list'!$B:$B,MATCH($J87,'Základní list'!$A:$A,0),1)+2)) -> 
A88: 80 | H88: =IF($G88="","",INDEX('1. závod'!$A:$CH,$G88+5,INDEX('Základní list'!$B:$B,MATCH($F88,'Základní list'!$A:$A,0),1))) ->  | I88: =IF($G88="","",INDEX('1. závod'!$A:$CH,$G88+5,INDEX('Základní list'!$B:$B,MATCH($F88,'Základní list'!$A:$A,0),1)+2)) ->  | L88: =IF($K88="","",INDEX('2. závod'!$A:$CH,$K88+5,INDEX('Základní list'!$B:$B,MATCH($J88,'Základní list'!$A:$A,0),1))) ->  | M88: =IF($K88="","",INDEX('2. závod'!$A:$CH,$K88+5,INDEX('Základní list'!$B:$B,MATCH($J88,'Základní list'!$A:$A,0),1)+2)) -> 
A89: 81 | H89: =IF($G89="","",INDEX('1. závod'!$A:$CH,$G89+5,INDEX('Základní list'!$B:$B,MATCH($F89,'Základní list'!$A:$A,0),1))) ->  | I89: =IF($G89="","",INDEX('1. závod'!$A:$CH,$G89+5,INDEX('Základní list'!$B:$B,MATCH($F89,'Základní list'!$A:$A,0),1)+2)) ->  | L89: =IF($K89="","",INDEX('2. závod'!$A:$CH,$K89+5,INDEX('Základní list'!$B:$B,MATCH($J89,'Základní list'!$A:$A,0),1))) ->  | M89: =IF($K89="","",INDEX('2. závod'!$A:$CH,$K89+5,INDEX('Základní list'!$B:$B,MATCH($J89,'Základní list'!$A:$A,0),1)+2)) -> 
A90: 82 | H90: =IF($G90="","",INDEX('1. závod'!$A:$CH,$G90+5,INDEX('Základní list'!$B:$B,MATCH($F90,'Základní list'!$A:$A,0),1))) ->  | I90: =IF($G90="","",INDEX('1. závod'!$A:$CH,$G90+5,INDEX('Základní list'!$B:$B,MATCH($F90,'Základní list'!$A:$A,0),1)+2)) ->  | L90: =IF($K90="","",INDEX('2. závod'!$A:$CH,$K90+5,INDEX('Základní list'!$B:$B,MATCH($J90,'Základní list'!$A:$A,0),1))) ->  | M90: =IF($K90="","",INDEX('2. závod'!$A:$CH,$K90+5,INDEX('Základní list'!$B:$B,MATCH($J90,'Základní list'!$A:$A,0),1)+2)) -> 
A91: 83 | H91: =IF($G91="","",INDEX('1. závod'!$A:$CH,$G91+5,INDEX('Základní list'!$B:$B,MATCH($F91,'Základní list'!$A:$A,0),1))) ->  | I91: =IF($G91="","",INDEX('1. závod'!$A:$CH,$G91+5,INDEX('Základní list'!$B:$B,MATCH($F91,'Základní list'!$A:$A,0),1)+2)) ->  | L91: =IF($K91="","",INDEX('2. závod'!$A:$CH,$K91+5,INDEX('Základní list'!$B:$B,MATCH($J91,'Základní list'!$A:$A,0),1))) ->  | M91: =IF($K91="","",INDEX('2. závod'!$A:$CH,$K91+5,INDEX('Základní list'!$B:$B,MATCH($J91,'Základní list'!$A:$A,0),1)+2)) -> 
A92: 84 | H92: =IF($G92="","",INDEX('1. závod'!$A:$CH,$G92+5,INDEX('Základní list'!$B:$B,MATCH($F92,'Základní list'!$A:$A,0),1))) ->  | I92: =IF($G92="","",INDEX('1. závod'!$A:$CH,$G92+5,INDEX('Základní list'!$B:$B,MATCH($F92,'Základní list'!$A:$A,0),1)+2)) ->  | L92: =IF($K92="","",INDEX('2. závod'!$A:$CH,$K92+5,INDEX('Základní list'!$B:$B,MATCH($J92,'Základní list'!$A:$A,0),1))) ->  | M92: =IF($K92="","",INDEX('2. závod'!$A:$CH,$K92+5,INDEX('Základní list'!$B:$B,MATCH($J92,'Základní list'!$A:$A,0),1)+2)) -> 
A93: 85 | H93: =IF($G93="","",INDEX('1. závod'!$A:$CH,$G93+5,INDEX('Základní list'!$B:$B,MATCH($F93,'Základní list'!$A:$A,0),1))) ->  | I93: =IF($G93="","",INDEX('1. závod'!$A:$CH,$G93+5,INDEX('Základní list'!$B:$B,MATCH($F93,'Základní list'!$A:$A,0),1)+2)) ->  | L93: =IF($K93="","",INDEX('2. závod'!$A:$CH,$K93+5,INDEX('Základní list'!$B:$B,MATCH($J93,'Základní list'!$A:$A,0),1))) ->  | M93: =IF($K93="","",INDEX('2. závod'!$A:$CH,$K93+5,INDEX('Základní list'!$B:$B,MATCH($J93,'Základní list'!$A:$A,0),1)+2)) -> 
A94: 86 | H94: =IF($G94="","",INDEX('1. závod'!$A:$CH,$G94+5,INDEX('Základní list'!$B:$B,MATCH($F94,'Základní list'!$A:$A,0),1))) ->  | I94: =IF($G94="","",INDEX('1. závod'!$A:$CH,$G94+5,INDEX('Základní list'!$B:$B,MATCH($F94,'Základní list'!$A:$A,0),1)+2)) ->  | L94: =IF($K94="","",INDEX('2. závod'!$A:$CH,$K94+5,INDEX('Základní list'!$B:$B,MATCH($J94,'Základní list'!$A:$A,0),1))) ->  | M94: =IF($K94="","",INDEX('2. závod'!$A:$CH,$K94+5,INDEX('Základní list'!$B:$B,MATCH($J94,'Základní list'!$A:$A,0),1)+2)) -> 
A95: 87 | H95: =IF($G95="","",INDEX('1. závod'!$A:$CH,$G95+5,INDEX('Základní list'!$B:$B,MATCH($F95,'Základní list'!$A:$A,0),1))) ->  | I95: =IF($G95="","",INDEX('1. závod'!$A:$CH,$G95+5,INDEX('Základní list'!$B:$B,MATCH($F95,'Základní list'!$A:$A,0),1)+2)) ->  | L95: =IF($K95="","",INDEX('2. závod'!$A:$CH,$K95+5,INDEX('Základní list'!$B:$B,MATCH($J95,'Základní list'!$A:$A,0),1))) ->  | M95: =IF($K95="","",INDEX('2. závod'!$A:$CH,$K95+5,INDEX('Základní list'!$B:$B,MATCH($J95,'Základní list'!$A:$A,0),1)+2)) -> 
A96: 88 | H96: =IF($G96="","",INDEX('1. závod'!$A:$CH,$G96+5,INDEX('Základní list'!$B:$B,MATCH($F96,'Základní list'!$A:$A,0),1))) ->  | I96: =IF($G96="","",INDEX('1. závod'!$A:$CH,$G96+5,INDEX('Základní list'!$B:$B,MATCH($F96,'Základní list'!$A:$A,0),1)+2)) ->  | L96: =IF($K96="","",INDEX('2. závod'!$A:$CH,$K96+5,INDEX('Základní list'!$B:$B,MATCH($J96,'Základní list'!$A:$A,0),1))) ->  | M96: =IF($K96="","",INDEX('2. závod'!$A:$CH,$K96+5,INDEX('Základní list'!$B:$B,MATCH($J96,'Základní list'!$A:$A,0),1)+2)) -> 
A97: 89 | H97: =IF($G97="","",INDEX('1. závod'!$A:$CH,$G97+5,INDEX('Základní list'!$B:$B,MATCH($F97,'Základní list'!$A:$A,0),1))) ->  | I97: =IF($G97="","",INDEX('1. závod'!$A:$CH,$G97+5,INDEX('Základní list'!$B:$B,MATCH($F97,'Základní list'!$A:$A,0),1)+2)) ->  | L97: =IF($K97="","",INDEX('2. závod'!$A:$CH,$K97+5,INDEX('Základní list'!$B:$B,MATCH($J97,'Základní list'!$A:$A,0),1))) ->  | M97: =IF($K97="","",INDEX('2. závod'!$A:$CH,$K97+5,INDEX('Základní list'!$B:$B,MATCH($J97,'Základní list'!$A:$A,0),1)+2)) -> 
A98: 90 | H98: =IF($G98="","",INDEX('1. závod'!$A:$CH,$G98+5,INDEX('Základní list'!$B:$B,MATCH($F98,'Základní list'!$A:$A,0),1))) ->  | I98: =IF($G98="","",INDEX('1. závod'!$A:$CH,$G98+5,INDEX('Základní list'!$B:$B,MATCH($F98,'Základní list'!$A:$A,0),1)+2)) ->  | L98: =IF($K98="","",INDEX('2. závod'!$A:$CH,$K98+5,INDEX('Základní list'!$B:$B,MATCH($J98,'Základní list'!$A:$A,0),1))) ->  | M98: =IF($K98="","",INDEX('2. závod'!$A:$CH,$K98+5,INDEX('Základní list'!$B:$B,MATCH($J98,'Základní list'!$A:$A,0),1)+2)) -> 
A99: 91 | H99: =IF($G99="","",INDEX('1. závod'!$A:$CH,$G99+5,INDEX('Základní list'!$B:$B,MATCH($F99,'Základní list'!$A:$A,0),1))) ->  | I99: =IF($G99="","",INDEX('1. závod'!$A:$CH,$G99+5,INDEX('Základní list'!$B:$B,MATCH($F99,'Základní list'!$A:$A,0),1)+2)) ->  | L99: =IF($K99="","",INDEX('2. závod'!$A:$CH,$K99+5,INDEX('Základní list'!$B:$B,MATCH($J99,'Základní list'!$A:$A,0),1))) ->  | M99: =IF($K99="","",INDEX('2. závod'!$A:$CH,$K99+5,INDEX('Základní list'!$B:$B,MATCH($J99,'Základní list'!$A:$A,0),1)+2)) -> 
A100: 92 | H100: =IF($G100="","",INDEX('1. závod'!$A:$CH,$G100+5,INDEX('Základní list'!$B:$B,MATCH($F100,'Základní list'!$A:$A,0),1))) ->  | I100: =IF($G100="","",INDEX('1. závod'!$A:$CH,$G100+5,INDEX('Základní list'!$B:$B,MATCH($F100,'Základní list'!$A:$A,0),1)+2)) ->  | L100: =IF($K100="","",INDEX('2. závod'!$A:$CH,$K100+5,INDEX('Základní list'!$B:$B,MATCH($J100,'Základní list'!$A:$A,0),1))) ->  | M100: =IF($K100="","",INDEX('2. závod'!$A:$CH,$K100+5,INDEX('Základní list'!$B:$B,MATCH($J100,'Základní list'!$A:$A,0),1)+2)) -> 
A101: 93 | H101: =IF($G101="","",INDEX('1. závod'!$A:$CH,$G101+5,INDEX('Základní list'!$B:$B,MATCH($F101,'Základní list'!$A:$A,0),1))) ->  | I101: =IF($G101="","",INDEX('1. závod'!$A:$CH,$G101+5,INDEX('Základní list'!$B:$B,MATCH($F101,'Základní list'!$A:$A,0),1)+2)) ->  | L101: =IF($K101="","",INDEX('2. závod'!$A:$CH,$K101+5,INDEX('Základní list'!$B:$B,MATCH($J101,'Základní list'!$A:$A,0),1))) ->  | M101: =IF($K101="","",INDEX('2. závod'!$A:$CH,$K101+5,INDEX('Základní list'!$B:$B,MATCH($J101,'Základní list'!$A:$A,0),1)+2)) -> 
A102: 94 | H102: =IF($G102="","",INDEX('1. závod'!$A:$CH,$G102+5,INDEX('Základní list'!$B:$B,MATCH($F102,'Základní list'!$A:$A,0),1))) ->  | I102: =IF($G102="","",INDEX('1. závod'!$A:$CH,$G102+5,INDEX('Základní list'!$B:$B,MATCH($F102,'Základní list'!$A:$A,0),1)+2)) ->  | L102: =IF($K102="","",INDEX('2. závod'!$A:$CH,$K102+5,INDEX('Základní list'!$B:$B,MATCH($J102,'Základní list'!$A:$A,0),1))) ->  | M102: =IF($K102="","",INDEX('2. závod'!$A:$CH,$K102+5,INDEX('Základní list'!$B:$B,MATCH($J102,'Základní list'!$A:$A,0),1)+2)) -> 
A103: 95 | H103: =IF($G103="","",INDEX('1. závod'!$A:$CH,$G103+5,INDEX('Základní list'!$B:$B,MATCH($F103,'Základní list'!$A:$A,0),1))) ->  | I103: =IF($G103="","",INDEX('1. závod'!$A:$CH,$G103+5,INDEX('Základní list'!$B:$B,MATCH($F103,'Základní list'!$A:$A,0),1)+2)) ->  | L103: =IF($K103="","",INDEX('2. závod'!$A:$CH,$K103+5,INDEX('Základní list'!$B:$B,MATCH($J103,'Základní list'!$A:$A,0),1))) ->  | M103: =IF($K103="","",INDEX('2. závod'!$A:$CH,$K103+5,INDEX('Základní list'!$B:$B,MATCH($J103,'Základní list'!$A:$A,0),1)+2)) -> 
A104: 96 | H104: =IF($G104="","",INDEX('1. závod'!$A:$CH,$G104+5,INDEX('Základní list'!$B:$B,MATCH($F104,'Základní list'!$A:$A,0),1))) ->  | I104: =IF($G104="","",INDEX('1. závod'!$A:$CH,$G104+5,INDEX('Základní list'!$B:$B,MATCH($F104,'Základní list'!$A:$A,0),1)+2)) ->  | L104: =IF($K104="","",INDEX('2. závod'!$A:$CH,$K104+5,INDEX('Základní list'!$B:$B,MATCH($J104,'Základní list'!$A:$A,0),1))) ->  | M104: =IF($K104="","",INDEX('2. závod'!$A:$CH,$K104+5,INDEX('Základní list'!$B:$B,MATCH($J104,'Základní list'!$A:$A,0),1)+2)) -> 
A105: 97 | H105: =IF($G105="","",INDEX('1. závod'!$A:$CH,$G105+5,INDEX('Základní list'!$B:$B,MATCH($F105,'Základní list'!$A:$A,0),1))) ->  | I105: =IF($G105="","",INDEX('1. závod'!$A:$CH,$G105+5,INDEX('Základní list'!$B:$B,MATCH($F105,'Základní list'!$A:$A,0),1)+2)) ->  | L105: =IF($K105="","",INDEX('2. závod'!$A:$CH,$K105+5,INDEX('Základní list'!$B:$B,MATCH($J105,'Základní list'!$A:$A,0),1))) ->  | M105: =IF($K105="","",INDEX('2. závod'!$A:$CH,$K105+5,INDEX('Základní list'!$B:$B,MATCH($J105,'Základní list'!$A:$A,0),1)+2)) -> 
A106: 98 | H106: =IF($G106="","",INDEX('1. závod'!$A:$CH,$G106+5,INDEX('Základní list'!$B:$B,MATCH($F106,'Základní list'!$A:$A,0),1))) ->  | I106: =IF($G106="","",INDEX('1. závod'!$A:$CH,$G106+5,INDEX('Základní list'!$B:$B,MATCH($F106,'Základní list'!$A:$A,0),1)+2)) ->  | L106: =IF($K106="","",INDEX('2. závod'!$A:$CH,$K106+5,INDEX('Základní list'!$B:$B,MATCH($J106,'Základní list'!$A:$A,0),1))) ->  | M106: =IF($K106="","",INDEX('2. závod'!$A:$CH,$K106+5,INDEX('Základní list'!$B:$B,MATCH($J106,'Základní list'!$A:$A,0),1)+2)) ->  | T106: =IF(ISBLANK($C106),"",IF(ISTEXT(T65),1,T65+1)) -> 
A107: 99 | H107: =IF($G107="","",INDEX('1. závod'!$A:$CH,$G107+5,INDEX('Základní list'!$B:$B,MATCH($F107,'Základní list'!$A:$A,0),1))) ->  | I107: =IF($G107="","",INDEX('1. závod'!$A:$CH,$G107+5,INDEX('Základní list'!$B:$B,MATCH($F107,'Základní list'!$A:$A,0),1)+2)) ->  | L107: =IF($K107="","",INDEX('2. závod'!$A:$CH,$K107+5,INDEX('Základní list'!$B:$B,MATCH($J107,'Základní list'!$A:$A,0),1))) ->  | M107: =IF($K107="","",INDEX('2. závod'!$A:$CH,$K107+5,INDEX('Základní list'!$B:$B,MATCH($J107,'Základní list'!$A:$A,0),1)+2)) -> 
A108: 100 | H108: =IF($G108="","",INDEX('1. závod'!$A:$CH,$G108+5,INDEX('Základní list'!$B:$B,MATCH($F108,'Základní list'!$A:$A,0),1))) ->  | I108: =IF($G108="","",INDEX('1. závod'!$A:$CH,$G108+5,INDEX('Základní list'!$B:$B,MATCH($F108,'Základní list'!$A:$A,0),1)+2)) ->  | L108: =IF($K108="","",INDEX('2. závod'!$A:$CH,$K108+5,INDEX('Základní list'!$B:$B,MATCH($J108,'Základní list'!$A:$A,0),1))) ->  | M108: =IF($K108="","",INDEX('2. závod'!$A:$CH,$K108+5,INDEX('Základní list'!$B:$B,MATCH($J108,'Základní list'!$A:$A,0),1)+2)) -> 
A109: 101 | H109: =IF($G109="","",INDEX('1. závod'!$A:$CH,$G109+5,INDEX('Základní list'!$B:$B,MATCH($F109,'Základní list'!$A:$A,0),1))) ->  | I109: =IF($G109="","",INDEX('1. závod'!$A:$CH,$G109+5,INDEX('Základní list'!$B:$B,MATCH($F109,'Základní list'!$A:$A,0),1)+2)) ->  | L109: =IF($K109="","",INDEX('2. závod'!$A:$CH,$K109+5,INDEX('Základní list'!$B:$B,MATCH($J109,'Základní list'!$A:$A,0),1))) ->  | M109: =IF($K109="","",INDEX('2. závod'!$A:$CH,$K109+5,INDEX('Základní list'!$B:$B,MATCH($J109,'Základní list'!$A:$A,0),1)+2)) -> 
A110: 102 | H110: =IF($G110="","",INDEX('1. závod'!$A:$CH,$G110+5,INDEX('Základní list'!$B:$B,MATCH($F110,'Základní list'!$A:$A,0),1))) ->  | I110: =IF($G110="","",INDEX('1. závod'!$A:$CH,$G110+5,INDEX('Základní list'!$B:$B,MATCH($F110,'Základní list'!$A:$A,0),1)+2)) ->  | L110: =IF($K110="","",INDEX('2. závod'!$A:$CH,$K110+5,INDEX('Základní list'!$B:$B,MATCH($J110,'Základní list'!$A:$A,0),1))) ->  | M110: =IF($K110="","",INDEX('2. závod'!$A:$CH,$K110+5,INDEX('Základní list'!$B:$B,MATCH($J110,'Základní list'!$A:$A,0),1)+2)) -> 
A111: 103 | H111: =IF($G111="","",INDEX('1. závod'!$A:$CH,$G111+5,INDEX('Základní list'!$B:$B,MATCH($F111,'Základní list'!$A:$A,0),1))) ->  | I111: =IF($G111="","",INDEX('1. závod'!$A:$CH,$G111+5,INDEX('Základní list'!$B:$B,MATCH($F111,'Základní list'!$A:$A,0),1)+2)) ->  | L111: =IF($K111="","",INDEX('2. závod'!$A:$CH,$K111+5,INDEX('Základní list'!$B:$B,MATCH($J111,'Základní list'!$A:$A,0),1))) ->  | M111: =IF($K111="","",INDEX('2. závod'!$A:$CH,$K111+5,INDEX('Základní list'!$B:$B,MATCH($J111,'Základní list'!$A:$A,0),1)+2)) -> 
A112: 104 | H112: =IF($G112="","",INDEX('1. závod'!$A:$CH,$G112+5,INDEX('Základní list'!$B:$B,MATCH($F112,'Základní list'!$A:$A,0),1))) ->  | I112: =IF($G112="","",INDEX('1. závod'!$A:$CH,$G112+5,INDEX('Základní list'!$B:$B,MATCH($F112,'Základní list'!$A:$A,0),1)+2)) ->  | L112: =IF($K112="","",INDEX('2. závod'!$A:$CH,$K112+5,INDEX('Základní list'!$B:$B,MATCH($J112,'Základní list'!$A:$A,0),1))) ->  | M112: =IF($K112="","",INDEX('2. závod'!$A:$CH,$K112+5,INDEX('Základní list'!$B:$B,MATCH($J112,'Základní list'!$A:$A,0),1)+2)) -> 
A113: 105 | H113: =IF($G113="","",INDEX('1. závod'!$A:$CH,$G113+5,INDEX('Základní list'!$B:$B,MATCH($F113,'Základní list'!$A:$A,0),1))) ->  | I113: =IF($G113="","",INDEX('1. závod'!$A:$CH,$G113+5,INDEX('Základní list'!$B:$B,MATCH($F113,'Základní list'!$A:$A,0),1)+2)) ->  | L113: =IF($K113="","",INDEX('2. závod'!$A:$CH,$K113+5,INDEX('Základní list'!$B:$B,MATCH($J113,'Základní list'!$A:$A,0),1))) ->  | M113: =IF($K113="","",INDEX('2. závod'!$A:$CH,$K113+5,INDEX('Základní list'!$B:$B,MATCH($J113,'Základní list'!$A:$A,0),1)+2)) ->  | N113: =CONCATENATE(F113,G113) ->  | O113: =CONCATENATE(J113,K113) ->  | P113: =IF(ISBLANK(E113),"",E113) ->  | Q113: =IF(ISBLANK($C113),"",COUNT(I113,M113)) ->  | R113: =IF(ISBLANK($C113),"",SUM(H113,L113)) ->  | S113: =IF(ISBLANK($C113),"",SUM(I113,M113)) ->  | T113: =IF(ISBLANK($C113),"",IF(ISTEXT(T112),1,T112+1)) -> 
A114: 106
A115: 107
A116: 108
A117: 109
A118: 110
A119: 111 | H119: =IF($G119="","",INDEX('1. závod'!$A:$CH,$G119+5,INDEX('Základní list'!$B:$B,MATCH($F119,'Základní list'!$A:$A,0),1))) ->  | I119: =IF($G119="","",INDEX('1. závod'!$A:$CH,$G119+5,INDEX('Základní list'!$B:$B,MATCH($F119,'Základní list'!$A:$A,0),1)+2)) ->  | L119: =IF($K119="","",INDEX('2. závod'!$A:$CH,$K119+5,INDEX('Základní list'!$B:$B,MATCH($J119,'Základní list'!$A:$A,0),1))) ->  | M119: =IF($K119="","",INDEX('2. závod'!$A:$CH,$K119+5,INDEX('Základní list'!$B:$B,MATCH($J119,'Základní list'!$A:$A,0),1)+2)) ->  | T119: =IF(ISBLANK($C119),"",IF(ISTEXT(T113),1,T113+1)) -> 
A120: 112 | H120: =IF($G120="","",INDEX('1. závod'!$A:$CH,$G120+5,INDEX('Základní list'!$B:$B,MATCH($F120,'Základní list'!$A:$A,0),1))) ->  | I120: =IF($G120="","",INDEX('1. závod'!$A:$CH,$G120+5,INDEX('Základní list'!$B:$B,MATCH($F120,'Základní list'!$A:$A,0),1)+2)) ->  | L120: =IF($K120="","",INDEX('2. závod'!$A:$CH,$K120+5,INDEX('Základní list'!$B:$B,MATCH($J120,'Základní list'!$A:$A,0),1))) ->  | M120: =IF($K120="","",INDEX('2. závod'!$A:$CH,$K120+5,INDEX('Základní list'!$B:$B,MATCH($J120,'Základní list'!$A:$A,0),1)+2)) -> 
A121: 113 | H121: =IF($G121="","",INDEX('1. závod'!$A:$CH,$G121+5,INDEX('Základní list'!$B:$B,MATCH($F121,'Základní list'!$A:$A,0),1))) ->  | I121: =IF($G121="","",INDEX('1. závod'!$A:$CH,$G121+5,INDEX('Základní list'!$B:$B,MATCH($F121,'Základní list'!$A:$A,0),1)+2)) ->  | L121: =IF($K121="","",INDEX('2. závod'!$A:$CH,$K121+5,INDEX('Základní list'!$B:$B,MATCH($J121,'Základní list'!$A:$A,0),1))) ->  | M121: =IF($K121="","",INDEX('2. závod'!$A:$CH,$K121+5,INDEX('Základní list'!$B:$B,MATCH($J121,'Základní list'!$A:$A,0),1)+2)) -> 
A122: 114 | H122: =IF($G122="","",INDEX('1. závod'!$A:$CH,$G122+5,INDEX('Základní list'!$B:$B,MATCH($F122,'Základní list'!$A:$A,0),1))) ->  | I122: =IF($G122="","",INDEX('1. závod'!$A:$CH,$G122+5,INDEX('Základní list'!$B:$B,MATCH($F122,'Základní list'!$A:$A,0),1)+2)) ->  | L122: =IF($K122="","",INDEX('2. závod'!$A:$CH,$K122+5,INDEX('Základní list'!$B:$B,MATCH($J122,'Základní list'!$A:$A,0),1))) ->  | M122: =IF($K122="","",INDEX('2. závod'!$A:$CH,$K122+5,INDEX('Základní list'!$B:$B,MATCH($J122,'Základní list'!$A:$A,0),1)+2)) ->  | T122: =IF(ISBLANK($C122),"",IF(ISTEXT(T120),1,T120+1)) -> 
A123: 115 | H123: =IF($G123="","",INDEX('1. závod'!$A:$CH,$G123+5,INDEX('Základní list'!$B:$B,MATCH($F123,'Základní list'!$A:$A,0),1))) ->  | I123: =IF($G123="","",INDEX('1. závod'!$A:$CH,$G123+5,INDEX('Základní list'!$B:$B,MATCH($F123,'Základní list'!$A:$A,0),1)+2)) ->  | L123: =IF($K123="","",INDEX('2. závod'!$A:$CH,$K123+5,INDEX('Základní list'!$B:$B,MATCH($J123,'Základní list'!$A:$A,0),1))) ->  | M123: =IF($K123="","",INDEX('2. závod'!$A:$CH,$K123+5,INDEX('Základní list'!$B:$B,MATCH($J123,'Základní list'!$A:$A,0),1)+2)) -> 
A124: 116 | H124: =IF($G124="","",INDEX('1. závod'!$A:$CH,$G124+5,INDEX('Základní list'!$B:$B,MATCH($F124,'Základní list'!$A:$A,0),1))) ->  | I124: =IF($G124="","",INDEX('1. závod'!$A:$CH,$G124+5,INDEX('Základní list'!$B:$B,MATCH($F124,'Základní list'!$A:$A,0),1)+2)) ->  | L124: =IF($K124="","",INDEX('2. závod'!$A:$CH,$K124+5,INDEX('Základní list'!$B:$B,MATCH($J124,'Základní list'!$A:$A,0),1))) ->  | M124: =IF($K124="","",INDEX('2. závod'!$A:$CH,$K124+5,INDEX('Základní list'!$B:$B,MATCH($J124,'Základní list'!$A:$A,0),1)+2)) -> 
A125: 117 | H125: =IF($G125="","",INDEX('1. závod'!$A:$CH,$G125+5,INDEX('Základní list'!$B:$B,MATCH($F125,'Základní list'!$A:$A,0),1))) ->  | I125: =IF($G125="","",INDEX('1. závod'!$A:$CH,$G125+5,INDEX('Základní list'!$B:$B,MATCH($F125,'Základní list'!$A:$A,0),1)+2)) ->  | L125: =IF($K125="","",INDEX('2. závod'!$A:$CH,$K125+5,INDEX('Základní list'!$B:$B,MATCH($J125,'Základní list'!$A:$A,0),1))) ->  | M125: =IF($K125="","",INDEX('2. závod'!$A:$CH,$K125+5,INDEX('Základní list'!$B:$B,MATCH($J125,'Základní list'!$A:$A,0),1)+2)) -> 
A126: 118 | H126: =IF($G126="","",INDEX('1. závod'!$A:$CH,$G126+5,INDEX('Základní list'!$B:$B,MATCH($F126,'Základní list'!$A:$A,0),1))) ->  | I126: =IF($G126="","",INDEX('1. závod'!$A:$CH,$G126+5,INDEX('Základní list'!$B:$B,MATCH($F126,'Základní list'!$A:$A,0),1)+2)) ->  | L126: =IF($K126="","",INDEX('2. závod'!$A:$CH,$K126+5,INDEX('Základní list'!$B:$B,MATCH($J126,'Základní list'!$A:$A,0),1))) ->  | M126: =IF($K126="","",INDEX('2. závod'!$A:$CH,$K126+5,INDEX('Základní list'!$B:$B,MATCH($J126,'Základní list'!$A:$A,0),1)+2)) -> 
A127: 119 | H127: =IF($G127="","",INDEX('1. závod'!$A:$CH,$G127+5,INDEX('Základní list'!$B:$B,MATCH($F127,'Základní list'!$A:$A,0),1))) ->  | I127: =IF($G127="","",INDEX('1. závod'!$A:$CH,$G127+5,INDEX('Základní list'!$B:$B,MATCH($F127,'Základní list'!$A:$A,0),1)+2)) ->  | L127: =IF($K127="","",INDEX('2. závod'!$A:$CH,$K127+5,INDEX('Základní list'!$B:$B,MATCH($J127,'Základní list'!$A:$A,0),1))) ->  | M127: =IF($K127="","",INDEX('2. závod'!$A:$CH,$K127+5,INDEX('Základní list'!$B:$B,MATCH($J127,'Základní list'!$A:$A,0),1)+2)) -> 
A128: 120 | H128: =IF($G128="","",INDEX('1. závod'!$A:$CH,$G128+5,INDEX('Základní list'!$B:$B,MATCH($F128,'Základní list'!$A:$A,0),1))) ->  | I128: =IF($G128="","",INDEX('1. závod'!$A:$CH,$G128+5,INDEX('Základní list'!$B:$B,MATCH($F128,'Základní list'!$A:$A,0),1)+2)) ->  | L128: =IF($K128="","",INDEX('2. závod'!$A:$CH,$K128+5,INDEX('Základní list'!$B:$B,MATCH($J128,'Základní list'!$A:$A,0),1))) ->  | M128: =IF($K128="","",INDEX('2. závod'!$A:$CH,$K128+5,INDEX('Základní list'!$B:$B,MATCH($J128,'Základní list'!$A:$A,0),1)+2)) -> 
A130: Podpis pořadatele | F130: Podpis garanta | I130: Podpis hlavního rozhodčího

Sheet Závod družstev
A1: Soutěž družstev
A2: =CONCATENATE('Základní list'!$E$3) -> AWA-S cup 2017
A4: Družstvo | B4: ID | C4: Příjmení jméno | D4: 1 závod | I4: 2 závod | N4: Družstva
D5: Jednotivci | F5: Družstva | I5: Jednotivci | K5: Družstva | R5: velikost dr. | S5: 3
D6: CIPS | E6: um. | F6: CIPS | G6: Body | H6: Poř | I6: CIPS | J6: um. | K6: CIPS | L6: Body | M6: Poř | N6: CIPS | O6: Body | P6: Poř | R6: pocet dr. | S6: =COUNTA(A:A)-3 -> 8
A7: Ševčovi pacholci | B7: =IF(ISBLANK($C7),"",INDEX('Výsledková listina'!$B:$B,MATCH($C7,'Výsledková listina'!$C:$C,0),1)) -> 0 | C7: Radek Černý | D7: =IF(ISBLANK(C7),"",INDEX('Výsledková listina'!$H:$I,MATCH($C7,'Výsledková listina'!$C:$C,0),1)) -> 14560 | E7: =IF(ISBLANK(C7),"",INDEX('Výsledková listina'!$H:$I,MATCH($C7,'Výsledková listina'!$C:$C,0),2)) -> 1 | F7: =IF(ISBLANK($A7),"",SUM(D7:D9)) -> 27500 | G7: =IF(ISBLANK($A7),"",SUM(E7:E9)) -> 9 | H7: =IF(ISBLANK($A7),"",RANK(G7,G:G,1)) -> 1 | I7: =IF(ISBLANK(C7),"",INDEX('Výsledková listina'!$L:$M,MATCH($C7,'Výsledková listina'!$C:$C,0),1)) -> 6540 | J7: =IF(ISBLANK(C7),"",INDEX('Výsledková listina'!$L:$M,MATCH($C7,'Výsledková listina'!$C:$C,0),2)) -> 4 | K7: =IF(ISBLANK($A7),"",SUM(I7:I9)) -> 14820 | L7: =IF(ISBLANK($A7),"",SUM(J7:J9)) -> 19 | M7: =IF(ISBLANK($A7),"",RANK(L7,L:L,1)) -> 8 | N7: =IF(ISBLANK($A7),"",SUM(F7,K7)) -> 42320 | O7: =IF(ISBLANK($A7),"",SUM(G7,L7)) -> 28 | P7: =IF(ISBLANK($A7),"",RANK(O7,O:O,1)) -> 4
B8: =IF(ISBLANK($C8),"",INDEX('Výsledková listina'!$B:$B,MATCH($C8,'Výsledková listina'!$C:$C,0),1)) -> 0 | C8: Ševčík Ladislav | D8: =IF(ISBLANK(C8),"",INDEX('Výsledková listina'!$H:$I,MATCH($C8,'Výsledková listina'!$C:$C,0),1)) -> 6160 | E8: =IF(ISBLANK(C8),"",INDEX('Výsledková listina'!$H:$I,MATCH($C8,'Výsledková listina'!$C:$C,0),2)) -> 5 | I8: =IF(ISBLANK(C8),"",INDEX('Výsledková listina'!$L:$M,MATCH($C8,'Výsledková listina'!$C:$C,0),1)) -> 2260 | J8: =IF(ISBLANK(C8),"",INDEX('Výsledková listina'!$L:$M,MATCH($C8,'Výsledková listina'!$C:$C,0),2)) -> 8
B9: 0 | C9: Vitásek Jiří | D9: =IF(ISBLANK(C9),"",INDEX('Výsledková listina'!$H:$I,MATCH($C9,'Výsledková listina'!$C:$C,0),1)) -> 6780 | E9: =IF(ISBLANK(C9),"",INDEX('Výsledková listina'!$H:$I,MATCH($C9,'Výsledková listina'!$C:$C,0),2)) -> 3 | I9: =IF(ISBLANK(C9),"",INDEX('Výsledková listina'!$L:$M,MATCH($C9,'Výsledková listina'!$C:$C,0),1)) -> 6020 | J9: =IF(ISBLANK(C9),"",INDEX('Výsledková listina'!$L:$M,MATCH($C9,'Výsledková listina'!$C:$C,0),2)) -> 7
A10: Feeder team Vlci-MRS | B10: =IF(ISBLANK($C10),"",INDEX('Výsledková listina'!$B:$B,MATCH($C10,'Výsledková listina'!$C:$C,0),1)) -> 0 | C10: Koucký Milan | D10: =IF(ISBLANK(C10),"",INDEX('Výsledková listina'!$H:$I,MATCH($C10,'Výsledková listina'!$C:$C,0),1)) -> 6260 | E10: =IF(ISBLANK(C10),"",INDEX('Výsledková listina'!$H:$I,MATCH($C10,'Výsledková listina'!$C:$C,0),2)) -> 4 | F10: =IF(ISBLANK($A10),"",SUM(D10:D12)) -> 14900 | G10: =IF(ISBLANK($A10),"",SUM(E10:E12)) -> 16 | H10: =IF(ISBLANK($A10),"",RANK(G10,G:G,1)) -> 7 | I10: =IF(ISBLANK(C10),"",INDEX('Výsledková listina'!$L:$M,MATCH($C10,'Výsledková listina'!$C:$C,0),1)) -> 10100 | J10: =IF(ISBLANK(C10),"",INDEX('Výsledková listina'!$L:$M,MATCH($C10,'Výsledková listina'!$C:$C,0),2)) -> 4 | K10: =IF(ISBLANK($A10),"",SUM(I10:I12)) -> 18120 | L10: =IF(ISBLANK($A10),"",SUM(J10:J12)) -> 18 | M10: =IF(ISBLANK($A10),"",RANK(L10,L:L,1)) -> 7 | N10: =IF(ISBLANK($A10),"",SUM(F10,K10)) -> 33020 | O10: =IF(ISBLANK($A10),"",SUM(G10,L10)) -> 34 | P10: =IF(ISBLANK($A10),"",RANK(O10,O:O,1)) -> 8
B11: =IF(ISBLANK($C11),"",INDEX('Výsledková listina'!$B:$B,MATCH($C11,'Výsledková listina'!$C:$C,0),1)) -> 0 | C11: Bartl Petr | D11: =IF(ISBLANK(C11),"",INDEX('Výsledková listina'!$H:$I,MATCH($C11,'Výsledková listina'!$C:$C,0),1)) -> 5280 | E11: =IF(ISBLANK(C11),"",INDEX('Výsledková listina'!$H:$I,MATCH($C11,'Výsledková listina'!$C:$C,0),2)) -> 5 | I11: =IF(ISBLANK(C11),"",INDEX('Výsledková listina'!$L:$M,MATCH($C11,'Výsledková listina'!$C:$C,0),1)) -> 4300 | J11: =IF(ISBLANK(C11),"",INDEX('Výsledková listina'!$L:$M,MATCH($C11,'Výsledková listina'!$C:$C,0),2)) -> 7
B12: =IF(ISBLANK($C12),"",INDEX('Výsledková listina'!$B:$B,MATCH($C12,'Výsledková listina'!$C:$C,0),1)) -> 0 | C12: Revai Miroslav | D12: =IF(ISBLANK(C12),"",INDEX('Výsledková listina'!$H:$I,MATCH($C12,'Výsledková listina'!$C:$C,0),1)) -> 3360 | E12: =IF(ISBLANK(C12),"",INDEX('Výsledková listina'!$H:$I,MATCH($C12,'Výsledková listina'!$C:$C,0),2)) -> 7 | I12: =IF(ISBLANK(C12),"",INDEX('Výsledková listina'!$L:$M,MATCH($C12,'Výsledková listina'!$C:$C,0),1)) -> 3720 | J12: =IF(ISBLANK(C12),"",INDEX('Výsledková listina'!$L:$M,MATCH($C12,'Výsledková listina'!$C:$C,0),2)) -> 7
A13: Speed feeder team | B13: =IF(ISBLANK($C13),"",INDEX('Výsledková listina'!$B:$B,MATCH($C13,'Výsledková listina'!$C:$C,0),1)) -> 0 | C13: Novotný Erik | D13: =IF(ISBLANK(C13),"",INDEX('Výsledková listina'!$H:$I,MATCH($C13,'Výsledková listina'!$C:$C,0),1)) -> 2960 | E13: =IF(ISBLANK(C13),"",INDEX('Výsledková listina'!$H:$I,MATCH($C13,'Výsledková listina'!$C:$C,0),2)) -> 8 | F13: =IF(ISBLANK($A13),"",SUM(D13:D15)) -> 13360 | G13: =IF(ISBLANK($A13),"",SUM(E13:E15)) -> 19 | H13: =IF(ISBLANK($A13),"",RANK(G13,G:G,1)) -> 8 | I13: =IF(ISBLANK(C13),"",INDEX('Výsledková listina'!$L:$M,MATCH($C13,'Výsledková listina'!$C:$C,0),1)) -> 5020 | J13: =IF(ISBLANK(C13),"",INDEX('Výsledková listina'!$L:$M,MATCH($C13,'Výsledková listina'!$C:$C,0),2)) -> 6 | K13: =IF(ISBLANK($A13),"",SUM(I13:I15)) -> 19480 | L13: =IF(ISBLANK($A13),"",SUM(J13:J15)) -> 14 | M13: =IF(ISBLANK($A13),"",RANK(L13,L:L,1)) -> 5 | N13: =IF(ISBLANK($A13),"",SUM(F13,K13)) -> 32840 | O13: =IF(ISBLANK($A13),"",SUM(G13,L13)) -> 33 | P13: =IF(ISBLANK($A13),"",RANK(O13,O:O,1)) -> 7
B14: =IF(ISBLANK($C14),"",INDEX('Výsledková listina'!$B:$B,MATCH($C14,'Výsledková listina'!$C:$C,0),1)) -> 0 | C14: Prášek Josef | D14: =IF(ISBLANK(C14),"",INDEX('Výsledková listina'!$H:$I,MATCH($C14,'Výsledková listina'!$C:$C,0),1)) -> 4480 | E14: =IF(ISBLANK(C14),"",INDEX('Výsledková listina'!$H:$I,MATCH($C14,'Výsledková listina'!$C:$C,0),2)) -> 7 | I14: =IF(ISBLANK(C14),"",INDEX('Výsledková listina'!$L:$M,MATCH($C14,'Výsledková listina'!$C:$C,0),1)) -> 9460 | J14: =IF(ISBLANK(C14),"",INDEX('Výsledková listina'!$L:$M,MATCH($C14,'Výsledková listina'!$C:$C,0),2)) -> 5
B15: =IF(ISBLANK($C15),"",INDEX('Výsledková listina'!$B:$B,MATCH($C15,'Výsledková listina'!$C:$C,0),1)) -> 0 | C15: Tomšík Jan | D15: =IF(ISBLANK(C15),"",INDEX('Výsledková listina'!$H:$I,MATCH($C15,'Výsledková listina'!$C:$C,0),1)) -> 5920 | E15: =IF(ISBLANK(C15),"",INDEX('Výsledková listina'!$H:$I,MATCH($C15,'Výsledková listina'!$C:$C,0),2)) -> 4 | I15: =IF(ISBLANK(C15),"",INDEX('Výsledková listina'!$L:$M,MATCH($C15,'Výsledková listina'!$C:$C,0),1)) -> 5000 | J15: =IF(ISBLANK(C15),"",INDEX('Výsledková listina'!$L:$M,MATCH($C15,'Výsledková listina'!$C:$C,0),2)) -> 3
A16: Žďárský kavky | B16: =IF(ISBLANK($C16),"",INDEX('Výsledková listina'!$B:$B,MATCH($C16,'Výsledková listina'!$C:$C,0),1)) -> 0 | C16: Stárek Jan | D16: =IF(ISBLANK(C16),"",INDEX('Výsledková listina'!$H:$I,MATCH($C16,'Výsledková listina'!$C:$C,0),1)) -> 12600 | E16: =IF(ISBLANK(C16),"",INDEX('Výsledková listina'!$H:$I,MATCH($C16,'Výsledková listina'!$C:$C,0),2)) -> 2 | F16: =IF(ISBLANK($A16),"",SUM(D16:D18)) -> 21160 | G16: =IF(ISBLANK($A16),"",SUM(E16:E18)) -> 15 | H16: =IF(ISBLANK($A16),"",RANK(G16,G:G,1)) -> 5 | I16: =IF(ISBLANK(C16),"",INDEX('Výsledková listina'!$L:$M,MATCH($C16,'Výsledková listina'!$C:$C,0),1)) -> 12380 | J16: =IF(ISBLANK(C16),"",INDEX('Výsledková listina'!$L:$M,MATCH($C16,'Výsledková listina'!$C:$C,0),2)) -> 1 | K16: =IF(ISBLANK($A16),"",SUM(I16:I18)) -> 23120 | L16: =IF(ISBLANK($A16),"",SUM(J16:J18)) -> 10 | M16: =IF(ISBLANK($A16),"",RANK(L16,L:L,1)) -> 2 | N16: =IF(ISBLANK($A16),"",SUM(F16,K16)) -> 44280 | O16: =IF(ISBLANK($A16),"",SUM(G16,L16)) -> 25 | P16: =IF(ISBLANK($A16),"",RANK(O16,O:O,1)) -> 3
B17: =IF(ISBLANK($C17),"",INDEX('Výsledková listina'!$B:$B,MATCH($C17,'Výsledková listina'!$C:$C,0),1)) -> 0 | C17: Ondráček Petr | D17: =IF(ISBLANK(C17),"",INDEX('Výsledková listina'!$H:$I,MATCH($C17,'Výsledková listina'!$C:$C,0),1)) -> 2700 | E17: =IF(ISBLANK(C17),"",INDEX('Výsledková listina'!$H:$I,MATCH($C17,'Výsledková listina'!$C:$C,0),2)) -> 8 | I17: =IF(ISBLANK(C17),"",INDEX('Výsledková listina'!$L:$M,MATCH($C17,'Výsledková listina'!$C:$C,0),1)) -> 5860 | J17: =IF(ISBLANK(C17),"",INDEX('Výsledková listina'!$L:$M,MATCH($C17,'Výsledková listina'!$C:$C,0),2)) -> 5
B18: =IF(ISBLANK($C18),"",INDEX('Výsledková listina'!$B:$B,MATCH($C18,'Výsledková listina'!$C:$C,0),1)) -> 0 | C18: Fabík Zdeněk | D18: =IF(ISBLANK(C18),"",INDEX('Výsledková listina'!$H:$I,MATCH($C18,'Výsledková listina'!$C:$C,0),1)) -> 5860 | E18: =IF(ISBLANK(C18),"",INDEX('Výsledková listina'!$H:$I,MATCH($C18,'Výsledková listina'!$C:$C,0),2)) -> 5 | I18: =IF(ISBLANK(C18),"",INDEX('Výsledková listina'!$L:$M,MATCH($C18,'Výsledková listina'!$C:$C,0),1)) -> 4880 | J18: =IF(ISBLANK(C18),"",INDEX('Výsledková listina'!$L:$M,MATCH($C18,'Výsledková listina'!$C:$C,0),2)) -> 4
A19: Fídrové komando | B19: =IF(ISBLANK($C19),"",INDEX('Výsledková listina'!$B:$B,MATCH($C19,'Výsledková listina'!$C:$C,0),1)) -> 0 | C19: Bruckner Martin | D19: =IF(ISBLANK(C19),"",INDEX('Výsledková listina'!$H:$I,MATCH($C19,'Výsledková listina'!$C:$C,0),1)) -> 6880 | E19: =IF(ISBLANK(C19),"",INDEX('Výsledková listina'!$H:$I,MATCH($C19,'Výsledková listina'!$C:$C,0),2)) -> 3 | F19: =IF(ISBLANK($A19),"",SUM(D19:D21)) -> 16720 | G19: =IF(ISBLANK($A19),"",SUM(E19:E21)) -> 13 | H19: =IF(ISBLANK($A19),"",RANK(G19,G:G,1)) -> 4 | I19: =IF(ISBLANK(C19),"",INDEX('Výsledková listina'!$L:$M,MATCH($C19,'Výsledková listina'!$C:$C,0),1)) -> 4060 | J19: =IF(ISBLANK(C19),"",INDEX('Výsledková listina'!$L:$M,MATCH($C19,'Výsledková listina'!$C:$C,0),2)) -> 8 | K19: =IF(ISBLANK($A19),"",SUM(I19:I21)) -> 16040 | L19: =IF(ISBLANK($A19),"",SUM(J19:J21)) -> 16 | M19: =IF(ISBLANK($A19),"",RANK(L19,L:L,1)) -> 6 | N19: =IF(ISBLANK($A19),"",SUM(F19,K19)) -> 32760 | O19: =IF(ISBLANK($A19),"",SUM(G19,L19)) -> 29 | P19: =IF(ISBLANK($A19),"",RANK(O19,O:O,1)) -> 6
B20: =IF(ISBLANK($C20),"",INDEX('Výsledková listina'!$B:$B,MATCH($C20,'Výsledková listina'!$C:$C,0),1)) -> 0 | C20: Pečta Radek | D20: =IF(ISBLANK(C20),"",INDEX('Výsledková listina'!$H:$I,MATCH($C20,'Výsledková listina'!$C:$C,0),1)) -> 7880 | E20: =IF(ISBLANK(C20),"",INDEX('Výsledková listina'!$H:$I,MATCH($C20,'Výsledková listina'!$C:$C,0),2)) -> 2 | I20: =IF(ISBLANK(C20),"",INDEX('Výsledková listina'!$L:$M,MATCH($C20,'Výsledková listina'!$C:$C,0),1)) -> 4420 | J20: =IF(ISBLANK(C20),"",INDEX('Výsledková listina'!$L:$M,MATCH($C20,'Výsledková listina'!$C:$C,0),2)) -> 5
B21: =IF(ISBLANK($C21),"",INDEX('Výsledková listina'!$B:$B,MATCH($C21,'Výsledková listina'!$C:$C,0),1)) -> 0 | C21: Frič Michal | D21: =IF(ISBLANK(C21),"",INDEX('Výsledková listina'!$H:$I,MATCH($C21,'Výsledková listina'!$C:$C,0),1)) -> 1960 | E21: =IF(ISBLANK(C21),"",INDEX('Výsledková listina'!$H:$I,MATCH($C21,'Výsledková listina'!$C:$C,0),2)) -> 8 | I21: =IF(ISBLANK(C21),"",INDEX('Výsledková listina'!$L:$M,MATCH($C21,'Výsledková listina'!$C:$C,0),1)) -> 7560 | J21: =IF(ISBLANK(C21),"",INDEX('Výsledková listina'!$L:$M,MATCH($C21,'Výsledková listina'!$C:$C,0),2)) -> 3
A22: MILO Feeder Team JIHOSEVERÁCI | B22: =IF(ISBLANK($C22),"",INDEX('Výsledková listina'!$B:$B,MATCH($C22,'Výsledková listina'!$C:$C,0),1)) -> 0 | C22: Chadraba Petr | D22: =IF(ISBLANK(C22),"",INDEX('Výsledková listina'!$H:$I,MATCH($C22,'Výsledková listina'!$C:$C,0),1)) -> 7960 | E22: =IF(ISBLANK(C22),"",INDEX('Výsledková listina'!$H:$I,MATCH($C22,'Výsledková listina'!$C:$C,0),2)) -> 3 | F22: =IF(ISBLANK($A22),"",SUM(D22:D24)) -> 17020 | G22: =IF(ISBLANK($A22),"",SUM(E22:E24)) -> 15 | H22: =IF(ISBLANK($A22),"",RANK(G22,G:G,1)) -> 5 | I22: =IF(ISBLANK(C22),"",INDEX('Výsledková listina'!$L:$M,MATCH($C22,'Výsledková listina'!$C:$C,0),1)) -> 10780 | J22: =IF(ISBLANK(C22),"",INDEX('Výsledková listina'!$L:$M,MATCH($C22,'Výsledková listina'!$C:$C,0),2)) -> 1 | K22: =IF(ISBLANK($A22),"",SUM(I22:I24)) -> 20900 | L22: =IF(ISBLANK($A22),"",SUM(J22:J24)) -> 13 | M22: =IF(ISBLANK($A22),"",RANK(L22,L:L,1)) -> 4 | N22: =IF(ISBLANK($A22),"",SUM(F22,K22)) -> 37920 | O22: =IF(ISBLANK($A22),"",SUM(G22,L22)) -> 28 | P22: 5
B23: =IF(ISBLANK($C23),"",INDEX('Výsledková listina'!$B:$B,MATCH($C23,'Výsledková listina'!$C:$C,0),1)) -> 0 | C23: Ohera Tomáš | D23: =IF(ISBLANK(C23),"",INDEX('Výsledková listina'!$H:$I,MATCH($C23,'Výsledková listina'!$C:$C,0),1)) -> 4700 | E23: =IF(ISBLANK(C23),"",INDEX('Výsledková listina'!$H:$I,MATCH($C23,'Výsledková listina'!$C:$C,0),2)) -> 6 | I23: =IF(ISBLANK(C23),"",INDEX('Výsledková listina'!$L:$M,MATCH($C23,'Výsledková listina'!$C:$C,0),1)) -> 6300 | J23: =IF(ISBLANK(C23),"",INDEX('Výsledková listina'!$L:$M,MATCH($C23,'Výsledková listina'!$C:$C,0),2)) -> 6
B24: =IF(ISBLANK($C24),"",INDEX('Výsledková listina'!$B:$B,MATCH($C24,'Výsledková listina'!$C:$C,0),1)) -> 0 | C24: Peřina Josef | D24: =IF(ISBLANK(C24),"",INDEX('Výsledková listina'!$H:$I,MATCH($C24,'Výsledková listina'!$C:$C,0),1)) -> 4360 | E24: =IF(ISBLANK(C24),"",INDEX('Výsledková listina'!$H:$I,MATCH($C24,'Výsledková listina'!$C:$C,0),2)) -> 6 | I24: =IF(ISBLANK(C24),"",INDEX('Výsledková listina'!$L:$M,MATCH($C24,'Výsledková listina'!$C:$C,0),1)) -> 3820 | J24: =IF(ISBLANK(C24),"",INDEX('Výsledková listina'!$L:$M,MATCH($C24,'Výsledková listina'!$C:$C,0),2)) -> 6
A25: Fish Angels | B25: =IF(ISBLANK($C25),"",INDEX('Výsledková listina'!$B:$B,MATCH($C25,'Výsledková listina'!$C:$C,0),1)) -> 0 | C25: Šabata Jakub | D25: =IF(ISBLANK(C25),"",INDEX('Výsledková listina'!$H:$I,MATCH($C25,'Výsledková listina'!$C:$C,0),1)) -> 9760 | E25: =IF(ISBLANK(C25),"",INDEX('Výsledková listina'!$H:$I,MATCH($C25,'Výsledková listina'!$C:$C,0),2)) -> 2 | F25: =IF(ISBLANK($A25),"",SUM(D25:D27)) -> 24880 | G25: =IF(ISBLANK($A25),"",SUM(E25:E27)) -> 9 | H25: =IF(ISBLANK($A25),"",RANK(G25,G:G,1)) -> 1 | I25: =IF(ISBLANK(C25),"",INDEX('Výsledková listina'!$L:$M,MATCH($C25,'Výsledková listina'!$C:$C,0),1)) -> 9780 | J25: =IF(ISBLANK(C25),"",INDEX('Výsledková listina'!$L:$M,MATCH($C25,'Výsledková listina'!$C:$C,0),2)) -> 2 | K25: =IF(ISBLANK($A25),"",SUM(I25:I27)) -> 29900 | L25: =IF(ISBLANK($A25),"",SUM(J25:J27)) -> 6 | M25: =IF(ISBLANK($A25),"",RANK(L25,L:L,1)) -> 1 | N25: =IF(ISBLANK($A25),"",SUM(F25,K25)) -> 54780 | O25: =IF(ISBLANK($A25),"",SUM(G25,L25)) -> 15 | P25: =IF(ISBLANK($A25),"",RANK(O25,O:O,1)) -> 1
B26: =IF(ISBLANK($C26),"",INDEX('Výsledková listina'!$B:$B,MATCH($C26,'Výsledková listina'!$C:$C,0),1)) -> 0 | C26: Kunst Antonín | D26: =IF(ISBLANK(C26),"",INDEX('Výsledková listina'!$H:$I,MATCH($C26,'Výsledková listina'!$C:$C,0),1)) -> 9880 | E26: =IF(ISBLANK(C26),"",INDEX('Výsledková listina'!$H:$I,MATCH($C26,'Výsledková listina'!$C:$C,0),2)) -> 1 | I26: =IF(ISBLANK(C26),"",INDEX('Výsledková listina'!$L:$M,MATCH($C26,'Výsledková listina'!$C:$C,0),1)) -> 9300 | J26: =IF(ISBLANK(C26),"",INDEX('Výsledková listina'!$L:$M,MATCH($C26,'Výsledková listina'!$C:$C,0),2)) -> 1
B27: =IF(ISBLANK($C27),"",INDEX('Výsledková listina'!$B:$B,MATCH($C27,'Výsledková listina'!$C:$C,0),1)) -> 0 | C27: Denemarek Jiří | D27: =IF(ISBLANK(C27),"",INDEX('Výsledková listina'!$H:$I,MATCH($C27,'Výsledková listina'!$C:$C,0),1)) -> 5240 | E27: =IF(ISBLANK(C27),"",INDEX('Výsledková listina'!$H:$I,MATCH($C27,'Výsledková listina'!$C:$C,0),2)) -> 6 | I27: =IF(ISBLANK(C27),"",INDEX('Výsledková listina'!$L:$M,MATCH($C27,'Výsledková listina'!$C:$C,0),1)) -> 10820 | J27: =IF(ISBLANK(C27),"",INDEX('Výsledková listina'!$L:$M,MATCH($C27,'Výsledková listina'!$C:$C,0),2)) -> 3
A28: Zauwíci | B28: =IF(ISBLANK($C28),"",INDEX('Výsledková listina'!$B:$B,MATCH($C28,'Výsledková listina'!$C:$C,0),1)) -> 0 | C28: Zavřel Jan | D28: =IF(ISBLANK(C28),"",INDEX('Výsledková listina'!$H:$I,MATCH($C28,'Výsledková listina'!$C:$C,0),1)) -> 10340 | E28: =IF(ISBLANK(C28),"",INDEX('Výsledková listina'!$H:$I,MATCH($C28,'Výsledková listina'!$C:$C,0),2)) -> 1 | F28: =IF(ISBLANK($A28),"",SUM(D28:D30)) -> 19660 | G28: =IF(ISBLANK($A28),"",SUM(E28:E30)) -> 12 | H28: =IF(ISBLANK($A28),"",RANK(G28,G:G,1)) -> 3 | I28: =IF(ISBLANK(C28),"",INDEX('Výsledková listina'!$L:$M,MATCH($C28,'Výsledková listina'!$C:$C,0),1)) -> 8220 | J28: =IF(ISBLANK(C28),"",INDEX('Výsledková listina'!$L:$M,MATCH($C28,'Výsledková listina'!$C:$C,0),2)) -> 2 | K28: =IF(ISBLANK($A28),"",SUM(I28:I30)) -> 23080 | L28: =IF(ISBLANK($A28),"",SUM(J28:J30)) -> 12 | M28: =IF(ISBLANK($A28),"",RANK(L28,L:L,1)) -> 3 | N28: =IF(ISBLANK($A28),"",SUM(F28,K28)) -> 42740 | O28: =IF(ISBLANK($A28),"",SUM(G28,L28)) -> 24 | P28: =IF(ISBLANK($A28),"",RANK(O28,O:O,1)) -> 2
B29: =IF(ISBLANK($C29),"",INDEX('Výsledková listina'!$B:$B,MATCH($C29,'Výsledková listina'!$C:$C,0),1)) -> 0 | C29: Pečta Radek st. | D29: =IF(ISBLANK(C29),"",INDEX('Výsledková listina'!$H:$I,MATCH($C29,'Výsledková listina'!$C:$C,0),1)) -> 6420 | E29: =IF(ISBLANK(C29),"",INDEX('Výsledková listina'!$H:$I,MATCH($C29,'Výsledková listina'!$C:$C,0),2)) -> 4 | I29: =IF(ISBLANK(C29),"",INDEX('Výsledková listina'!$L:$M,MATCH($C29,'Výsledková listina'!$C:$C,0),1)) -> 10980 | J29: =IF(ISBLANK(C29),"",INDEX('Výsledková listina'!$L:$M,MATCH($C29,'Výsledková listina'!$C:$C,0),2)) -> 2
B30: =IF(ISBLANK($C30),"",INDEX('Výsledková listina'!$B:$B,MATCH($C30,'Výsledková listina'!$C:$C,0),1)) -> 0 | C30: Šťovčík Viktor | D30: =IF(ISBLANK(C30),"",INDEX('Výsledková listina'!$H:$I,MATCH($C30,'Výsledková listina'!$C:$C,0),1)) -> 2900 | E30: =IF(ISBLANK(C30),"",INDEX('Výsledková listina'!$H:$I,MATCH($C30,'Výsledková listina'!$C:$C,0),2)) -> 7 | I30: =IF(ISBLANK(C30),"",INDEX('Výsledková listina'!$L:$M,MATCH($C30,'Výsledková listina'!$C:$C,0),1)) -> 3880 | J30: =IF(ISBLANK(C30),"",INDEX('Výsledková listina'!$L:$M,MATCH($C30,'Výsledková listina'!$C:$C,0),2)) -> 8
B31: =IF(ISBLANK($C31),"",INDEX('Výsledková listina'!$B:$B,MATCH($C31,'Výsledková listina'!$C:$C,0),1)) ->  | D31: =IF(ISBLANK(C31),"",INDEX('Výsledková listina'!$H:$I,MATCH($C31,'Výsledková listina'!$C:$C,0),1)) ->  | E31: =IF(ISBLANK(C31),"",INDEX('Výsledková listina'!$H:$I,MATCH($C31,'Výsledková listina'!$C:$C,0),2)) ->  | F31: =IF(ISBLANK($A31),"",SUM(D31:D33)) ->  | G31: =IF(ISBLANK($A31),"",SUM(E31:E33)) ->  | H31: =IF(ISBLANK($A31),"",RANK(G31,G:G,1)) ->  | I31: =IF(ISBLANK(C31),"",INDEX('Výsledková listina'!$L:$M,MATCH($C31,'Výsledková listina'!$C:$C,0),1)) ->  | J31: =IF(ISBLANK(C31),"",INDEX('Výsledková listina'!$L:$M,MATCH($C31,'Výsledková listina'!$C:$C,0),2)) ->  | K31: =IF(ISBLANK($A31),"",SUM(I31:I33)) ->  | L31: =IF(ISBLANK($A31),"",SUM(J31:J33)) ->  | M31: =IF(ISBLANK($A31),"",RANK(L31,L:L,1)) ->  | N31: =IF(ISBLANK($A31),"",SUM(F31,K31)) ->  | O31: =IF(ISBLANK($A31),"",SUM(G31,L31)) ->  | P31: =IF(ISBLANK($A31),"",RANK(O31,O:O,1)) -> 
B32: =IF(ISBLANK($C32),"",INDEX('Výsledková listina'!$B:$B,MATCH($C32,'Výsledková listina'!$C:$C,0),1)) ->  | D32: =IF(ISBLANK(C32),"",INDEX('Výsledková listina'!$H:$I,MATCH($C32,'Výsledková listina'!$C:$C,0),1)) ->  | E32: =IF(ISBLANK(C32),"",INDEX('Výsledková listina'!$H:$I,MATCH($C32,'Výsledková listina'!$C:$C,0),2)) ->  | I32: =IF(ISBLANK(C32),"",INDEX('Výsledková listina'!$L:$M,MATCH($C32,'Výsledková listina'!$C:$C,0),1)) ->  | J32: =IF(ISBLANK(C32),"",INDEX('Výsledková listina'!$L:$M,MATCH($C32,'Výsledková listina'!$C:$C,0),2)) -> 
B33: =IF(ISBLANK($C33),"",INDEX('Výsledková listina'!$B:$B,MATCH($C33,'Výsledková listina'!$C:$C,0),1)) ->  | D33: =IF(ISBLANK(C33),"",INDEX('Výsledková listina'!$H:$I,MATCH($C33,'Výsledková listina'!$C:$C,0),1)) ->  | E33: =IF(ISBLANK(C33),"",INDEX('Výsledková listina'!$H:$I,MATCH($C33,'Výsledková listina'!$C:$C,0),2)) ->  | I33: =IF(ISBLANK(C33),"",INDEX('Výsledková listina'!$L:$M,MATCH($C33,'Výsledková listina'!$C:$C,0),1)) ->  | J33: =IF(ISBLANK(C33),"",INDEX('Výsledková listina'!$L:$M,MATCH($C33,'Výsledková listina'!$C:$C,0),2)) -> 
B34: =IF(ISBLANK($C34),"",INDEX('Výsledková listina'!$B:$B,MATCH($C34,'Výsledková listina'!$C:$C,0),1)) ->  | D34: =IF(ISBLANK(C34),"",INDEX('Výsledková listina'!$H:$I,MATCH($C34,'Výsledková listina'!$C:$C,0),1)) ->  | E34: =IF(ISBLANK(C34),"",INDEX('Výsledková listina'!$H:$I,MATCH($C34,'Výsledková listina'!$C:$C,0),2)) ->  | F34: =IF(ISBLANK($A34),"",SUM(D34:D36)) ->  | G34: =IF(ISBLANK($A34),"",SUM(E34:E36)) ->  | H34: =IF(ISBLANK($A34),"",RANK(G34,G:G,1)) ->  | I34: =IF(ISBLANK(C34),"",INDEX('Výsledková listina'!$L:$M,MATCH($C34,'Výsledková listina'!$C:$C,0),1)) ->  | J34: =IF(ISBLANK(C34),"",INDEX('Výsledková listina'!$L:$M,MATCH($C34,'Výsledková listina'!$C:$C,0),2)) ->  | K34: =IF(ISBLANK($A34),"",SUM(I34:I36)) ->  | L34: =IF(ISBLANK($A34),"",SUM(J34:J36)) ->  | M34: =IF(ISBLANK($A34),"",RANK(L34,L:L,1)) ->  | N34: =IF(ISBLANK($A34),"",SUM(F34,K34)) ->  | O34: =IF(ISBLANK($A34),"",SUM(G34,L34)) ->  | P34: =IF(ISBLANK($A34),"",RANK(O34,O:O,1)) -> 
B35: =IF(ISBLANK($C35),"",INDEX('Výsledková listina'!$B:$B,MATCH($C35,'Výsledková listina'!$C:$C,0),1)) ->  | D35: =IF(ISBLANK(C35),"",INDEX('Výsledková listina'!$H:$I,MATCH($C35,'Výsledková listina'!$C:$C,0),1)) ->  | E35: =IF(ISBLANK(C35),"",INDEX('Výsledková listina'!$H:$I,MATCH($C35,'Výsledková listina'!$C:$C,0),2)) ->  | I35: =IF(ISBLANK(C35),"",INDEX('Výsledková listina'!$L:$M,MATCH($C35,'Výsledková listina'!$C:$C,0),1)) ->  | J35: =IF(ISBLANK(C35),"",INDEX('Výsledková listina'!$L:$M,MATCH($C35,'Výsledková listina'!$C:$C,0),2)) -> 
B36: =IF(ISBLANK($C36),"",INDEX('Výsledková listina'!$B:$B,MATCH($C36,'Výsledková listina'!$C:$C,0),1)) ->  | D36: =IF(ISBLANK(C36),"",INDEX('Výsledková listina'!$H:$I,MATCH($C36,'Výsledková listina'!$C:$C,0),1)) ->  | E36: =IF(ISBLANK(C36),"",INDEX('Výsledková listina'!$H:$I,MATCH($C36,'Výsledková listina'!$C:$C,0),2)) ->  | I36: =IF(ISBLANK(C36),"",INDEX('Výsledková listina'!$L:$M,MATCH($C36,'Výsledková listina'!$C:$C,0),1)) ->  | J36: =IF(ISBLANK(C36),"",INDEX('Výsledková listina'!$L:$M,MATCH($C36,'Výsledková listina'!$C:$C,0),2)) -> 
B37: =IF(ISBLANK($C37),"",INDEX('Výsledková listina'!$B:$B,MATCH($C37,'Výsledková listina'!$C:$C,0),1)) ->  | D37: =IF(ISBLANK(C37),"",INDEX('Výsledková listina'!$H:$I,MATCH($C37,'Výsledková listina'!$C:$C,0),1)) ->  | E37: =IF(ISBLANK(C37),"",INDEX('Výsledková listina'!$H:$I,MATCH($C37,'Výsledková listina'!$C:$C,0),2)) ->  | F37: =IF(ISBLANK($A37),"",SUM(D37:D39)) ->  | G37: =IF(ISBLANK($A37),"",SUM(E37:E39)) ->  | H37: =IF(ISBLANK($A37),"",RANK(G37,G:G,1)) ->  | I37: =IF(ISBLANK(C37),"",INDEX('Výsledková listina'!$L:$M,MATCH($C37,'Výsledková listina'!$C:$C,0),1)) ->  | J37: =IF(ISBLANK(C37),"",INDEX('Výsledková listina'!$L:$M,MATCH($C37,'Výsledková listina'!$C:$C,0),2)) ->  | K37: =IF(ISBLANK($A37),"",SUM(I37:I39)) ->  | L37: =IF(ISBLANK($A37),"",SUM(J37:J39)) ->  | M37: =IF(ISBLANK($A37),"",RANK(L37,L:L,1)) ->  | N37: =IF(ISBLANK($A37),"",SUM(F37,K37)) ->  | O37: =IF(ISBLANK($A37),"",SUM(G37,L37)) ->  | P37: =IF(ISBLANK($A37),"",RANK(O37,O:O,1)) -> 
B38: =IF(ISBLANK($C38),"",INDEX('Výsledková listina'!$B:$B,MATCH($C38,'Výsledková listina'!$C:$C,0),1)) ->  | D38: =IF(ISBLANK(C38),"",INDEX('Výsledková listina'!$H:$I,MATCH($C38,'Výsledková listina'!$C:$C,0),1)) ->  | E38: =IF(ISBLANK(C38),"",INDEX('Výsledková listina'!$H:$I,MATCH($C38,'Výsledková listina'!$C:$C,0),2)) ->  | I38: =IF(ISBLANK(C38),"",INDEX('Výsledková listina'!$L:$M,MATCH($C38,'Výsledková listina'!$C:$C,0),1)) ->  | J38: =IF(ISBLANK(C38),"",INDEX('Výsledková listina'!$L:$M,MATCH($C38,'Výsledková listina'!$C:$C,0),2)) -> 
B39: =IF(ISBLANK($C39),"",INDEX('Výsledková listina'!$B:$B,MATCH($C39,'Výsledková listina'!$C:$C,0),1)) ->  | D39: =IF(ISBLANK(C39),"",INDEX('Výsledková listina'!$H:$I,MATCH($C39,'Výsledková listina'!$C:$C,0),1)) ->  | E39: =IF(ISBLANK(C39),"",INDEX('Výsledková listina'!$H:$I,MATCH($C39,'Výsledková listina'!$C:$C,0),2)) ->  | I39: =IF(ISBLANK(C39),"",INDEX('Výsledková listina'!$L:$M,MATCH($C39,'Výsledková listina'!$C:$C,0),1)) ->  | J39: =IF(ISBLANK(C39),"",INDEX('Výsledková listina'!$L:$M,MATCH($C39,'Výsledková listina'!$C:$C,0),2)) -> 
B40: =IF(ISBLANK($C40),"",INDEX('Výsledková listina'!$B:$B,MATCH($C40,'Výsledková listina'!$C:$C,0),1)) ->  | D40: =IF(ISBLANK(C40),"",INDEX('Výsledková listina'!$H:$I,MATCH($C40,'Výsledková listina'!$C:$C,0),1)) ->  | E40: =IF(ISBLANK(C40),"",INDEX('Výsledková listina'!$H:$I,MATCH($C40,'Výsledková listina'!$C:$C,0),2)) ->  | F40: =IF(ISBLANK($A40),"",SUM(D40:D42)) ->  | G40: =IF(ISBLANK($A40),"",SUM(E40:E42)) ->  | H40: =IF(ISBLANK($A40),"",RANK(G40,G:G,1)) ->  | I40: =IF(ISBLANK(C40),"",INDEX('Výsledková listina'!$L:$M,MATCH($C40,'Výsledková listina'!$C:$C,0),1)) ->  | J40: =IF(ISBLANK(C40),"",INDEX('Výsledková listina'!$L:$M,MATCH($C40,'Výsledková listina'!$C:$C,0),2)) ->  | K40: =IF(ISBLANK($A40),"",SUM(I40:I42)) ->  | L40: =IF(ISBLANK($A40),"",SUM(J40:J42)) ->  | M40: =IF(ISBLANK($A40),"",RANK(L40,L:L,1)) ->  | N40: =IF(ISBLANK($A40),"",SUM(F40,K40)) ->  | O40: =IF(ISBLANK($A40),"",SUM(G40,L40)) ->  | P40: =IF(ISBLANK($A40),"",RANK(O40,O:O,1)) -> 
B41: =IF(ISBLANK($C41),"",INDEX('Výsledková listina'!$B:$B,MATCH($C41,'Výsledková listina'!$C:$C,0),1)) ->  | D41: =IF(ISBLANK(C41),"",INDEX('Výsledková listina'!$H:$I,MATCH($C41,'Výsledková listina'!$C:$C,0),1)) ->  | E41: =IF(ISBLANK(C41),"",INDEX('Výsledková listina'!$H:$I,MATCH($C41,'Výsledková listina'!$C:$C,0),2)) ->  | I41: =IF(ISBLANK(C41),"",INDEX('Výsledková listina'!$L:$M,MATCH($C41,'Výsledková listina'!$C:$C,0),1)) ->  | J41: =IF(ISBLANK(C41),"",INDEX('Výsledková listina'!$L:$M,MATCH($C41,'Výsledková listina'!$C:$C,0),2)) -> 
B42: =IF(ISBLANK($C42),"",INDEX('Výsledková listina'!$B:$B,MATCH($C42,'Výsledková listina'!$C:$C,0),1)) ->  | D42: =IF(ISBLANK(C42),"",INDEX('Výsledková listina'!$H:$I,MATCH($C42,'Výsledková listina'!$C:$C,0),1)) ->  | E42: =IF(ISBLANK(C42),"",INDEX('Výsledková listina'!$H:$I,MATCH($C42,'Výsledková listina'!$C:$C,0),2)) ->  | I42: =IF(ISBLANK(C42),"",INDEX('Výsledková listina'!$L:$M,MATCH($C42,'Výsledková listina'!$C:$C,0),1)) ->  | J42: =IF(ISBLANK(C42),"",INDEX('Výsledková listina'!$L:$M,MATCH($C42,'Výsledková listina'!$C:$C,0),2)) -> 
B43: =IF(ISBLANK($C43),"",INDEX('Výsledková listina'!$B:$B,MATCH($C43,'Výsledková listina'!$C:$C,0),1)) ->  | D43: =IF(ISBLANK(C43),"",INDEX('Výsledková listina'!$H:$I,MATCH($C43,'Výsledková listina'!$C:$C,0),1)) ->  | E43: =IF(ISBLANK(C43),"",INDEX('Výsledková listina'!$H:$I,MATCH($C43,'Výsledková listina'!$C:$C,0),2)) ->  | F43: =IF(ISBLANK($A43),"",SUM(D43:D45)) ->  | G43: =IF(ISBLANK($A43),"",SUM(E43:E45)) ->  | H43: =IF(ISBLANK($A43),"",RANK(G43,G:G,1)) ->  | I43: =IF(ISBLANK(C43),"",INDEX('Výsledková listina'!$L:$M,MATCH($C43,'Výsledková listina'!$C:$C,0),1)) ->  | J43: =IF(ISBLANK(C43),"",INDEX('Výsledková listina'!$L:$M,MATCH($C43,'Výsledková listina'!$C:$C,0),2)) ->  | K43: =IF(ISBLANK($A43),"",SUM(I43:I45)) ->  | L43: =IF(ISBLANK($A43),"",SUM(J43:J45)) ->  | M43: =IF(ISBLANK($A43),"",RANK(L43,L:L,1)) ->  | N43: =IF(ISBLANK($A43),"",SUM(F43,K43)) ->  | O43: =IF(ISBLANK($A43),"",SUM(G43,L43)) ->  | P43: =IF(ISBLANK($A43),"",RANK(O43,O:O,1)) -> 
B44: =IF(ISBLANK($C44),"",INDEX('Výsledková listina'!$B:$B,MATCH($C44,'Výsledková listina'!$C:$C,0),1)) ->  | D44: =IF(ISBLANK(C44),"",INDEX('Výsledková listina'!$H:$I,MATCH($C44,'Výsledková listina'!$C:$C,0),1)) ->  | E44: =IF(ISBLANK(C44),"",INDEX('Výsledková listina'!$H:$I,MATCH($C44,'Výsledková listina'!$C:$C,0),2)) ->  | I44: =IF(ISBLANK(C44),"",INDEX('Výsledková listina'!$L:$M,MATCH($C44,'Výsledková listina'!$C:$C,0),1)) ->  | J44: =IF(ISBLANK(C44),"",INDEX('Výsledková listina'!$L:$M,MATCH($C44,'Výsledková listina'!$C:$C,0),2)) -> 
B45: =IF(ISBLANK($C45),"",INDEX('Výsledková listina'!$B:$B,MATCH($C45,'Výsledková listina'!$C:$C,0),1)) ->  | D45: =IF(ISBLANK(C45),"",INDEX('Výsledková listina'!$H:$I,MATCH($C45,'Výsledková listina'!$C:$C,0),1)) ->  | E45: =IF(ISBLANK(C45),"",INDEX('Výsledková listina'!$H:$I,MATCH($C45,'Výsledková listina'!$C:$C,0),2)) ->  | I45: =IF(ISBLANK(C45),"",INDEX('Výsledková listina'!$L:$M,MATCH($C45,'Výsledková listina'!$C:$C,0),1)) ->  | J45: =IF(ISBLANK(C45),"",INDEX('Výsledková listina'!$L:$M,MATCH($C45,'Výsledková listina'!$C:$C,0),2)) -> 
B46: =IF(ISBLANK($C46),"",INDEX('Výsledková listina'!$B:$B,MATCH($C46,'Výsledková listina'!$C:$C,0),1)) ->  | D46: =IF(ISBLANK(C46),"",INDEX('Výsledková listina'!$H:$I,MATCH($C46,'Výsledková listina'!$C:$C,0),1)) ->  | E46: =IF(ISBLANK(C46),"",INDEX('Výsledková listina'!$H:$I,MATCH($C46,'Výsledková listina'!$C:$C,0),2)) ->  | F46: =IF(ISBLANK($A46),"",SUM(D46:D48)) ->  | G46: =IF(ISBLANK($A46),"",SUM(E46:E48)) ->  | H46: =IF(ISBLANK($A46),"",RANK(G46,G:G,1)) ->  | I46: =IF(ISBLANK(C46),"",INDEX('Výsledková listina'!$L:$M,MATCH($C46,'Výsledková listina'!$C:$C,0),1)) ->  | J46: =IF(ISBLANK(C46),"",INDEX('Výsledková listina'!$L:$M,MATCH($C46,'Výsledková listina'!$C:$C,0),2)) ->  | K46: =IF(ISBLANK($A46),"",SUM(I46:I48)) ->  | L46: =IF(ISBLANK($A46),"",SUM(J46:J48)) ->  | M46: =IF(ISBLANK($A46),"",RANK(L46,L:L,1)) ->  | N46: =IF(ISBLANK($A46),"",SUM(F46,K46)) ->  | O46: =IF(ISBLANK($A46),"",SUM(G46,L46)) ->  | P46: =IF(ISBLANK($A46),"",RANK(O46,O:O,1)) -> 
B47: =IF(ISBLANK($C47),"",INDEX('Výsledková listina'!$B:$B,MATCH($C47,'Výsledková listina'!$C:$C,0),1)) ->  | D47: =IF(ISBLANK(C47),"",INDEX('Výsledková listina'!$H:$I,MATCH($C47,'Výsledková listina'!$C:$C,0),1)) ->  | E47: =IF(ISBLANK(C47),"",INDEX('Výsledková listina'!$H:$I,MATCH($C47,'Výsledková listina'!$C:$C,0),2)) ->  | I47: =IF(ISBLANK(C47),"",INDEX('Výsledková listina'!$L:$M,MATCH($C47,'Výsledková listina'!$C:$C,0),1)) ->  | J47: =IF(ISBLANK(C47),"",INDEX('Výsledková listina'!$L:$M,MATCH($C47,'Výsledková listina'!$C:$C,0),2)) -> 
B48: =IF(ISBLANK($C48),"",INDEX('Výsledková listina'!$B:$B,MATCH($C48,'Výsledková listina'!$C:$C,0),1)) ->  | D48: =IF(ISBLANK(C48),"",INDEX('Výsledková listina'!$H:$I,MATCH($C48,'Výsledková listina'!$C:$C,0),1)) ->  | E48: =IF(ISBLANK(C48),"",INDEX('Výsledková listina'!$H:$I,MATCH($C48,'Výsledková listina'!$C:$C,0),2)) ->  | I48: =IF(ISBLANK(C48),"",INDEX('Výsledková listina'!$L:$M,MATCH($C48,'Výsledková listina'!$C:$C,0),1)) ->  | J48: =IF(ISBLANK(C48),"",INDEX('Výsledková listina'!$L:$M,MATCH($C48,'Výsledková listina'!$C:$C,0),2)) -> 
B49: =IF(ISBLANK($C49),"",INDEX('Výsledková listina'!$B:$B,MATCH($C49,'Výsledková listina'!$C:$C,0),1)) ->  | D49: =IF(ISBLANK(C49),"",INDEX('Výsledková listina'!$H:$I,MATCH($C49,'Výsledková listina'!$C:$C,0),1)) ->  | E49: =IF(ISBLANK(C49),"",INDEX('Výsledková listina'!$H:$I,MATCH($C49,'Výsledková listina'!$C:$C,0),2)) ->  | F49: =IF(ISBLANK($A49),"",SUM(D49:D51)) ->  | G49: =IF(ISBLANK($A49),"",SUM(E49:E51)) ->  | H49: =IF(ISBLANK($A49),"",RANK(G49,G:G,1)) ->  | I49: =IF(ISBLANK(C49),"",INDEX('Výsledková listina'!$L:$M,MATCH($C49,'Výsledková listina'!$C:$C,0),1)) ->  | J49: =IF(ISBLANK(C49),"",INDEX('Výsledková listina'!$L:$M,MATCH($C49,'Výsledková listina'!$C:$C,0),2)) ->  | K49: =IF(ISBLANK($A49),"",SUM(I49:I51)) ->  | L49: =IF(ISBLANK($A49),"",SUM(J49:J51)) ->  | M49: =IF(ISBLANK($A49),"",RANK(L49,L:L,1)) ->  | N49: =IF(ISBLANK($A49),"",SUM(F49,K49)) ->  | O49: =IF(ISBLANK($A49),"",SUM(G49,L49)) ->  | P49: =IF(ISBLANK($A49),"",RANK(O49,O:O,1)) -> 
B50: =IF(ISBLANK($C50),"",INDEX('Výsledková listina'!$B:$B,MATCH($C50,'Výsledková listina'!$C:$C,0),1)) ->  | D50: =IF(ISBLANK(C50),"",INDEX('Výsledková listina'!$H:$I,MATCH($C50,'Výsledková listina'!$C:$C,0),1)) ->  | E50: =IF(ISBLANK(C50),"",INDEX('Výsledková listina'!$H:$I,MATCH($C50,'Výsledková listina'!$C:$C,0),2)) ->  | I50: =IF(ISBLANK(C50),"",INDEX('Výsledková listina'!$L:$M,MATCH($C50,'Výsledková listina'!$C:$C,0),1)) ->  | J50: =IF(ISBLANK(C50),"",INDEX('Výsledková listina'!$L:$M,MATCH($C50,'Výsledková listina'!$C:$C,0),2)) -> 
B51: =IF(ISBLANK($C51),"",INDEX('Výsledková listina'!$B:$B,MATCH($C51,'Výsledková listina'!$C:$C,0),1)) ->  | D51: =IF(ISBLANK(C51),"",INDEX('Výsledková listina'!$H:$I,MATCH($C51,'Výsledková listina'!$C:$C,0),1)) ->  | E51: =IF(ISBLANK(C51),"",INDEX('Výsledková listina'!$H:$I,MATCH($C51,'Výsledková listina'!$C:$C,0),2)) ->  | I51: =IF(ISBLANK(C51),"",INDEX('Výsledková listina'!$L:$M,MATCH($C51,'Výsledková listina'!$C:$C,0),1)) ->  | J51: =IF(ISBLANK(C51),"",INDEX('Výsledková listina'!$L:$M,MATCH($C51,'Výsledková listina'!$C:$C,0),2)) -> 
B52: =IF(ISBLANK($C52),"",INDEX('Výsledková listina'!$B:$B,MATCH($C52,'Výsledková listina'!$C:$C,0),1)) ->  | D52: =IF(ISBLANK(C52),"",INDEX('Výsledková listina'!$H:$I,MATCH($C52,'Výsledková listina'!$C:$C,0),1)) ->  | E52: =IF(ISBLANK(C52),"",INDEX('Výsledková listina'!$H:$I,MATCH($C52,'Výsledková listina'!$C:$C,0),2)) ->  | F52: =IF(ISBLANK($A52),"",SUM(D52:D54)) ->  | G52: =IF(ISBLANK($A52),"",SUM(E52:E54)) ->  | H52: =IF(ISBLANK($A52),"",RANK(G52,G:G,1)) ->  | I52: =IF(ISBLANK(C52),"",INDEX('Výsledková listina'!$L:$M,MATCH($C52,'Výsledková listina'!$C:$C,0),1)) ->  | J52: =IF(ISBLANK(C52),"",INDEX('Výsledková listina'!$L:$M,MATCH($C52,'Výsledková listina'!$C:$C,0),2)) ->  | K52: =IF(ISBLANK($A52),"",SUM(I52:I54)) ->  | L52: =IF(ISBLANK($A52),"",SUM(J52:J54)) ->  | M52: =IF(ISBLANK($A52),"",RANK(L52,L:L,1)) ->  | N52: =IF(ISBLANK($A52),"",SUM(F52,K52)) ->  | O52: =IF(ISBLANK($A52),"",SUM(G52,L52)) ->  | P52: =IF(ISBLANK($A52),"",RANK(O52,O:O,1)) -> 
B53: =IF(ISBLANK($C53),"",INDEX('Výsledková listina'!$B:$B,MATCH($C53,'Výsledková listina'!$C:$C,0),1)) ->  | D53: =IF(ISBLANK(C53),"",INDEX('Výsledková listina'!$H:$I,MATCH($C53,'Výsledková listina'!$C:$C,0),1)) ->  | E53: =IF(ISBLANK(C53),"",INDEX('Výsledková listina'!$H:$I,MATCH($C53,'Výsledková listina'!$C:$C,0),2)) ->  | I53: =IF(ISBLANK(C53),"",INDEX('Výsledková listina'!$L:$M,MATCH($C53,'Výsledková listina'!$C:$C,0),1)) ->  | J53: =IF(ISBLANK(C53),"",INDEX('Výsledková listina'!$L:$M,MATCH($C53,'Výsledková listina'!$C:$C,0),2)) -> 
B54: =IF(ISBLANK($C54),"",INDEX('Výsledková listina'!$B:$B,MATCH($C54,'Výsledková listina'!$C:$C,0),1)) ->  | D54: =IF(ISBLANK(C54),"",INDEX('Výsledková listina'!$H:$I,MATCH($C54,'Výsledková listina'!$C:$C,0),1)) ->  | E54: =IF(ISBLANK(C54),"",INDEX('Výsledková listina'!$H:$I,MATCH($C54,'Výsledková listina'!$C:$C,0),2)) ->  | I54: =IF(ISBLANK(C54),"",INDEX('Výsledková listina'!$L:$M,MATCH($C54,'Výsledková listina'!$C:$C,0),1)) ->  | J54: =IF(ISBLANK(C54),"",INDEX('Výsledková listina'!$L:$M,MATCH($C54,'Výsledková listina'!$C:$C,0),2)) -> 
B55: =IF(ISBLANK($C55),"",INDEX('Výsledková listina'!$B:$B,MATCH($C55,'Výsledková listina'!$C:$C,0),1)) ->  | D55: =IF(ISBLANK(C55),"",INDEX('Výsledková listina'!$H:$I,MATCH($C55,'Výsledková listina'!$C:$C,0),1)) ->  | E55: =IF(ISBLANK(C55),"",INDEX('Výsledková listina'!$H:$I,MATCH($C55,'Výsledková listina'!$C:$C,0),2)) ->  | F55: =IF(ISBLANK($A55),"",SUM(D55:D57)) ->  | G55: =IF(ISBLANK($A55),"",SUM(E55:E57)) ->  | H55: =IF(ISBLANK($A55),"",RANK(G55,G:G,1)) ->  | I55: =IF(ISBLANK(C55),"",INDEX('Výsledková listina'!$L:$M,MATCH($C55,'Výsledková listina'!$C:$C,0),1)) ->  | J55: =IF(ISBLANK(C55),"",INDEX('Výsledková listina'!$L:$M,MATCH($C55,'Výsledková listina'!$C:$C,0),2)) ->  | K55: =IF(ISBLANK($A55),"",SUM(I55:I57)) ->  | L55: =IF(ISBLANK($A55),"",SUM(J55:J57)) ->  | M55: =IF(ISBLANK($A55),"",RANK(L55,L:L,1)) ->  | N55: =IF(ISBLANK($A55),"",SUM(F55,K55)) ->  | O55: =IF(ISBLANK($A55),"",SUM(G55,L55)) ->  | P55: =IF(ISBLANK($A55),"",RANK(O55,O:O,1)) -> 
B56: =IF(ISBLANK($C56),"",INDEX('Výsledková listina'!$B:$B,MATCH($C56,'Výsledková listina'!$C:$C,0),1)) ->  | D56: =IF(ISBLANK(C56),"",INDEX('Výsledková listina'!$H:$I,MATCH($C56,'Výsledková listina'!$C:$C,0),1)) ->  | E56: =IF(ISBLANK(C56),"",INDEX('Výsledková listina'!$H:$I,MATCH($C56,'Výsledková listina'!$C:$C,0),2)) ->  | I56: =IF(ISBLANK(C56),"",INDEX('Výsledková listina'!$L:$M,MATCH($C56,'Výsledková listina'!$C:$C,0),1)) ->  | J56: =IF(ISBLANK(C56),"",INDEX('Výsledková listina'!$L:$M,MATCH($C56,'Výsledková listina'!$C:$C,0),2)) -> 
B57: =IF(ISBLANK($C57),"",INDEX('Výsledková listina'!$B:$B,MATCH($C57,'Výsledková listina'!$C:$C,0),1)) ->  | D57: =IF(ISBLANK(C57),"",INDEX('Výsledková listina'!$H:$I,MATCH($C57,'Výsledková listina'!$C:$C,0),1)) ->  | E57: =IF(ISBLANK(C57),"",INDEX('Výsledková listina'!$H:$I,MATCH($C57,'Výsledková listina'!$C:$C,0),2)) ->  | I57: =IF(ISBLANK(C57),"",INDEX('Výsledková listina'!$L:$M,MATCH($C57,'Výsledková listina'!$C:$C,0),1)) ->  | J57: =IF(ISBLANK(C57),"",INDEX('Výsledková listina'!$L:$M,MATCH($C57,'Výsledková listina'!$C:$C,0),2)) -> 
B58: =IF(ISBLANK($C58),"",INDEX('Výsledková listina'!$B:$B,MATCH($C58,'Výsledková listina'!$C:$C,0),1)) ->  | D58: =IF(ISBLANK(C58),"",INDEX('Výsledková listina'!$H:$I,MATCH($C58,'Výsledková listina'!$C:$C,0),1)) ->  | E58: =IF(ISBLANK(C58),"",INDEX('Výsledková listina'!$H:$I,MATCH($C58,'Výsledková listina'!$C:$C,0),2)) ->  | F58: =IF(ISBLANK($A58),"",SUM(D58:D60)) ->  | G58: =IF(ISBLANK($A58),"",SUM(E58:E60)) ->  | H58: =IF(ISBLANK($A58),"",RANK(G58,G:G,1)) ->  | I58: =IF(ISBLANK(C58),"",INDEX('Výsledková listina'!$L:$M,MATCH($C58,'Výsledková listina'!$C:$C,0),1)) ->  | J58: =IF(ISBLANK(C58),"",INDEX('Výsledková listina'!$L:$M,MATCH($C58,'Výsledková listina'!$C:$C,0),2)) ->  | K58: =IF(ISBLANK($A58),"",SUM(I58:I60)) ->  | L58: =IF(ISBLANK($A58),"",SUM(J58:J60)) ->  | M58: =IF(ISBLANK($A58),"",RANK(L58,L:L,1)) ->  | N58: =IF(ISBLANK($A58),"",SUM(F58,K58)) ->  | O58: =IF(ISBLANK($A58),"",SUM(G58,L58)) ->  | P58: =IF(ISBLANK($A58),"",RANK(O58,O:O,1)) -> 
B59: =IF(ISBLANK($C59),"",INDEX('Výsledková listina'!$B:$B,MATCH($C59,'Výsledková listina'!$C:$C,0),1)) ->  | D59: =IF(ISBLANK(C59),"",INDEX('Výsledková listina'!$H:$I,MATCH($C59,'Výsledková listina'!$C:$C,0),1)) ->  | E59: =IF(ISBLANK(C59),"",INDEX('Výsledková listina'!$H:$I,MATCH($C59,'Výsledková listina'!$C:$C,0),2)) ->  | I59: =IF(ISBLANK(C59),"",INDEX('Výsledková listina'!$L:$M,MATCH($C59,'Výsledková listina'!$C:$C,0),1)) ->  | J59: =IF(ISBLANK(C59),"",INDEX('Výsledková listina'!$L:$M,MATCH($C59,'Výsledková listina'!$C:$C,0),2)) -> 
B60: =IF(ISBLANK($C60),"",INDEX('Výsledková listina'!$B:$B,MATCH($C60,'Výsledková listina'!$C:$C,0),1)) ->  | D60: =IF(ISBLANK(C60),"",INDEX('Výsledková listina'!$H:$I,MATCH($C60,'Výsledková listina'!$C:$C,0),1)) ->  | E60: =IF(ISBLANK(C60),"",INDEX('Výsledková listina'!$H:$I,MATCH($C60,'Výsledková listina'!$C:$C,0),2)) ->  | I60: =IF(ISBLANK(C60),"",INDEX('Výsledková listina'!$L:$M,MATCH($C60,'Výsledková listina'!$C:$C,0),1)) ->  | J60: =IF(ISBLANK(C60),"",INDEX('Výsledková listina'!$L:$M,MATCH($C60,'Výsledková listina'!$C:$C,0),2)) -> 
B61: =IF(ISBLANK($C61),"",INDEX('Výsledková listina'!$B:$B,MATCH($C61,'Výsledková listina'!$C:$C,0),1)) ->  | D61: =IF(ISBLANK(C61),"",INDEX('Výsledková listina'!$H:$I,MATCH($C61,'Výsledková listina'!$C:$C,0),1)) ->  | E61: =IF(ISBLANK(C61),"",INDEX('Výsledková listina'!$H:$I,MATCH($C61,'Výsledková listina'!$C:$C,0),2)) ->  | F61: =IF(ISBLANK($A61),"",SUM(D61:D63)) ->  | G61: =IF(ISBLANK($A61),"",SUM(E61:E63)) ->  | H61: =IF(ISBLANK($A61),"",RANK(G61,G:G,1)) ->  | I61: =IF(ISBLANK(C61),"",INDEX('Výsledková listina'!$L:$M,MATCH($C61,'Výsledková listina'!$C:$C,0),1)) ->  | J61: =IF(ISBLANK(C61),"",INDEX('Výsledková listina'!$L:$M,MATCH($C61,'Výsledková listina'!$C:$C,0),2)) ->  | K61: =IF(ISBLANK($A61),"",SUM(I61:I63)) ->  | L61: =IF(ISBLANK($A61),"",SUM(J61:J63)) ->  | M61: =IF(ISBLANK($A61),"",RANK(L61,L:L,1)) ->  | N61: =IF(ISBLANK($A61),"",SUM(F61,K61)) ->  | O61: =IF(ISBLANK($A61),"",SUM(G61,L61)) ->  | P61: =IF(ISBLANK($A61),"",RANK(O61,O:O,1)) -> 
B62: =IF(ISBLANK($C62),"",INDEX('Výsledková listina'!$B:$B,MATCH($C62,'Výsledková listina'!$C:$C,0),1)) ->  | D62: =IF(ISBLANK(C62),"",INDEX('Výsledková listina'!$H:$I,MATCH($C62,'Výsledková listina'!$C:$C,0),1)) ->  | E62: =IF(ISBLANK(C62),"",INDEX('Výsledková listina'!$H:$I,MATCH($C62,'Výsledková listina'!$C:$C,0),2)) ->  | I62: =IF(ISBLANK(C62),"",INDEX('Výsledková listina'!$L:$M,MATCH($C62,'Výsledková listina'!$C:$C,0),1)) ->  | J62: =IF(ISBLANK(C62),"",INDEX('Výsledková listina'!$L:$M,MATCH($C62,'Výsledková listina'!$C:$C,0),2)) -> 
B63: =IF(ISBLANK($C63),"",INDEX('Výsledková listina'!$B:$B,MATCH($C63,'Výsledková listina'!$C:$C,0),1)) ->  | D63: =IF(ISBLANK(C63),"",INDEX('Výsledková listina'!$H:$I,MATCH($C63,'Výsledková listina'!$C:$C,0),1)) ->  | E63: =IF(ISBLANK(C63),"",INDEX('Výsledková listina'!$H:$I,MATCH($C63,'Výsledková listina'!$C:$C,0),2)) ->  | I63: =IF(ISBLANK(C63),"",INDEX('Výsledková listina'!$L:$M,MATCH($C63,'Výsledková listina'!$C:$C,0),1)) ->  | J63: =IF(ISBLANK(C63),"",INDEX('Výsledková listina'!$L:$M,MATCH($C63,'Výsledková listina'!$C:$C,0),2)) -> 
B64: =IF(ISBLANK($C64),"",INDEX('Výsledková listina'!$B:$B,MATCH($C64,'Výsledková listina'!$C:$C,0),1)) ->  | D64: =IF(ISBLANK(C64),"",INDEX('Výsledková listina'!$H:$I,MATCH($C64,'Výsledková listina'!$C:$C,0),1)) ->  | E64: =IF(ISBLANK(C64),"",INDEX('Výsledková listina'!$H:$I,MATCH($C64,'Výsledková listina'!$C:$C,0),2)) ->  | F64: =IF(ISBLANK($A64),"",SUM(D64:D66)) ->  | G64: =IF(ISBLANK($A64),"",SUM(E64:E66)) ->  | H64: =IF(ISBLANK($A64),"",RANK(G64,G:G,1)) ->  | I64: =IF(ISBLANK(C64),"",INDEX('Výsledková listina'!$L:$M,MATCH($C64,'Výsledková listina'!$C:$C,0),1)) ->  | J64: =IF(ISBLANK(C64),"",INDEX('Výsledková listina'!$L:$M,MATCH($C64,'Výsledková listina'!$C:$C,0),2)) ->  | K64: =IF(ISBLANK($A64),"",SUM(I64:I66)) ->  | L64: =IF(ISBLANK($A64),"",SUM(J64:J66)) ->  | M64: =IF(ISBLANK($A64),"",RANK(L64,L:L,1)) ->  | N64: =IF(ISBLANK($A64),"",SUM(F64,K64)) ->  | O64: =IF(ISBLANK($A64),"",SUM(G64,L64)) ->  | P64: =IF(ISBLANK($A64),"",RANK(O64,O:O,1)) -> 
B65: =IF(ISBLANK($C65),"",INDEX('Výsledková listina'!$B:$B,MATCH($C65,'Výsledková listina'!$C:$C,0),1)) ->  | D65: =IF(ISBLANK(C65),"",INDEX('Výsledková listina'!$H:$I,MATCH($C65,'Výsledková listina'!$C:$C,0),1)) ->  | E65: =IF(ISBLANK(C65),"",INDEX('Výsledková listina'!$H:$I,MATCH($C65,'Výsledková listina'!$C:$C,0),2)) ->  | I65: =IF(ISBLANK(C65),"",INDEX('Výsledková listina'!$L:$M,MATCH($C65,'Výsledková listina'!$C:$C,0),1)) ->  | J65: =IF(ISBLANK(C65),"",INDEX('Výsledková listina'!$L:$M,MATCH($C65,'Výsledková listina'!$C:$C,0),2)) -> 
B66: =IF(ISBLANK($C66),"",INDEX('Výsledková listina'!$B:$B,MATCH($C66,'Výsledková listina'!$C:$C,0),1)) ->  | D66: =IF(ISBLANK(C66),"",INDEX('Výsledková listina'!$H:$I,MATCH($C66,'Výsledková listina'!$C:$C,0),1)) ->  | E66: =IF(ISBLANK(C66),"",INDEX('Výsledková listina'!$H:$I,MATCH($C66,'Výsledková listina'!$C:$C,0),2)) ->  | I66: =IF(ISBLANK(C66),"",INDEX('Výsledková listina'!$L:$M,MATCH($C66,'Výsledková listina'!$C:$C,0),1)) ->  | J66: =IF(ISBLANK(C66),"",INDEX('Výsledková listina'!$L:$M,MATCH($C66,'Výsledková listina'!$C:$C,0),2)) -> 
B67: =IF(ISBLANK($C67),"",INDEX('Výsledková listina'!$B:$B,MATCH($C67,'Výsledková listina'!$C:$C,0),1)) ->  | D67: =IF(ISBLANK(C67),"",INDEX('Výsledková listina'!$H:$I,MATCH($C67,'Výsledková listina'!$C:$C,0),1)) ->  | E67: =IF(ISBLANK(C67),"",INDEX('Výsledková listina'!$H:$I,MATCH($C67,'Výsledková listina'!$C:$C,0),2)) ->  | F67: =IF(ISBLANK($A67),"",SUM(D67:D69)) ->  | G67: =IF(ISBLANK($A67),"",SUM(E67:E69)) ->  | H67: =IF(ISBLANK($A67),"",RANK(G67,G:G,1)) ->  | I67: =IF(ISBLANK(C67),"",INDEX('Výsledková listina'!$L:$M,MATCH($C67,'Výsledková listina'!$C:$C,0),1)) ->  | J67: =IF(ISBLANK(C67),"",INDEX('Výsledková listina'!$L:$M,MATCH($C67,'Výsledková listina'!$C:$C,0),2)) ->  | K67: =IF(ISBLANK($A67),"",SUM(I67:I69)) ->  | L67: =IF(ISBLANK($A67),"",SUM(J67:J69)) ->  | M67: =IF(ISBLANK($A67),"",RANK(L67,L:L,1)) ->  | N67: =IF(ISBLANK($A67),"",SUM(F67,K67)) ->  | O67: =IF(ISBLANK($A67),"",SUM(G67,L67)) ->  | P67: =IF(ISBLANK($A67),"",RANK(O67,O:O,1)) -> 
B68: =IF(ISBLANK($C68),"",INDEX('Výsledková listina'!$B:$B,MATCH($C68,'Výsledková listina'!$C:$C,0),1)) ->  | D68: =IF(ISBLANK(C68),"",INDEX('Výsledková listina'!$H:$I,MATCH($C68,'Výsledková listina'!$C:$C,0),1)) ->  | E68: =IF(ISBLANK(C68),"",INDEX('Výsledková listina'!$H:$I,MATCH($C68,'Výsledková listina'!$C:$C,0),2)) ->  | I68: =IF(ISBLANK(C68),"",INDEX('Výsledková listina'!$L:$M,MATCH($C68,'Výsledková listina'!$C:$C,0),1)) ->  | J68: =IF(ISBLANK(C68),"",INDEX('Výsledková listina'!$L:$M,MATCH($C68,'Výsledková listina'!$C:$C,0),2)) -> 
B69: =IF(ISBLANK($C69),"",INDEX('Výsledková listina'!$B:$B,MATCH($C69,'Výsledková listina'!$C:$C,0),1)) ->  | D69: =IF(ISBLANK(C69),"",INDEX('Výsledková listina'!$H:$I,MATCH($C69,'Výsledková listina'!$C:$C,0),1)) ->  | E69: =IF(ISBLANK(C69),"",INDEX('Výsledková listina'!$H:$I,MATCH($C69,'Výsledková listina'!$C:$C,0),2)) ->  | I69: =IF(ISBLANK(C69),"",INDEX('Výsledková listina'!$L:$M,MATCH($C69,'Výsledková listina'!$C:$C,0),1)) ->  | J69: =IF(ISBLANK(C69),"",INDEX('Výsledková listina'!$L:$M,MATCH($C69,'Výsledková listina'!$C:$C,0),2)) -> 
B70: =IF(ISBLANK($C70),"",INDEX('Výsledková listina'!$B:$B,MATCH($C70,'Výsledková listina'!$C:$C,0),1)) ->  | D70: =IF(ISBLANK(C70),"",INDEX('Výsledková listina'!$H:$I,MATCH($C70,'Výsledková listina'!$C:$C,0),1)) ->  | E70: =IF(ISBLANK(C70),"",INDEX('Výsledková listina'!$H:$I,MATCH($C70,'Výsledková listina'!$C:$C,0),2)) ->  | F70: =IF(ISBLANK($A70),"",SUM(D70:D72)) ->  | G70: =IF(ISBLANK($A70),"",SUM(E70:E72)) ->  | H70: =IF(ISBLANK($A70),"",RANK(G70,G:G,1)) ->  | I70: =IF(ISBLANK(C70),"",INDEX('Výsledková listina'!$L:$M,MATCH($C70,'Výsledková listina'!$C:$C,0),1)) ->  | J70: =IF(ISBLANK(C70),"",INDEX('Výsledková listina'!$L:$M,MATCH($C70,'Výsledková listina'!$C:$C,0),2)) ->  | K70: =IF(ISBLANK($A70),"",SUM(I70:I72)) ->  | L70: =IF(ISBLANK($A70),"",SUM(J70:J72)) ->  | M70: =IF(ISBLANK($A70),"",RANK(L70,L:L,1)) ->  | N70: =IF(ISBLANK($A70),"",SUM(F70,K70)) ->  | O70: =IF(ISBLANK($A70),"",SUM(G70,L70)) ->  | P70: =IF(ISBLANK($A70),"",RANK(O70,O:O,1)) -> 
B71: =IF(ISBLANK($C71),"",INDEX('Výsledková listina'!$B:$B,MATCH($C71,'Výsledková listina'!$C:$C,0),1)) ->  | D71: =IF(ISBLANK(C71),"",INDEX('Výsledková listina'!$H:$I,MATCH($C71,'Výsledková listina'!$C:$C,0),1)) ->  | E71: =IF(ISBLANK(C71),"",INDEX('Výsledková listina'!$H:$I,MATCH($C71,'Výsledková listina'!$C:$C,0),2)) ->  | I71: =IF(ISBLANK(C71),"",INDEX('Výsledková listina'!$L:$M,MATCH($C71,'Výsledková listina'!$C:$C,0),1)) ->  | J71: =IF(ISBLANK(C71),"",INDEX('Výsledková listina'!$L:$M,MATCH($C71,'Výsledková listina'!$C:$C,0),2)) -> 
B72: =IF(ISBLANK($C72),"",INDEX('Výsledková listina'!$B:$B,MATCH($C72,'Výsledková listina'!$C:$C,0),1)) ->  | D72: =IF(ISBLANK(C72),"",INDEX('Výsledková listina'!$H:$I,MATCH($C72,'Výsledková listina'!$C:$C,0),1)) ->  | E72: =IF(ISBLANK(C72),"",INDEX('Výsledková listina'!$H:$I,MATCH($C72,'Výsledková listina'!$C:$C,0),2)) ->  | I72: =IF(ISBLANK(C72),"",INDEX('Výsledková listina'!$L:$M,MATCH($C72,'Výsledková listina'!$C:$C,0),1)) ->  | J72: =IF(ISBLANK(C72),"",INDEX('Výsledková listina'!$L:$M,MATCH($C72,'Výsledková listina'!$C:$C,0),2)) -> 
B73: =IF(ISBLANK($C73),"",INDEX('Výsledková listina'!$B:$B,MATCH($C73,'Výsledková listina'!$C:$C,0),1)) ->  | D73: =IF(ISBLANK(C73),"",INDEX('Výsledková listina'!$H:$I,MATCH($C73,'Výsledková listina'!$C:$C,0),1)) ->  | E73: =IF(ISBLANK(C73),"",INDEX('Výsledková listina'!$H:$I,MATCH($C73,'Výsledková listina'!$C:$C,0),2)) ->  | F73: =IF(ISBLANK($A73),"",SUM(D73:D75)) ->  | G73: =IF(ISBLANK($A73),"",SUM(E73:E75)) ->  | H73: =IF(ISBLANK($A73),"",RANK(G73,G:G,1)) ->  | I73: =IF(ISBLANK(C73),"",INDEX('Výsledková listina'!$L:$M,MATCH($C73,'Výsledková listina'!$C:$C,0),1)) ->  | J73: =IF(ISBLANK(C73),"",INDEX('Výsledková listina'!$L:$M,MATCH($C73,'Výsledková listina'!$C:$C,0),2)) ->  | K73: =IF(ISBLANK($A73),"",SUM(I73:I75)) ->  | L73: =IF(ISBLANK($A73),"",SUM(J73:J75)) ->  | M73: =IF(ISBLANK($A73),"",RANK(L73,L:L,1)) ->  | N73: =IF(ISBLANK($A73),"",SUM(F73,K73)) ->  | O73: =IF(ISBLANK($A73),"",SUM(G73,L73)) ->  | P73: =IF(ISBLANK($A73),"",RANK(O73,O:O,1)) -> 
B74: =IF(ISBLANK($C74),"",INDEX('Výsledková listina'!$B:$B,MATCH($C74,'Výsledková listina'!$C:$C,0),1)) ->  | D74: =IF(ISBLANK(C74),"",INDEX('Výsledková listina'!$H:$I,MATCH($C74,'Výsledková listina'!$C:$C,0),1)) ->  | E74: =IF(ISBLANK(C74),"",INDEX('Výsledková listina'!$H:$I,MATCH($C74,'Výsledková listina'!$C:$C,0),2)) ->  | I74: =IF(ISBLANK(C74),"",INDEX('Výsledková listina'!$L:$M,MATCH($C74,'Výsledková listina'!$C:$C,0),1)) ->  | J74: =IF(ISBLANK(C74),"",INDEX('Výsledková listina'!$L:$M,MATCH($C74,'Výsledková listina'!$C:$C,0),2)) -> 
B75: =IF(ISBLANK($C75),"",INDEX('Výsledková listina'!$B:$B,MATCH($C75,'Výsledková listina'!$C:$C,0),1)) ->  | D75: =IF(ISBLANK(C75),"",INDEX('Výsledková listina'!$H:$I,MATCH($C75,'Výsledková listina'!$C:$C,0),1)) ->  | E75: =IF(ISBLANK(C75),"",INDEX('Výsledková listina'!$H:$I,MATCH($C75,'Výsledková listina'!$C:$C,0),2)) ->  | I75: =IF(ISBLANK(C75),"",INDEX('Výsledková listina'!$L:$M,MATCH($C75,'Výsledková listina'!$C:$C,0),1)) ->  | J75: =IF(ISBLANK(C75),"",INDEX('Výsledková listina'!$L:$M,MATCH($C75,'Výsledková listina'!$C:$C,0),2)) -> 
B76: =IF(ISBLANK($C76),"",INDEX('Výsledková listina'!$B:$B,MATCH($C76,'Výsledková listina'!$C:$C,0),1)) ->  | D76: =IF(ISBLANK(C76),"",INDEX('Výsledková listina'!$H:$I,MATCH($C76,'Výsledková listina'!$C:$C,0),1)) ->  | E76: =IF(ISBLANK(C76),"",INDEX('Výsledková listina'!$H:$I,MATCH($C76,'Výsledková listina'!$C:$C,0),2)) ->  | F76: =IF(ISBLANK($A76),"",SUM(D76:D78)) ->  | G76: =IF(ISBLANK($A76),"",SUM(E76:E78)) ->  | H76: =IF(ISBLANK($A76),"",RANK(G76,G:G,1)) ->  | I76: =IF(ISBLANK(C76),"",INDEX('Výsledková listina'!$L:$M,MATCH($C76,'Výsledková listina'!$C:$C,0),1)) ->  | J76: =IF(ISBLANK(C76),"",INDEX('Výsledková listina'!$L:$M,MATCH($C76,'Výsledková listina'!$C:$C,0),2)) ->  | K76: =IF(ISBLANK($A76),"",SUM(I76:I78)) ->  | L76: =IF(ISBLANK($A76),"",SUM(J76:J78)) ->  | M76: =IF(ISBLANK($A76),"",RANK(L76,L:L,1)) ->  | N76: =IF(ISBLANK($A76),"",SUM(F76,K76)) ->  | O76: =IF(ISBLANK($A76),"",SUM(G76,L76)) ->  | P76: =IF(ISBLANK($A76),"",RANK(O76,O:O,1)) -> 
B77: =IF(ISBLANK($C77),"",INDEX('Výsledková listina'!$B:$B,MATCH($C77,'Výsledková listina'!$C:$C,0),1)) ->  | D77: =IF(ISBLANK(C77),"",INDEX('Výsledková listina'!$H:$I,MATCH($C77,'Výsledková listina'!$C:$C,0),1)) ->  | E77: =IF(ISBLANK(C77),"",INDEX('Výsledková listina'!$H:$I,MATCH($C77,'Výsledková listina'!$C:$C,0),2)) ->  | I77: =IF(ISBLANK(C77),"",INDEX('Výsledková listina'!$L:$M,MATCH($C77,'Výsledková listina'!$C:$C,0),1)) ->  | J77: =IF(ISBLANK(C77),"",INDEX('Výsledková listina'!$L:$M,MATCH($C77,'Výsledková listina'!$C:$C,0),2)) -> 
B78: =IF(ISBLANK($C78),"",INDEX('Výsledková listina'!$B:$B,MATCH($C78,'Výsledková listina'!$C:$C,0),1)) ->  | D78: =IF(ISBLANK(C78),"",INDEX('Výsledková listina'!$H:$I,MATCH($C78,'Výsledková listina'!$C:$C,0),1)) ->  | E78: =IF(ISBLANK(C78),"",INDEX('Výsledková listina'!$H:$I,MATCH($C78,'Výsledková listina'!$C:$C,0),2)) ->  | I78: =IF(ISBLANK(C78),"",INDEX('Výsledková listina'!$L:$M,MATCH($C78,'Výsledková listina'!$C:$C,0),1)) ->  | J78: =IF(ISBLANK(C78),"",INDEX('Výsledková listina'!$L:$M,MATCH($C78,'Výsledková listina'!$C:$C,0),2)) -> 
B79: =IF(ISBLANK($C79),"",INDEX('Výsledková listina'!$B:$B,MATCH($C79,'Výsledková listina'!$C:$C,0),1)) ->  | D79: =IF(ISBLANK(C79),"",INDEX('Výsledková listina'!$H:$I,MATCH($C79,'Výsledková listina'!$C:$C,0),1)) ->  | E79: =IF(ISBLANK(C79),"",INDEX('Výsledková listina'!$H:$I,MATCH($C79,'Výsledková listina'!$C:$C,0),2)) ->  | F79: =IF(ISBLANK($A79),"",SUM(D79:D81)) ->  | G79: =IF(ISBLANK($A79),"",SUM(E79:E81)) ->  | H79: =IF(ISBLANK($A79),"",RANK(G79,G:G,1)) ->  | I79: =IF(ISBLANK(C79),"",INDEX('Výsledková listina'!$L:$M,MATCH($C79,'Výsledková listina'!$C:$C,0),1)) ->  | J79: =IF(ISBLANK(C79),"",INDEX('Výsledková listina'!$L:$M,MATCH($C79,'Výsledková listina'!$C:$C,0),2)) ->  | K79: =IF(ISBLANK($A79),"",SUM(I79:I81)) ->  | L79: =IF(ISBLANK($A79),"",SUM(J79:J81)) ->  | M79: =IF(ISBLANK($A79),"",RANK(L79,L:L,1)) ->  | N79: =IF(ISBLANK($A79),"",SUM(F79,K79)) ->  | O79: =IF(ISBLANK($A79),"",SUM(G79,L79)) ->  | P79: =IF(ISBLANK($A79),"",RANK(O79,O:O,1)) -> 
B80: =IF(ISBLANK($C80),"",INDEX('Výsledková listina'!$B:$B,MATCH($C80,'Výsledková listina'!$C:$C,0),1)) ->  | D80: =IF(ISBLANK(C80),"",INDEX('Výsledková listina'!$H:$I,MATCH($C80,'Výsledková listina'!$C:$C,0),1)) ->  | E80: =IF(ISBLANK(C80),"",INDEX('Výsledková listina'!$H:$I,MATCH($C80,'Výsledková listina'!$C:$C,0),2)) ->  | I80: =IF(ISBLANK(C80),"",INDEX('Výsledková listina'!$L:$M,MATCH($C80,'Výsledková listina'!$C:$C,0),1)) ->  | J80: =IF(ISBLANK(C80),"",INDEX('Výsledková listina'!$L:$M,MATCH($C80,'Výsledková listina'!$C:$C,0),2)) -> 
B81: =IF(ISBLANK($C81),"",INDEX('Výsledková listina'!$B:$B,MATCH($C81,'Výsledková listina'!$C:$C,0),1)) ->  | D81: =IF(ISBLANK(C81),"",INDEX('Výsledková listina'!$H:$I,MATCH($C81,'Výsledková listina'!$C:$C,0),1)) ->  | E81: =IF(ISBLANK(C81),"",INDEX('Výsledková listina'!$H:$I,MATCH($C81,'Výsledková listina'!$C:$C,0),2)) ->  | I81: =IF(ISBLANK(C81),"",INDEX('Výsledková listina'!$L:$M,MATCH($C81,'Výsledková listina'!$C:$C,0),1)) ->  | J81: =IF(ISBLANK(C81),"",INDEX('Výsledková listina'!$L:$M,MATCH($C81,'Výsledková listina'!$C:$C,0),2)) -> 
B82: =IF(ISBLANK($C82),"",INDEX('Výsledková listina'!$B:$B,MATCH($C82,'Výsledková listina'!$C:$C,0),1)) ->  | D82: =IF(ISBLANK(C82),"",INDEX('Výsledková listina'!$H:$I,MATCH($C82,'Výsledková listina'!$C:$C,0),1)) ->  | E82: =IF(ISBLANK(C82),"",INDEX('Výsledková listina'!$H:$I,MATCH($C82,'Výsledková listina'!$C:$C,0),2)) ->  | F82: =IF(ISBLANK($A82),"",SUM(D82:D84)) ->  | G82: =IF(ISBLANK($A82),"",SUM(E82:E84)) ->  | H82: =IF(ISBLANK($A82),"",RANK(G82,G:G,1)) ->  | I82: =IF(ISBLANK(C82),"",INDEX('Výsledková listina'!$L:$M,MATCH($C82,'Výsledková listina'!$C:$C,0),1)) ->  | J82: =IF(ISBLANK(C82),"",INDEX('Výsledková listina'!$L:$M,MATCH($C82,'Výsledková listina'!$C:$C,0),2)) ->  | K82: =IF(ISBLANK($A82),"",SUM(I82:I84)) ->  | L82: =IF(ISBLANK($A82),"",SUM(J82:J84)) ->  | M82: =IF(ISBLANK($A82),"",RANK(L82,L:L,1)) ->  | N82: =IF(ISBLANK($A82),"",SUM(F82,K82)) ->  | O82: =IF(ISBLANK($A82),"",SUM(G82,L82)) ->  | P82: =IF(ISBLANK($A82),"",RANK(O82,O:O,1)) -> 
B83: =IF(ISBLANK($C83),"",INDEX('Výsledková listina'!$B:$B,MATCH($C83,'Výsledková listina'!$C:$C,0),1)) ->  | D83: =IF(ISBLANK(C83),"",INDEX('Výsledková listina'!$H:$I,MATCH($C83,'Výsledková listina'!$C:$C,0),1)) ->  | E83: =IF(ISBLANK(C83),"",INDEX('Výsledková listina'!$H:$I,MATCH($C83,'Výsledková listina'!$C:$C,0),2)) ->  | I83: =IF(ISBLANK(C83),"",INDEX('Výsledková listina'!$L:$M,MATCH($C83,'Výsledková listina'!$C:$C,0),1)) ->  | J83: =IF(ISBLANK(C83),"",INDEX('Výsledková listina'!$L:$M,MATCH($C83,'Výsledková listina'!$C:$C,0),2)) -> 
B84: =IF(ISBLANK($C84),"",INDEX('Výsledková listina'!$B:$B,MATCH($C84,'Výsledková listina'!$C:$C,0),1)) ->  | D84: =IF(ISBLANK(C84),"",INDEX('Výsledková listina'!$H:$I,MATCH($C84,'Výsledková listina'!$C:$C,0),1)) ->  | E84: =IF(ISBLANK(C84),"",INDEX('Výsledková listina'!$H:$I,MATCH($C84,'Výsledková listina'!$C:$C,0),2)) ->  | I84: =IF(ISBLANK(C84),"",INDEX('Výsledková listina'!$L:$M,MATCH($C84,'Výsledková listina'!$C:$C,0),1)) ->  | J84: =IF(ISBLANK(C84),"",INDEX('Výsledková listina'!$L:$M,MATCH($C84,'Výsledková listina'!$C:$C,0),2)) -> 
B85: =IF(ISBLANK($C85),"",INDEX('Výsledková listina'!$B:$B,MATCH($C85,'Výsledková listina'!$C:$C,0),1)) ->  | D85: =IF(ISBLANK(C85),"",INDEX('Výsledková listina'!$H:$I,MATCH($C85,'Výsledková listina'!$C:$C,0),1)) ->  | E85: =IF(ISBLANK(C85),"",INDEX('Výsledková listina'!$H:$I,MATCH($C85,'Výsledková listina'!$C:$C,0),2)) ->  | F85: =IF(ISBLANK($A85),"",SUM(D85:D87)) ->  | H85: =IF(ISBLANK($A85),"",RANK(G85,G:G,1)) ->  | I85: =IF(ISBLANK(C85),"",INDEX('Výsledková listina'!$L:$M,MATCH($C85,'Výsledková listina'!$C:$C,0),1)) ->  | J85: =IF(ISBLANK(C85),"",INDEX('Výsledková listina'!$L:$M,MATCH($C85,'Výsledková listina'!$C:$C,0),2)) ->  | K85: =IF(ISBLANK($A85),"",SUM(I85:I87)) ->  | M85: =IF(ISBLANK($A85),"",RANK(L85,L:L,1)) ->  | N85: =IF(ISBLANK($A85),"",SUM(F85,K85)) ->  | O85: =IF(ISBLANK($A85),"",SUM(G85,L85)) ->  | P85: =IF(ISBLANK($A85),"",RANK(O85,O:O,1)) -> 
B86: =IF(ISBLANK($C86),"",INDEX('Výsledková listina'!$B:$B,MATCH($C86,'Výsledková listina'!$C:$C,0),1)) ->  | D86: =IF(ISBLANK(C86),"",INDEX('Výsledková listina'!$H:$I,MATCH($C86,'Výsledková listina'!$C:$C,0),1)) ->  | E86: =IF(ISBLANK(C86),"",INDEX('Výsledková listina'!$H:$I,MATCH($C86,'Výsledková listina'!$C:$C,0),2)) ->  | I86: =IF(ISBLANK(C86),"",INDEX('Výsledková listina'!$L:$M,MATCH($C86,'Výsledková listina'!$C:$C,0),1)) ->  | J86: =IF(ISBLANK(C86),"",INDEX('Výsledková listina'!$L:$M,MATCH($C86,'Výsledková listina'!$C:$C,0),2)) -> 
B87: =IF(ISBLANK($C87),"",INDEX('Výsledková listina'!$B:$B,MATCH($C87,'Výsledková listina'!$C:$C,0),1)) ->  | D87: =IF(ISBLANK(C87),"",INDEX('Výsledková listina'!$H:$I,MATCH($C87,'Výsledková listina'!$C:$C,0),1)) ->  | E87: =IF(ISBLANK(C87),"",INDEX('Výsledková listina'!$H:$I,MATCH($C87,'Výsledková listina'!$C:$C,0),2)) ->  | I87: =IF(ISBLANK(C87),"",INDEX('Výsledková listina'!$L:$M,MATCH($C87,'Výsledková listina'!$C:$C,0),1)) ->  | J87: =IF(ISBLANK(C87),"",INDEX('Výsledková listina'!$L:$M,MATCH($C87,'Výsledková listina'!$C:$C,0),2)) -> 
B88: =IF(ISBLANK($C88),"",INDEX('Výsledková listina'!$B:$B,MATCH($C88,'Výsledková listina'!$C:$C,0),1)) ->  | D88: =IF(ISBLANK(C88),"",INDEX('Výsledková listina'!$H:$I,MATCH($C88,'Výsledková listina'!$C:$C,0),1)) ->  | E88: =IF(ISBLANK(C88),"",INDEX('Výsledková listina'!$H:$I,MATCH($C88,'Výsledková listina'!$C:$C,0),2)) ->  | F88: =IF(ISBLANK($A88),"",SUM(D88:D90)) ->  | H88: =IF(ISBLANK($A88),"",RANK(G88,G:G,1)) ->  | I88: =IF(ISBLANK(C88),"",INDEX('Výsledková listina'!$L:$M,MATCH($C88,'Výsledková listina'!$C:$C,0),1)) ->  | J88: =IF(ISBLANK(C88),"",INDEX('Výsledková listina'!$L:$M,MATCH($C88,'Výsledková listina'!$C:$C,0),2)) ->  | K88: =IF(ISBLANK($A88),"",SUM(I88:I90)) ->  | M88: =IF(ISBLANK($A88),"",RANK(L88,L:L,1)) ->  | N88: =IF(ISBLANK($A88),"",SUM(F88,K88)) ->  | O88: =IF(ISBLANK($A88),"",SUM(G88,L88)) ->  | P88: =IF(ISBLANK($A88),"",RANK(O88,O:O,1)) -> 
B89: =IF(ISBLANK($C89),"",INDEX('Výsledková listina'!$B:$B,MATCH($C89,'Výsledková listina'!$C:$C,0),1)) ->  | D89: =IF(ISBLANK(C89),"",INDEX('Výsledková listina'!$H:$I,MATCH($C89,'Výsledková listina'!$C:$C,0),1)) ->  | E89: =IF(ISBLANK(C89),"",INDEX('Výsledková listina'!$H:$I,MATCH($C89,'Výsledková listina'!$C:$C,0),2)) ->  | I89: =IF(ISBLANK(C89),"",INDEX('Výsledková listina'!$L:$M,MATCH($C89,'Výsledková listina'!$C:$C,0),1)) ->  | J89: =IF(ISBLANK(C89),"",INDEX('Výsledková listina'!$L:$M,MATCH($C89,'Výsledková listina'!$C:$C,0),2)) -> 
B90: =IF(ISBLANK($C90),"",INDEX('Výsledková listina'!$B:$B,MATCH($C90,'Výsledková listina'!$C:$C,0),1)) ->  | D90: =IF(ISBLANK(C90),"",INDEX('Výsledková listina'!$H:$I,MATCH($C90,'Výsledková listina'!$C:$C,0),1)) ->  | E90: =IF(ISBLANK(C90),"",INDEX('Výsledková listina'!$H:$I,MATCH($C90,'Výsledková listina'!$C:$C,0),2)) ->  | I90: =IF(ISBLANK(C90),"",INDEX('Výsledková listina'!$L:$M,MATCH($C90,'Výsledková listina'!$C:$C,0),1)) ->  | J90: =IF(ISBLANK(C90),"",INDEX('Výsledková listina'!$L:$M,MATCH($C90,'Výsledková listina'!$C:$C,0),2)) -> 
B91: =IF(ISBLANK($C91),"",INDEX('Výsledková listina'!$B:$B,MATCH($C91,'Výsledková listina'!$C:$C,0),1)) ->  | D91: =IF(ISBLANK(C91),"",INDEX('Výsledková listina'!$H:$I,MATCH($C91,'Výsledková listina'!$C:$C,0),1)) ->  | E91: =IF(ISBLANK(C91),"",INDEX('Výsledková listina'!$H:$I,MATCH($C91,'Výsledková listina'!$C:$C,0),2)) ->  | F91: =IF(ISBLANK($A91),"",SUM(D91:D93)) ->  | H91: =IF(ISBLANK($A91),"",RANK(G91,G:G,1)) ->  | I91: =IF(ISBLANK(C91),"",INDEX('Výsledková listina'!$L:$M,MATCH($C91,'Výsledková listina'!$C:$C,0),1)) ->  | J91: =IF(ISBLANK(C91),"",INDEX('Výsledková listina'!$L:$M,MATCH($C91,'Výsledková listina'!$C:$C,0),2)) ->  | K91: =IF(ISBLANK($A91),"",SUM(I91:I93)) ->  | M91: =IF(ISBLANK($A91),"",RANK(L91,L:L,1)) ->  | N91: =IF(ISBLANK($A91),"",SUM(F91,K91)) ->  | O91: =IF(ISBLANK($A91),"",SUM(G91,L91)) ->  | P91: =IF(ISBLANK($A91),"",RANK(O91,O:O,1)) -> 
B92: =IF(ISBLANK($C92),"",INDEX('Výsledková listina'!$B:$B,MATCH($C92,'Výsledková listina'!$C:$C,0),1)) ->  | D92: =IF(ISBLANK(C92),"",INDEX('Výsledková listina'!$H:$I,MATCH($C92,'Výsledková listina'!$C:$C,0),1)) ->  | E92: =IF(ISBLANK(C92),"",INDEX('Výsledková listina'!$H:$I,MATCH($C92,'Výsledková listina'!$C:$C,0),2)) ->  | I92: =IF(ISBLANK(C92),"",INDEX('Výsledková listina'!$L:$M,MATCH($C92,'Výsledková listina'!$C:$C,0),1)) ->  | J92: =IF(ISBLANK(C92),"",INDEX('Výsledková listina'!$L:$M,MATCH($C92,'Výsledková listina'!$C:$C,0),2)) -> 
B93: =IF(ISBLANK($C93),"",INDEX('Výsledková listina'!$B:$B,MATCH($C93,'Výsledková listina'!$C:$C,0),1)) ->  | D93: =IF(ISBLANK(C93),"",INDEX('Výsledková listina'!$H:$I,MATCH($C93,'Výsledková listina'!$C:$C,0),1)) ->  | E93: =IF(ISBLANK(C93),"",INDEX('Výsledková listina'!$H:$I,MATCH($C93,'Výsledková listina'!$C:$C,0),2)) ->  | I93: =IF(ISBLANK(C93),"",INDEX('Výsledková listina'!$L:$M,MATCH($C93,'Výsledková listina'!$C:$C,0),1)) ->  | J93: =IF(ISBLANK(C93),"",INDEX('Výsledková listina'!$L:$M,MATCH($C93,'Výsledková listina'!$C:$C,0),2)) -> 
B94: =IF(ISBLANK($C94),"",INDEX('Výsledková listina'!$B:$B,MATCH($C94,'Výsledková listina'!$C:$C,0),1)) ->  | D94: =IF(ISBLANK(C94),"",INDEX('Výsledková listina'!$H:$I,MATCH($C94,'Výsledková listina'!$C:$C,0),1)) ->  | E94: =IF(ISBLANK(C94),"",INDEX('Výsledková listina'!$H:$I,MATCH($C94,'Výsledková listina'!$C:$C,0),2)) ->  | F94: =IF(ISBLANK($A94),"",SUM(D94:D96)) ->  | H94: =IF(ISBLANK($A94),"",RANK(G94,G:G,1)) ->  | I94: =IF(ISBLANK(C94),"",INDEX('Výsledková listina'!$L:$M,MATCH($C94,'Výsledková listina'!$C:$C,0),1)) ->  | J94: =IF(ISBLANK(C94),"",INDEX('Výsledková listina'!$L:$M,MATCH($C94,'Výsledková listina'!$C:$C,0),2)) ->  | K94: =IF(ISBLANK($A94),"",SUM(I94:I96)) ->  | M94: =IF(ISBLANK($A94),"",RANK(L94,L:L,1)) ->  | N94: =IF(ISBLANK($A94),"",SUM(F94,K94)) ->  | O94: =IF(ISBLANK($A94),"",SUM(G94,L94)) ->  | P94: =IF(ISBLANK($A94),"",RANK(O94,O:O,1)) -> 
B95: =IF(ISBLANK($C95),"",INDEX('Výsledková listina'!$B:$B,MATCH($C95,'Výsledková listina'!$C:$C,0),1)) ->  | D95: =IF(ISBLANK(C95),"",INDEX('Výsledková listina'!$H:$I,MATCH($C95,'Výsledková listina'!$C:$C,0),1)) ->  | E95: =IF(ISBLANK(C95),"",INDEX('Výsledková listina'!$H:$I,MATCH($C95,'Výsledková listina'!$C:$C,0),2)) ->  | I95: =IF(ISBLANK(C95),"",INDEX('Výsledková listina'!$L:$M,MATCH($C95,'Výsledková listina'!$C:$C,0),1)) ->  | J95: =IF(ISBLANK(C95),"",INDEX('Výsledková listina'!$L:$M,MATCH($C95,'Výsledková listina'!$C:$C,0),2)) -> 
B96: =IF(ISBLANK($C96),"",INDEX('Výsledková listina'!$B:$B,MATCH($C96,'Výsledková listina'!$C:$C,0),1)) ->  | D96: =IF(ISBLANK(C96),"",INDEX('Výsledková listina'!$H:$I,MATCH($C96,'Výsledková listina'!$C:$C,0),1)) ->  | E96: =IF(ISBLANK(C96),"",INDEX('Výsledková listina'!$H:$I,MATCH($C96,'Výsledková listina'!$C:$C,0),2)) ->  | I96: =IF(ISBLANK(C96),"",INDEX('Výsledková listina'!$L:$M,MATCH($C96,'Výsledková listina'!$C:$C,0),1)) ->  | J96: =IF(ISBLANK(C96),"",INDEX('Výsledková listina'!$L:$M,MATCH($C96,'Výsledková listina'!$C:$C,0),2)) -> 
B97: =IF(ISBLANK($C97),"",INDEX('Výsledková listina'!$B:$B,MATCH($C97,'Výsledková listina'!$C:$C,0),1)) ->  | D97: =IF(ISBLANK(C97),"",INDEX('Výsledková listina'!$H:$I,MATCH($C97,'Výsledková listina'!$C:$C,0),1)) ->  | E97: =IF(ISBLANK(C97),"",INDEX('Výsledková listina'!$H:$I,MATCH($C97,'Výsledková listina'!$C:$C,0),2)) ->  | F97: =IF(ISBLANK($A97),"",SUM(D97:D99)) ->  | H97: =IF(ISBLANK($A97),"",RANK(G97,G:G,1)) ->  | I97: =IF(ISBLANK(C97),"",INDEX('Výsledková listina'!$L:$M,MATCH($C97,'Výsledková listina'!$C:$C,0),1)) ->  | J97: =IF(ISBLANK(C97),"",INDEX('Výsledková listina'!$L:$M,MATCH($C97,'Výsledková listina'!$C:$C,0),2)) ->  | K97: =IF(ISBLANK($A97),"",SUM(I97:I99)) ->  | M97: =IF(ISBLANK($A97),"",RANK(L97,L:L,1)) ->  | N97: =IF(ISBLANK($A97),"",SUM(F97,K97)) ->  | O97: =IF(ISBLANK($A97),"",SUM(G97,L97)) ->  | P97: =IF(ISBLANK($A97),"",RANK(O97,O:O,1)) -> 
B98: =IF(ISBLANK($C98),"",INDEX('Výsledková listina'!$B:$B,MATCH($C98,'Výsledková listina'!$C:$C,0),1)) ->  | D98: =IF(ISBLANK(C98),"",INDEX('Výsledková listina'!$H:$I,MATCH($C98,'Výsledková listina'!$C:$C,0),1)) ->  | E98: =IF(ISBLANK(C98),"",INDEX('Výsledková listina'!$H:$I,MATCH($C98,'Výsledková listina'!$C:$C,0),2)) ->  | I98: =IF(ISBLANK(C98),"",INDEX('Výsledková listina'!$L:$M,MATCH($C98,'Výsledková listina'!$C:$C,0),1)) ->  | J98: =IF(ISBLANK(C98),"",INDEX('Výsledková listina'!$L:$M,MATCH($C98,'Výsledková listina'!$C:$C,0),2)) -> 
B99: =IF(ISBLANK($C99),"",INDEX('Výsledková listina'!$B:$B,MATCH($C99,'Výsledková listina'!$C:$C,0),1)) ->  | D99: =IF(ISBLANK(C99),"",INDEX('Výsledková listina'!$H:$I,MATCH($C99,'Výsledková listina'!$C:$C,0),1)) ->  | E99: =IF(ISBLANK(C99),"",INDEX('Výsledková listina'!$H:$I,MATCH($C99,'Výsledková listina'!$C:$C,0),2)) ->  | I99: =IF(ISBLANK(C99),"",INDEX('Výsledková listina'!$L:$M,MATCH($C99,'Výsledková listina'!$C:$C,0),1)) ->  | J99: =IF(ISBLANK(C99),"",INDEX('Výsledková listina'!$L:$M,MATCH($C99,'Výsledková listina'!$C:$C,0),2)) -> 
B100: =IF(ISBLANK($C100),"",INDEX('Výsledková listina'!$B:$B,MATCH($C100,'Výsledková listina'!$C:$C,0),1)) ->  | D100: =IF(ISBLANK(C100),"",INDEX('Výsledková listina'!$H:$I,MATCH($C100,'Výsledková listina'!$C:$C,0),1)) ->  | E100: =IF(ISBLANK(C100),"",INDEX('Výsledková listina'!$H:$I,MATCH($C100,'Výsledková listina'!$C:$C,0),2)) ->  | F100: =IF(ISBLANK($A100),"",SUM(D100:D102)) ->  | H100: =IF(ISBLANK($A100),"",RANK(G100,G:G,1)) ->  | I100: =IF(ISBLANK(C100),"",INDEX('Výsledková listina'!$L:$M,MATCH($C100,'Výsledková listina'!$C:$C,0),1)) ->  | J100: =IF(ISBLANK(C100),"",INDEX('Výsledková listina'!$L:$M,MATCH($C100,'Výsledková listina'!$C:$C,0),2)) ->  | K100: =IF(ISBLANK($A100),"",SUM(I100:I102)) ->  | M100: =IF(ISBLANK($A100),"",RANK(L100,L:L,1)) ->  | N100: =IF(ISBLANK($A100),"",SUM(F100,K100)) ->  | O100: =IF(ISBLANK($A100),"",SUM(G100,L100)) ->  | P100: =IF(ISBLANK($A100),"",RANK(O100,O:O,1)) -> 
B101: =IF(ISBLANK($C101),"",INDEX('Výsledková listina'!$B:$B,MATCH($C101,'Výsledková listina'!$C:$C,0),1)) ->  | D101: =IF(ISBLANK(C101),"",INDEX('Výsledková listina'!$H:$I,MATCH($C101,'Výsledková listina'!$C:$C,0),1)) ->  | E101: =IF(ISBLANK(C101),"",INDEX('Výsledková listina'!$H:$I,MATCH($C101,'Výsledková listina'!$C:$C,0),2)) ->  | I101: =IF(ISBLANK(C101),"",INDEX('Výsledková listina'!$L:$M,MATCH($C101,'Výsledková listina'!$C:$C,0),1)) ->  | J101: =IF(ISBLANK(C101),"",INDEX('Výsledková listina'!$L:$M,MATCH($C101,'Výsledková listina'!$C:$C,0),2)) -> 
B102: =IF(ISBLANK($C102),"",INDEX('Výsledková listina'!$B:$B,MATCH($C102,'Výsledková listina'!$C:$C,0),1)) ->  | D102: =IF(ISBLANK(C102),"",INDEX('Výsledková listina'!$H:$I,MATCH($C102,'Výsledková listina'!$C:$C,0),1)) ->  | E102: =IF(ISBLANK(C102),"",INDEX('Výsledková listina'!$H:$I,MATCH($C102,'Výsledková listina'!$C:$C,0),2)) ->  | I102: =IF(ISBLANK(C102),"",INDEX('Výsledková listina'!$L:$M,MATCH($C102,'Výsledková listina'!$C:$C,0),1)) ->  | J102: =IF(ISBLANK(C102),"",INDEX('Výsledková listina'!$L:$M,MATCH($C102,'Výsledková listina'!$C:$C,0),2)) -> 
B103: =IF(ISBLANK($C103),"",INDEX('Výsledková listina'!$B:$B,MATCH($C103,'Výsledková listina'!$C:$C,0),1)) ->  | D103: =IF(ISBLANK(C103),"",INDEX('Výsledková listina'!$H:$I,MATCH($C103,'Výsledková listina'!$C:$C,0),1)) ->  | E103: =IF(ISBLANK(C103),"",INDEX('Výsledková listina'!$H:$I,MATCH($C103,'Výsledková listina'!$C:$C,0),2)) ->  | F103: =IF(ISBLANK($A103),"",SUM(D103:D105)) ->  | H103: =IF(ISBLANK($A103),"",RANK(G103,G:G,1)) ->  | I103: =IF(ISBLANK(C103),"",INDEX('Výsledková listina'!$L:$M,MATCH($C103,'Výsledková listina'!$C:$C,0),1)) ->  | J103: =IF(ISBLANK(C103),"",INDEX('Výsledková listina'!$L:$M,MATCH($C103,'Výsledková listina'!$C:$C,0),2)) ->  | K103: =IF(ISBLANK($A103),"",SUM(I103:I105)) ->  | M103: =IF(ISBLANK($A103),"",RANK(L103,L:L,1)) ->  | N103: =IF(ISBLANK($A103),"",SUM(F103,K103)) ->  | O103: =IF(ISBLANK($A103),"",SUM(G103,L103)) ->  | P103: =IF(ISBLANK($A103),"",RANK(O103,O:O,1)) -> 
B104: =IF(ISBLANK($C104),"",INDEX('Výsledková listina'!$B:$B,MATCH($C104,'Výsledková listina'!$C:$C,0),1)) ->  | D104: =IF(ISBLANK(C104),"",INDEX('Výsledková listina'!$H:$I,MATCH($C104,'Výsledková listina'!$C:$C,0),1)) ->  | E104: =IF(ISBLANK(C104),"",INDEX('Výsledková listina'!$H:$I,MATCH($C104,'Výsledková listina'!$C:$C,0),2)) ->  | I104: =IF(ISBLANK(C104),"",INDEX('Výsledková listina'!$L:$M,MATCH($C104,'Výsledková listina'!$C:$C,0),1)) ->  | J104: =IF(ISBLANK(C104),"",INDEX('Výsledková listina'!$L:$M,MATCH($C104,'Výsledková listina'!$C:$C,0),2)) -> 
B105: =IF(ISBLANK($C105),"",INDEX('Výsledková listina'!$B:$B,MATCH($C105,'Výsledková listina'!$C:$C,0),1)) ->  | D105: =IF(ISBLANK(C105),"",INDEX('Výsledková listina'!$H:$I,MATCH($C105,'Výsledková listina'!$C:$C,0),1)) ->  | E105: =IF(ISBLANK(C105),"",INDEX('Výsledková listina'!$H:$I,MATCH($C105,'Výsledková listina'!$C:$C,0),2)) ->  | I105: =IF(ISBLANK(C105),"",INDEX('Výsledková listina'!$L:$M,MATCH($C105,'Výsledková listina'!$C:$C,0),1)) ->  | J105: =IF(ISBLANK(C105),"",INDEX('Výsledková listina'!$L:$M,MATCH($C105,'Výsledková listina'!$C:$C,0),2)) -> 
B106: =IF(ISBLANK($C106),"",INDEX('Výsledková listina'!$B:$B,MATCH($C106,'Výsledková listina'!$C:$C,0),1)) ->  | D106: =IF(ISBLANK(C106),"",INDEX('Výsledková listina'!$H:$I,MATCH($C106,'Výsledková listina'!$C:$C,0),1)) ->  | E106: =IF(ISBLANK(C106),"",INDEX('Výsledková listina'!$H:$I,MATCH($C106,'Výsledková listina'!$C:$C,0),2)) ->  | F106: =IF(ISBLANK($A106),"",SUM(D106:D108)) ->  | H106: =IF(ISBLANK($A106),"",RANK(G106,G:G,1)) ->  | I106: =IF(ISBLANK(C106),"",INDEX('Výsledková listina'!$L:$M,MATCH($C106,'Výsledková listina'!$C:$C,0),1)) ->  | J106: =IF(ISBLANK(C106),"",INDEX('Výsledková listina'!$L:$M,MATCH($C106,'Výsledková listina'!$C:$C,0),2)) ->  | K106: =IF(ISBLANK($A106),"",SUM(I106:I108)) ->  | M106: =IF(ISBLANK($A106),"",RANK(L106,L:L,1)) ->  | N106: =IF(ISBLANK($A106),"",SUM(F106,K106)) ->  | O106: =IF(ISBLANK($A106),"",SUM(G106,L106)) ->  | P106: =IF(ISBLANK($A106),"",RANK(O106,O:O,1)) -> 
B107: =IF(ISBLANK($C107),"",INDEX('Výsledková listina'!$B:$B,MATCH($C107,'Výsledková listina'!$C:$C,0),1)) ->  | D107: =IF(ISBLANK(C107),"",INDEX('Výsledková listina'!$H:$I,MATCH($C107,'Výsledková listina'!$C:$C,0),1)) ->  | E107: =IF(ISBLANK(C107),"",INDEX('Výsledková listina'!$H:$I,MATCH($C107,'Výsledková listina'!$C:$C,0),2)) ->  | I107: =IF(ISBLANK(C107),"",INDEX('Výsledková listina'!$L:$M,MATCH($C107,'Výsledková listina'!$C:$C,0),1)) ->  | J107: =IF(ISBLANK(C107),"",INDEX('Výsledková listina'!$L:$M,MATCH($C107,'Výsledková listina'!$C:$C,0),2)) -> 
B108: =IF(ISBLANK($C108),"",INDEX('Výsledková listina'!$B:$B,MATCH($C108,'Výsledková listina'!$C:$C,0),1)) ->  | D108: =IF(ISBLANK(C108),"",INDEX('Výsledková listina'!$H:$I,MATCH($C108,'Výsledková listina'!$C:$C,0),1)) ->  | E108: =IF(ISBLANK(C108),"",INDEX('Výsledková listina'!$H:$I,MATCH($C108,'Výsledková listina'!$C:$C,0),2)) ->  | I108: =IF(ISBLANK(C108),"",INDEX('Výsledková listina'!$L:$M,MATCH($C108,'Výsledková listina'!$C:$C,0),1)) ->  | J108: =IF(ISBLANK(C108),"",INDEX('Výsledková listina'!$L:$M,MATCH($C108,'Výsledková listina'!$C:$C,0),2)) -> 
B109: =IF(ISBLANK($C109),"",INDEX('Výsledková listina'!$B:$B,MATCH($C109,'Výsledková listina'!$C:$C,0),1)) ->  | D109: =IF(ISBLANK(C109),"",INDEX('Výsledková listina'!$H:$I,MATCH($C109,'Výsledková listina'!$C:$C,0),1)) ->  | E109: =IF(ISBLANK(C109),"",INDEX('Výsledková listina'!$H:$I,MATCH($C109,'Výsledková listina'!$C:$C,0),2)) ->  | F109: =IF(ISBLANK($A109),"",SUM(D109:D111)) ->  | G109: =IF(ISBLANK($A109),"",SUM(E109:E111)) ->  | H109: =IF(ISBLANK($A109),"",RANK(G109,G:G,1)) ->  | I109: =IF(ISBLANK(C109),"",INDEX('Výsledková listina'!$L:$M,MATCH($C109,'Výsledková listina'!$C:$C,0),1)) ->  | J109: =IF(ISBLANK(C109),"",INDEX('Výsledková listina'!$L:$M,MATCH($C109,'Výsledková listina'!$C:$C,0),2)) ->  | K109: =IF(ISBLANK($A109),"",SUM(I109:I111)) ->  | L109: =IF(ISBLANK($A109),"",SUM(J109:J111)) ->  | M109: =IF(ISBLANK($A109),"",RANK(L109,L:L,1)) ->  | N109: =IF(ISBLANK($A109),"",SUM(F109,K109)) ->  | O109: =IF(ISBLANK($A109),"",SUM(G109,L109)) ->  | P109: =IF(ISBLANK($A109),"",RANK(O109,O:O,1)) -> 
B110: =IF(ISBLANK($C110),"",INDEX('Výsledková listina'!$B:$B,MATCH($C110,'Výsledková listina'!$C:$C,0),1)) ->  | D110: =IF(ISBLANK(C110),"",INDEX('Výsledková listina'!$H:$I,MATCH($C110,'Výsledková listina'!$C:$C,0),1)) ->  | E110: =IF(ISBLANK(C110),"",INDEX('Výsledková listina'!$H:$I,MATCH($C110,'Výsledková listina'!$C:$C,0),2)) ->  | I110: =IF(ISBLANK(C110),"",INDEX('Výsledková listina'!$L:$M,MATCH($C110,'Výsledková listina'!$C:$C,0),1)) ->  | J110: =IF(ISBLANK(C110),"",INDEX('Výsledková listina'!$L:$M,MATCH($C110,'Výsledková listina'!$C:$C,0),2)) -> 
B111: =IF(ISBLANK($C111),"",INDEX('Výsledková listina'!$B:$B,MATCH($C111,'Výsledková listina'!$C:$C,0),1)) ->  | D111: =IF(ISBLANK(C111),"",INDEX('Výsledková listina'!$H:$I,MATCH($C111,'Výsledková listina'!$C:$C,0),1)) ->  | E111: =IF(ISBLANK(C111),"",INDEX('Výsledková listina'!$H:$I,MATCH($C111,'Výsledková listina'!$C:$C,0),2)) ->  | I111: =IF(ISBLANK(C111),"",INDEX('Výsledková listina'!$L:$M,MATCH($C111,'Výsledková listina'!$C:$C,0),1)) ->  | J111: =IF(ISBLANK(C111),"",INDEX('Výsledková listina'!$L:$M,MATCH($C111,'Výsledková listina'!$C:$C,0),2)) -> 
B112: =IF(ISBLANK($C112),"",INDEX('Výsledková listina'!$B:$B,MATCH($C112,'Výsledková listina'!$C:$C,0),1)) ->  | D112: =IF(ISBLANK(C112),"",INDEX('Výsledková listina'!$H:$I,MATCH($C112,'Výsledková listina'!$C:$C,0),1)) ->  | E112: =IF(ISBLANK(C112),"",INDEX('Výsledková listina'!$H:$I,MATCH($C112,'Výsledková listina'!$C:$C,0),2)) ->  | F112: =IF(ISBLANK($A112),"",SUM(D112:D114)) ->  | G112: =IF(ISBLANK($A112),"",SUM(E112:E114)) ->  | H112: =IF(ISBLANK($A112),"",RANK(G112,G:G,1)) ->  | I112: =IF(ISBLANK(C112),"",INDEX('Výsledková listina'!$L:$M,MATCH($C112,'Výsledková listina'!$C:$C,0),1)) ->  | J112: =IF(ISBLANK(C112),"",INDEX('Výsledková listina'!$L:$M,MATCH($C112,'Výsledková listina'!$C:$C,0),2)) ->  | K112: =IF(ISBLANK($A112),"",SUM(I112:I114)) ->  | L112: =IF(ISBLANK($A112),"",SUM(J112:J114)) ->  | M112: =IF(ISBLANK($A112),"",RANK(L112,L:L,1)) ->  | N112: =IF(ISBLANK($A112),"",SUM(F112,K112)) ->  | O112: =IF(ISBLANK($A112),"",SUM(G112,L112)) ->  | P112: =IF(ISBLANK($A112),"",RANK(O112,O:O,1)) -> 
B113: =IF(ISBLANK($C113),"",INDEX('Výsledková listina'!$B:$B,MATCH($C113,'Výsledková listina'!$C:$C,0),1)) ->  | D113: =IF(ISBLANK(C113),"",INDEX('Výsledková listina'!$H:$I,MATCH($C113,'Výsledková listina'!$C:$C,0),1)) ->  | E113: =IF(ISBLANK(C113),"",INDEX('Výsledková listina'!$H:$I,MATCH($C113,'Výsledková listina'!$C:$C,0),2)) ->  | I113: =IF(ISBLANK(C113),"",INDEX('Výsledková listina'!$L:$M,MATCH($C113,'Výsledková listina'!$C:$C,0),1)) ->  | J113: =IF(ISBLANK(C113),"",INDEX('Výsledková listina'!$L:$M,MATCH($C113,'Výsledková listina'!$C:$C,0),2)) -> 
B114: =IF(ISBLANK($C114),"",INDEX('Výsledková listina'!$B:$B,MATCH($C114,'Výsledková listina'!$C:$C,0),1)) ->  | D114: =IF(ISBLANK(C114),"",INDEX('Výsledková listina'!$H:$I,MATCH($C114,'Výsledková listina'!$C:$C,0),1)) ->  | E114: =IF(ISBLANK(C114),"",INDEX('Výsledková listina'!$H:$I,MATCH($C114,'Výsledková listina'!$C:$C,0),2)) ->  | I114: =IF(ISBLANK(C114),"",INDEX('Výsledková listina'!$L:$M,MATCH($C114,'Výsledková listina'!$C:$C,0),1)) ->  | J114: =IF(ISBLANK(C114),"",INDEX('Výsledková listina'!$L:$M,MATCH($C114,'Výsledková listina'!$C:$C,0),2)) -> 
B115: =IF(ISBLANK($C115),"",INDEX('Výsledková listina'!$B:$B,MATCH($C115,'Výsledková listina'!$C:$C,0),1)) ->  | D115: =IF(ISBLANK(C115),"",INDEX('Výsledková listina'!$H:$I,MATCH($C115,'Výsledková listina'!$C:$C,0),1)) ->  | E115: =IF(ISBLANK(C115),"",INDEX('Výsledková listina'!$H:$I,MATCH($C115,'Výsledková listina'!$C:$C,0),2)) ->  | F115: =IF(ISBLANK($A115),"",SUM(D115:D117)) ->  | G115: =IF(ISBLANK($A115),"",SUM(E115:E117)) ->  | H115: =IF(ISBLANK($A115),"",RANK(G115,G:G,1)) ->  | I115: =IF(ISBLANK(C115),"",INDEX('Výsledková listina'!$L:$M,MATCH($C115,'Výsledková listina'!$C:$C,0),1)) ->  | J115: =IF(ISBLANK(C115),"",INDEX('Výsledková listina'!$L:$M,MATCH($C115,'Výsledková listina'!$C:$C,0),2)) ->  | K115: =IF(ISBLANK($A115),"",SUM(I115:I117)) ->  | L115: =IF(ISBLANK($A115),"",SUM(J115:J117)) ->  | M115: =IF(ISBLANK($A115),"",RANK(L115,L:L,1)) ->  | N115: =IF(ISBLANK($A115),"",SUM(F115,K115)) ->  | O115: =IF(ISBLANK($A115),"",SUM(G115,L115)) ->  | P115: =IF(ISBLANK($A115),"",RANK(O115,O:O,1)) -> 
B116: =IF(ISBLANK($C116),"",INDEX('Výsledková listina'!$B:$B,MATCH($C116,'Výsledková listina'!$C:$C,0),1)) ->  | D116: =IF(ISBLANK(C116),"",INDEX('Výsledková listina'!$H:$I,MATCH($C116,'Výsledková listina'!$C:$C,0),1)) ->  | E116: =IF(ISBLANK(C116),"",INDEX('Výsledková listina'!$H:$I,MATCH($C116,'Výsledková listina'!$C:$C,0),2)) ->  | I116: =IF(ISBLANK(C116),"",INDEX('Výsledková listina'!$L:$M,MATCH($C116,'Výsledková listina'!$C:$C,0),1)) ->  | J116: =IF(ISBLANK(C116),"",INDEX('Výsledková listina'!$L:$M,MATCH($C116,'Výsledková listina'!$C:$C,0),2)) -> 
B117: =IF(ISBLANK($C117),"",INDEX('Výsledková listina'!$B:$B,MATCH($C117,'Výsledková listina'!$C:$C,0),1)) ->  | D117: =IF(ISBLANK(C117),"",INDEX('Výsledková listina'!$H:$I,MATCH($C117,'Výsledková listina'!$C:$C,0),1)) ->  | E117: =IF(ISBLANK(C117),"",INDEX('Výsledková listina'!$H:$I,MATCH($C117,'Výsledková listina'!$C:$C,0),2)) ->  | I117: =IF(ISBLANK(C117),"",INDEX('Výsledková listina'!$L:$M,MATCH($C117,'Výsledková listina'!$C:$C,0),1)) ->  | J117: =IF(ISBLANK(C117),"",INDEX('Výsledková listina'!$L:$M,MATCH($C117,'Výsledková listina'!$C:$C,0),2)) -> 
B118: =IF(ISBLANK($C118),"",INDEX('Výsledková listina'!$B:$B,MATCH($C118,'Výsledková listina'!$C:$C,0),1)) ->  | D118: =IF(ISBLANK(C118),"",INDEX('Výsledková listina'!$H:$I,MATCH($C118,'Výsledková listina'!$C:$C,0),1)) ->  | E118: =IF(ISBLANK(C118),"",INDEX('Výsledková listina'!$H:$I,MATCH($C118,'Výsledková listina'!$C:$C,0),2)) ->  | F118: =IF(ISBLANK($A118),"",SUM(D118:D120)) ->  | G118: =IF(ISBLANK($A118),"",SUM(E118:E120)) ->  | H118: =IF(ISBLANK($A118),"",RANK(G118,G:G,1)) ->  | I118: =IF(ISBLANK(C118),"",INDEX('Výsledková listina'!$L:$M,MATCH($C118,'Výsledková listina'!$C:$C,0),1)) ->  | J118: =IF(ISBLANK(C118),"",INDEX('Výsledková listina'!$L:$M,MATCH($C118,'Výsledková listina'!$C:$C,0),2)) ->  | K118: =IF(ISBLANK($A118),"",SUM(I118:I120)) ->  | L118: =IF(ISBLANK($A118),"",SUM(J118:J120)) ->  | M118: =IF(ISBLANK($A118),"",RANK(L118,L:L,1)) ->  | N118: =IF(ISBLANK($A118),"",SUM(F118,K118)) ->  | O118: =IF(ISBLANK($A118),"",SUM(G118,L118)) ->  | P118: =IF(ISBLANK($A118),"",RANK(O118,O:O,1)) -> 
B119: =IF(ISBLANK($C119),"",INDEX('Výsledková listina'!$B:$B,MATCH($C119,'Výsledková listina'!$C:$C,0),1)) ->  | D119: =IF(ISBLANK(C119),"",INDEX('Výsledková listina'!$H:$I,MATCH($C119,'Výsledková listina'!$C:$C,0),1)) ->  | E119: =IF(ISBLANK(C119),"",INDEX('Výsledková listina'!$H:$I,MATCH($C119,'Výsledková listina'!$C:$C,0),2)) ->  | I119: =IF(ISBLANK(C119),"",INDEX('Výsledková listina'!$L:$M,MATCH($C119,'Výsledková listina'!$C:$C,0),1)) ->  | J119: =IF(ISBLANK(C119),"",INDEX('Výsledková listina'!$L:$M,MATCH($C119,'Výsledková listina'!$C:$C,0),2)) -> 
B120: =IF(ISBLANK($C120),"",INDEX('Výsledková listina'!$B:$B,MATCH($C120,'Výsledková listina'!$C:$C,0),1)) ->  | D120: =IF(ISBLANK(C120),"",INDEX('Výsledková listina'!$H:$I,MATCH($C120,'Výsledková listina'!$C:$C,0),1)) ->  | E120: =IF(ISBLANK(C120),"",INDEX('Výsledková listina'!$H:$I,MATCH($C120,'Výsledková listina'!$C:$C,0),2)) ->  | I120: =IF(ISBLANK(C120),"",INDEX('Výsledková listina'!$L:$M,MATCH($C120,'Výsledková listina'!$C:$C,0),1)) ->  | J120: =IF(ISBLANK(C120),"",INDEX('Výsledková listina'!$L:$M,MATCH($C120,'Výsledková listina'!$C:$C,0),2)) -> 
B121: =IF(ISBLANK($C121),"",INDEX('Výsledková listina'!$B:$B,MATCH($C121,'Výsledková listina'!$C:$C,0),1)) ->  | D121: =IF(ISBLANK(C121),"",INDEX('Výsledková listina'!$H:$I,MATCH($C121,'Výsledková listina'!$C:$C,0),1)) ->  | E121: =IF(ISBLANK(C121),"",INDEX('Výsledková listina'!$H:$I,MATCH($C121,'Výsledková listina'!$C:$C,0),2)) ->  | F121: =IF(ISBLANK($A121),"",SUM(D121:D123)) ->  | G121: =IF(ISBLANK($A121),"",SUM(E121:E123)) ->  | H121: =IF(ISBLANK($A121),"",RANK(G121,G:G,1)) ->  | I121: =IF(ISBLANK(C121),"",INDEX('Výsledková listina'!$L:$M,MATCH($C121,'Výsledková listina'!$C:$C,0),1)) ->  | J121: =IF(ISBLANK(C121),"",INDEX('Výsledková listina'!$L:$M,MATCH($C121,'Výsledková listina'!$C:$C,0),2)) ->  | K121: =IF(ISBLANK($A121),"",SUM(I121:I123)) ->  | L121: =IF(ISBLANK($A121),"",SUM(J121:J123)) ->  | M121: =IF(ISBLANK($A121),"",RANK(L121,L:L,1)) ->  | N121: =IF(ISBLANK($A121),"",SUM(F121,K121)) ->  | O121: =IF(ISBLANK($A121),"",SUM(G121,L121)) ->  | P121: =IF(ISBLANK($A121),"",RANK(O121,O:O,1)) -> 
B122: =IF(ISBLANK($C122),"",INDEX('Výsledková listina'!$B:$B,MATCH($C122,'Výsledková listina'!$C:$C,0),1)) ->  | D122: =IF(ISBLANK(C122),"",INDEX('Výsledková listina'!$H:$I,MATCH($C122,'Výsledková listina'!$C:$C,0),1)) ->  | E122: =IF(ISBLANK(C122),"",INDEX('Výsledková listina'!$H:$I,MATCH($C122,'Výsledková listina'!$C:$C,0),2)) ->  | I122: =IF(ISBLANK(C122),"",INDEX('Výsledková listina'!$L:$M,MATCH($C122,'Výsledková listina'!$C:$C,0),1)) ->  | J122: =IF(ISBLANK(C122),"",INDEX('Výsledková listina'!$L:$M,MATCH($C122,'Výsledková listina'!$C:$C,0),2)) -> 
B123: =IF(ISBLANK($C123),"",INDEX('Výsledková listina'!$B:$B,MATCH($C123,'Výsledková listina'!$C:$C,0),1)) ->  | D123: =IF(ISBLANK(C123),"",INDEX('Výsledková listina'!$H:$I,MATCH($C123,'Výsledková listina'!$C:$C,0),1)) ->  | E123: =IF(ISBLANK(C123),"",INDEX('Výsledková listina'!$H:$I,MATCH($C123,'Výsledková listina'!$C:$C,0),2)) ->  | I123: =IF(ISBLANK(C123),"",INDEX('Výsledková listina'!$L:$M,MATCH($C123,'Výsledková listina'!$C:$C,0),1)) ->  | J123: =IF(ISBLANK(C123),"",INDEX('Výsledková listina'!$L:$M,MATCH($C123,'Výsledková listina'!$C:$C,0),2)) -> 
B124: =IF(ISBLANK($C124),"",INDEX('Výsledková listina'!$B:$B,MATCH($C124,'Výsledková listina'!$C:$C,0),1)) ->  | D124: =IF(ISBLANK(C124),"",INDEX('Výsledková listina'!$H:$I,MATCH($C124,'Výsledková listina'!$C:$C,0),1)) ->  | E124: =IF(ISBLANK(C124),"",INDEX('Výsledková listina'!$H:$I,MATCH($C124,'Výsledková listina'!$C:$C,0),2)) ->  | F124: =IF(ISBLANK($A124),"",SUM(D124:D126)) ->  | G124: =IF(ISBLANK($A124),"",SUM(E124:E126)) ->  | H124: =IF(ISBLANK($A124),"",RANK(G124,G:G,1)) ->  | I124: =IF(ISBLANK(C124),"",INDEX('Výsledková listina'!$L:$M,MATCH($C124,'Výsledková listina'!$C:$C,0),1)) ->  | J124: =IF(ISBLANK(C124),"",INDEX('Výsledková listina'!$L:$M,MATCH($C124,'Výsledková listina'!$C:$C,0),2)) ->  | K124: =IF(ISBLANK($A124),"",SUM(I124:I126)) ->  | L124: =IF(ISBLANK($A124),"",SUM(J124:J126)) ->  | M124: =IF(ISBLANK($A124),"",RANK(L124,L:L,1)) ->  | N124: =IF(ISBLANK($A124),"",SUM(F124,K124)) ->  | O124: =IF(ISBLANK($A124),"",SUM(G124,L124)) ->  | P124: =IF(ISBLANK($A124),"",RANK(O124,O:O,1)) -> 
B125: =IF(ISBLANK($C125),"",INDEX('Výsledková listina'!$B:$B,MATCH($C125,'Výsledková listina'!$C:$C,0),1)) ->  | D125: =IF(ISBLANK(C125),"",INDEX('Výsledková listina'!$H:$I,MATCH($C125,'Výsledková listina'!$C:$C,0),1)) ->  | E125: =IF(ISBLANK(C125),"",INDEX('Výsledková listina'!$H:$I,MATCH($C125,'Výsledková listina'!$C:$C,0),2)) ->  | I125: =IF(ISBLANK(C125),"",INDEX('Výsledková listina'!$L:$M,MATCH($C125,'Výsledková listina'!$C:$C,0),1)) ->  | J125: =IF(ISBLANK(C125),"",INDEX('Výsledková listina'!$L:$M,MATCH($C125,'Výsledková listina'!$C:$C,0),2)) -> 
B126: =IF(ISBLANK($C126),"",INDEX('Výsledková listina'!$B:$B,MATCH($C126,'Výsledková listina'!$C:$C,0),1)) ->  | D126: =IF(ISBLANK(C126),"",INDEX('Výsledková listina'!$H:$I,MATCH($C126,'Výsledková listina'!$C:$C,0),1)) ->  | E126: =IF(ISBLANK(C126),"",INDEX('Výsledková listina'!$H:$I,MATCH($C126,'Výsledková listina'!$C:$C,0),2)) ->  | I126: =IF(ISBLANK(C126),"",INDEX('Výsledková listina'!$L:$M,MATCH($C126,'Výsledková listina'!$C:$C,0),1)) ->  | J126: =IF(ISBLANK(C126),"",INDEX('Výsledková listina'!$L:$M,MATCH($C126,'Výsledková listina'!$C:$C,0),2)) -> 

Sheet 1. závod
B1: =CONCATENATE('Základní list'!$E$3) -> AWA-S cup 2017 | H1: =CONCATENATE('Základní list'!$E$3) -> AWA-S cup 2017 | N1: =CONCATENATE('Základní list'!$E$3) -> AWA-S cup 2017 | T1: =CONCATENATE('Základní list'!$E$3) -> AWA-S cup 2017 | Z1: =CONCATENATE('Základní list'!$E$3) -> AWA-S cup 2017 | AF1: =CONCATENATE('Základní list'!$E$3) -> AWA-S cup 2017 | AL1: =CONCATENATE('Základní list'!$E$3) -> AWA-S cup 2017 | AR1: =CONCATENATE('Základní list'!$E$3) -> AWA-S cup 2017 | AX1: =CONCATENATE('Základní list'!$E$3) -> AWA-S cup 2017 | BD1: =CONCATENATE('Základní list'!$E$3) -> AWA-S cup 2017 | BJ1: =CONCATENATE('Základní list'!$E$3) -> AWA-S cup 2017 | BO1: =CONCATENATE('Základní list'!$E$3) -> AWA-S cup 2017 | BT1: =CONCATENATE('Základní list'!$E$3) -> AWA-S cup 2017 | BY1: =CONCATENATE('Základní list'!$E$3) -> AWA-S cup 2017 | CD1: =CONCATENATE('Základní list'!$E$3) -> AWA-S cup 2017
B2: =CONCATENATE('Základní list'!$D$4) -> 26.8.2017 | H2: =CONCATENATE('Základní list'!$D$4) -> 26.8.2017 | N2: =CONCATENATE('Základní list'!$D$4) -> 26.8.2017 | T2: =CONCATENATE('Základní list'!$D$4) -> 26.8.2017 | Z2: =CONCATENATE('Základní list'!$D$4) -> 26.8.2017 | AF2: =CONCATENATE('Základní list'!$D$4) -> 26.8.2017 | AL2: =CONCATENATE('Základní list'!$D$4) -> 26.8.2017 | AR2: =CONCATENATE('Základní list'!$D$4) -> 26.8.2017 | AX2: =CONCATENATE('Základní list'!$D$4) -> 26.8.2017 | BD2: =CONCATENATE('Základní list'!$D$4) -> 26.8.2017 | BJ2: =CONCATENATE('Základní list'!$D$4) -> 26.8.2017 | BO2: =CONCATENATE('Základní list'!$D$4) -> 26.8.2017 | BT2: =CONCATENATE('Základní list'!$D$4) -> 26.8.2017 | BY2: =CONCATENATE('Základní list'!$D$4) -> 26.8.2017 | CD2: =CONCATENATE('Základní list'!$D$4) -> 26.8.2017
A3: čís. sek | B3: SEKTOR | H3: SEKTOR | N3: SEKTOR | T3: SEKTOR | Z3: SEKTOR | AF3: SEKTOR | AL3: SEKTOR | AR3: SEKTOR | AX3: SEKTOR | BD3: SEKTOR | BJ3: SEKTOR | BN3: Podpis | BO3: SEKTOR | BS3: Podpis | BT3: SEKTOR | BX3: Podpis | BY3: SEKTOR | CC3: Podpis | CD3: SEKTOR | CH3: Podpis
B4: =IF(ISBLANK('Základní list'!$C11),"",'Základní list'!$A11) -> A | H4: =IF(ISBLANK('Základní list'!$C12),"",'Základní list'!$A12) -> B | N4: =IF(ISBLANK('Základní list'!$C13),"",'Základní list'!$A13) -> C | T4: =IF(ISBLANK('Základní list'!$C14),"",'Základní list'!$A14) -> D | Z4: =IF(ISBLANK('Základní list'!$C15),"",'Základní list'!$A15) -> E | AF4: =IF(ISBLANK('Základní list'!$C16),"",'Základní list'!$A16) -> F | AL4: =IF(ISBLANK('Základní list'!$C17),"",'Základní list'!$A17) -> G | AR4: =IF(ISBLANK('Základní list'!$C18),"",'Základní list'!$A18) -> H | AX4: =IF(ISBLANK('Základní list'!$C19),"",'Základní list'!$A19) -> I | BD4: =IF(ISBLANK('Základní list'!$C20),"",'Základní list'!$A20) -> J | BJ4: =IF(ISBLANK('Základní list'!$C21),"",'Základní list'!$A21) -> K | BO4: =IF(ISBLANK('Základní list'!$C22),"",'Základní list'!$A22) -> L | BT4: =IF(ISBLANK('Základní list'!$C23),"",'Základní list'!$A23) -> M | BY4: =IF(ISBLANK('Základní list'!$C24),"",'Základní list'!$A24) -> O | CD4: =IF(ISBLANK('Základní list'!$C25),"",'Základní list'!$A25) -> P
B5: Závodník | C5: Družstvo | D5: hmotn. | E5: P | F5: um. | G5: Podpis | H5: Závodník | I5: Družstvo | J5: hmotn. | K5: P | L5: um. | M5: Podpis | N5: Závodník | O5: Družstvo | P5: hmotn. | Q5: P | R5: um. | S5: Podpis | T5: Závodník | U5: Družstvo | V5: hmotn. | W5: P | X5: um. | Y5: Podpis | Z5: Závodník | AA5: Družstvo | AB5: hmotn. | AC5: P | AD5: um. | AE5: Podpis | AF5: Závodník | AG5: Družstvo | AH5: hmotn. | AI5: P | AJ5: um. | AK5: Podpis | AL5: Závodník | AM5: Družstvo | AN5: hmotn. | AO5: P | AP5: um. | AQ5: Podpis | AR5: Závodník | AS5: Družstvo | AT5: hmotn. | AU5: P | AV5: um. | AW5: Podpis | AX5: Závodník | AY5: Družstvo | AZ5: hmotn. | BA5: P | BB5: um. | BC5: Podpis | BD5: Závodník | BE5: Družstvo | BF5: hmotn. | BG5: P | BH5: um. | BI5: Podpis | BJ5: Závodník | BK5: Družstvo | BL5: hmotn. | BM5: um. | BN5: Podpis | BO5: Závodník | BP5: Družstvo | BQ5: hmotn. | BR5: um. | BS5: Podpis | BT5: Závodník | BU5: Družstvo | BV5: hmotn. | BW5: um. | BX5: Podpis | BY5: Závodník | BZ5: Družstvo | CA5: hmotn. | CB5: um. | CC5: Podpis | CD5: Závodník | CE5: Družstvo | CF5: hmotn. | CG5: um. | CH5: Podpis
A6: 1 | B6: =IF(ISNA(MATCH(CONCATENATE(B$4,$A6),'Výsledková listina'!$N:$N,0)),"",INDEX('Výsledková listina'!$C:$C,MATCH(CONCATENATE(B$4,$A6),'Výsledková listina'!$N:$N,0),1)) -> Peřina Josef | C6: =IF(ISNA(MATCH(CONCATENATE(B$4,$A6),'Výsledková listina'!$N:$N,0)),"",INDEX('Výsledková listina'!$P:$P,MATCH(CONCATENATE(B$4,$A6),'Výsledková listina'!$N:$N,0),1)) -> MILO Feeder Team JIHOSEVERÁCI | D6: 4360 | F6: =IF(D6="","",RANK(D6,D:D,0)+(COUNT(D:D)+1-RANK(D6,D:D,0)-RANK(D6,D:D,1))/2+E6) -> 6 | H6: =IF(ISNA(MATCH(CONCATENATE(H$4,$A6),'Výsledková listina'!$N:$N,0)),"",INDEX('Výsledková listina'!$C:$C,MATCH(CONCATENATE(H$4,$A6),'Výsledková listina'!$N:$N,0),1)) -> Ohera Tomáš | I6: =IF(ISNA(MATCH(CONCATENATE(H$4,$A6),'Výsledková listina'!$N:$N,0)),"",INDEX('Výsledková listina'!$P:$P,MATCH(CONCATENATE(H$4,$A6),'Výsledková listina'!$N:$N,0),1)) -> MILO Feeder Team JIHOSEVERÁCI | J6: 4700 | L6: =IF(J6="","",RANK(J6,J:J,0)+(COUNT(J:J)+1-RANK(J6,J:J,0)-RANK(J6,J:J,1))/2+K6) -> 6 | N6: =IF(ISNA(MATCH(CONCATENATE(N$4,$A6),'Výsledková listina'!$N:$N,0)),"",INDEX('Výsledková listina'!$C:$C,MATCH(CONCATENATE(N$4,$A6),'Výsledková listina'!$N:$N,0),1)) -> Chadraba Petr | O6: =IF(ISNA(MATCH(CONCATENATE(N$4,$A6),'Výsledková listina'!$N:$N,0)),"",INDEX('Výsledková listina'!$P:$P,MATCH(CONCATENATE(N$4,$A6),'Výsledková listina'!$N:$N,0),1)) -> MILO Feeder Team JIHOSEVERÁCI | P6: 7960 | R6: =IF(P6="","",RANK(P6,P:P,0)+(COUNT(P:P)+1-RANK(P6,P:P,0)-RANK(P6,P:P,1))/2+Q6) -> 3 | T6: =IF(ISNA(MATCH(CONCATENATE(T$4,$A6),'Výsledková listina'!$N:$N,0)),"",INDEX('Výsledková listina'!$C:$C,MATCH(CONCATENATE(T$4,$A6),'Výsledková listina'!$N:$N,0),1)) ->  | U6: =IF(ISNA(MATCH(CONCATENATE(T$4,$A6),'Výsledková listina'!$N:$N,0)),"",INDEX('Výsledková listina'!$P:$P,MATCH(CONCATENATE(T$4,$A6),'Výsledková listina'!$N:$N,0),1)) ->  | X6: =IF(V6="","",RANK(V6,V:V,0)+(COUNT(V:V)+1-RANK(V6,V:V,0)-RANK(V6,V:V,1))/2+W6) ->  | Z6: =IF(ISNA(MATCH(CONCATENATE(Z$4,$A6),'Výsledková listina'!$N:$N,0)),"",INDEX('Výsledková listina'!$C:$C,MATCH(CONCATENATE(Z$4,$A6),'Výsledková listina'!$N:$N,0),1)) ->  | AA6: =IF(ISNA(MATCH(CONCATENATE(Z$4,$A6),'Výsledková listina'!$N:$N,0)),"",INDEX('Výsledková listina'!$P:$P,MATCH(CONCATENATE(Z$4,$A6),'Výsledková listina'!$N:$N,0),1)) ->  | AD6: =IF(AB6="","",RANK(AB6,AB:AB,0)+(COUNT(AB:AB)+1-RANK(AB6,AB:AB,0)-RANK(AB6,AB:AB,1))/2+AC6) ->  | AF6: =IF(ISNA(MATCH(CONCATENATE(AF$4,$A6),'Výsledková listina'!$N:$N,0)),"",INDEX('Výsledková listina'!$C:$C,MATCH(CONCATENATE(AF$4,$A6),'Výsledková listina'!$N:$N,0),1)) ->  | AG6: =IF(ISNA(MATCH(CONCATENATE(AF$4,$A6),'Výsledková listina'!$N:$N,0)),"",INDEX('Výsledková listina'!$P:$P,MATCH(CONCATENATE(AF$4,$A6),'Výsledková listina'!$N:$N,0),1)) ->  | AJ6: =IF(AH6="","",RANK(AH6,AH:AH,0)+(COUNT(AH:AH)+1-RANK(AH6,AH:AH,0)-RANK(AH6,AH:AH,1))/2+AI6) ->  | AL6: =IF(ISNA(MATCH(CONCATENATE(AL$4,$A6),'Výsledková listina'!$N:$N,0)),"",INDEX('Výsledková listina'!$C:$C,MATCH(CONCATENATE(AL$4,$A6),'Výsledková listina'!$N:$N,0),1)) ->  | AM6: =IF(ISNA(MATCH(CONCATENATE(AL$4,$A6),'Výsledková listina'!$N:$N,0)),"",INDEX('Výsledková listina'!$P:$P,MATCH(CONCATENATE(AL$4,$A6),'Výsledková listina'!$N:$N,0),1)) ->  | AP6: =IF(AN6="","",RANK(AN6,AN:AN,0)+(COUNT(AN:AN)+1-RANK(AN6,AN:AN,0)-RANK(AN6,AN:AN,1))/2+AO6) ->  | AR6: =IF(ISNA(MATCH(CONCATENATE(AR$4,$A6),'Výsledková listina'!$N:$N,0)),"",INDEX('Výsledková listina'!$C:$C,MATCH(CONCATENATE(AR$4,$A6),'Výsledková listina'!$N:$N,0),1)) ->  | AS6: =IF(ISNA(MATCH(CONCATENATE(AR$4,$A6),'Výsledková listina'!$N:$N,0)),"",INDEX('Výsledková listina'!$P:$P,MATCH(CONCATENATE(AR$4,$A6),'Výsledková listina'!$N:$N,0),1)) ->  | AV6: =IF(AT6="","",RANK(AT6,AT:AT,0)+(COUNT(AT:AT)+1-RANK(AT6,AT:AT,0)-RANK(AT6,AT:AT,1))/2+AU6) ->  | AX6: =IF(ISNA(MATCH(CONCATENATE(AX$4,$A6),'Výsledková listina'!$N:$N,0)),"",INDEX('Výsledková listina'!$C:$C,MATCH(CONCATENATE(AX$4,$A6),'Výsledková listina'!$N:$N,0),1)) ->  | AY6: =IF(ISNA(MATCH(CONCATENATE(AX$4,$A6),'Výsledková listina'!$N:$N,0)),"",INDEX('Výsledková listina'!$P:$P,MATCH(CONCATENATE(AX$4,$A6),'Výsledková listina'!$N:$N,0),1)) ->  | BB6: =IF(AZ6="","",RANK(AZ6,AZ:AZ,0)+(COUNT(AZ:AZ)+1-RANK(AZ6,AZ:AZ,0)-RANK(AZ6,AZ:AZ,1))/2+BA6) ->  | BD6: =IF(ISNA(MATCH(CONCATENATE(BD$4,$A6),'Výsledková listina'!$N:$N,0)),"",INDEX('Výsledková listina'!$C:$C,MATCH(CONCATENATE(BD$4,$A6),'Výsledková listina'!$N:$N,0),1)) ->  | BE6: =IF(ISNA(MATCH(CONCATENATE(BD$4,$A6),'Výsledková listina'!$N:$N,0)),"",INDEX('Výsledková listina'!$P:$P,MATCH(CONCATENATE(BD$4,$A6),'Výsledková listina'!$N:$N,0),1)) ->  | BH6: =IF(BF6="","",RANK(BF6,BF:BF,0)+(COUNT(BF:BF)+1-RANK(BF6,BF:BF,0)-RANK(BF6,BF:BF,1))/2+BG6) ->  | BJ6: =IF(ISNA(MATCH(CONCATENATE(BJ$4,$A6),'Výsledková listina'!$N:$N,0)),"",INDEX('Výsledková listina'!$C:$C,MATCH(CONCATENATE(BJ$4,$A6),'Výsledková listina'!$N:$N,0),1)) ->  | BK6: =IF(ISNA(MATCH(CONCATENATE(BJ$4,$A6),'Výsledková listina'!$N:$N,0)),"",INDEX('Výsledková listina'!$P:$P,MATCH(CONCATENATE(BJ$4,$A6),'Výsledková listina'!$N:$N,0),1)) ->  | BM6: =IF(BL6="","",RANK(BL6,BL:BL,0)+(COUNT(BL:BL)+1-RANK(BL6,BL:BL,0)-RANK(BL6,BL:BL,1))/2) ->  | BO6: =IF(ISNA(MATCH(CONCATENATE(BO$4,$A6),'Výsledková listina'!$N:$N,0)),"",INDEX('Výsledková listina'!$C:$C,MATCH(CONCATENATE(BO$4,$A6),'Výsledková listina'!$N:$N,0),1)) ->  | BP6: =IF(ISNA(MATCH(CONCATENATE(BO$4,$A6),'Výsledková listina'!$N:$N,0)),"",INDEX('Výsledková listina'!$P:$P,MATCH(CONCATENATE(BO$4,$A6),'Výsledková listina'!$N:$N,0),1)) ->  | BR6: =IF(BQ6="","",RANK(BQ6,BQ:BQ,0)+(COUNT(BQ:BQ)+1-RANK(BQ6,BQ:BQ,0)-RANK(BQ6,BQ:BQ,1))/2) ->  | BT6: =IF(ISNA(MATCH(CONCATENATE(BT$4,$A6),'Výsledková listina'!$N:$N,0)),"",INDEX('Výsledková listina'!$C:$C,MATCH(CONCATENATE(BT$4,$A6),'Výsledková listina'!$N:$N,0),1)) ->  | BU6: =IF(ISNA(MATCH(CONCATENATE(BT$4,$A6),'Výsledková listina'!$N:$N,0)),"",INDEX('Výsledková listina'!$P:$P,MATCH(CONCATENATE(BT$4,$A6),'Výsledková listina'!$N:$N,0),1)) ->  | BW6: =IF(BV6="","",RANK(BV6,BV:BV,0)+(COUNT(BV:BV)+1-RANK(BV6,BV:BV,0)-RANK(BV6,BV:BV,1))/2) ->  | BY6: =IF(ISNA(MATCH(CONCATENATE(BY$4,$A6),'Výsledková listina'!$N:$N,0)),"",INDEX('Výsledková listina'!$C:$C,MATCH(CONCATENATE(BY$4,$A6),'Výsledková listina'!$N:$N,0),1)) ->  | BZ6: =IF(ISNA(MATCH(CONCATENATE(BY$4,$A6),'Výsledková listina'!$N:$N,0)),"",INDEX('Výsledková listina'!$P:$P,MATCH(CONCATENATE(BY$4,$A6),'Výsledková listina'!$N:$N,0),1)) ->  | CB6: =IF(CA6="","",RANK(CA6,CA:CA,0)+(COUNT(CA:CA)+1-RANK(CA6,CA:CA,0)-RANK(CA6,CA:CA,1))/2) ->  | CD6: =IF(ISNA(MATCH(CONCATENATE(CD$4,$A6),'Výsledková listina'!$N:$N,0)),"",INDEX('Výsledková listina'!$C:$C,MATCH(CONCATENATE(CD$4,$A6),'Výsledková listina'!$N:$N,0),1)) ->  | CE6: =IF(ISNA(MATCH(CONCATENATE(CD$4,$A6),'Výsledková listina'!$N:$N,0)),"",INDEX('Výsledková listina'!$P:$P,MATCH(CONCATENATE(CD$4,$A6),'Výsledková listina'!$N:$N,0),1)) ->  | CG6: =IF(CF6="","",RANK(CF6,CF:CF,0)+(COUNT(CF:CF)+1-RANK(CF6,CF:CF,0)-RANK(CF6,CF:CF,1))/2) -> 
A7: 2 | B7: =IF(ISNA(MATCH(CONCATENATE(B$4,$A7),'Výsledková listina'!$N:$N,0)),"",INDEX('Výsledková listina'!$C:$C,MATCH(CONCATENATE(B$4,$A7),'Výsledková listina'!$N:$N,0),1)) -> Vitásek Jiří | C7: =IF(ISNA(MATCH(CONCATENATE(B$4,$A7),'Výsledková listina'!$N:$N,0)),"",INDEX('Výsledková listina'!$P:$P,MATCH(CONCATENATE(B$4,$A7),'Výsledková listina'!$N:$N,0),1)) -> Ševčovi pacholci | D7: 6780 | F7: 3 | H7: =IF(ISNA(MATCH(CONCATENATE(H$4,$A7),'Výsledková listina'!$N:$N,0)),"",INDEX('Výsledková listina'!$C:$C,MATCH(CONCATENATE(H$4,$A7),'Výsledková listina'!$N:$N,0),1)) -> Ševčík Ladislav | I7: =IF(ISNA(MATCH(CONCATENATE(H$4,$A7),'Výsledková listina'!$N:$N,0)),"",INDEX('Výsledková listina'!$P:$P,MATCH(CONCATENATE(H$4,$A7),'Výsledková listina'!$N:$N,0),1)) -> Ševčovi pacholci | J7: 6160 | L7: 5 | N7: =IF(ISNA(MATCH(CONCATENATE(N$4,$A7),'Výsledková listina'!$N:$N,0)),"",INDEX('Výsledková listina'!$C:$C,MATCH(CONCATENATE(N$4,$A7),'Výsledková listina'!$N:$N,0),1)) -> Radek Černý | O7: =IF(ISNA(MATCH(CONCATENATE(N$4,$A7),'Výsledková listina'!$N:$N,0)),"",INDEX('Výsledková listina'!$P:$P,MATCH(CONCATENATE(N$4,$A7),'Výsledková listina'!$N:$N,0),1)) -> Ševčovi pacholci | P7: 14560 | R7: 1 | T7: =IF(ISNA(MATCH(CONCATENATE(T$4,$A7),'Výsledková listina'!$N:$N,0)),"",INDEX('Výsledková listina'!$C:$C,MATCH(CONCATENATE(T$4,$A7),'Výsledková listina'!$N:$N,0),1)) ->  | U7: =IF(ISNA(MATCH(CONCATENATE(T$4,$A7),'Výsledková listina'!$N:$N,0)),"",INDEX('Výsledková listina'!$P:$P,MATCH(CONCATENATE(T$4,$A7),'Výsledková listina'!$N:$N,0),1)) ->  | Z7: =IF(ISNA(MATCH(CONCATENATE(Z$4,$A7),'Výsledková listina'!$N:$N,0)),"",INDEX('Výsledková listina'!$C:$C,MATCH(CONCATENATE(Z$4,$A7),'Výsledková listina'!$N:$N,0),1)) ->  | AA7: =IF(ISNA(MATCH(CONCATENATE(Z$4,$A7),'Výsledková listina'!$N:$N,0)),"",INDEX('Výsledková listina'!$P:$P,MATCH(CONCATENATE(Z$4,$A7),'Výsledková listina'!$N:$N,0),1)) ->  | AF7: =IF(ISNA(MATCH(CONCATENATE(AF$4,$A7),'Výsledková listina'!$N:$N,0)),"",INDEX('Výsledková listina'!$C:$C,MATCH(CONCATENATE(AF$4,$A7),'Výsledková listina'!$N:$N,0),1)) ->  | AG7: =IF(ISNA(MATCH(CONCATENATE(AF$4,$A7),'Výsledková listina'!$N:$N,0)),"",INDEX('Výsledková listina'!$P:$P,MATCH(CONCATENATE(AF$4,$A7),'Výsledková listina'!$N:$N,0),1)) ->  | AL7: =IF(ISNA(MATCH(CONCATENATE(AL$4,$A7),'Výsledková listina'!$N:$N,0)),"",INDEX('Výsledková listina'!$C:$C,MATCH(CONCATENATE(AL$4,$A7),'Výsledková listina'!$N:$N,0),1)) ->  | AM7: =IF(ISNA(MATCH(CONCATENATE(AL$4,$A7),'Výsledková listina'!$N:$N,0)),"",INDEX('Výsledková listina'!$P:$P,MATCH(CONCATENATE(AL$4,$A7),'Výsledková listina'!$N:$N,0),1)) ->  | AR7: =IF(ISNA(MATCH(CONCATENATE(AR$4,$A7),'Výsledková listina'!$N:$N,0)),"",INDEX('Výsledková listina'!$C:$C,MATCH(CONCATENATE(AR$4,$A7),'Výsledková listina'!$N:$N,0),1)) ->  | AS7: =IF(ISNA(MATCH(CONCATENATE(AR$4,$A7),'Výsledková listina'!$N:$N,0)),"",INDEX('Výsledková listina'!$P:$P,MATCH(CONCATENATE(AR$4,$A7),'Výsledková listina'!$N:$N,0),1)) ->  | AX7: =IF(ISNA(MATCH(CONCATENATE(AX$4,$A7),'Výsledková listina'!$N:$N,0)),"",INDEX('Výsledková listina'!$C:$C,MATCH(CONCATENATE(AX$4,$A7),'Výsledková listina'!$N:$N,0),1)) ->  | AY7: =IF(ISNA(MATCH(CONCATENATE(AX$4,$A7),'Výsledková listina'!$N:$N,0)),"",INDEX('Výsledková listina'!$P:$P,MATCH(CONCATENATE(AX$4,$A7),'Výsledková listina'!$N:$N,0),1)) ->  | BD7: =IF(ISNA(MATCH(CONCATENATE(BD$4,$A7),'Výsledková listina'!$N:$N,0)),"",INDEX('Výsledková listina'!$C:$C,MATCH(CONCATENATE(BD$4,$A7),'Výsledková listina'!$N:$N,0),1)) ->  | BE7: =IF(ISNA(MATCH(CONCATENATE(BD$4,$A7),'Výsledková listina'!$N:$N,0)),"",INDEX('Výsledková listina'!$P:$P,MATCH(CONCATENATE(BD$4,$A7),'Výsledková listina'!$N:$N,0),1)) ->  | BJ7: =IF(ISNA(MATCH(CONCATENATE(BJ$4,$A7),'Výsledková listina'!$N:$N,0)),"",INDEX('Výsledková listina'!$C:$C,MATCH(CONCATENATE(BJ$4,$A7),'Výsledková listina'!$N:$N,0),1)) ->  | BK7: =IF(ISNA(MATCH(CONCATENATE(BJ$4,$A7),'Výsledková listina'!$N:$N,0)),"",INDEX('Výsledková listina'!$P:$P,MATCH(CONCATENATE(BJ$4,$A7),'Výsledková listina'!$N:$N,0),1)) ->  | BO7: =IF(ISNA(MATCH(CONCATENATE(BO$4,$A7),'Výsledková listina'!$N:$N,0)),"",INDEX('Výsledková listina'!$C:$C,MATCH(CONCATENATE(BO$4,$A7),'Výsledková listina'!$N:$N,0),1)) ->  | BP7: =IF(ISNA(MATCH(CONCATENATE(BO$4,$A7),'Výsledková listina'!$N:$N,0)),"",INDEX('Výsledková listina'!$P:$P,MATCH(CONCATENATE(BO$4,$A7),'Výsledková listina'!$N:$N,0),1)) ->  | BT7: =IF(ISNA(MATCH(CONCATENATE(BT$4,$A7),'Výsledková listina'!$N:$N,0)),"",INDEX('Výsledková listina'!$C:$C,MATCH(CONCATENATE(BT$4,$A7),'Výsledková listina'!$N:$N,0),1)) ->  | BU7: =IF(ISNA(MATCH(CONCATENATE(BT$4,$A7),'Výsledková listina'!$N:$N,0)),"",INDEX('Výsledková listina'!$P:$P,MATCH(CONCATENATE(BT$4,$A7),'Výsledková listina'!$N:$N,0),1)) ->  | BY7: =IF(ISNA(MATCH(CONCATENATE(BY$4,$A7),'Výsledková listina'!$N:$N,0)),"",INDEX('Výsledková listina'!$C:$C,MATCH(CONCATENATE(BY$4,$A7),'Výsledková listina'!$N:$N,0),1)) ->  | BZ7: =IF(ISNA(MATCH(CONCATENATE(BY$4,$A7),'Výsledková listina'!$N:$N,0)),"",INDEX('Výsledková listina'!$P:$P,MATCH(CONCATENATE(BY$4,$A7),'Výsledková listina'!$N:$N,0),1)) ->  | CD7: =IF(ISNA(MATCH(CONCATENATE(CD$4,$A7),'Výsledková listina'!$N:$N,0)),"",INDEX('Výsledková listina'!$C:$C,MATCH(CONCATENATE(CD$4,$A7),'Výsledková listina'!$N:$N,0),1)) ->  | CE7: =IF(ISNA(MATCH(CONCATENATE(CD$4,$A7),'Výsledková listina'!$N:$N,0)),"",INDEX('Výsledková listina'!$P:$P,MATCH(CONCATENATE(CD$4,$A7),'Výsledková listina'!$N:$N,0),1)) -> 
A8: 3 | B8: =IF(ISNA(MATCH(CONCATENATE(B$4,$A8),'Výsledková listina'!$N:$N,0)),"",INDEX('Výsledková listina'!$C:$C,MATCH(CONCATENATE(B$4,$A8),'Výsledková listina'!$N:$N,0),1)) -> Fabík Zdeněk | C8: =IF(ISNA(MATCH(CONCATENATE(B$4,$A8),'Výsledková listina'!$N:$N,0)),"",INDEX('Výsledková listina'!$P:$P,MATCH(CONCATENATE(B$4,$A8),'Výsledková listina'!$N:$N,0),1)) -> Ždárský kavky | D8: 5860 | F8: 5 | H8: =IF(ISNA(MATCH(CONCATENATE(H$4,$A8),'Výsledková listina'!$N:$N,0)),"",INDEX('Výsledková listina'!$C:$C,MATCH(CONCATENATE(H$4,$A8),'Výsledková listina'!$N:$N,0),1)) -> Ondráček Petr | I8: =IF(ISNA(MATCH(CONCATENATE(H$4,$A8),'Výsledková listina'!$N:$N,0)),"",INDEX('Výsledková listina'!$P:$P,MATCH(CONCATENATE(H$4,$A8),'Výsledková listina'!$N:$N,0),1)) -> Ždárský kavky | J8: 2700 | L8: 8 | N8: =IF(ISNA(MATCH(CONCATENATE(N$4,$A8),'Výsledková listina'!$N:$N,0)),"",INDEX('Výsledková listina'!$C:$C,MATCH(CONCATENATE(N$4,$A8),'Výsledková listina'!$N:$N,0),1)) -> Stárek Jan | O8: =IF(ISNA(MATCH(CONCATENATE(N$4,$A8),'Výsledková listina'!$N:$N,0)),"",INDEX('Výsledková listina'!$P:$P,MATCH(CONCATENATE(N$4,$A8),'Výsledková listina'!$N:$N,0),1)) -> Ždárský kavky | P8: 12600 | R8: 2 | T8: =IF(ISNA(MATCH(CONCATENATE(T$4,$A8),'Výsledková listina'!$N:$N,0)),"",INDEX('Výsledková listina'!$C:$C,MATCH(CONCATENATE(T$4,$A8),'Výsledková listina'!$N:$N,0),1)) ->  | U8: =IF(ISNA(MATCH(CONCATENATE(T$4,$A8),'Výsledková listina'!$N:$N,0)),"",INDEX('Výsledková listina'!$P:$P,MATCH(CONCATENATE(T$4,$A8),'Výsledková listina'!$N:$N,0),1)) ->  | Z8: =IF(ISNA(MATCH(CONCATENATE(Z$4,$A8),'Výsledková listina'!$N:$N,0)),"",INDEX('Výsledková listina'!$C:$C,MATCH(CONCATENATE(Z$4,$A8),'Výsledková listina'!$N:$N,0),1)) ->  | AA8: =IF(ISNA(MATCH(CONCATENATE(Z$4,$A8),'Výsledková listina'!$N:$N,0)),"",INDEX('Výsledková listina'!$P:$P,MATCH(CONCATENATE(Z$4,$A8),'Výsledková listina'!$N:$N,0),1)) ->  | AF8: =IF(ISNA(MATCH(CONCATENATE(AF$4,$A8),'Výsledková listina'!$N:$N,0)),"",INDEX('Výsledková listina'!$C:$C,MATCH(CONCATENATE(AF$4,$A8),'Výsledková listina'!$N:$N,0),1)) ->  | AG8: =IF(ISNA(MATCH(CONCATENATE(AF$4,$A8),'Výsledková listina'!$N:$N,0)),"",INDEX('Výsledková listina'!$P:$P,MATCH(CONCATENATE(AF$4,$A8),'Výsledková listina'!$N:$N,0),1)) ->  | AL8: =IF(ISNA(MATCH(CONCATENATE(AL$4,$A8),'Výsledková listina'!$N:$N,0)),"",INDEX('Výsledková listina'!$C:$C,MATCH(CONCATENATE(AL$4,$A8),'Výsledková listina'!$N:$N,0),1)) ->  | AM8: =IF(ISNA(MATCH(CONCATENATE(AL$4,$A8),'Výsledková listina'!$N:$N,0)),"",INDEX('Výsledková listina'!$P:$P,MATCH(CONCATENATE(AL$4,$A8),'Výsledková listina'!$N:$N,0),1)) ->  | AR8: =IF(ISNA(MATCH(CONCATENATE(AR$4,$A8),'Výsledková listina'!$N:$N,0)),"",INDEX('Výsledková listina'!$C:$C,MATCH(CONCATENATE(AR$4,$A8),'Výsledková listina'!$N:$N,0),1)) ->  | AS8: =IF(ISNA(MATCH(CONCATENATE(AR$4,$A8),'Výsledková listina'!$N:$N,0)),"",INDEX('Výsledková listina'!$P:$P,MATCH(CONCATENATE(AR$4,$A8),'Výsledková listina'!$N:$N,0),1)) ->  | AX8: =IF(ISNA(MATCH(CONCATENATE(AX$4,$A8),'Výsledková listina'!$N:$N,0)),"",INDEX('Výsledková listina'!$C:$C,MATCH(CONCATENATE(AX$4,$A8),'Výsledková listina'!$N:$N,0),1)) ->  | AY8: =IF(ISNA(MATCH(CONCATENATE(AX$4,$A8),'Výsledková listina'!$N:$N,0)),"",INDEX('Výsledková listina'!$P:$P,MATCH(CONCATENATE(AX$4,$A8),'Výsledková listina'!$N:$N,0),1)) ->  | BD8: =IF(ISNA(MATCH(CONCATENATE(BD$4,$A8),'Výsledková listina'!$N:$N,0)),"",INDEX('Výsledková listina'!$C:$C,MATCH(CONCATENATE(BD$4,$A8),'Výsledková listina'!$N:$N,0),1)) ->  | BE8: =IF(ISNA(MATCH(CONCATENATE(BD$4,$A8),'Výsledková listina'!$N:$N,0)),"",INDEX('Výsledková listina'!$P:$P,MATCH(CONCATENATE(BD$4,$A8),'Výsledková listina'!$N:$N,0),1)) ->  | BJ8: =IF(ISNA(MATCH(CONCATENATE(BJ$4,$A8),'Výsledková listina'!$N:$N,0)),"",INDEX('Výsledková listina'!$C:$C,MATCH(CONCATENATE(BJ$4,$A8),'Výsledková listina'!$N:$N,0),1)) ->  | BK8: =IF(ISNA(MATCH(CONCATENATE(BJ$4,$A8),'Výsledková listina'!$N:$N,0)),"",INDEX('Výsledková listina'!$P:$P,MATCH(CONCATENATE(BJ$4,$A8),'Výsledková listina'!$N:$N,0),1)) ->  | BO8: =IF(ISNA(MATCH(CONCATENATE(BO$4,$A8),'Výsledková listina'!$N:$N,0)),"",INDEX('Výsledková listina'!$C:$C,MATCH(CONCATENATE(BO$4,$A8),'Výsledková listina'!$N:$N,0),1)) ->  | BP8: =IF(ISNA(MATCH(CONCATENATE(BO$4,$A8),'Výsledková listina'!$N:$N,0)),"",INDEX('Výsledková listina'!$P:$P,MATCH(CONCATENATE(BO$4,$A8),'Výsledková listina'!$N:$N,0),1)) ->  | BT8: =IF(ISNA(MATCH(CONCATENATE(BT$4,$A8),'Výsledková listina'!$N:$N,0)),"",INDEX('Výsledková listina'!$C:$C,MATCH(CONCATENATE(BT$4,$A8),'Výsledková listina'!$N:$N,0),1)) ->  | BU8: =IF(ISNA(MATCH(CONCATENATE(BT$4,$A8),'Výsledková listina'!$N:$N,0)),"",INDEX('Výsledková listina'!$P:$P,MATCH(CONCATENATE(BT$4,$A8),'Výsledková listina'!$N:$N,0),1)) ->  | BY8: =IF(ISNA(MATCH(CONCATENATE(BY$4,$A8),'Výsledková listina'!$N:$N,0)),"",INDEX('Výsledková listina'!$C:$C,MATCH(CONCATENATE(BY$4,$A8),'Výsledková listina'!$N:$N,0),1)) ->  | BZ8: =IF(ISNA(MATCH(CONCATENATE(BY$4,$A8),'Výsledková listina'!$N:$N,0)),"",INDEX('Výsledková listina'!$P:$P,MATCH(CONCATENATE(BY$4,$A8),'Výsledková listina'!$N:$N,0),1)) ->  | CD8: =IF(ISNA(MATCH(CONCATENATE(CD$4,$A8),'Výsledková listina'!$N:$N,0)),"",INDEX('Výsledková listina'!$C:$C,MATCH(CONCATENATE(CD$4,$A8),'Výsledková listina'!$N:$N,0),1)) ->  | CE8: =IF(ISNA(MATCH(CONCATENATE(CD$4,$A8),'Výsledková listina'!$N:$N,0)),"",INDEX('Výsledková listina'!$P:$P,MATCH(CONCATENATE(CD$4,$A8),'Výsledková listina'!$N:$N,0),1)) -> 
A9: 4 | B9: =IF(ISNA(MATCH(CONCATENATE(B$4,$A9),'Výsledková listina'!$N:$N,0)),"",INDEX('Výsledková listina'!$C:$C,MATCH(CONCATENATE(B$4,$A9),'Výsledková listina'!$N:$N,0),1)) -> Pečta Radek | C9: =IF(ISNA(MATCH(CONCATENATE(B$4,$A9),'Výsledková listina'!$N:$N,0)),"",INDEX('Výsledková listina'!$P:$P,MATCH(CONCATENATE(B$4,$A9),'Výsledková listina'!$N:$N,0),1)) -> Fídrové komando | D9: 7880 | F9: 2 | H9: =IF(ISNA(MATCH(CONCATENATE(H$4,$A9),'Výsledková listina'!$N:$N,0)),"",INDEX('Výsledková listina'!$C:$C,MATCH(CONCATENATE(H$4,$A9),'Výsledková listina'!$N:$N,0),1)) -> Bruckner Martin | I9: =IF(ISNA(MATCH(CONCATENATE(H$4,$A9),'Výsledková listina'!$N:$N,0)),"",INDEX('Výsledková listina'!$P:$P,MATCH(CONCATENATE(H$4,$A9),'Výsledková listina'!$N:$N,0),1)) -> Fídrové komando | J9: 6880 | L9: 3 | N9: =IF(ISNA(MATCH(CONCATENATE(N$4,$A9),'Výsledková listina'!$N:$N,0)),"",INDEX('Výsledková listina'!$C:$C,MATCH(CONCATENATE(N$4,$A9),'Výsledková listina'!$N:$N,0),1)) -> Frič Michal | O9: =IF(ISNA(MATCH(CONCATENATE(N$4,$A9),'Výsledková listina'!$N:$N,0)),"",INDEX('Výsledková listina'!$P:$P,MATCH(CONCATENATE(N$4,$A9),'Výsledková listina'!$N:$N,0),1)) -> Fídrové komando | P9: 1960 | R9: 8 | T9: =IF(ISNA(MATCH(CONCATENATE(T$4,$A9),'Výsledková listina'!$N:$N,0)),"",INDEX('Výsledková listina'!$C:$C,MATCH(CONCATENATE(T$4,$A9),'Výsledková listina'!$N:$N,0),1)) ->  | U9: =IF(ISNA(MATCH(CONCATENATE(T$4,$A9),'Výsledková listina'!$N:$N,0)),"",INDEX('Výsledková listina'!$P:$P,MATCH(CONCATENATE(T$4,$A9),'Výsledková listina'!$N:$N,0),1)) ->  | Z9: =IF(ISNA(MATCH(CONCATENATE(Z$4,$A9),'Výsledková listina'!$N:$N,0)),"",INDEX('Výsledková listina'!$C:$C,MATCH(CONCATENATE(Z$4,$A9),'Výsledková listina'!$N:$N,0),1)) ->  | AA9: =IF(ISNA(MATCH(CONCATENATE(Z$4,$A9),'Výsledková listina'!$N:$N,0)),"",INDEX('Výsledková listina'!$P:$P,MATCH(CONCATENATE(Z$4,$A9),'Výsledková listina'!$N:$N,0),1)) ->  | AF9: =IF(ISNA(MATCH(CONCATENATE(AF$4,$A9),'Výsledková listina'!$N:$N,0)),"",INDEX('Výsledková listina'!$C:$C,MATCH(CONCATENATE(AF$4,$A9),'Výsledková listina'!$N:$N,0),1)) ->  | AG9: =IF(ISNA(MATCH(CONCATENATE(AF$4,$A9),'Výsledková listina'!$N:$N,0)),"",INDEX('Výsledková listina'!$P:$P,MATCH(CONCATENATE(AF$4,$A9),'Výsledková listina'!$N:$N,0),1)) ->  | AL9: =IF(ISNA(MATCH(CONCATENATE(AL$4,$A9),'Výsledková listina'!$N:$N,0)),"",INDEX('Výsledková listina'!$C:$C,MATCH(CONCATENATE(AL$4,$A9),'Výsledková listina'!$N:$N,0),1)) ->  | AM9: =IF(ISNA(MATCH(CONCATENATE(AL$4,$A9),'Výsledková listina'!$N:$N,0)),"",INDEX('Výsledková listina'!$P:$P,MATCH(CONCATENATE(AL$4,$A9),'Výsledková listina'!$N:$N,0),1)) ->  | AR9: =IF(ISNA(MATCH(CONCATENATE(AR$4,$A9),'Výsledková listina'!$N:$N,0)),"",INDEX('Výsledková listina'!$C:$C,MATCH(CONCATENATE(AR$4,$A9),'Výsledková listina'!$N:$N,0),1)) ->  | AS9: =IF(ISNA(MATCH(CONCATENATE(AR$4,$A9),'Výsledková listina'!$N:$N,0)),"",INDEX('Výsledková listina'!$P:$P,MATCH(CONCATENATE(AR$4,$A9),'Výsledková listina'!$N:$N,0),1)) ->  | AX9: =IF(ISNA(MATCH(CONCATENATE(AX$4,$A9),'Výsledková listina'!$N:$N,0)),"",INDEX('Výsledková listina'!$C:$C,MATCH(CONCATENATE(AX$4,$A9),'Výsledková listina'!$N:$N,0),1)) ->  | AY9: =IF(ISNA(MATCH(CONCATENATE(AX$4,$A9),'Výsledková listina'!$N:$N,0)),"",INDEX('Výsledková listina'!$P:$P,MATCH(CONCATENATE(AX$4,$A9),'Výsledková listina'!$N:$N,0),1)) ->  | BD9: =IF(ISNA(MATCH(CONCATENATE(BD$4,$A9),'Výsledková listina'!$N:$N,0)),"",INDEX('Výsledková listina'!$C:$C,MATCH(CONCATENATE(BD$4,$A9),'Výsledková listina'!$N:$N,0),1)) ->  | BE9: =IF(ISNA(MATCH(CONCATENATE(BD$4,$A9),'Výsledková listina'!$N:$N,0)),"",INDEX('Výsledková listina'!$P:$P,MATCH(CONCATENATE(BD$4,$A9),'Výsledková listina'!$N:$N,0),1)) ->  | BJ9: =IF(ISNA(MATCH(CONCATENATE(BJ$4,$A9),'Výsledková listina'!$N:$N,0)),"",INDEX('Výsledková listina'!$C:$C,MATCH(CONCATENATE(BJ$4,$A9),'Výsledková listina'!$N:$N,0),1)) ->  | BK9: =IF(ISNA(MATCH(CONCATENATE(BJ$4,$A9),'Výsledková listina'!$N:$N,0)),"",INDEX('Výsledková listina'!$P:$P,MATCH(CONCATENATE(BJ$4,$A9),'Výsledková listina'!$N:$N,0),1)) ->  | BO9: =IF(ISNA(MATCH(CONCATENATE(BO$4,$A9),'Výsledková listina'!$N:$N,0)),"",INDEX('Výsledková listina'!$C:$C,MATCH(CONCATENATE(BO$4,$A9),'Výsledková listina'!$N:$N,0),1)) ->  | BP9: =IF(ISNA(MATCH(CONCATENATE(BO$4,$A9),'Výsledková listina'!$N:$N,0)),"",INDEX('Výsledková listina'!$P:$P,MATCH(CONCATENATE(BO$4,$A9),'Výsledková listina'!$N:$N,0),1)) ->  | BT9: =IF(ISNA(MATCH(CONCATENATE(BT$4,$A9),'Výsledková listina'!$N:$N,0)),"",INDEX('Výsledková listina'!$C:$C,MATCH(CONCATENATE(BT$4,$A9),'Výsledková listina'!$N:$N,0),1)) ->  | BU9: =IF(ISNA(MATCH(CONCATENATE(BT$4,$A9),'Výsledková listina'!$N:$N,0)),"",INDEX('Výsledková listina'!$P:$P,MATCH(CONCATENATE(BT$4,$A9),'Výsledková listina'!$N:$N,0),1)) ->  | BY9: =IF(ISNA(MATCH(CONCATENATE(BY$4,$A9),'Výsledková listina'!$N:$N,0)),"",INDEX('Výsledková listina'!$C:$C,MATCH(CONCATENATE(BY$4,$A9),'Výsledková listina'!$N:$N,0),1)) ->  | BZ9: =IF(ISNA(MATCH(CONCATENATE(BY$4,$A9),'Výsledková listina'!$N:$N,0)),"",INDEX('Výsledková listina'!$P:$P,MATCH(CONCATENATE(BY$4,$A9),'Výsledková listina'!$N:$N,0),1)) ->  | CD9: =IF(ISNA(MATCH(CONCATENATE(CD$4,$A9),'Výsledková listina'!$N:$N,0)),"",INDEX('Výsledková listina'!$C:$C,MATCH(CONCATENATE(CD$4,$A9),'Výsledková listina'!$N:$N,0),1)) ->  | CE9: =IF(ISNA(MATCH(CONCATENATE(CD$4,$A9),'Výsledková listina'!$N:$N,0)),"",INDEX('Výsledková listina'!$P:$P,MATCH(CONCATENATE(CD$4,$A9),'Výsledková listina'!$N:$N,0),1)) -> 
A10: 5 | B10: =IF(ISNA(MATCH(CONCATENATE(B$4,$A10),'Výsledková listina'!$N:$N,0)),"",INDEX('Výsledková listina'!$C:$C,MATCH(CONCATENATE(B$4,$A10),'Výsledková listina'!$N:$N,0),1)) -> Kunst Antonín | C10: =IF(ISNA(MATCH(CONCATENATE(B$4,$A10),'Výsledková listina'!$N:$N,0)),"",INDEX('Výsledková listina'!$P:$P,MATCH(CONCATENATE(B$4,$A10),'Výsledková listina'!$N:$N,0),1)) -> Fish Angels | D10: 9880 | F10: 1 | H10: =IF(ISNA(MATCH(CONCATENATE(H$4,$A10),'Výsledková listina'!$N:$N,0)),"",INDEX('Výsledková listina'!$C:$C,MATCH(CONCATENATE(H$4,$A10),'Výsledková listina'!$N:$N,0),1)) -> Šabata Jakub | I10: =IF(ISNA(MATCH(CONCATENATE(H$4,$A10),'Výsledková listina'!$N:$N,0)),"",INDEX('Výsledková listina'!$P:$P,MATCH(CONCATENATE(H$4,$A10),'Výsledková listina'!$N:$N,0),1)) -> Fish Angels | J10: 9760 | L10: 2 | N10: =IF(ISNA(MATCH(CONCATENATE(N$4,$A10),'Výsledková listina'!$N:$N,0)),"",INDEX('Výsledková listina'!$C:$C,MATCH(CONCATENATE(N$4,$A10),'Výsledková listina'!$N:$N,0),1)) -> Denemarek Jiří | O10: =IF(ISNA(MATCH(CONCATENATE(N$4,$A10),'Výsledková listina'!$N:$N,0)),"",INDEX('Výsledková listina'!$P:$P,MATCH(CONCATENATE(N$4,$A10),'Výsledková listina'!$N:$N,0),1)) -> Fish Angels | P10: 5240 | R10: 6 | T10: =IF(ISNA(MATCH(CONCATENATE(T$4,$A10),'Výsledková listina'!$N:$N,0)),"",INDEX('Výsledková listina'!$C:$C,MATCH(CONCATENATE(T$4,$A10),'Výsledková listina'!$N:$N,0),1)) ->  | U10: =IF(ISNA(MATCH(CONCATENATE(T$4,$A10),'Výsledková listina'!$N:$N,0)),"",INDEX('Výsledková listina'!$P:$P,MATCH(CONCATENATE(T$4,$A10),'Výsledková listina'!$N:$N,0),1)) ->  | Z10: =IF(ISNA(MATCH(CONCATENATE(Z$4,$A10),'Výsledková listina'!$N:$N,0)),"",INDEX('Výsledková listina'!$C:$C,MATCH(CONCATENATE(Z$4,$A10),'Výsledková listina'!$N:$N,0),1)) ->  | AA10: =IF(ISNA(MATCH(CONCATENATE(Z$4,$A10),'Výsledková listina'!$N:$N,0)),"",INDEX('Výsledková listina'!$P:$P,MATCH(CONCATENATE(Z$4,$A10),'Výsledková listina'!$N:$N,0),1)) ->  | AF10: =IF(ISNA(MATCH(CONCATENATE(AF$4,$A10),'Výsledková listina'!$N:$N,0)),"",INDEX('Výsledková listina'!$C:$C,MATCH(CONCATENATE(AF$4,$A10),'Výsledková listina'!$N:$N,0),1)) ->  | AG10: =IF(ISNA(MATCH(CONCATENATE(AF$4,$A10),'Výsledková listina'!$N:$N,0)),"",INDEX('Výsledková listina'!$P:$P,MATCH(CONCATENATE(AF$4,$A10),'Výsledková listina'!$N:$N,0),1)) ->  | AL10: =IF(ISNA(MATCH(CONCATENATE(AL$4,$A10),'Výsledková listina'!$N:$N,0)),"",INDEX('Výsledková listina'!$C:$C,MATCH(CONCATENATE(AL$4,$A10),'Výsledková listina'!$N:$N,0),1)) ->  | AM10: =IF(ISNA(MATCH(CONCATENATE(AL$4,$A10),'Výsledková listina'!$N:$N,0)),"",INDEX('Výsledková listina'!$P:$P,MATCH(CONCATENATE(AL$4,$A10),'Výsledková listina'!$N:$N,0),1)) ->  | AR10: =IF(ISNA(MATCH(CONCATENATE(AR$4,$A10),'Výsledková listina'!$N:$N,0)),"",INDEX('Výsledková listina'!$C:$C,MATCH(CONCATENATE(AR$4,$A10),'Výsledková listina'!$N:$N,0),1)) ->  | AS10: =IF(ISNA(MATCH(CONCATENATE(AR$4,$A10),'Výsledková listina'!$N:$N,0)),"",INDEX('Výsledková listina'!$P:$P,MATCH(CONCATENATE(AR$4,$A10),'Výsledková listina'!$N:$N,0),1)) ->  | AX10: =IF(ISNA(MATCH(CONCATENATE(AX$4,$A10),'Výsledková listina'!$N:$N,0)),"",INDEX('Výsledková listina'!$C:$C,MATCH(CONCATENATE(AX$4,$A10),'Výsledková listina'!$N:$N,0),1)) ->  | AY10: =IF(ISNA(MATCH(CONCATENATE(AX$4,$A10),'Výsledková listina'!$N:$N,0)),"",INDEX('Výsledková listina'!$P:$P,MATCH(CONCATENATE(AX$4,$A10),'Výsledková listina'!$N:$N,0),1)) ->  | BD10: =IF(ISNA(MATCH(CONCATENATE(BD$4,$A10),'Výsledková listina'!$N:$N,0)),"",INDEX('Výsledková listina'!$C:$C,MATCH(CONCATENATE(BD$4,$A10),'Výsledková listina'!$N:$N,0),1)) ->  | BE10: =IF(ISNA(MATCH(CONCATENATE(BD$4,$A10),'Výsledková listina'!$N:$N,0)),"",INDEX('Výsledková listina'!$P:$P,MATCH(CONCATENATE(BD$4,$A10),'Výsledková listina'!$N:$N,0),1)) ->  | BJ10: =IF(ISNA(MATCH(CONCATENATE(BJ$4,$A10),'Výsledková listina'!$N:$N,0)),"",INDEX('Výsledková listina'!$C:$C,MATCH(CONCATENATE(BJ$4,$A10),'Výsledková listina'!$N:$N,0),1)) ->  | BK10: =IF(ISNA(MATCH(CONCATENATE(BJ$4,$A10),'Výsledková listina'!$N:$N,0)),"",INDEX('Výsledková listina'!$P:$P,MATCH(CONCATENATE(BJ$4,$A10),'Výsledková listina'!$N:$N,0),1)) ->  | BO10: =IF(ISNA(MATCH(CONCATENATE(BO$4,$A10),'Výsledková listina'!$N:$N,0)),"",INDEX('Výsledková listina'!$C:$C,MATCH(CONCATENATE(BO$4,$A10),'Výsledková listina'!$N:$N,0),1)) ->  | BP10: =IF(ISNA(MATCH(CONCATENATE(BO$4,$A10),'Výsledková listina'!$N:$N,0)),"",INDEX('Výsledková listina'!$P:$P,MATCH(CONCATENATE(BO$4,$A10),'Výsledková listina'!$N:$N,0),1)) ->  | BT10: =IF(ISNA(MATCH(CONCATENATE(BT$4,$A10),'Výsledková listina'!$N:$N,0)),"",INDEX('Výsledková listina'!$C:$C,MATCH(CONCATENATE(BT$4,$A10),'Výsledková listina'!$N:$N,0),1)) ->  | BU10: =IF(ISNA(MATCH(CONCATENATE(BT$4,$A10),'Výsledková listina'!$N:$N,0)),"",INDEX('Výsledková listina'!$P:$P,MATCH(CONCATENATE(BT$4,$A10),'Výsledková listina'!$N:$N,0),1)) ->  | BY10: =IF(ISNA(MATCH(CONCATENATE(BY$4,$A10),'Výsledková listina'!$N:$N,0)),"",INDEX('Výsledková listina'!$C:$C,MATCH(CONCATENATE(BY$4,$A10),'Výsledková listina'!$N:$N,0),1)) ->  | BZ10: =IF(ISNA(MATCH(CONCATENATE(BY$4,$A10),'Výsledková listina'!$N:$N,0)),"",INDEX('Výsledková listina'!$P:$P,MATCH(CONCATENATE(BY$4,$A10),'Výsledková listina'!$N:$N,0),1)) ->  | CD10: =IF(ISNA(MATCH(CONCATENATE(CD$4,$A10),'Výsledková listina'!$N:$N,0)),"",INDEX('Výsledková listina'!$C:$C,MATCH(CONCATENATE(CD$4,$A10),'Výsledková listina'!$N:$N,0),1)) ->  | CE10: =IF(ISNA(MATCH(CONCATENATE(CD$4,$A10),'Výsledková listina'!$N:$N,0)),"",INDEX('Výsledková listina'!$P:$P,MATCH(CONCATENATE(CD$4,$A10),'Výsledková listina'!$N:$N,0),1)) -> 
A11: 6 | B11: =IF(ISNA(MATCH(CONCATENATE(B$4,$A11),'Výsledková listina'!$N:$N,0)),"",INDEX('Výsledková listina'!$C:$C,MATCH(CONCATENATE(B$4,$A11),'Výsledková listina'!$N:$N,0),1)) -> Revai Miroslav | C11: =IF(ISNA(MATCH(CONCATENATE(B$4,$A11),'Výsledková listina'!$N:$N,0)),"",INDEX('Výsledková listina'!$P:$P,MATCH(CONCATENATE(B$4,$A11),'Výsledková listina'!$N:$N,0),1)) -> Feeder team Vlci-MRS | D11: 3360 | F11: 7 | H11: =IF(ISNA(MATCH(CONCATENATE(H$4,$A11),'Výsledková listina'!$N:$N,0)),"",INDEX('Výsledková listina'!$C:$C,MATCH(CONCATENATE(H$4,$A11),'Výsledková listina'!$N:$N,0),1)) -> Koucký Milan | I11: =IF(ISNA(MATCH(CONCATENATE(H$4,$A11),'Výsledková listina'!$N:$N,0)),"",INDEX('Výsledková listina'!$P:$P,MATCH(CONCATENATE(H$4,$A11),'Výsledková listina'!$N:$N,0),1)) -> Feeder team Vlci-Mrs | J11: 6260 | L11: 4 | N11: =IF(ISNA(MATCH(CONCATENATE(N$4,$A11),'Výsledková listina'!$N:$N,0)),"",INDEX('Výsledková listina'!$C:$C,MATCH(CONCATENATE(N$4,$A11),'Výsledková listina'!$N:$N,0),1)) -> Bartl Petr | O11: =IF(ISNA(MATCH(CONCATENATE(N$4,$A11),'Výsledková listina'!$N:$N,0)),"",INDEX('Výsledková listina'!$P:$P,MATCH(CONCATENATE(N$4,$A11),'Výsledková listina'!$N:$N,0),1)) -> Feeder team Vlci-Mrs | P11: 5280 | R11: 5 | T11: =IF(ISNA(MATCH(CONCATENATE(T$4,$A11),'Výsledková listina'!$N:$N,0)),"",INDEX('Výsledková listina'!$C:$C,MATCH(CONCATENATE(T$4,$A11),'Výsledková listina'!$N:$N,0),1)) ->  | U11: =IF(ISNA(MATCH(CONCATENATE(T$4,$A11),'Výsledková listina'!$N:$N,0)),"",INDEX('Výsledková listina'!$P:$P,MATCH(CONCATENATE(T$4,$A11),'Výsledková listina'!$N:$N,0),1)) ->  | Z11: =IF(ISNA(MATCH(CONCATENATE(Z$4,$A11),'Výsledková listina'!$N:$N,0)),"",INDEX('Výsledková listina'!$C:$C,MATCH(CONCATENATE(Z$4,$A11),'Výsledková listina'!$N:$N,0),1)) ->  | AA11: =IF(ISNA(MATCH(CONCATENATE(Z$4,$A11),'Výsledková listina'!$N:$N,0)),"",INDEX('Výsledková listina'!$P:$P,MATCH(CONCATENATE(Z$4,$A11),'Výsledková listina'!$N:$N,0),1)) ->  | AF11: =IF(ISNA(MATCH(CONCATENATE(AF$4,$A11),'Výsledková listina'!$N:$N,0)),"",INDEX('Výsledková listina'!$C:$C,MATCH(CONCATENATE(AF$4,$A11),'Výsledková listina'!$N:$N,0),1)) ->  | AG11: =IF(ISNA(MATCH(CONCATENATE(AF$4,$A11),'Výsledková listina'!$N:$N,0)),"",INDEX('Výsledková listina'!$P:$P,MATCH(CONCATENATE(AF$4,$A11),'Výsledková listina'!$N:$N,0),1)) ->  | AL11: =IF(ISNA(MATCH(CONCATENATE(AL$4,$A11),'Výsledková listina'!$N:$N,0)),"",INDEX('Výsledková listina'!$C:$C,MATCH(CONCATENATE(AL$4,$A11),'Výsledková listina'!$N:$N,0),1)) ->  | AM11: =IF(ISNA(MATCH(CONCATENATE(AL$4,$A11),'Výsledková listina'!$N:$N,0)),"",INDEX('Výsledková listina'!$P:$P,MATCH(CONCATENATE(AL$4,$A11),'Výsledková listina'!$N:$N,0),1)) ->  | AR11: =IF(ISNA(MATCH(CONCATENATE(AR$4,$A11),'Výsledková listina'!$N:$N,0)),"",INDEX('Výsledková listina'!$C:$C,MATCH(CONCATENATE(AR$4,$A11),'Výsledková listina'!$N:$N,0),1)) ->  | AS11: =IF(ISNA(MATCH(CONCATENATE(AR$4,$A11),'Výsledková listina'!$N:$N,0)),"",INDEX('Výsledková listina'!$P:$P,MATCH(CONCATENATE(AR$4,$A11),'Výsledková listina'!$N:$N,0),1)) ->  | AX11: =IF(ISNA(MATCH(CONCATENATE(AX$4,$A11),'Výsledková listina'!$N:$N,0)),"",INDEX('Výsledková listina'!$C:$C,MATCH(CONCATENATE(AX$4,$A11),'Výsledková listina'!$N:$N,0),1)) ->  | AY11: =IF(ISNA(MATCH(CONCATENATE(AX$4,$A11),'Výsledková listina'!$N:$N,0)),"",INDEX('Výsledková listina'!$P:$P,MATCH(CONCATENATE(AX$4,$A11),'Výsledková listina'!$N:$N,0),1)) ->  | BD11: =IF(ISNA(MATCH(CONCATENATE(BD$4,$A11),'Výsledková listina'!$N:$N,0)),"",INDEX('Výsledková listina'!$C:$C,MATCH(CONCATENATE(BD$4,$A11),'Výsledková listina'!$N:$N,0),1)) ->  | BE11: =IF(ISNA(MATCH(CONCATENATE(BD$4,$A11),'Výsledková listina'!$N:$N,0)),"",INDEX('Výsledková listina'!$P:$P,MATCH(CONCATENATE(BD$4,$A11),'Výsledková listina'!$N:$N,0),1)) ->  | BJ11: =IF(ISNA(MATCH(CONCATENATE(BJ$4,$A11),'Výsledková listina'!$N:$N,0)),"",INDEX('Výsledková listina'!$C:$C,MATCH(CONCATENATE(BJ$4,$A11),'Výsledková listina'!$N:$N,0),1)) ->  | BK11: =IF(ISNA(MATCH(CONCATENATE(BJ$4,$A11),'Výsledková listina'!$N:$N,0)),"",INDEX('Výsledková listina'!$P:$P,MATCH(CONCATENATE(BJ$4,$A11),'Výsledková listina'!$N:$N,0),1)) ->  | BO11: =IF(ISNA(MATCH(CONCATENATE(BO$4,$A11),'Výsledková listina'!$N:$N,0)),"",INDEX('Výsledková listina'!$C:$C,MATCH(CONCATENATE(BO$4,$A11),'Výsledková listina'!$N:$N,0),1)) ->  | BP11: =IF(ISNA(MATCH(CONCATENATE(BO$4,$A11),'Výsledková listina'!$N:$N,0)),"",INDEX('Výsledková listina'!$P:$P,MATCH(CONCATENATE(BO$4,$A11),'Výsledková listina'!$N:$N,0),1)) ->  | BT11: =IF(ISNA(MATCH(CONCATENATE(BT$4,$A11),'Výsledková listina'!$N:$N,0)),"",INDEX('Výsledková listina'!$C:$C,MATCH(CONCATENATE(BT$4,$A11),'Výsledková listina'!$N:$N,0),1)) ->  | BU11: =IF(ISNA(MATCH(CONCATENATE(BT$4,$A11),'Výsledková listina'!$N:$N,0)),"",INDEX('Výsledková listina'!$P:$P,MATCH(CONCATENATE(BT$4,$A11),'Výsledková listina'!$N:$N,0),1)) ->  | BY11: =IF(ISNA(MATCH(CONCATENATE(BY$4,$A11),'Výsledková listina'!$N:$N,0)),"",INDEX('Výsledková listina'!$C:$C,MATCH(CONCATENATE(BY$4,$A11),'Výsledková listina'!$N:$N,0),1)) ->  | BZ11: =IF(ISNA(MATCH(CONCATENATE(BY$4,$A11),'Výsledková listina'!$N:$N,0)),"",INDEX('Výsledková listina'!$P:$P,MATCH(CONCATENATE(BY$4,$A11),'Výsledková listina'!$N:$N,0),1)) ->  | CD11: =IF(ISNA(MATCH(CONCATENATE(CD$4,$A11),'Výsledková listina'!$N:$N,0)),"",INDEX('Výsledková listina'!$C:$C,MATCH(CONCATENATE(CD$4,$A11),'Výsledková listina'!$N:$N,0),1)) ->  | CE11: =IF(ISNA(MATCH(CONCATENATE(CD$4,$A11),'Výsledková listina'!$N:$N,0)),"",INDEX('Výsledková listina'!$P:$P,MATCH(CONCATENATE(CD$4,$A11),'Výsledková listina'!$N:$N,0),1)) -> 
A12: 7 | B12: =IF(ISNA(MATCH(CONCATENATE(B$4,$A12),'Výsledková listina'!$N:$N,0)),"",INDEX('Výsledková listina'!$C:$C,MATCH(CONCATENATE(B$4,$A12),'Výsledková listina'!$N:$N,0),1)) -> Pečta Radek st. | C12: =IF(ISNA(MATCH(CONCATENATE(B$4,$A12),'Výsledková listina'!$N:$N,0)),"",INDEX('Výsledková listina'!$P:$P,MATCH(CONCATENATE(B$4,$A12),'Výsledková listina'!$N:$N,0),1)) -> Zauwíci | D12: 6420 | F12: 4 | H12: =IF(ISNA(MATCH(CONCATENATE(H$4,$A12),'Výsledková listina'!$N:$N,0)),"",INDEX('Výsledková listina'!$C:$C,MATCH(CONCATENATE(H$4,$A12),'Výsledková listina'!$N:$N,0),1)) -> Zavřel Jan | I12: =IF(ISNA(MATCH(CONCATENATE(H$4,$A12),'Výsledková listina'!$N:$N,0)),"",INDEX('Výsledková listina'!$P:$P,MATCH(CONCATENATE(H$4,$A12),'Výsledková listina'!$N:$N,0),1)) -> Zauwíci | J12: 10340 | L12: 1 | N12: =IF(ISNA(MATCH(CONCATENATE(N$4,$A12),'Výsledková listina'!$N:$N,0)),"",INDEX('Výsledková listina'!$C:$C,MATCH(CONCATENATE(N$4,$A12),'Výsledková listina'!$N:$N,0),1)) -> Šťovčík Viktor | O12: =IF(ISNA(MATCH(CONCATENATE(N$4,$A12),'Výsledková listina'!$N:$N,0)),"",INDEX('Výsledková listina'!$P:$P,MATCH(CONCATENATE(N$4,$A12),'Výsledková listina'!$N:$N,0),1)) -> Zauwíci | P12: 2900 | R12: 7 | T12: =IF(ISNA(MATCH(CONCATENATE(T$4,$A12),'Výsledková listina'!$N:$N,0)),"",INDEX('Výsledková listina'!$C:$C,MATCH(CONCATENATE(T$4,$A12),'Výsledková listina'!$N:$N,0),1)) ->  | U12: =IF(ISNA(MATCH(CONCATENATE(T$4,$A12),'Výsledková listina'!$N:$N,0)),"",INDEX('Výsledková listina'!$P:$P,MATCH(CONCATENATE(T$4,$A12),'Výsledková listina'!$N:$N,0),1)) ->  | Z12: =IF(ISNA(MATCH(CONCATENATE(Z$4,$A12),'Výsledková listina'!$N:$N,0)),"",INDEX('Výsledková listina'!$C:$C,MATCH(CONCATENATE(Z$4,$A12),'Výsledková listina'!$N:$N,0),1)) ->  | AA12: =IF(ISNA(MATCH(CONCATENATE(Z$4,$A12),'Výsledková listina'!$N:$N,0)),"",INDEX('Výsledková listina'!$P:$P,MATCH(CONCATENATE(Z$4,$A12),'Výsledková listina'!$N:$N,0),1)) ->  | AF12: =IF(ISNA(MATCH(CONCATENATE(AF$4,$A12),'Výsledková listina'!$N:$N,0)),"",INDEX('Výsledková listina'!$C:$C,MATCH(CONCATENATE(AF$4,$A12),'Výsledková listina'!$N:$N,0),1)) ->  | AG12: =IF(ISNA(MATCH(CONCATENATE(AF$4,$A12),'Výsledková listina'!$N:$N,0)),"",INDEX('Výsledková listina'!$P:$P,MATCH(CONCATENATE(AF$4,$A12),'Výsledková listina'!$N:$N,0),1)) ->  | AL12: =IF(ISNA(MATCH(CONCATENATE(AL$4,$A12),'Výsledková listina'!$N:$N,0)),"",INDEX('Výsledková listina'!$C:$C,MATCH(CONCATENATE(AL$4,$A12),'Výsledková listina'!$N:$N,0),1)) ->  | AM12: =IF(ISNA(MATCH(CONCATENATE(AL$4,$A12),'Výsledková listina'!$N:$N,0)),"",INDEX('Výsledková listina'!$P:$P,MATCH(CONCATENATE(AL$4,$A12),'Výsledková listina'!$N:$N,0),1)) ->  | AR12: =IF(ISNA(MATCH(CONCATENATE(AR$4,$A12),'Výsledková listina'!$N:$N,0)),"",INDEX('Výsledková listina'!$C:$C,MATCH(CONCATENATE(AR$4,$A12),'Výsledková listina'!$N:$N,0),1)) ->  | AS12: =IF(ISNA(MATCH(CONCATENATE(AR$4,$A12),'Výsledková listina'!$N:$N,0)),"",INDEX('Výsledková listina'!$P:$P,MATCH(CONCATENATE(AR$4,$A12),'Výsledková listina'!$N:$N,0),1)) ->  | AX12: =IF(ISNA(MATCH(CONCATENATE(AX$4,$A12),'Výsledková listina'!$N:$N,0)),"",INDEX('Výsledková listina'!$C:$C,MATCH(CONCATENATE(AX$4,$A12),'Výsledková listina'!$N:$N,0),1)) ->  | AY12: =IF(ISNA(MATCH(CONCATENATE(AX$4,$A12),'Výsledková listina'!$N:$N,0)),"",INDEX('Výsledková listina'!$P:$P,MATCH(CONCATENATE(AX$4,$A12),'Výsledková listina'!$N:$N,0),1)) ->  | BD12: =IF(ISNA(MATCH(CONCATENATE(BD$4,$A12),'Výsledková listina'!$N:$N,0)),"",INDEX('Výsledková listina'!$C:$C,MATCH(CONCATENATE(BD$4,$A12),'Výsledková listina'!$N:$N,0),1)) ->  | BE12: =IF(ISNA(MATCH(CONCATENATE(BD$4,$A12),'Výsledková listina'!$N:$N,0)),"",INDEX('Výsledková listina'!$P:$P,MATCH(CONCATENATE(BD$4,$A12),'Výsledková listina'!$N:$N,0),1)) ->  | BJ12: =IF(ISNA(MATCH(CONCATENATE(BJ$4,$A12),'Výsledková listina'!$N:$N,0)),"",INDEX('Výsledková listina'!$C:$C,MATCH(CONCATENATE(BJ$4,$A12),'Výsledková listina'!$N:$N,0),1)) ->  | BK12: =IF(ISNA(MATCH(CONCATENATE(BJ$4,$A12),'Výsledková listina'!$N:$N,0)),"",INDEX('Výsledková listina'!$P:$P,MATCH(CONCATENATE(BJ$4,$A12),'Výsledková listina'!$N:$N,0),1)) ->  | BO12: =IF(ISNA(MATCH(CONCATENATE(BO$4,$A12),'Výsledková listina'!$N:$N,0)),"",INDEX('Výsledková listina'!$C:$C,MATCH(CONCATENATE(BO$4,$A12),'Výsledková listina'!$N:$N,0),1)) ->  | BP12: =IF(ISNA(MATCH(CONCATENATE(BO$4,$A12),'Výsledková listina'!$N:$N,0)),"",INDEX('Výsledková listina'!$P:$P,MATCH(CONCATENATE(BO$4,$A12),'Výsledková listina'!$N:$N,0),1)) ->  | BT12: =IF(ISNA(MATCH(CONCATENATE(BT$4,$A12),'Výsledková listina'!$N:$N,0)),"",INDEX('Výsledková listina'!$C:$C,MATCH(CONCATENATE(BT$4,$A12),'Výsledková listina'!$N:$N,0),1)) ->  | BU12: =IF(ISNA(MATCH(CONCATENATE(BT$4,$A12),'Výsledková listina'!$N:$N,0)),"",INDEX('Výsledková listina'!$P:$P,MATCH(CONCATENATE(BT$4,$A12),'Výsledková listina'!$N:$N,0),1)) ->  | BY12: =IF(ISNA(MATCH(CONCATENATE(BY$4,$A12),'Výsledková listina'!$N:$N,0)),"",INDEX('Výsledková listina'!$C:$C,MATCH(CONCATENATE(BY$4,$A12),'Výsledková listina'!$N:$N,0),1)) ->  | BZ12: =IF(ISNA(MATCH(CONCATENATE(BY$4,$A12),'Výsledková listina'!$N:$N,0)),"",INDEX('Výsledková listina'!$P:$P,MATCH(CONCATENATE(BY$4,$A12),'Výsledková listina'!$N:$N,0),1)) ->  | CD12: =IF(ISNA(MATCH(CONCATENATE(CD$4,$A12),'Výsledková listina'!$N:$N,0)),"",INDEX('Výsledková listina'!$C:$C,MATCH(CONCATENATE(CD$4,$A12),'Výsledková listina'!$N:$N,0),1)) ->  | CE12: =IF(ISNA(MATCH(CONCATENATE(CD$4,$A12),'Výsledková listina'!$N:$N,0)),"",INDEX('Výsledková listina'!$P:$P,MATCH(CONCATENATE(CD$4,$A12),'Výsledková listina'!$N:$N,0),1)) -> 
A13: 8 | B13: =IF(ISNA(MATCH(CONCATENATE(B$4,$A13),'Výsledková listina'!$N:$N,0)),"",INDEX('Výsledková listina'!$C:$C,MATCH(CONCATENATE(B$4,$A13),'Výsledková listina'!$N:$N,0),1)) -> Novotný Erik | C13: =IF(ISNA(MATCH(CONCATENATE(B$4,$A13),'Výsledková listina'!$N:$N,0)),"",INDEX('Výsledková listina'!$P:$P,MATCH(CONCATENATE(B$4,$A13),'Výsledková listina'!$N:$N,0),1)) -> Speed feeder team | D13: 2960 | F13: 8 | H13: =IF(ISNA(MATCH(CONCATENATE(H$4,$A13),'Výsledková listina'!$N:$N,0)),"",INDEX('Výsledková listina'!$C:$C,MATCH(CONCATENATE(H$4,$A13),'Výsledková listina'!$N:$N,0),1)) -> Prášek Josef | I13: =IF(ISNA(MATCH(CONCATENATE(H$4,$A13),'Výsledková listina'!$N:$N,0)),"",INDEX('Výsledková listina'!$P:$P,MATCH(CONCATENATE(H$4,$A13),'Výsledková listina'!$N:$N,0),1)) -> Speed feeder team | J13: 4480 | L13: 7 | N13: =IF(ISNA(MATCH(CONCATENATE(N$4,$A13),'Výsledková listina'!$N:$N,0)),"",INDEX('Výsledková listina'!$C:$C,MATCH(CONCATENATE(N$4,$A13),'Výsledková listina'!$N:$N,0),1)) -> Tomšík Jan | O13: =IF(ISNA(MATCH(CONCATENATE(N$4,$A13),'Výsledková listina'!$N:$N,0)),"",INDEX('Výsledková listina'!$P:$P,MATCH(CONCATENATE(N$4,$A13),'Výsledková listina'!$N:$N,0),1)) -> Speed feeder team | P13: 5920 | R13: 4 | T13: =IF(ISNA(MATCH(CONCATENATE(T$4,$A13),'Výsledková listina'!$N:$N,0)),"",INDEX('Výsledková listina'!$C:$C,MATCH(CONCATENATE(T$4,$A13),'Výsledková listina'!$N:$N,0),1)) ->  | U13: =IF(ISNA(MATCH(CONCATENATE(T$4,$A13),'Výsledková listina'!$N:$N,0)),"",INDEX('Výsledková listina'!$P:$P,MATCH(CONCATENATE(T$4,$A13),'Výsledková listina'!$N:$N,0),1)) ->  | Z13: =IF(ISNA(MATCH(CONCATENATE(Z$4,$A13),'Výsledková listina'!$N:$N,0)),"",INDEX('Výsledková listina'!$C:$C,MATCH(CONCATENATE(Z$4,$A13),'Výsledková listina'!$N:$N,0),1)) ->  | AA13: =IF(ISNA(MATCH(CONCATENATE(Z$4,$A13),'Výsledková listina'!$N:$N,0)),"",INDEX('Výsledková listina'!$P:$P,MATCH(CONCATENATE(Z$4,$A13),'Výsledková listina'!$N:$N,0),1)) ->  | AF13: =IF(ISNA(MATCH(CONCATENATE(AF$4,$A13),'Výsledková listina'!$N:$N,0)),"",INDEX('Výsledková listina'!$C:$C,MATCH(CONCATENATE(AF$4,$A13),'Výsledková listina'!$N:$N,0),1)) ->  | AG13: =IF(ISNA(MATCH(CONCATENATE(AF$4,$A13),'Výsledková listina'!$N:$N,0)),"",INDEX('Výsledková listina'!$P:$P,MATCH(CONCATENATE(AF$4,$A13),'Výsledková listina'!$N:$N,0),1)) ->  | AL13: =IF(ISNA(MATCH(CONCATENATE(AL$4,$A13),'Výsledková listina'!$N:$N,0)),"",INDEX('Výsledková listina'!$C:$C,MATCH(CONCATENATE(AL$4,$A13),'Výsledková listina'!$N:$N,0),1)) ->  | AM13: =IF(ISNA(MATCH(CONCATENATE(AL$4,$A13),'Výsledková listina'!$N:$N,0)),"",INDEX('Výsledková listina'!$P:$P,MATCH(CONCATENATE(AL$4,$A13),'Výsledková listina'!$N:$N,0),1)) ->  | AR13: =IF(ISNA(MATCH(CONCATENATE(AR$4,$A13),'Výsledková listina'!$N:$N,0)),"",INDEX('Výsledková listina'!$C:$C,MATCH(CONCATENATE(AR$4,$A13),'Výsledková listina'!$N:$N,0),1)) ->  | AS13: =IF(ISNA(MATCH(CONCATENATE(AR$4,$A13),'Výsledková listina'!$N:$N,0)),"",INDEX('Výsledková listina'!$P:$P,MATCH(CONCATENATE(AR$4,$A13),'Výsledková listina'!$N:$N,0),1)) ->  | AX13: =IF(ISNA(MATCH(CONCATENATE(AX$4,$A13),'Výsledková listina'!$N:$N,0)),"",INDEX('Výsledková listina'!$C:$C,MATCH(CONCATENATE(AX$4,$A13),'Výsledková listina'!$N:$N,0),1)) ->  | AY13: =IF(ISNA(MATCH(CONCATENATE(AX$4,$A13),'Výsledková listina'!$N:$N,0)),"",INDEX('Výsledková listina'!$P:$P,MATCH(CONCATENATE(AX$4,$A13),'Výsledková listina'!$N:$N,0),1)) ->  | BD13: =IF(ISNA(MATCH(CONCATENATE(BD$4,$A13),'Výsledková listina'!$N:$N,0)),"",INDEX('Výsledková listina'!$C:$C,MATCH(CONCATENATE(BD$4,$A13),'Výsledková listina'!$N:$N,0),1)) ->  | BE13: =IF(ISNA(MATCH(CONCATENATE(BD$4,$A13),'Výsledková listina'!$N:$N,0)),"",INDEX('Výsledková listina'!$P:$P,MATCH(CONCATENATE(BD$4,$A13),'Výsledková listina'!$N:$N,0),1)) ->  | BJ13: =IF(ISNA(MATCH(CONCATENATE(BJ$4,$A13),'Výsledková listina'!$N:$N,0)),"",INDEX('Výsledková listina'!$C:$C,MATCH(CONCATENATE(BJ$4,$A13),'Výsledková listina'!$N:$N,0),1)) ->  | BK13: =IF(ISNA(MATCH(CONCATENATE(BJ$4,$A13),'Výsledková listina'!$N:$N,0)),"",INDEX('Výsledková listina'!$P:$P,MATCH(CONCATENATE(BJ$4,$A13),'Výsledková listina'!$N:$N,0),1)) ->  | BO13: =IF(ISNA(MATCH(CONCATENATE(BO$4,$A13),'Výsledková listina'!$N:$N,0)),"",INDEX('Výsledková listina'!$C:$C,MATCH(CONCATENATE(BO$4,$A13),'Výsledková listina'!$N:$N,0),1)) ->  | BP13: =IF(ISNA(MATCH(CONCATENATE(BO$4,$A13),'Výsledková listina'!$N:$N,0)),"",INDEX('Výsledková listina'!$P:$P,MATCH(CONCATENATE(BO$4,$A13),'Výsledková listina'!$N:$N,0),1)) ->  | BT13: =IF(ISNA(MATCH(CONCATENATE(BT$4,$A13),'Výsledková listina'!$N:$N,0)),"",INDEX('Výsledková listina'!$C:$C,MATCH(CONCATENATE(BT$4,$A13),'Výsledková listina'!$N:$N,0),1)) ->  | BU13: =IF(ISNA(MATCH(CONCATENATE(BT$4,$A13),'Výsledková listina'!$N:$N,0)),"",INDEX('Výsledková listina'!$P:$P,MATCH(CONCATENATE(BT$4,$A13),'Výsledková listina'!$N:$N,0),1)) ->  | BY13: =IF(ISNA(MATCH(CONCATENATE(BY$4,$A13),'Výsledková listina'!$N:$N,0)),"",INDEX('Výsledková listina'!$C:$C,MATCH(CONCATENATE(BY$4,$A13),'Výsledková listina'!$N:$N,0),1)) ->  | BZ13: =IF(ISNA(MATCH(CONCATENATE(BY$4,$A13),'Výsledková listina'!$N:$N,0)),"",INDEX('Výsledková listina'!$P:$P,MATCH(CONCATENATE(BY$4,$A13),'Výsledková listina'!$N:$N,0),1)) ->  | CD13: =IF(ISNA(MATCH(CONCATENATE(CD$4,$A13),'Výsledková listina'!$N:$N,0)),"",INDEX('Výsledková listina'!$C:$C,MATCH(CONCATENATE(CD$4,$A13),'Výsledková listina'!$N:$N,0),1)) ->  | CE13: =IF(ISNA(MATCH(CONCATENATE(CD$4,$A13),'Výsledková listina'!$N:$N,0)),"",INDEX('Výsledková listina'!$P:$P,MATCH(CONCATENATE(CD$4,$A13),'Výsledková listina'!$N:$N,0),1)) -> 
A14: 9 | B14: =IF(ISNA(MATCH(CONCATENATE(B$4,$A14),'Výsledková listina'!$N:$N,0)),"",INDEX('Výsledková listina'!$C:$C,MATCH(CONCATENATE(B$4,$A14),'Výsledková listina'!$N:$N,0),1)) ->  | C14: =IF(ISNA(MATCH(CONCATENATE(B$4,$A14),'Výsledková listina'!$N:$N,0)),"",INDEX('Výsledková listina'!$P:$P,MATCH(CONCATENATE(B$4,$A14),'Výsledková listina'!$N:$N,0),1)) ->  | H14: =IF(ISNA(MATCH(CONCATENATE(H$4,$A14),'Výsledková listina'!$N:$N,0)),"",INDEX('Výsledková listina'!$C:$C,MATCH(CONCATENATE(H$4,$A14),'Výsledková listina'!$N:$N,0),1)) ->  | I14: =IF(ISNA(MATCH(CONCATENATE(H$4,$A14),'Výsledková listina'!$N:$N,0)),"",INDEX('Výsledková listina'!$P:$P,MATCH(CONCATENATE(H$4,$A14),'Výsledková listina'!$N:$N,0),1)) ->  | N14: =IF(ISNA(MATCH(CONCATENATE(N$4,$A14),'Výsledková listina'!$N:$N,0)),"",INDEX('Výsledková listina'!$C:$C,MATCH(CONCATENATE(N$4,$A14),'Výsledková listina'!$N:$N,0),1)) ->  | O14: =IF(ISNA(MATCH(CONCATENATE(N$4,$A14),'Výsledková listina'!$N:$N,0)),"",INDEX('Výsledková listina'!$P:$P,MATCH(CONCATENATE(N$4,$A14),'Výsledková listina'!$N:$N,0),1)) ->  | T14: =IF(ISNA(MATCH(CONCATENATE(T$4,$A14),'Výsledková listina'!$N:$N,0)),"",INDEX('Výsledková listina'!$C:$C,MATCH(CONCATENATE(T$4,$A14),'Výsledková listina'!$N:$N,0),1)) ->  | U14: =IF(ISNA(MATCH(CONCATENATE(T$4,$A14),'Výsledková listina'!$N:$N,0)),"",INDEX('Výsledková listina'!$P:$P,MATCH(CONCATENATE(T$4,$A14),'Výsledková listina'!$N:$N,0),1)) ->  | Z14: =IF(ISNA(MATCH(CONCATENATE(Z$4,$A14),'Výsledková listina'!$N:$N,0)),"",INDEX('Výsledková listina'!$C:$C,MATCH(CONCATENATE(Z$4,$A14),'Výsledková listina'!$N:$N,0),1)) ->  | AA14: =IF(ISNA(MATCH(CONCATENATE(Z$4,$A14),'Výsledková listina'!$N:$N,0)),"",INDEX('Výsledková listina'!$P:$P,MATCH(CONCATENATE(Z$4,$A14),'Výsledková listina'!$N:$N,0),1)) ->  | AF14: =IF(ISNA(MATCH(CONCATENATE(AF$4,$A14),'Výsledková listina'!$N:$N,0)),"",INDEX('Výsledková listina'!$C:$C,MATCH(CONCATENATE(AF$4,$A14),'Výsledková listina'!$N:$N,0),1)) ->  | AG14: =IF(ISNA(MATCH(CONCATENATE(AF$4,$A14),'Výsledková listina'!$N:$N,0)),"",INDEX('Výsledková listina'!$P:$P,MATCH(CONCATENATE(AF$4,$A14),'Výsledková listina'!$N:$N,0),1)) ->  | AL14: =IF(ISNA(MATCH(CONCATENATE(AL$4,$A14),'Výsledková listina'!$N:$N,0)),"",INDEX('Výsledková listina'!$C:$C,MATCH(CONCATENATE(AL$4,$A14),'Výsledková listina'!$N:$N,0),1)) ->  | AM14: =IF(ISNA(MATCH(CONCATENATE(AL$4,$A14),'Výsledková listina'!$N:$N,0)),"",INDEX('Výsledková listina'!$P:$P,MATCH(CONCATENATE(AL$4,$A14),'Výsledková listina'!$N:$N,0),1)) ->  | AR14: =IF(ISNA(MATCH(CONCATENATE(AR$4,$A14),'Výsledková listina'!$N:$N,0)),"",INDEX('Výsledková listina'!$C:$C,MATCH(CONCATENATE(AR$4,$A14),'Výsledková listina'!$N:$N,0),1)) ->  | AS14: =IF(ISNA(MATCH(CONCATENATE(AR$4,$A14),'Výsledková listina'!$N:$N,0)),"",INDEX('Výsledková listina'!$P:$P,MATCH(CONCATENATE(AR$4,$A14),'Výsledková listina'!$N:$N,0),1)) ->  | AX14: =IF(ISNA(MATCH(CONCATENATE(AX$4,$A14),'Výsledková listina'!$N:$N,0)),"",INDEX('Výsledková listina'!$C:$C,MATCH(CONCATENATE(AX$4,$A14),'Výsledková listina'!$N:$N,0),1)) ->  | AY14: =IF(ISNA(MATCH(CONCATENATE(AX$4,$A14),'Výsledková listina'!$N:$N,0)),"",INDEX('Výsledková listina'!$P:$P,MATCH(CONCATENATE(AX$4,$A14),'Výsledková listina'!$N:$N,0),1)) ->  | BD14: =IF(ISNA(MATCH(CONCATENATE(BD$4,$A14),'Výsledková listina'!$N:$N,0)),"",INDEX('Výsledková listina'!$C:$C,MATCH(CONCATENATE(BD$4,$A14),'Výsledková listina'!$N:$N,0),1)) ->  | BE14: =IF(ISNA(MATCH(CONCATENATE(BD$4,$A14),'Výsledková listina'!$N:$N,0)),"",INDEX('Výsledková listina'!$P:$P,MATCH(CONCATENATE(BD$4,$A14),'Výsledková listina'!$N:$N,0),1)) ->  | BJ14: =IF(ISNA(MATCH(CONCATENATE(BJ$4,$A14),'Výsledková listina'!$N:$N,0)),"",INDEX('Výsledková listina'!$C:$C,MATCH(CONCATENATE(BJ$4,$A14),'Výsledková listina'!$N:$N,0),1)) ->  | BK14: =IF(ISNA(MATCH(CONCATENATE(BJ$4,$A14),'Výsledková listina'!$N:$N,0)),"",INDEX('Výsledková listina'!$P:$P,MATCH(CONCATENATE(BJ$4,$A14),'Výsledková listina'!$N:$N,0),1)) ->  | BO14: =IF(ISNA(MATCH(CONCATENATE(BO$4,$A14),'Výsledková listina'!$N:$N,0)),"",INDEX('Výsledková listina'!$C:$C,MATCH(CONCATENATE(BO$4,$A14),'Výsledková listina'!$N:$N,0),1)) ->  | BP14: =IF(ISNA(MATCH(CONCATENATE(BO$4,$A14),'Výsledková listina'!$N:$N,0)),"",INDEX('Výsledková listina'!$P:$P,MATCH(CONCATENATE(BO$4,$A14),'Výsledková listina'!$N:$N,0),1)) ->  | BT14: =IF(ISNA(MATCH(CONCATENATE(BT$4,$A14),'Výsledková listina'!$N:$N,0)),"",INDEX('Výsledková listina'!$C:$C,MATCH(CONCATENATE(BT$4,$A14),'Výsledková listina'!$N:$N,0),1)) ->  | BU14: =IF(ISNA(MATCH(CONCATENATE(BT$4,$A14),'Výsledková listina'!$N:$N,0)),"",INDEX('Výsledková listina'!$P:$P,MATCH(CONCATENATE(BT$4,$A14),'Výsledková listina'!$N:$N,0),1)) ->  | BY14: =IF(ISNA(MATCH(CONCATENATE(BY$4,$A14),'Výsledková listina'!$N:$N,0)),"",INDEX('Výsledková listina'!$C:$C,MATCH(CONCATENATE(BY$4,$A14),'Výsledková listina'!$N:$N,0),1)) ->  | BZ14: =IF(ISNA(MATCH(CONCATENATE(BY$4,$A14),'Výsledková listina'!$N:$N,0)),"",INDEX('Výsledková listina'!$P:$P,MATCH(CONCATENATE(BY$4,$A14),'Výsledková listina'!$N:$N,0),1)) ->  | CD14: =IF(ISNA(MATCH(CONCATENATE(CD$4,$A14),'Výsledková listina'!$N:$N,0)),"",INDEX('Výsledková listina'!$C:$C,MATCH(CONCATENATE(CD$4,$A14),'Výsledková listina'!$N:$N,0),1)) ->  | CE14: =IF(ISNA(MATCH(CONCATENATE(CD$4,$A14),'Výsledková listina'!$N:$N,0)),"",INDEX('Výsledková listina'!$P:$P,MATCH(CONCATENATE(CD$4,$A14),'Výsledková listina'!$N:$N,0),1)) -> 
A15: 10 | B15: =IF(ISNA(MATCH(CONCATENATE(B$4,$A15),'Výsledková listina'!$N:$N,0)),"",INDEX('Výsledková listina'!$C:$C,MATCH(CONCATENATE(B$4,$A15),'Výsledková listina'!$N:$N,0),1)) ->  | C15: =IF(ISNA(MATCH(CONCATENATE(B$4,$A15),'Výsledková listina'!$N:$N,0)),"",INDEX('Výsledková listina'!$P:$P,MATCH(CONCATENATE(B$4,$A15),'Výsledková listina'!$N:$N,0),1)) ->  | H15: =IF(ISNA(MATCH(CONCATENATE(H$4,$A15),'Výsledková listina'!$N:$N,0)),"",INDEX('Výsledková listina'!$C:$C,MATCH(CONCATENATE(H$4,$A15),'Výsledková listina'!$N:$N,0),1)) ->  | I15: =IF(ISNA(MATCH(CONCATENATE(H$4,$A15),'Výsledková listina'!$N:$N,0)),"",INDEX('Výsledková listina'!$P:$P,MATCH(CONCATENATE(H$4,$A15),'Výsledková listina'!$N:$N,0),1)) ->  | N15: =IF(ISNA(MATCH(CONCATENATE(N$4,$A15),'Výsledková listina'!$N:$N,0)),"",INDEX('Výsledková listina'!$C:$C,MATCH(CONCATENATE(N$4,$A15),'Výsledková listina'!$N:$N,0),1)) ->  | O15: =IF(ISNA(MATCH(CONCATENATE(N$4,$A15),'Výsledková listina'!$N:$N,0)),"",INDEX('Výsledková listina'!$P:$P,MATCH(CONCATENATE(N$4,$A15),'Výsledková listina'!$N:$N,0),1)) ->  | T15: =IF(ISNA(MATCH(CONCATENATE(T$4,$A15),'Výsledková listina'!$N:$N,0)),"",INDEX('Výsledková listina'!$C:$C,MATCH(CONCATENATE(T$4,$A15),'Výsledková listina'!$N:$N,0),1)) ->  | U15: =IF(ISNA(MATCH(CONCATENATE(T$4,$A15),'Výsledková listina'!$N:$N,0)),"",INDEX('Výsledková listina'!$P:$P,MATCH(CONCATENATE(T$4,$A15),'Výsledková listina'!$N:$N,0),1)) ->  | Z15: =IF(ISNA(MATCH(CONCATENATE(Z$4,$A15),'Výsledková listina'!$N:$N,0)),"",INDEX('Výsledková listina'!$C:$C,MATCH(CONCATENATE(Z$4,$A15),'Výsledková listina'!$N:$N,0),1)) ->  | AA15: =IF(ISNA(MATCH(CONCATENATE(Z$4,$A15),'Výsledková listina'!$N:$N,0)),"",INDEX('Výsledková listina'!$P:$P,MATCH(CONCATENATE(Z$4,$A15),'Výsledková listina'!$N:$N,0),1)) ->  | AF15: =IF(ISNA(MATCH(CONCATENATE(AF$4,$A15),'Výsledková listina'!$N:$N,0)),"",INDEX('Výsledková listina'!$C:$C,MATCH(CONCATENATE(AF$4,$A15),'Výsledková listina'!$N:$N,0),1)) ->  | AG15: =IF(ISNA(MATCH(CONCATENATE(AF$4,$A15),'Výsledková listina'!$N:$N,0)),"",INDEX('Výsledková listina'!$P:$P,MATCH(CONCATENATE(AF$4,$A15),'Výsledková listina'!$N:$N,0),1)) ->  | AL15: =IF(ISNA(MATCH(CONCATENATE(AL$4,$A15),'Výsledková listina'!$N:$N,0)),"",INDEX('Výsledková listina'!$C:$C,MATCH(CONCATENATE(AL$4,$A15),'Výsledková listina'!$N:$N,0),1)) ->  | AM15: =IF(ISNA(MATCH(CONCATENATE(AL$4,$A15),'Výsledková listina'!$N:$N,0)),"",INDEX('Výsledková listina'!$P:$P,MATCH(CONCATENATE(AL$4,$A15),'Výsledková listina'!$N:$N,0),1)) ->  | AR15: =IF(ISNA(MATCH(CONCATENATE(AR$4,$A15),'Výsledková listina'!$N:$N,0)),"",INDEX('Výsledková listina'!$C:$C,MATCH(CONCATENATE(AR$4,$A15),'Výsledková listina'!$N:$N,0),1)) ->  | AS15: =IF(ISNA(MATCH(CONCATENATE(AR$4,$A15),'Výsledková listina'!$N:$N,0)),"",INDEX('Výsledková listina'!$P:$P,MATCH(CONCATENATE(AR$4,$A15),'Výsledková listina'!$N:$N,0),1)) ->  | AX15: =IF(ISNA(MATCH(CONCATENATE(AX$4,$A15),'Výsledková listina'!$N:$N,0)),"",INDEX('Výsledková listina'!$C:$C,MATCH(CONCATENATE(AX$4,$A15),'Výsledková listina'!$N:$N,0),1)) ->  | AY15: =IF(ISNA(MATCH(CONCATENATE(AX$4,$A15),'Výsledková listina'!$N:$N,0)),"",INDEX('Výsledková listina'!$P:$P,MATCH(CONCATENATE(AX$4,$A15),'Výsledková listina'!$N:$N,0),1)) ->  | BD15: =IF(ISNA(MATCH(CONCATENATE(BD$4,$A15),'Výsledková listina'!$N:$N,0)),"",INDEX('Výsledková listina'!$C:$C,MATCH(CONCATENATE(BD$4,$A15),'Výsledková listina'!$N:$N,0),1)) ->  | BE15: =IF(ISNA(MATCH(CONCATENATE(BD$4,$A15),'Výsledková listina'!$N:$N,0)),"",INDEX('Výsledková listina'!$P:$P,MATCH(CONCATENATE(BD$4,$A15),'Výsledková listina'!$N:$N,0),1)) ->  | BJ15: =IF(ISNA(MATCH(CONCATENATE(BJ$4,$A15),'Výsledková listina'!$N:$N,0)),"",INDEX('Výsledková listina'!$C:$C,MATCH(CONCATENATE(BJ$4,$A15),'Výsledková listina'!$N:$N,0),1)) ->  | BK15: =IF(ISNA(MATCH(CONCATENATE(BJ$4,$A15),'Výsledková listina'!$N:$N,0)),"",INDEX('Výsledková listina'!$P:$P,MATCH(CONCATENATE(BJ$4,$A15),'Výsledková listina'!$N:$N,0),1)) ->  | BO15: =IF(ISNA(MATCH(CONCATENATE(BO$4,$A15),'Výsledková listina'!$N:$N,0)),"",INDEX('Výsledková listina'!$C:$C,MATCH(CONCATENATE(BO$4,$A15),'Výsledková listina'!$N:$N,0),1)) ->  | BP15: =IF(ISNA(MATCH(CONCATENATE(BO$4,$A15),'Výsledková listina'!$N:$N,0)),"",INDEX('Výsledková listina'!$P:$P,MATCH(CONCATENATE(BO$4,$A15),'Výsledková listina'!$N:$N,0),1)) ->  | BT15: =IF(ISNA(MATCH(CONCATENATE(BT$4,$A15),'Výsledková listina'!$N:$N,0)),"",INDEX('Výsledková listina'!$C:$C,MATCH(CONCATENATE(BT$4,$A15),'Výsledková listina'!$N:$N,0),1)) ->  | BU15: =IF(ISNA(MATCH(CONCATENATE(BT$4,$A15),'Výsledková listina'!$N:$N,0)),"",INDEX('Výsledková listina'!$P:$P,MATCH(CONCATENATE(BT$4,$A15),'Výsledková listina'!$N:$N,0),1)) ->  | BY15: =IF(ISNA(MATCH(CONCATENATE(BY$4,$A15),'Výsledková listina'!$N:$N,0)),"",INDEX('Výsledková listina'!$C:$C,MATCH(CONCATENATE(BY$4,$A15),'Výsledková listina'!$N:$N,0),1)) ->  | BZ15: =IF(ISNA(MATCH(CONCATENATE(BY$4,$A15),'Výsledková listina'!$N:$N,0)),"",INDEX('Výsledková listina'!$P:$P,MATCH(CONCATENATE(BY$4,$A15),'Výsledková listina'!$N:$N,0),1)) ->  | CD15: =IF(ISNA(MATCH(CONCATENATE(CD$4,$A15),'Výsledková listina'!$N:$N,0)),"",INDEX('Výsledková listina'!$C:$C,MATCH(CONCATENATE(CD$4,$A15),'Výsledková listina'!$N:$N,0),1)) ->  | CE15: =IF(ISNA(MATCH(CONCATENATE(CD$4,$A15),'Výsledková listina'!$N:$N,0)),"",INDEX('Výsledková listina'!$P:$P,MATCH(CONCATENATE(CD$4,$A15),'Výsledková listina'!$N:$N,0),1)) -> 
A16: 11 | B16: =IF(ISNA(MATCH(CONCATENATE(B$4,$A16),'Výsledková listina'!$N:$N,0)),"",INDEX('Výsledková listina'!$C:$C,MATCH(CONCATENATE(B$4,$A16),'Výsledková listina'!$N:$N,0),1)) ->  | C16: =IF(ISNA(MATCH(CONCATENATE(B$4,$A16),'Výsledková listina'!$N:$N,0)),"",INDEX('Výsledková listina'!$P:$P,MATCH(CONCATENATE(B$4,$A16),'Výsledková listina'!$N:$N,0),1)) ->  | H16: =IF(ISNA(MATCH(CONCATENATE(H$4,$A16),'Výsledková listina'!$N:$N,0)),"",INDEX('Výsledková listina'!$C:$C,MATCH(CONCATENATE(H$4,$A16),'Výsledková listina'!$N:$N,0),1)) ->  | I16: =IF(ISNA(MATCH(CONCATENATE(H$4,$A16),'Výsledková listina'!$N:$N,0)),"",INDEX('Výsledková listina'!$P:$P,MATCH(CONCATENATE(H$4,$A16),'Výsledková listina'!$N:$N,0),1)) ->  | N16: =IF(ISNA(MATCH(CONCATENATE(N$4,$A16),'Výsledková listina'!$N:$N,0)),"",INDEX('Výsledková listina'!$C:$C,MATCH(CONCATENATE(N$4,$A16),'Výsledková listina'!$N:$N,0),1)) ->  | O16: =IF(ISNA(MATCH(CONCATENATE(N$4,$A16),'Výsledková listina'!$N:$N,0)),"",INDEX('Výsledková listina'!$P:$P,MATCH(CONCATENATE(N$4,$A16),'Výsledková listina'!$N:$N,0),1)) ->  | T16: =IF(ISNA(MATCH(CONCATENATE(T$4,$A16),'Výsledková listina'!$N:$N,0)),"",INDEX('Výsledková listina'!$C:$C,MATCH(CONCATENATE(T$4,$A16),'Výsledková listina'!$N:$N,0),1)) ->  | U16: =IF(ISNA(MATCH(CONCATENATE(T$4,$A16),'Výsledková listina'!$N:$N,0)),"",INDEX('Výsledková listina'!$P:$P,MATCH(CONCATENATE(T$4,$A16),'Výsledková listina'!$N:$N,0),1)) ->  | Z16: =IF(ISNA(MATCH(CONCATENATE(Z$4,$A16),'Výsledková listina'!$N:$N,0)),"",INDEX('Výsledková listina'!$C:$C,MATCH(CONCATENATE(Z$4,$A16),'Výsledková listina'!$N:$N,0),1)) ->  | AA16: =IF(ISNA(MATCH(CONCATENATE(Z$4,$A16),'Výsledková listina'!$N:$N,0)),"",INDEX('Výsledková listina'!$P:$P,MATCH(CONCATENATE(Z$4,$A16),'Výsledková listina'!$N:$N,0),1)) ->  | AF16: =IF(ISNA(MATCH(CONCATENATE(AF$4,$A16),'Výsledková listina'!$N:$N,0)),"",INDEX('Výsledková listina'!$C:$C,MATCH(CONCATENATE(AF$4,$A16),'Výsledková listina'!$N:$N,0),1)) ->  | AG16: =IF(ISNA(MATCH(CONCATENATE(AF$4,$A16),'Výsledková listina'!$N:$N,0)),"",INDEX('Výsledková listina'!$P:$P,MATCH(CONCATENATE(AF$4,$A16),'Výsledková listina'!$N:$N,0),1)) ->  | AL16: =IF(ISNA(MATCH(CONCATENATE(AL$4,$A16),'Výsledková listina'!$N:$N,0)),"",INDEX('Výsledková listina'!$C:$C,MATCH(CONCATENATE(AL$4,$A16),'Výsledková listina'!$N:$N,0),1)) ->  | AM16: =IF(ISNA(MATCH(CONCATENATE(AL$4,$A16),'Výsledková listina'!$N:$N,0)),"",INDEX('Výsledková listina'!$P:$P,MATCH(CONCATENATE(AL$4,$A16),'Výsledková listina'!$N:$N,0),1)) ->  | AR16: =IF(ISNA(MATCH(CONCATENATE(AR$4,$A16),'Výsledková listina'!$N:$N,0)),"",INDEX('Výsledková listina'!$C:$C,MATCH(CONCATENATE(AR$4,$A16),'Výsledková listina'!$N:$N,0),1)) ->  | AS16: =IF(ISNA(MATCH(CONCATENATE(AR$4,$A16),'Výsledková listina'!$N:$N,0)),"",INDEX('Výsledková listina'!$P:$P,MATCH(CONCATENATE(AR$4,$A16),'Výsledková listina'!$N:$N,0),1)) ->  | AX16: =IF(ISNA(MATCH(CONCATENATE(AX$4,$A16),'Výsledková listina'!$N:$N,0)),"",INDEX('Výsledková listina'!$C:$C,MATCH(CONCATENATE(AX$4,$A16),'Výsledková listina'!$N:$N,0),1)) ->  | AY16: =IF(ISNA(MATCH(CONCATENATE(AX$4,$A16),'Výsledková listina'!$N:$N,0)),"",INDEX('Výsledková listina'!$P:$P,MATCH(CONCATENATE(AX$4,$A16),'Výsledková listina'!$N:$N,0),1)) ->  | BD16: =IF(ISNA(MATCH(CONCATENATE(BD$4,$A16),'Výsledková listina'!$N:$N,0)),"",INDEX('Výsledková listina'!$C:$C,MATCH(CONCATENATE(BD$4,$A16),'Výsledková listina'!$N:$N,0),1)) ->  | BE16: =IF(ISNA(MATCH(CONCATENATE(BD$4,$A16),'Výsledková listina'!$N:$N,0)),"",INDEX('Výsledková listina'!$P:$P,MATCH(CONCATENATE(BD$4,$A16),'Výsledková listina'!$N:$N,0),1)) ->  | BJ16: =IF(ISNA(MATCH(CONCATENATE(BJ$4,$A16),'Výsledková listina'!$N:$N,0)),"",INDEX('Výsledková listina'!$C:$C,MATCH(CONCATENATE(BJ$4,$A16),'Výsledková listina'!$N:$N,0),1)) ->  | BK16: =IF(ISNA(MATCH(CONCATENATE(BJ$4,$A16),'Výsledková listina'!$N:$N,0)),"",INDEX('Výsledková listina'!$P:$P,MATCH(CONCATENATE(BJ$4,$A16),'Výsledková listina'!$N:$N,0),1)) ->  | BO16: =IF(ISNA(MATCH(CONCATENATE(BO$4,$A16),'Výsledková listina'!$N:$N,0)),"",INDEX('Výsledková listina'!$C:$C,MATCH(CONCATENATE(BO$4,$A16),'Výsledková listina'!$N:$N,0),1)) ->  | BP16: =IF(ISNA(MATCH(CONCATENATE(BO$4,$A16),'Výsledková listina'!$N:$N,0)),"",INDEX('Výsledková listina'!$P:$P,MATCH(CONCATENATE(BO$4,$A16),'Výsledková listina'!$N:$N,0),1)) ->  | BT16: =IF(ISNA(MATCH(CONCATENATE(BT$4,$A16),'Výsledková listina'!$N:$N,0)),"",INDEX('Výsledková listina'!$C:$C,MATCH(CONCATENATE(BT$4,$A16),'Výsledková listina'!$N:$N,0),1)) ->  | BU16: =IF(ISNA(MATCH(CONCATENATE(BT$4,$A16),'Výsledková listina'!$N:$N,0)),"",INDEX('Výsledková listina'!$P:$P,MATCH(CONCATENATE(BT$4,$A16),'Výsledková listina'!$N:$N,0),1)) ->  | BY16: =IF(ISNA(MATCH(CONCATENATE(BY$4,$A16),'Výsledková listina'!$N:$N,0)),"",INDEX('Výsledková listina'!$C:$C,MATCH(CONCATENATE(BY$4,$A16),'Výsledková listina'!$N:$N,0),1)) ->  | BZ16: =IF(ISNA(MATCH(CONCATENATE(BY$4,$A16),'Výsledková listina'!$N:$N,0)),"",INDEX('Výsledková listina'!$P:$P,MATCH(CONCATENATE(BY$4,$A16),'Výsledková listina'!$N:$N,0),1)) ->  | CD16: =IF(ISNA(MATCH(CONCATENATE(CD$4,$A16),'Výsledková listina'!$N:$N,0)),"",INDEX('Výsledková listina'!$C:$C,MATCH(CONCATENATE(CD$4,$A16),'Výsledková listina'!$N:$N,0),1)) ->  | CE16: =IF(ISNA(MATCH(CONCATENATE(CD$4,$A16),'Výsledková listina'!$N:$N,0)),"",INDEX('Výsledková listina'!$P:$P,MATCH(CONCATENATE(CD$4,$A16),'Výsledková listina'!$N:$N,0),1)) -> 
A17: 12 | B17: =IF(ISNA(MATCH(CONCATENATE(B$4,$A17),'Výsledková listina'!$N:$N,0)),"",INDEX('Výsledková listina'!$C:$C,MATCH(CONCATENATE(B$4,$A17),'Výsledková listina'!$N:$N,0),1)) ->  | C17: =IF(ISNA(MATCH(CONCATENATE(B$4,$A17),'Výsledková listina'!$N:$N,0)),"",INDEX('Výsledková listina'!$P:$P,MATCH(CONCATENATE(B$4,$A17),'Výsledková listina'!$N:$N,0),1)) ->  | H17: =IF(ISNA(MATCH(CONCATENATE(H$4,$A17),'Výsledková listina'!$N:$N,0)),"",INDEX('Výsledková listina'!$C:$C,MATCH(CONCATENATE(H$4,$A17),'Výsledková listina'!$N:$N,0),1)) ->  | I17: =IF(ISNA(MATCH(CONCATENATE(H$4,$A17),'Výsledková listina'!$N:$N,0)),"",INDEX('Výsledková listina'!$P:$P,MATCH(CONCATENATE(H$4,$A17),'Výsledková listina'!$N:$N,0),1)) ->  | N17: =IF(ISNA(MATCH(CONCATENATE(N$4,$A17),'Výsledková listina'!$N:$N,0)),"",INDEX('Výsledková listina'!$C:$C,MATCH(CONCATENATE(N$4,$A17),'Výsledková listina'!$N:$N,0),1)) ->  | O17: =IF(ISNA(MATCH(CONCATENATE(N$4,$A17),'Výsledková listina'!$N:$N,0)),"",INDEX('Výsledková listina'!$P:$P,MATCH(CONCATENATE(N$4,$A17),'Výsledková listina'!$N:$N,0),1)) ->  | T17: =IF(ISNA(MATCH(CONCATENATE(T$4,$A17),'Výsledková listina'!$N:$N,0)),"",INDEX('Výsledková listina'!$C:$C,MATCH(CONCATENATE(T$4,$A17),'Výsledková listina'!$N:$N,0),1)) ->  | U17: =IF(ISNA(MATCH(CONCATENATE(T$4,$A17),'Výsledková listina'!$N:$N,0)),"",INDEX('Výsledková listina'!$P:$P,MATCH(CONCATENATE(T$4,$A17),'Výsledková listina'!$N:$N,0),1)) ->  | Z17: =IF(ISNA(MATCH(CONCATENATE(Z$4,$A17),'Výsledková listina'!$N:$N,0)),"",INDEX('Výsledková listina'!$C:$C,MATCH(CONCATENATE(Z$4,$A17),'Výsledková listina'!$N:$N,0),1)) ->  | AA17: =IF(ISNA(MATCH(CONCATENATE(Z$4,$A17),'Výsledková listina'!$N:$N,0)),"",INDEX('Výsledková listina'!$P:$P,MATCH(CONCATENATE(Z$4,$A17),'Výsledková listina'!$N:$N,0),1)) ->  | AF17: =IF(ISNA(MATCH(CONCATENATE(AF$4,$A17),'Výsledková listina'!$N:$N,0)),"",INDEX('Výsledková listina'!$C:$C,MATCH(CONCATENATE(AF$4,$A17),'Výsledková listina'!$N:$N,0),1)) ->  | AG17: =IF(ISNA(MATCH(CONCATENATE(AF$4,$A17),'Výsledková listina'!$N:$N,0)),"",INDEX('Výsledková listina'!$P:$P,MATCH(CONCATENATE(AF$4,$A17),'Výsledková listina'!$N:$N,0),1)) ->  | AL17: =IF(ISNA(MATCH(CONCATENATE(AL$4,$A17),'Výsledková listina'!$N:$N,0)),"",INDEX('Výsledková listina'!$C:$C,MATCH(CONCATENATE(AL$4,$A17),'Výsledková listina'!$N:$N,0),1)) ->  | AM17: =IF(ISNA(MATCH(CONCATENATE(AL$4,$A17),'Výsledková listina'!$N:$N,0)),"",INDEX('Výsledková listina'!$P:$P,MATCH(CONCATENATE(AL$4,$A17),'Výsledková listina'!$N:$N,0),1)) ->  | AR17: =IF(ISNA(MATCH(CONCATENATE(AR$4,$A17),'Výsledková listina'!$N:$N,0)),"",INDEX('Výsledková listina'!$C:$C,MATCH(CONCATENATE(AR$4,$A17),'Výsledková listina'!$N:$N,0),1)) ->  | AS17: =IF(ISNA(MATCH(CONCATENATE(AR$4,$A17),'Výsledková listina'!$N:$N,0)),"",INDEX('Výsledková listina'!$P:$P,MATCH(CONCATENATE(AR$4,$A17),'Výsledková listina'!$N:$N,0),1)) ->  | AX17: =IF(ISNA(MATCH(CONCATENATE(AX$4,$A17),'Výsledková listina'!$N:$N,0)),"",INDEX('Výsledková listina'!$C:$C,MATCH(CONCATENATE(AX$4,$A17),'Výsledková listina'!$N:$N,0),1)) ->  | AY17: =IF(ISNA(MATCH(CONCATENATE(AX$4,$A17),'Výsledková listina'!$N:$N,0)),"",INDEX('Výsledková listina'!$P:$P,MATCH(CONCATENATE(AX$4,$A17),'Výsledková listina'!$N:$N,0),1)) ->  | BD17: =IF(ISNA(MATCH(CONCATENATE(BD$4,$A17),'Výsledková listina'!$N:$N,0)),"",INDEX('Výsledková listina'!$C:$C,MATCH(CONCATENATE(BD$4,$A17),'Výsledková listina'!$N:$N,0),1)) ->  | BE17: =IF(ISNA(MATCH(CONCATENATE(BD$4,$A17),'Výsledková listina'!$N:$N,0)),"",INDEX('Výsledková listina'!$P:$P,MATCH(CONCATENATE(BD$4,$A17),'Výsledková listina'!$N:$N,0),1)) ->  | BJ17: =IF(ISNA(MATCH(CONCATENATE(BJ$4,$A17),'Výsledková listina'!$N:$N,0)),"",INDEX('Výsledková listina'!$C:$C,MATCH(CONCATENATE(BJ$4,$A17),'Výsledková listina'!$N:$N,0),1)) ->  | BK17: =IF(ISNA(MATCH(CONCATENATE(BJ$4,$A17),'Výsledková listina'!$N:$N,0)),"",INDEX('Výsledková listina'!$P:$P,MATCH(CONCATENATE(BJ$4,$A17),'Výsledková listina'!$N:$N,0),1)) ->  | BO17: =IF(ISNA(MATCH(CONCATENATE(BO$4,$A17),'Výsledková listina'!$N:$N,0)),"",INDEX('Výsledková listina'!$C:$C,MATCH(CONCATENATE(BO$4,$A17),'Výsledková listina'!$N:$N,0),1)) ->  | BP17: =IF(ISNA(MATCH(CONCATENATE(BO$4,$A17),'Výsledková listina'!$N:$N,0)),"",INDEX('Výsledková listina'!$P:$P,MATCH(CONCATENATE(BO$4,$A17),'Výsledková listina'!$N:$N,0),1)) ->  | BT17: =IF(ISNA(MATCH(CONCATENATE(BT$4,$A17),'Výsledková listina'!$N:$N,0)),"",INDEX('Výsledková listina'!$C:$C,MATCH(CONCATENATE(BT$4,$A17),'Výsledková listina'!$N:$N,0),1)) ->  | BU17: =IF(ISNA(MATCH(CONCATENATE(BT$4,$A17),'Výsledková listina'!$N:$N,0)),"",INDEX('Výsledková listina'!$P:$P,MATCH(CONCATENATE(BT$4,$A17),'Výsledková listina'!$N:$N,0),1)) ->  | BY17: =IF(ISNA(MATCH(CONCATENATE(BY$4,$A17),'Výsledková listina'!$N:$N,0)),"",INDEX('Výsledková listina'!$C:$C,MATCH(CONCATENATE(BY$4,$A17),'Výsledková listina'!$N:$N,0),1)) ->  | BZ17: =IF(ISNA(MATCH(CONCATENATE(BY$4,$A17),'Výsledková listina'!$N:$N,0)),"",INDEX('Výsledková listina'!$P:$P,MATCH(CONCATENATE(BY$4,$A17),'Výsledková listina'!$N:$N,0),1)) ->  | CD17: =IF(ISNA(MATCH(CONCATENATE(CD$4,$A17),'Výsledková listina'!$N:$N,0)),"",INDEX('Výsledková listina'!$C:$C,MATCH(CONCATENATE(CD$4,$A17),'Výsledková listina'!$N:$N,0),1)) ->  | CE17: =IF(ISNA(MATCH(CONCATENATE(CD$4,$A17),'Výsledková listina'!$N:$N,0)),"",INDEX('Výsledková listina'!$P:$P,MATCH(CONCATENATE(CD$4,$A17),'Výsledková listina'!$N:$N,0),1)) -> 
A18: 13 | B18: =IF(ISNA(MATCH(CONCATENATE(B$4,$A18),'Výsledková listina'!$N:$N,0)),"",INDEX('Výsledková listina'!$C:$C,MATCH(CONCATENATE(B$4,$A18),'Výsledková listina'!$N:$N,0),1)) ->  | C18: =IF(ISNA(MATCH(CONCATENATE(B$4,$A18),'Výsledková listina'!$N:$N,0)),"",INDEX('Výsledková listina'!$P:$P,MATCH(CONCATENATE(B$4,$A18),'Výsledková listina'!$N:$N,0),1)) ->  | H18: =IF(ISNA(MATCH(CONCATENATE(H$4,$A18),'Výsledková listina'!$N:$N,0)),"",INDEX('Výsledková listina'!$C:$C,MATCH(CONCATENATE(H$4,$A18),'Výsledková listina'!$N:$N,0),1)) ->  | I18: =IF(ISNA(MATCH(CONCATENATE(H$4,$A18),'Výsledková listina'!$N:$N,0)),"",INDEX('Výsledková listina'!$P:$P,MATCH(CONCATENATE(H$4,$A18),'Výsledková listina'!$N:$N,0),1)) ->  | N18: =IF(ISNA(MATCH(CONCATENATE(N$4,$A18),'Výsledková listina'!$N:$N,0)),"",INDEX('Výsledková listina'!$C:$C,MATCH(CONCATENATE(N$4,$A18),'Výsledková listina'!$N:$N,0),1)) ->  | O18: =IF(ISNA(MATCH(CONCATENATE(N$4,$A18),'Výsledková listina'!$N:$N,0)),"",INDEX('Výsledková listina'!$P:$P,MATCH(CONCATENATE(N$4,$A18),'Výsledková listina'!$N:$N,0),1)) ->  | T18: =IF(ISNA(MATCH(CONCATENATE(T$4,$A18),'Výsledková listina'!$N:$N,0)),"",INDEX('Výsledková listina'!$C:$C,MATCH(CONCATENATE(T$4,$A18),'Výsledková listina'!$N:$N,0),1)) ->  | U18: =IF(ISNA(MATCH(CONCATENATE(T$4,$A18),'Výsledková listina'!$N:$N,0)),"",INDEX('Výsledková listina'!$P:$P,MATCH(CONCATENATE(T$4,$A18),'Výsledková listina'!$N:$N,0),1)) ->  | Z18: =IF(ISNA(MATCH(CONCATENATE(Z$4,$A18),'Výsledková listina'!$N:$N,0)),"",INDEX('Výsledková listina'!$C:$C,MATCH(CONCATENATE(Z$4,$A18),'Výsledková listina'!$N:$N,0),1)) ->  | AA18: =IF(ISNA(MATCH(CONCATENATE(Z$4,$A18),'Výsledková listina'!$N:$N,0)),"",INDEX('Výsledková listina'!$P:$P,MATCH(CONCATENATE(Z$4,$A18),'Výsledková listina'!$N:$N,0),1)) ->  | AF18: =IF(ISNA(MATCH(CONCATENATE(AF$4,$A18),'Výsledková listina'!$N:$N,0)),"",INDEX('Výsledková listina'!$C:$C,MATCH(CONCATENATE(AF$4,$A18),'Výsledková listina'!$N:$N,0),1)) ->  | AG18: =IF(ISNA(MATCH(CONCATENATE(AF$4,$A18),'Výsledková listina'!$N:$N,0)),"",INDEX('Výsledková listina'!$P:$P,MATCH(CONCATENATE(AF$4,$A18),'Výsledková listina'!$N:$N,0),1)) ->  | AL18: =IF(ISNA(MATCH(CONCATENATE(AL$4,$A18),'Výsledková listina'!$N:$N,0)),"",INDEX('Výsledková listina'!$C:$C,MATCH(CONCATENATE(AL$4,$A18),'Výsledková listina'!$N:$N,0),1)) ->  | AM18: =IF(ISNA(MATCH(CONCATENATE(AL$4,$A18),'Výsledková listina'!$N:$N,0)),"",INDEX('Výsledková listina'!$P:$P,MATCH(CONCATENATE(AL$4,$A18),'Výsledková listina'!$N:$N,0),1)) ->  | AR18: =IF(ISNA(MATCH(CONCATENATE(AR$4,$A18),'Výsledková listina'!$N:$N,0)),"",INDEX('Výsledková listina'!$C:$C,MATCH(CONCATENATE(AR$4,$A18),'Výsledková listina'!$N:$N,0),1)) ->  | AS18: =IF(ISNA(MATCH(CONCATENATE(AR$4,$A18),'Výsledková listina'!$N:$N,0)),"",INDEX('Výsledková listina'!$P:$P,MATCH(CONCATENATE(AR$4,$A18),'Výsledková listina'!$N:$N,0),1)) ->  | AX18: =IF(ISNA(MATCH(CONCATENATE(AX$4,$A18),'Výsledková listina'!$N:$N,0)),"",INDEX('Výsledková listina'!$C:$C,MATCH(CONCATENATE(AX$4,$A18),'Výsledková listina'!$N:$N,0),1)) ->  | AY18: =IF(ISNA(MATCH(CONCATENATE(AX$4,$A18),'Výsledková listina'!$N:$N,0)),"",INDEX('Výsledková listina'!$P:$P,MATCH(CONCATENATE(AX$4,$A18),'Výsledková listina'!$N:$N,0),1)) ->  | BD18: =IF(ISNA(MATCH(CONCATENATE(BD$4,$A18),'Výsledková listina'!$N:$N,0)),"",INDEX('Výsledková listina'!$C:$C,MATCH(CONCATENATE(BD$4,$A18),'Výsledková listina'!$N:$N,0),1)) ->  | BE18: =IF(ISNA(MATCH(CONCATENATE(BD$4,$A18),'Výsledková listina'!$N:$N,0)),"",INDEX('Výsledková listina'!$P:$P,MATCH(CONCATENATE(BD$4,$A18),'Výsledková listina'!$N:$N,0),1)) ->  | BJ18: =IF(ISNA(MATCH(CONCATENATE(BJ$4,$A18),'Výsledková listina'!$N:$N,0)),"",INDEX('Výsledková listina'!$C:$C,MATCH(CONCATENATE(BJ$4,$A18),'Výsledková listina'!$N:$N,0),1)) ->  | BK18: =IF(ISNA(MATCH(CONCATENATE(BJ$4,$A18),'Výsledková listina'!$N:$N,0)),"",INDEX('Výsledková listina'!$P:$P,MATCH(CONCATENATE(BJ$4,$A18),'Výsledková listina'!$N:$N,0),1)) ->  | BO18: =IF(ISNA(MATCH(CONCATENATE(BO$4,$A18),'Výsledková listina'!$N:$N,0)),"",INDEX('Výsledková listina'!$C:$C,MATCH(CONCATENATE(BO$4,$A18),'Výsledková listina'!$N:$N,0),1)) ->  | BP18: =IF(ISNA(MATCH(CONCATENATE(BO$4,$A18),'Výsledková listina'!$N:$N,0)),"",INDEX('Výsledková listina'!$P:$P,MATCH(CONCATENATE(BO$4,$A18),'Výsledková listina'!$N:$N,0),1)) ->  | BT18: =IF(ISNA(MATCH(CONCATENATE(BT$4,$A18),'Výsledková listina'!$N:$N,0)),"",INDEX('Výsledková listina'!$C:$C,MATCH(CONCATENATE(BT$4,$A18),'Výsledková listina'!$N:$N,0),1)) ->  | BU18: =IF(ISNA(MATCH(CONCATENATE(BT$4,$A18),'Výsledková listina'!$N:$N,0)),"",INDEX('Výsledková listina'!$P:$P,MATCH(CONCATENATE(BT$4,$A18),'Výsledková listina'!$N:$N,0),1)) ->  | BY18: =IF(ISNA(MATCH(CONCATENATE(BY$4,$A18),'Výsledková listina'!$N:$N,0)),"",INDEX('Výsledková listina'!$C:$C,MATCH(CONCATENATE(BY$4,$A18),'Výsledková listina'!$N:$N,0),1)) ->  | BZ18: =IF(ISNA(MATCH(CONCATENATE(BY$4,$A18),'Výsledková listina'!$N:$N,0)),"",INDEX('Výsledková listina'!$P:$P,MATCH(CONCATENATE(BY$4,$A18),'Výsledková listina'!$N:$N,0),1)) ->  | CD18: =IF(ISNA(MATCH(CONCATENATE(CD$4,$A18),'Výsledková listina'!$N:$N,0)),"",INDEX('Výsledková listina'!$C:$C,MATCH(CONCATENATE(CD$4,$A18),'Výsledková listina'!$N:$N,0),1)) ->  | CE18: =IF(ISNA(MATCH(CONCATENATE(CD$4,$A18),'Výsledková listina'!$N:$N,0)),"",INDEX('Výsledková listina'!$P:$P,MATCH(CONCATENATE(CD$4,$A18),'Výsledková listina'!$N:$N,0),1)) -> 
A19: 14 | B19: =IF(ISNA(MATCH(CONCATENATE(B$4,$A19),'Výsledková listina'!$N:$N,0)),"",INDEX('Výsledková listina'!$C:$C,MATCH(CONCATENATE(B$4,$A19),'Výsledková listina'!$N:$N,0),1)) ->  | C19: =IF(ISNA(MATCH(CONCATENATE(B$4,$A19),'Výsledková listina'!$N:$N,0)),"",INDEX('Výsledková listina'!$P:$P,MATCH(CONCATENATE(B$4,$A19),'Výsledková listina'!$N:$N,0),1)) ->  | H19: =IF(ISNA(MATCH(CONCATENATE(H$4,$A19),'Výsledková listina'!$N:$N,0)),"",INDEX('Výsledková listina'!$C:$C,MATCH(CONCATENATE(H$4,$A19),'Výsledková listina'!$N:$N,0),1)) ->  | I19: =IF(ISNA(MATCH(CONCATENATE(H$4,$A19),'Výsledková listina'!$N:$N,0)),"",INDEX('Výsledková listina'!$P:$P,MATCH(CONCATENATE(H$4,$A19),'Výsledková listina'!$N:$N,0),1)) ->  | N19: =IF(ISNA(MATCH(CONCATENATE(N$4,$A19),'Výsledková listina'!$N:$N,0)),"",INDEX('Výsledková listina'!$C:$C,MATCH(CONCATENATE(N$4,$A19),'Výsledková listina'!$N:$N,0),1)) ->  | O19: =IF(ISNA(MATCH(CONCATENATE(N$4,$A19),'Výsledková listina'!$N:$N,0)),"",INDEX('Výsledková listina'!$P:$P,MATCH(CONCATENATE(N$4,$A19),'Výsledková listina'!$N:$N,0),1)) ->  | T19: =IF(ISNA(MATCH(CONCATENATE(T$4,$A19),'Výsledková listina'!$N:$N,0)),"",INDEX('Výsledková listina'!$C:$C,MATCH(CONCATENATE(T$4,$A19),'Výsledková listina'!$N:$N,0),1)) ->  | U19: =IF(ISNA(MATCH(CONCATENATE(T$4,$A19),'Výsledková listina'!$N:$N,0)),"",INDEX('Výsledková listina'!$P:$P,MATCH(CONCATENATE(T$4,$A19),'Výsledková listina'!$N:$N,0),1)) ->  | Z19: =IF(ISNA(MATCH(CONCATENATE(Z$4,$A19),'Výsledková listina'!$N:$N,0)),"",INDEX('Výsledková listina'!$C:$C,MATCH(CONCATENATE(Z$4,$A19),'Výsledková listina'!$N:$N,0),1)) ->  | AA19: =IF(ISNA(MATCH(CONCATENATE(Z$4,$A19),'Výsledková listina'!$N:$N,0)),"",INDEX('Výsledková listina'!$P:$P,MATCH(CONCATENATE(Z$4,$A19),'Výsledková listina'!$N:$N,0),1)) ->  | AF19: =IF(ISNA(MATCH(CONCATENATE(AF$4,$A19),'Výsledková listina'!$N:$N,0)),"",INDEX('Výsledková listina'!$C:$C,MATCH(CONCATENATE(AF$4,$A19),'Výsledková listina'!$N:$N,0),1)) ->  | AG19: =IF(ISNA(MATCH(CONCATENATE(AF$4,$A19),'Výsledková listina'!$N:$N,0)),"",INDEX('Výsledková listina'!$P:$P,MATCH(CONCATENATE(AF$4,$A19),'Výsledková listina'!$N:$N,0),1)) ->  | AL19: =IF(ISNA(MATCH(CONCATENATE(AL$4,$A19),'Výsledková listina'!$N:$N,0)),"",INDEX('Výsledková listina'!$C:$C,MATCH(CONCATENATE(AL$4,$A19),'Výsledková listina'!$N:$N,0),1)) ->  | AM19: =IF(ISNA(MATCH(CONCATENATE(AL$4,$A19),'Výsledková listina'!$N:$N,0)),"",INDEX('Výsledková listina'!$P:$P,MATCH(CONCATENATE(AL$4,$A19),'Výsledková listina'!$N:$N,0),1)) ->  | AR19: =IF(ISNA(MATCH(CONCATENATE(AR$4,$A19),'Výsledková listina'!$N:$N,0)),"",INDEX('Výsledková listina'!$C:$C,MATCH(CONCATENATE(AR$4,$A19),'Výsledková listina'!$N:$N,0),1)) ->  | AS19: =IF(ISNA(MATCH(CONCATENATE(AR$4,$A19),'Výsledková listina'!$N:$N,0)),"",INDEX('Výsledková listina'!$P:$P,MATCH(CONCATENATE(AR$4,$A19),'Výsledková listina'!$N:$N,0),1)) ->  | AX19: =IF(ISNA(MATCH(CONCATENATE(AX$4,$A19),'Výsledková listina'!$N:$N,0)),"",INDEX('Výsledková listina'!$C:$C,MATCH(CONCATENATE(AX$4,$A19),'Výsledková listina'!$N:$N,0),1)) ->  | AY19: =IF(ISNA(MATCH(CONCATENATE(AX$4,$A19),'Výsledková listina'!$N:$N,0)),"",INDEX('Výsledková listina'!$P:$P,MATCH(CONCATENATE(AX$4,$A19),'Výsledková listina'!$N:$N,0),1)) ->  | BD19: =IF(ISNA(MATCH(CONCATENATE(BD$4,$A19),'Výsledková listina'!$N:$N,0)),"",INDEX('Výsledková listina'!$C:$C,MATCH(CONCATENATE(BD$4,$A19),'Výsledková listina'!$N:$N,0),1)) ->  | BE19: =IF(ISNA(MATCH(CONCATENATE(BD$4,$A19),'Výsledková listina'!$N:$N,0)),"",INDEX('Výsledková listina'!$P:$P,MATCH(CONCATENATE(BD$4,$A19),'Výsledková listina'!$N:$N,0),1)) ->  | BJ19: =IF(ISNA(MATCH(CONCATENATE(BJ$4,$A19),'Výsledková listina'!$N:$N,0)),"",INDEX('Výsledková listina'!$C:$C,MATCH(CONCATENATE(BJ$4,$A19),'Výsledková listina'!$N:$N,0),1)) ->  | BK19: =IF(ISNA(MATCH(CONCATENATE(BJ$4,$A19),'Výsledková listina'!$N:$N,0)),"",INDEX('Výsledková listina'!$P:$P,MATCH(CONCATENATE(BJ$4,$A19),'Výsledková listina'!$N:$N,0),1)) ->  | BO19: =IF(ISNA(MATCH(CONCATENATE(BO$4,$A19),'Výsledková listina'!$N:$N,0)),"",INDEX('Výsledková listina'!$C:$C,MATCH(CONCATENATE(BO$4,$A19),'Výsledková listina'!$N:$N,0),1)) ->  | BP19: =IF(ISNA(MATCH(CONCATENATE(BO$4,$A19),'Výsledková listina'!$N:$N,0)),"",INDEX('Výsledková listina'!$P:$P,MATCH(CONCATENATE(BO$4,$A19),'Výsledková listina'!$N:$N,0),1)) ->  | BT19: =IF(ISNA(MATCH(CONCATENATE(BT$4,$A19),'Výsledková listina'!$N:$N,0)),"",INDEX('Výsledková listina'!$C:$C,MATCH(CONCATENATE(BT$4,$A19),'Výsledková listina'!$N:$N,0),1)) ->  | BU19: =IF(ISNA(MATCH(CONCATENATE(BT$4,$A19),'Výsledková listina'!$N:$N,0)),"",INDEX('Výsledková listina'!$P:$P,MATCH(CONCATENATE(BT$4,$A19),'Výsledková listina'!$N:$N,0),1)) ->  | BY19: =IF(ISNA(MATCH(CONCATENATE(BY$4,$A19),'Výsledková listina'!$N:$N,0)),"",INDEX('Výsledková listina'!$C:$C,MATCH(CONCATENATE(BY$4,$A19),'Výsledková listina'!$N:$N,0),1)) ->  | BZ19: =IF(ISNA(MATCH(CONCATENATE(BY$4,$A19),'Výsledková listina'!$N:$N,0)),"",INDEX('Výsledková listina'!$P:$P,MATCH(CONCATENATE(BY$4,$A19),'Výsledková listina'!$N:$N,0),1)) ->  | CD19: =IF(ISNA(MATCH(CONCATENATE(CD$4,$A19),'Výsledková listina'!$N:$N,0)),"",INDEX('Výsledková listina'!$C:$C,MATCH(CONCATENATE(CD$4,$A19),'Výsledková listina'!$N:$N,0),1)) ->  | CE19: =IF(ISNA(MATCH(CONCATENATE(CD$4,$A19),'Výsledková listina'!$N:$N,0)),"",INDEX('Výsledková listina'!$P:$P,MATCH(CONCATENATE(CD$4,$A19),'Výsledková listina'!$N:$N,0),1)) -> 
A20: 15 | B20: =IF(ISNA(MATCH(CONCATENATE(B$4,$A20),'Výsledková listina'!$N:$N,0)),"",INDEX('Výsledková listina'!$C:$C,MATCH(CONCATENATE(B$4,$A20),'Výsledková listina'!$N:$N,0),1)) ->  | C20: =IF(ISNA(MATCH(CONCATENATE(B$4,$A20),'Výsledková listina'!$N:$N,0)),"",INDEX('Výsledková listina'!$P:$P,MATCH(CONCATENATE(B$4,$A20),'Výsledková listina'!$N:$N,0),1)) ->  | H20: =IF(ISNA(MATCH(CONCATENATE(H$4,$A20),'Výsledková listina'!$N:$N,0)),"",INDEX('Výsledková listina'!$C:$C,MATCH(CONCATENATE(H$4,$A20),'Výsledková listina'!$N:$N,0),1)) ->  | I20: =IF(ISNA(MATCH(CONCATENATE(H$4,$A20),'Výsledková listina'!$N:$N,0)),"",INDEX('Výsledková listina'!$P:$P,MATCH(CONCATENATE(H$4,$A20),'Výsledková listina'!$N:$N,0),1)) ->  | N20: =IF(ISNA(MATCH(CONCATENATE(N$4,$A20),'Výsledková listina'!$N:$N,0)),"",INDEX('Výsledková listina'!$C:$C,MATCH(CONCATENATE(N$4,$A20),'Výsledková listina'!$N:$N,0),1)) ->  | O20: =IF(ISNA(MATCH(CONCATENATE(N$4,$A20),'Výsledková listina'!$N:$N,0)),"",INDEX('Výsledková listina'!$P:$P,MATCH(CONCATENATE(N$4,$A20),'Výsledková listina'!$N:$N,0),1)) ->  | T20: =IF(ISNA(MATCH(CONCATENATE(T$4,$A20),'Výsledková listina'!$N:$N,0)),"",INDEX('Výsledková listina'!$C:$C,MATCH(CONCATENATE(T$4,$A20),'Výsledková listina'!$N:$N,0),1)) ->  | U20: =IF(ISNA(MATCH(CONCATENATE(T$4,$A20),'Výsledková listina'!$N:$N,0)),"",INDEX('Výsledková listina'!$P:$P,MATCH(CONCATENATE(T$4,$A20),'Výsledková listina'!$N:$N,0),1)) ->  | Z20: =IF(ISNA(MATCH(CONCATENATE(Z$4,$A20),'Výsledková listina'!$N:$N,0)),"",INDEX('Výsledková listina'!$C:$C,MATCH(CONCATENATE(Z$4,$A20),'Výsledková listina'!$N:$N,0),1)) ->  | AA20: =IF(ISNA(MATCH(CONCATENATE(Z$4,$A20),'Výsledková listina'!$N:$N,0)),"",INDEX('Výsledková listina'!$P:$P,MATCH(CONCATENATE(Z$4,$A20),'Výsledková listina'!$N:$N,0),1)) ->  | AF20: =IF(ISNA(MATCH(CONCATENATE(AF$4,$A20),'Výsledková listina'!$N:$N,0)),"",INDEX('Výsledková listina'!$C:$C,MATCH(CONCATENATE(AF$4,$A20),'Výsledková listina'!$N:$N,0),1)) ->  | AG20: =IF(ISNA(MATCH(CONCATENATE(AF$4,$A20),'Výsledková listina'!$N:$N,0)),"",INDEX('Výsledková listina'!$P:$P,MATCH(CONCATENATE(AF$4,$A20),'Výsledková listina'!$N:$N,0),1)) ->  | AL20: =IF(ISNA(MATCH(CONCATENATE(AL$4,$A20),'Výsledková listina'!$N:$N,0)),"",INDEX('Výsledková listina'!$C:$C,MATCH(CONCATENATE(AL$4,$A20),'Výsledková listina'!$N:$N,0),1)) ->  | AM20: =IF(ISNA(MATCH(CONCATENATE(AL$4,$A20),'Výsledková listina'!$N:$N,0)),"",INDEX('Výsledková listina'!$P:$P,MATCH(CONCATENATE(AL$4,$A20),'Výsledková listina'!$N:$N,0),1)) ->  | AR20: =IF(ISNA(MATCH(CONCATENATE(AR$4,$A20),'Výsledková listina'!$N:$N,0)),"",INDEX('Výsledková listina'!$C:$C,MATCH(CONCATENATE(AR$4,$A20),'Výsledková listina'!$N:$N,0),1)) ->  | AS20: =IF(ISNA(MATCH(CONCATENATE(AR$4,$A20),'Výsledková listina'!$N:$N,0)),"",INDEX('Výsledková listina'!$P:$P,MATCH(CONCATENATE(AR$4,$A20),'Výsledková listina'!$N:$N,0),1)) ->  | AX20: =IF(ISNA(MATCH(CONCATENATE(AX$4,$A20),'Výsledková listina'!$N:$N,0)),"",INDEX('Výsledková listina'!$C:$C,MATCH(CONCATENATE(AX$4,$A20),'Výsledková listina'!$N:$N,0),1)) ->  | AY20: =IF(ISNA(MATCH(CONCATENATE(AX$4,$A20),'Výsledková listina'!$N:$N,0)),"",INDEX('Výsledková listina'!$P:$P,MATCH(CONCATENATE(AX$4,$A20),'Výsledková listina'!$N:$N,0),1)) ->  | BD20: =IF(ISNA(MATCH(CONCATENATE(BD$4,$A20),'Výsledková listina'!$N:$N,0)),"",INDEX('Výsledková listina'!$C:$C,MATCH(CONCATENATE(BD$4,$A20),'Výsledková listina'!$N:$N,0),1)) ->  | BE20: =IF(ISNA(MATCH(CONCATENATE(BD$4,$A20),'Výsledková listina'!$N:$N,0)),"",INDEX('Výsledková listina'!$P:$P,MATCH(CONCATENATE(BD$4,$A20),'Výsledková listina'!$N:$N,0),1)) ->  | BJ20: =IF(ISNA(MATCH(CONCATENATE(BJ$4,$A20),'Výsledková listina'!$N:$N,0)),"",INDEX('Výsledková listina'!$C:$C,MATCH(CONCATENATE(BJ$4,$A20),'Výsledková listina'!$N:$N,0),1)) ->  | BK20: =IF(ISNA(MATCH(CONCATENATE(BJ$4,$A20),'Výsledková listina'!$N:$N,0)),"",INDEX('Výsledková listina'!$P:$P,MATCH(CONCATENATE(BJ$4,$A20),'Výsledková listina'!$N:$N,0),1)) ->  | BO20: =IF(ISNA(MATCH(CONCATENATE(BO$4,$A20),'Výsledková listina'!$N:$N,0)),"",INDEX('Výsledková listina'!$C:$C,MATCH(CONCATENATE(BO$4,$A20),'Výsledková listina'!$N:$N,0),1)) ->  | BP20: =IF(ISNA(MATCH(CONCATENATE(BO$4,$A20),'Výsledková listina'!$N:$N,0)),"",INDEX('Výsledková listina'!$P:$P,MATCH(CONCATENATE(BO$4,$A20),'Výsledková listina'!$N:$N,0),1)) ->  | BT20: =IF(ISNA(MATCH(CONCATENATE(BT$4,$A20),'Výsledková listina'!$N:$N,0)),"",INDEX('Výsledková listina'!$C:$C,MATCH(CONCATENATE(BT$4,$A20),'Výsledková listina'!$N:$N,0),1)) ->  | BU20: =IF(ISNA(MATCH(CONCATENATE(BT$4,$A20),'Výsledková listina'!$N:$N,0)),"",INDEX('Výsledková listina'!$P:$P,MATCH(CONCATENATE(BT$4,$A20),'Výsledková listina'!$N:$N,0),1)) ->  | BY20: =IF(ISNA(MATCH(CONCATENATE(BY$4,$A20),'Výsledková listina'!$N:$N,0)),"",INDEX('Výsledková listina'!$C:$C,MATCH(CONCATENATE(BY$4,$A20),'Výsledková listina'!$N:$N,0),1)) ->  | BZ20: =IF(ISNA(MATCH(CONCATENATE(BY$4,$A20),'Výsledková listina'!$N:$N,0)),"",INDEX('Výsledková listina'!$P:$P,MATCH(CONCATENATE(BY$4,$A20),'Výsledková listina'!$N:$N,0),1)) ->  | CD20: =IF(ISNA(MATCH(CONCATENATE(CD$4,$A20),'Výsledková listina'!$N:$N,0)),"",INDEX('Výsledková listina'!$C:$C,MATCH(CONCATENATE(CD$4,$A20),'Výsledková listina'!$N:$N,0),1)) ->  | CE20: =IF(ISNA(MATCH(CONCATENATE(CD$4,$A20),'Výsledková listina'!$N:$N,0)),"",INDEX('Výsledková listina'!$P:$P,MATCH(CONCATENATE(CD$4,$A20),'Výsledková listina'!$N:$N,0),1)) -> 
A21: 16 | B21: =IF(ISNA(MATCH(CONCATENATE(B$4,$A21),'Výsledková listina'!$N:$N,0)),"",INDEX('Výsledková listina'!$C:$C,MATCH(CONCATENATE(B$4,$A21),'Výsledková listina'!$N:$N,0),1)) ->  | C21: =IF(ISNA(MATCH(CONCATENATE(B$4,$A21),'Výsledková listina'!$N:$N,0)),"",INDEX('Výsledková listina'!$P:$P,MATCH(CONCATENATE(B$4,$A21),'Výsledková listina'!$N:$N,0),1)) ->  | H21: =IF(ISNA(MATCH(CONCATENATE(H$4,$A21),'Výsledková listina'!$N:$N,0)),"",INDEX('Výsledková listina'!$C:$C,MATCH(CONCATENATE(H$4,$A21),'Výsledková listina'!$N:$N,0),1)) ->  | I21: =IF(ISNA(MATCH(CONCATENATE(H$4,$A21),'Výsledková listina'!$N:$N,0)),"",INDEX('Výsledková listina'!$P:$P,MATCH(CONCATENATE(H$4,$A21),'Výsledková listina'!$N:$N,0),1)) ->  | N21: =IF(ISNA(MATCH(CONCATENATE(N$4,$A21),'Výsledková listina'!$N:$N,0)),"",INDEX('Výsledková listina'!$C:$C,MATCH(CONCATENATE(N$4,$A21),'Výsledková listina'!$N:$N,0),1)) ->  | O21: =IF(ISNA(MATCH(CONCATENATE(N$4,$A21),'Výsledková listina'!$N:$N,0)),"",INDEX('Výsledková listina'!$P:$P,MATCH(CONCATENATE(N$4,$A21),'Výsledková listina'!$N:$N,0),1)) ->  | T21: =IF(ISNA(MATCH(CONCATENATE(T$4,$A21),'Výsledková listina'!$N:$N,0)),"",INDEX('Výsledková listina'!$C:$C,MATCH(CONCATENATE(T$4,$A21),'Výsledková listina'!$N:$N,0),1)) ->  | U21: =IF(ISNA(MATCH(CONCATENATE(T$4,$A21),'Výsledková listina'!$N:$N,0)),"",INDEX('Výsledková listina'!$P:$P,MATCH(CONCATENATE(T$4,$A21),'Výsledková listina'!$N:$N,0),1)) ->  | Z21: =IF(ISNA(MATCH(CONCATENATE(Z$4,$A21),'Výsledková listina'!$N:$N,0)),"",INDEX('Výsledková listina'!$C:$C,MATCH(CONCATENATE(Z$4,$A21),'Výsledková listina'!$N:$N,0),1)) ->  | AA21: =IF(ISNA(MATCH(CONCATENATE(Z$4,$A21),'Výsledková listina'!$N:$N,0)),"",INDEX('Výsledková listina'!$P:$P,MATCH(CONCATENATE(Z$4,$A21),'Výsledková listina'!$N:$N,0),1)) ->  | AF21: =IF(ISNA(MATCH(CONCATENATE(AF$4,$A21),'Výsledková listina'!$N:$N,0)),"",INDEX('Výsledková listina'!$C:$C,MATCH(CONCATENATE(AF$4,$A21),'Výsledková listina'!$N:$N,0),1)) ->  | AG21: =IF(ISNA(MATCH(CONCATENATE(AF$4,$A21),'Výsledková listina'!$N:$N,0)),"",INDEX('Výsledková listina'!$P:$P,MATCH(CONCATENATE(AF$4,$A21),'Výsledková listina'!$N:$N,0),1)) ->  | AL21: =IF(ISNA(MATCH(CONCATENATE(AL$4,$A21),'Výsledková listina'!$N:$N,0)),"",INDEX('Výsledková listina'!$C:$C,MATCH(CONCATENATE(AL$4,$A21),'Výsledková listina'!$N:$N,0),1)) ->  | AM21: =IF(ISNA(MATCH(CONCATENATE(AL$4,$A21),'Výsledková listina'!$N:$N,0)),"",INDEX('Výsledková listina'!$P:$P,MATCH(CONCATENATE(AL$4,$A21),'Výsledková listina'!$N:$N,0),1)) ->  | AR21: =IF(ISNA(MATCH(CONCATENATE(AR$4,$A21),'Výsledková listina'!$N:$N,0)),"",INDEX('Výsledková listina'!$C:$C,MATCH(CONCATENATE(AR$4,$A21),'Výsledková listina'!$N:$N,0),1)) ->  | AS21: =IF(ISNA(MATCH(CONCATENATE(AR$4,$A21),'Výsledková listina'!$N:$N,0)),"",INDEX('Výsledková listina'!$P:$P,MATCH(CONCATENATE(AR$4,$A21),'Výsledková listina'!$N:$N,0),1)) ->  | AX21: =IF(ISNA(MATCH(CONCATENATE(AX$4,$A21),'Výsledková listina'!$N:$N,0)),"",INDEX('Výsledková listina'!$C:$C,MATCH(CONCATENATE(AX$4,$A21),'Výsledková listina'!$N:$N,0),1)) ->  | AY21: =IF(ISNA(MATCH(CONCATENATE(AX$4,$A21),'Výsledková listina'!$N:$N,0)),"",INDEX('Výsledková listina'!$P:$P,MATCH(CONCATENATE(AX$4,$A21),'Výsledková listina'!$N:$N,0),1)) ->  | BD21: =IF(ISNA(MATCH(CONCATENATE(BD$4,$A21),'Výsledková listina'!$N:$N,0)),"",INDEX('Výsledková listina'!$C:$C,MATCH(CONCATENATE(BD$4,$A21),'Výsledková listina'!$N:$N,0),1)) ->  | BE21: =IF(ISNA(MATCH(CONCATENATE(BD$4,$A21),'Výsledková listina'!$N:$N,0)),"",INDEX('Výsledková listina'!$P:$P,MATCH(CONCATENATE(BD$4,$A21),'Výsledková listina'!$N:$N,0),1)) ->  | BJ21: =IF(ISNA(MATCH(CONCATENATE(BJ$4,$A21),'Výsledková listina'!$N:$N,0)),"",INDEX('Výsledková listina'!$C:$C,MATCH(CONCATENATE(BJ$4,$A21),'Výsledková listina'!$N:$N,0),1)) ->  | BK21: =IF(ISNA(MATCH(CONCATENATE(BJ$4,$A21),'Výsledková listina'!$N:$N,0)),"",INDEX('Výsledková listina'!$P:$P,MATCH(CONCATENATE(BJ$4,$A21),'Výsledková listina'!$N:$N,0),1)) ->  | BO21: =IF(ISNA(MATCH(CONCATENATE(BO$4,$A21),'Výsledková listina'!$N:$N,0)),"",INDEX('Výsledková listina'!$C:$C,MATCH(CONCATENATE(BO$4,$A21),'Výsledková listina'!$N:$N,0),1)) ->  | BP21: =IF(ISNA(MATCH(CONCATENATE(BO$4,$A21),'Výsledková listina'!$N:$N,0)),"",INDEX('Výsledková listina'!$P:$P,MATCH(CONCATENATE(BO$4,$A21),'Výsledková listina'!$N:$N,0),1)) ->  | BT21: =IF(ISNA(MATCH(CONCATENATE(BT$4,$A21),'Výsledková listina'!$N:$N,0)),"",INDEX('Výsledková listina'!$C:$C,MATCH(CONCATENATE(BT$4,$A21),'Výsledková listina'!$N:$N,0),1)) ->  | BU21: =IF(ISNA(MATCH(CONCATENATE(BT$4,$A21),'Výsledková listina'!$N:$N,0)),"",INDEX('Výsledková listina'!$P:$P,MATCH(CONCATENATE(BT$4,$A21),'Výsledková listina'!$N:$N,0),1)) ->  | BY21: =IF(ISNA(MATCH(CONCATENATE(BY$4,$A21),'Výsledková listina'!$N:$N,0)),"",INDEX('Výsledková listina'!$C:$C,MATCH(CONCATENATE(BY$4,$A21),'Výsledková listina'!$N:$N,0),1)) ->  | BZ21: =IF(ISNA(MATCH(CONCATENATE(BY$4,$A21),'Výsledková listina'!$N:$N,0)),"",INDEX('Výsledková listina'!$P:$P,MATCH(CONCATENATE(BY$4,$A21),'Výsledková listina'!$N:$N,0),1)) ->  | CD21: =IF(ISNA(MATCH(CONCATENATE(CD$4,$A21),'Výsledková listina'!$N:$N,0)),"",INDEX('Výsledková listina'!$C:$C,MATCH(CONCATENATE(CD$4,$A21),'Výsledková listina'!$N:$N,0),1)) ->  | CE21: =IF(ISNA(MATCH(CONCATENATE(CD$4,$A21),'Výsledková listina'!$N:$N,0)),"",INDEX('Výsledková listina'!$P:$P,MATCH(CONCATENATE(CD$4,$A21),'Výsledková listina'!$N:$N,0),1)) -> 
A22: 17 | B22: =IF(ISNA(MATCH(CONCATENATE(B$4,$A22),'Výsledková listina'!$N:$N,0)),"",INDEX('Výsledková listina'!$C:$C,MATCH(CONCATENATE(B$4,$A22),'Výsledková listina'!$N:$N,0),1)) ->  | C22: =IF(ISNA(MATCH(CONCATENATE(B$4,$A22),'Výsledková listina'!$N:$N,0)),"",INDEX('Výsledková listina'!$P:$P,MATCH(CONCATENATE(B$4,$A22),'Výsledková listina'!$N:$N,0),1)) ->  | H22: =IF(ISNA(MATCH(CONCATENATE(H$4,$A22),'Výsledková listina'!$N:$N,0)),"",INDEX('Výsledková listina'!$C:$C,MATCH(CONCATENATE(H$4,$A22),'Výsledková listina'!$N:$N,0),1)) ->  | I22: =IF(ISNA(MATCH(CONCATENATE(H$4,$A22),'Výsledková listina'!$N:$N,0)),"",INDEX('Výsledková listina'!$P:$P,MATCH(CONCATENATE(H$4,$A22),'Výsledková listina'!$N:$N,0),1)) ->  | N22: =IF(ISNA(MATCH(CONCATENATE(N$4,$A22),'Výsledková listina'!$N:$N,0)),"",INDEX('Výsledková listina'!$C:$C,MATCH(CONCATENATE(N$4,$A22),'Výsledková listina'!$N:$N,0),1)) ->  | O22: =IF(ISNA(MATCH(CONCATENATE(N$4,$A22),'Výsledková listina'!$N:$N,0)),"",INDEX('Výsledková listina'!$P:$P,MATCH(CONCATENATE(N$4,$A22),'Výsledková listina'!$N:$N,0),1)) ->  | T22: =IF(ISNA(MATCH(CONCATENATE(T$4,$A22),'Výsledková listina'!$N:$N,0)),"",INDEX('Výsledková listina'!$C:$C,MATCH(CONCATENATE(T$4,$A22),'Výsledková listina'!$N:$N,0),1)) ->  | U22: =IF(ISNA(MATCH(CONCATENATE(T$4,$A22),'Výsledková listina'!$N:$N,0)),"",INDEX('Výsledková listina'!$P:$P,MATCH(CONCATENATE(T$4,$A22),'Výsledková listina'!$N:$N,0),1)) ->  | Z22: =IF(ISNA(MATCH(CONCATENATE(Z$4,$A22),'Výsledková listina'!$N:$N,0)),"",INDEX('Výsledková listina'!$C:$C,MATCH(CONCATENATE(Z$4,$A22),'Výsledková listina'!$N:$N,0),1)) ->  | AA22: =IF(ISNA(MATCH(CONCATENATE(Z$4,$A22),'Výsledková listina'!$N:$N,0)),"",INDEX('Výsledková listina'!$P:$P,MATCH(CONCATENATE(Z$4,$A22),'Výsledková listina'!$N:$N,0),1)) ->  | AF22: =IF(ISNA(MATCH(CONCATENATE(AF$4,$A22),'Výsledková listina'!$N:$N,0)),"",INDEX('Výsledková listina'!$C:$C,MATCH(CONCATENATE(AF$4,$A22),'Výsledková listina'!$N:$N,0),1)) ->  | AG22: =IF(ISNA(MATCH(CONCATENATE(AF$4,$A22),'Výsledková listina'!$N:$N,0)),"",INDEX('Výsledková listina'!$P:$P,MATCH(CONCATENATE(AF$4,$A22),'Výsledková listina'!$N:$N,0),1)) ->  | AL22: =IF(ISNA(MATCH(CONCATENATE(AL$4,$A22),'Výsledková listina'!$N:$N,0)),"",INDEX('Výsledková listina'!$C:$C,MATCH(CONCATENATE(AL$4,$A22),'Výsledková listina'!$N:$N,0),1)) ->  | AM22: =IF(ISNA(MATCH(CONCATENATE(AL$4,$A22),'Výsledková listina'!$N:$N,0)),"",INDEX('Výsledková listina'!$P:$P,MATCH(CONCATENATE(AL$4,$A22),'Výsledková listina'!$N:$N,0),1)) ->  | AR22: =IF(ISNA(MATCH(CONCATENATE(AR$4,$A22),'Výsledková listina'!$N:$N,0)),"",INDEX('Výsledková listina'!$C:$C,MATCH(CONCATENATE(AR$4,$A22),'Výsledková listina'!$N:$N,0),1)) ->  | AS22: =IF(ISNA(MATCH(CONCATENATE(AR$4,$A22),'Výsledková listina'!$N:$N,0)),"",INDEX('Výsledková listina'!$P:$P,MATCH(CONCATENATE(AR$4,$A22),'Výsledková listina'!$N:$N,0),1)) ->  | AX22: =IF(ISNA(MATCH(CONCATENATE(AX$4,$A22),'Výsledková listina'!$N:$N,0)),"",INDEX('Výsledková listina'!$C:$C,MATCH(CONCATENATE(AX$4,$A22),'Výsledková listina'!$N:$N,0),1)) ->  | AY22: =IF(ISNA(MATCH(CONCATENATE(AX$4,$A22),'Výsledková listina'!$N:$N,0)),"",INDEX('Výsledková listina'!$P:$P,MATCH(CONCATENATE(AX$4,$A22),'Výsledková listina'!$N:$N,0),1)) ->  | BD22: =IF(ISNA(MATCH(CONCATENATE(BD$4,$A22),'Výsledková listina'!$N:$N,0)),"",INDEX('Výsledková listina'!$C:$C,MATCH(CONCATENATE(BD$4,$A22),'Výsledková listina'!$N:$N,0),1)) ->  | BE22: =IF(ISNA(MATCH(CONCATENATE(BD$4,$A22),'Výsledková listina'!$N:$N,0)),"",INDEX('Výsledková listina'!$P:$P,MATCH(CONCATENATE(BD$4,$A22),'Výsledková listina'!$N:$N,0),1)) ->  | BJ22: =IF(ISNA(MATCH(CONCATENATE(BJ$4,$A22),'Výsledková listina'!$N:$N,0)),"",INDEX('Výsledková listina'!$C:$C,MATCH(CONCATENATE(BJ$4,$A22),'Výsledková listina'!$N:$N,0),1)) ->  | BK22: =IF(ISNA(MATCH(CONCATENATE(BJ$4,$A22),'Výsledková listina'!$N:$N,0)),"",INDEX('Výsledková listina'!$P:$P,MATCH(CONCATENATE(BJ$4,$A22),'Výsledková listina'!$N:$N,0),1)) ->  | BO22: =IF(ISNA(MATCH(CONCATENATE(BO$4,$A22),'Výsledková listina'!$N:$N,0)),"",INDEX('Výsledková listina'!$C:$C,MATCH(CONCATENATE(BO$4,$A22),'Výsledková listina'!$N:$N,0),1)) ->  | BP22: =IF(ISNA(MATCH(CONCATENATE(BO$4,$A22),'Výsledková listina'!$N:$N,0)),"",INDEX('Výsledková listina'!$P:$P,MATCH(CONCATENATE(BO$4,$A22),'Výsledková listina'!$N:$N,0),1)) ->  | BT22: =IF(ISNA(MATCH(CONCATENATE(BT$4,$A22),'Výsledková listina'!$N:$N,0)),"",INDEX('Výsledková listina'!$C:$C,MATCH(CONCATENATE(BT$4,$A22),'Výsledková listina'!$N:$N,0),1)) ->  | BU22: =IF(ISNA(MATCH(CONCATENATE(BT$4,$A22),'Výsledková listina'!$N:$N,0)),"",INDEX('Výsledková listina'!$P:$P,MATCH(CONCATENATE(BT$4,$A22),'Výsledková listina'!$N:$N,0),1)) ->  | BY22: =IF(ISNA(MATCH(CONCATENATE(BY$4,$A22),'Výsledková listina'!$N:$N,0)),"",INDEX('Výsledková listina'!$C:$C,MATCH(CONCATENATE(BY$4,$A22),'Výsledková listina'!$N:$N,0),1)) ->  | BZ22: =IF(ISNA(MATCH(CONCATENATE(BY$4,$A22),'Výsledková listina'!$N:$N,0)),"",INDEX('Výsledková listina'!$P:$P,MATCH(CONCATENATE(BY$4,$A22),'Výsledková listina'!$N:$N,0),1)) ->  | CD22: =IF(ISNA(MATCH(CONCATENATE(CD$4,$A22),'Výsledková listina'!$N:$N,0)),"",INDEX('Výsledková listina'!$C:$C,MATCH(CONCATENATE(CD$4,$A22),'Výsledková listina'!$N:$N,0),1)) ->  | CE22: =IF(ISNA(MATCH(CONCATENATE(CD$4,$A22),'Výsledková listina'!$N:$N,0)),"",INDEX('Výsledková listina'!$P:$P,MATCH(CONCATENATE(CD$4,$A22),'Výsledková listina'!$N:$N,0),1)) -> 
A23: 18 | B23: =IF(ISNA(MATCH(CONCATENATE(B$4,$A23),'Výsledková listina'!$N:$N,0)),"",INDEX('Výsledková listina'!$C:$C,MATCH(CONCATENATE(B$4,$A23),'Výsledková listina'!$N:$N,0),1)) ->  | C23: =IF(ISNA(MATCH(CONCATENATE(B$4,$A23),'Výsledková listina'!$N:$N,0)),"",INDEX('Výsledková listina'!$P:$P,MATCH(CONCATENATE(B$4,$A23),'Výsledková listina'!$N:$N,0),1)) ->  | H23: =IF(ISNA(MATCH(CONCATENATE(H$4,$A23),'Výsledková listina'!$N:$N,0)),"",INDEX('Výsledková listina'!$C:$C,MATCH(CONCATENATE(H$4,$A23),'Výsledková listina'!$N:$N,0),1)) ->  | I23: =IF(ISNA(MATCH(CONCATENATE(H$4,$A23),'Výsledková listina'!$N:$N,0)),"",INDEX('Výsledková listina'!$P:$P,MATCH(CONCATENATE(H$4,$A23),'Výsledková listina'!$N:$N,0),1)) ->  | N23: =IF(ISNA(MATCH(CONCATENATE(N$4,$A23),'Výsledková listina'!$N:$N,0)),"",INDEX('Výsledková listina'!$C:$C,MATCH(CONCATENATE(N$4,$A23),'Výsledková listina'!$N:$N,0),1)) ->  | O23: =IF(ISNA(MATCH(CONCATENATE(N$4,$A23),'Výsledková listina'!$N:$N,0)),"",INDEX('Výsledková listina'!$P:$P,MATCH(CONCATENATE(N$4,$A23),'Výsledková listina'!$N:$N,0),1)) ->  | T23: =IF(ISNA(MATCH(CONCATENATE(T$4,$A23),'Výsledková listina'!$N:$N,0)),"",INDEX('Výsledková listina'!$C:$C,MATCH(CONCATENATE(T$4,$A23),'Výsledková listina'!$N:$N,0),1)) ->  | U23: =IF(ISNA(MATCH(CONCATENATE(T$4,$A23),'Výsledková listina'!$N:$N,0)),"",INDEX('Výsledková listina'!$P:$P,MATCH(CONCATENATE(T$4,$A23),'Výsledková listina'!$N:$N,0),1)) ->  | Z23: =IF(ISNA(MATCH(CONCATENATE(Z$4,$A23),'Výsledková listina'!$N:$N,0)),"",INDEX('Výsledková listina'!$C:$C,MATCH(CONCATENATE(Z$4,$A23),'Výsledková listina'!$N:$N,0),1)) ->  | AA23: =IF(ISNA(MATCH(CONCATENATE(Z$4,$A23),'Výsledková listina'!$N:$N,0)),"",INDEX('Výsledková listina'!$P:$P,MATCH(CONCATENATE(Z$4,$A23),'Výsledková listina'!$N:$N,0),1)) ->  | AF23: =IF(ISNA(MATCH(CONCATENATE(AF$4,$A23),'Výsledková listina'!$N:$N,0)),"",INDEX('Výsledková listina'!$C:$C,MATCH(CONCATENATE(AF$4,$A23),'Výsledková listina'!$N:$N,0),1)) ->  | AG23: =IF(ISNA(MATCH(CONCATENATE(AF$4,$A23),'Výsledková listina'!$N:$N,0)),"",INDEX('Výsledková listina'!$P:$P,MATCH(CONCATENATE(AF$4,$A23),'Výsledková listina'!$N:$N,0),1)) ->  | AL23: =IF(ISNA(MATCH(CONCATENATE(AL$4,$A23),'Výsledková listina'!$N:$N,0)),"",INDEX('Výsledková listina'!$C:$C,MATCH(CONCATENATE(AL$4,$A23),'Výsledková listina'!$N:$N,0),1)) ->  | AM23: =IF(ISNA(MATCH(CONCATENATE(AL$4,$A23),'Výsledková listina'!$N:$N,0)),"",INDEX('Výsledková listina'!$P:$P,MATCH(CONCATENATE(AL$4,$A23),'Výsledková listina'!$N:$N,0),1)) ->  | AR23: =IF(ISNA(MATCH(CONCATENATE(AR$4,$A23),'Výsledková listina'!$N:$N,0)),"",INDEX('Výsledková listina'!$C:$C,MATCH(CONCATENATE(AR$4,$A23),'Výsledková listina'!$N:$N,0),1)) ->  | AS23: =IF(ISNA(MATCH(CONCATENATE(AR$4,$A23),'Výsledková listina'!$N:$N,0)),"",INDEX('Výsledková listina'!$P:$P,MATCH(CONCATENATE(AR$4,$A23),'Výsledková listina'!$N:$N,0),1)) ->  | AX23: =IF(ISNA(MATCH(CONCATENATE(AX$4,$A23),'Výsledková listina'!$N:$N,0)),"",INDEX('Výsledková listina'!$C:$C,MATCH(CONCATENATE(AX$4,$A23),'Výsledková listina'!$N:$N,0),1)) ->  | AY23: =IF(ISNA(MATCH(CONCATENATE(AX$4,$A23),'Výsledková listina'!$N:$N,0)),"",INDEX('Výsledková listina'!$P:$P,MATCH(CONCATENATE(AX$4,$A23),'Výsledková listina'!$N:$N,0),1)) ->  | BD23: =IF(ISNA(MATCH(CONCATENATE(BD$4,$A23),'Výsledková listina'!$N:$N,0)),"",INDEX('Výsledková listina'!$C:$C,MATCH(CONCATENATE(BD$4,$A23),'Výsledková listina'!$N:$N,0),1)) ->  | BE23: =IF(ISNA(MATCH(CONCATENATE(BD$4,$A23),'Výsledková listina'!$N:$N,0)),"",INDEX('Výsledková listina'!$P:$P,MATCH(CONCATENATE(BD$4,$A23),'Výsledková listina'!$N:$N,0),1)) ->  | BJ23: =IF(ISNA(MATCH(CONCATENATE(BJ$4,$A23),'Výsledková listina'!$N:$N,0)),"",INDEX('Výsledková listina'!$C:$C,MATCH(CONCATENATE(BJ$4,$A23),'Výsledková listina'!$N:$N,0),1)) ->  | BK23: =IF(ISNA(MATCH(CONCATENATE(BJ$4,$A23),'Výsledková listina'!$N:$N,0)),"",INDEX('Výsledková listina'!$P:$P,MATCH(CONCATENATE(BJ$4,$A23),'Výsledková listina'!$N:$N,0),1)) ->  | BO23: =IF(ISNA(MATCH(CONCATENATE(BO$4,$A23),'Výsledková listina'!$N:$N,0)),"",INDEX('Výsledková listina'!$C:$C,MATCH(CONCATENATE(BO$4,$A23),'Výsledková listina'!$N:$N,0),1)) ->  | BP23: =IF(ISNA(MATCH(CONCATENATE(BO$4,$A23),'Výsledková listina'!$N:$N,0)),"",INDEX('Výsledková listina'!$P:$P,MATCH(CONCATENATE(BO$4,$A23),'Výsledková listina'!$N:$N,0),1)) ->  | BT23: =IF(ISNA(MATCH(CONCATENATE(BT$4,$A23),'Výsledková listina'!$N:$N,0)),"",INDEX('Výsledková listina'!$C:$C,MATCH(CONCATENATE(BT$4,$A23),'Výsledková listina'!$N:$N,0),1)) ->  | BU23: =IF(ISNA(MATCH(CONCATENATE(BT$4,$A23),'Výsledková listina'!$N:$N,0)),"",INDEX('Výsledková listina'!$P:$P,MATCH(CONCATENATE(BT$4,$A23),'Výsledková listina'!$N:$N,0),1)) ->  | BY23: =IF(ISNA(MATCH(CONCATENATE(BY$4,$A23),'Výsledková listina'!$N:$N,0)),"",INDEX('Výsledková listina'!$C:$C,MATCH(CONCATENATE(BY$4,$A23),'Výsledková listina'!$N:$N,0),1)) ->  | BZ23: =IF(ISNA(MATCH(CONCATENATE(BY$4,$A23),'Výsledková listina'!$N:$N,0)),"",INDEX('Výsledková listina'!$P:$P,MATCH(CONCATENATE(BY$4,$A23),'Výsledková listina'!$N:$N,0),1)) ->  | CD23: =IF(ISNA(MATCH(CONCATENATE(CD$4,$A23),'Výsledková listina'!$N:$N,0)),"",INDEX('Výsledková listina'!$C:$C,MATCH(CONCATENATE(CD$4,$A23),'Výsledková listina'!$N:$N,0),1)) ->  | CE23: =IF(ISNA(MATCH(CONCATENATE(CD$4,$A23),'Výsledková listina'!$N:$N,0)),"",INDEX('Výsledková listina'!$P:$P,MATCH(CONCATENATE(CD$4,$A23),'Výsledková listina'!$N:$N,0),1)) -> 
A24: 19 | B24: =IF(ISNA(MATCH(CONCATENATE(B$4,$A24),'Výsledková listina'!$N:$N,0)),"",INDEX('Výsledková listina'!$C:$C,MATCH(CONCATENATE(B$4,$A24),'Výsledková listina'!$N:$N,0),1)) ->  | C24: =IF(ISNA(MATCH(CONCATENATE(B$4,$A24),'Výsledková listina'!$N:$N,0)),"",INDEX('Výsledková listina'!$P:$P,MATCH(CONCATENATE(B$4,$A24),'Výsledková listina'!$N:$N,0),1)) ->  | H24: =IF(ISNA(MATCH(CONCATENATE(H$4,$A24),'Výsledková listina'!$N:$N,0)),"",INDEX('Výsledková listina'!$C:$C,MATCH(CONCATENATE(H$4,$A24),'Výsledková listina'!$N:$N,0),1)) ->  | I24: =IF(ISNA(MATCH(CONCATENATE(H$4,$A24),'Výsledková listina'!$N:$N,0)),"",INDEX('Výsledková listina'!$P:$P,MATCH(CONCATENATE(H$4,$A24),'Výsledková listina'!$N:$N,0),1)) ->  | N24: =IF(ISNA(MATCH(CONCATENATE(N$4,$A24),'Výsledková listina'!$N:$N,0)),"",INDEX('Výsledková listina'!$C:$C,MATCH(CONCATENATE(N$4,$A24),'Výsledková listina'!$N:$N,0),1)) ->  | O24: =IF(ISNA(MATCH(CONCATENATE(N$4,$A24),'Výsledková listina'!$N:$N,0)),"",INDEX('Výsledková listina'!$P:$P,MATCH(CONCATENATE(N$4,$A24),'Výsledková listina'!$N:$N,0),1)) ->  | T24: =IF(ISNA(MATCH(CONCATENATE(T$4,$A24),'Výsledková listina'!$N:$N,0)),"",INDEX('Výsledková listina'!$C:$C,MATCH(CONCATENATE(T$4,$A24),'Výsledková listina'!$N:$N,0),1)) ->  | U24: =IF(ISNA(MATCH(CONCATENATE(T$4,$A24),'Výsledková listina'!$N:$N,0)),"",INDEX('Výsledková listina'!$P:$P,MATCH(CONCATENATE(T$4,$A24),'Výsledková listina'!$N:$N,0),1)) ->  | Z24: =IF(ISNA(MATCH(CONCATENATE(Z$4,$A24),'Výsledková listina'!$N:$N,0)),"",INDEX('Výsledková listina'!$C:$C,MATCH(CONCATENATE(Z$4,$A24),'Výsledková listina'!$N:$N,0),1)) ->  | AA24: =IF(ISNA(MATCH(CONCATENATE(Z$4,$A24),'Výsledková listina'!$N:$N,0)),"",INDEX('Výsledková listina'!$P:$P,MATCH(CONCATENATE(Z$4,$A24),'Výsledková listina'!$N:$N,0),1)) ->  | AF24: =IF(ISNA(MATCH(CONCATENATE(AF$4,$A24),'Výsledková listina'!$N:$N,0)),"",INDEX('Výsledková listina'!$C:$C,MATCH(CONCATENATE(AF$4,$A24),'Výsledková listina'!$N:$N,0),1)) ->  | AG24: =IF(ISNA(MATCH(CONCATENATE(AF$4,$A24),'Výsledková listina'!$N:$N,0)),"",INDEX('Výsledková listina'!$P:$P,MATCH(CONCATENATE(AF$4,$A24),'Výsledková listina'!$N:$N,0),1)) ->  | AL24: =IF(ISNA(MATCH(CONCATENATE(AL$4,$A24),'Výsledková listina'!$N:$N,0)),"",INDEX('Výsledková listina'!$C:$C,MATCH(CONCATENATE(AL$4,$A24),'Výsledková listina'!$N:$N,0),1)) ->  | AM24: =IF(ISNA(MATCH(CONCATENATE(AL$4,$A24),'Výsledková listina'!$N:$N,0)),"",INDEX('Výsledková listina'!$P:$P,MATCH(CONCATENATE(AL$4,$A24),'Výsledková listina'!$N:$N,0),1)) ->  | AR24: =IF(ISNA(MATCH(CONCATENATE(AR$4,$A24),'Výsledková listina'!$N:$N,0)),"",INDEX('Výsledková listina'!$C:$C,MATCH(CONCATENATE(AR$4,$A24),'Výsledková listina'!$N:$N,0),1)) ->  | AS24: =IF(ISNA(MATCH(CONCATENATE(AR$4,$A24),'Výsledková listina'!$N:$N,0)),"",INDEX('Výsledková listina'!$P:$P,MATCH(CONCATENATE(AR$4,$A24),'Výsledková listina'!$N:$N,0),1)) ->  | AX24: =IF(ISNA(MATCH(CONCATENATE(AX$4,$A24),'Výsledková listina'!$N:$N,0)),"",INDEX('Výsledková listina'!$C:$C,MATCH(CONCATENATE(AX$4,$A24),'Výsledková listina'!$N:$N,0),1)) ->  | AY24: =IF(ISNA(MATCH(CONCATENATE(AX$4,$A24),'Výsledková listina'!$N:$N,0)),"",INDEX('Výsledková listina'!$P:$P,MATCH(CONCATENATE(AX$4,$A24),'Výsledková listina'!$N:$N,0),1)) ->  | BD24: =IF(ISNA(MATCH(CONCATENATE(BD$4,$A24),'Výsledková listina'!$N:$N,0)),"",INDEX('Výsledková listina'!$C:$C,MATCH(CONCATENATE(BD$4,$A24),'Výsledková listina'!$N:$N,0),1)) ->  | BE24: =IF(ISNA(MATCH(CONCATENATE(BD$4,$A24),'Výsledková listina'!$N:$N,0)),"",INDEX('Výsledková listina'!$P:$P,MATCH(CONCATENATE(BD$4,$A24),'Výsledková listina'!$N:$N,0),1)) ->  | BJ24: =IF(ISNA(MATCH(CONCATENATE(BJ$4,$A24),'Výsledková listina'!$N:$N,0)),"",INDEX('Výsledková listina'!$C:$C,MATCH(CONCATENATE(BJ$4,$A24),'Výsledková listina'!$N:$N,0),1)) ->  | BK24: =IF(ISNA(MATCH(CONCATENATE(BJ$4,$A24),'Výsledková listina'!$N:$N,0)),"",INDEX('Výsledková listina'!$P:$P,MATCH(CONCATENATE(BJ$4,$A24),'Výsledková listina'!$N:$N,0),1)) ->  | BO24: =IF(ISNA(MATCH(CONCATENATE(BO$4,$A24),'Výsledková listina'!$N:$N,0)),"",INDEX('Výsledková listina'!$C:$C,MATCH(CONCATENATE(BO$4,$A24),'Výsledková listina'!$N:$N,0),1)) ->  | BP24: =IF(ISNA(MATCH(CONCATENATE(BO$4,$A24),'Výsledková listina'!$N:$N,0)),"",INDEX('Výsledková listina'!$P:$P,MATCH(CONCATENATE(BO$4,$A24),'Výsledková listina'!$N:$N,0),1)) ->  | BT24: =IF(ISNA(MATCH(CONCATENATE(BT$4,$A24),'Výsledková listina'!$N:$N,0)),"",INDEX('Výsledková listina'!$C:$C,MATCH(CONCATENATE(BT$4,$A24),'Výsledková listina'!$N:$N,0),1)) ->  | BU24: =IF(ISNA(MATCH(CONCATENATE(BT$4,$A24),'Výsledková listina'!$N:$N,0)),"",INDEX('Výsledková listina'!$P:$P,MATCH(CONCATENATE(BT$4,$A24),'Výsledková listina'!$N:$N,0),1)) ->  | BY24: =IF(ISNA(MATCH(CONCATENATE(BY$4,$A24),'Výsledková listina'!$N:$N,0)),"",INDEX('Výsledková listina'!$C:$C,MATCH(CONCATENATE(BY$4,$A24),'Výsledková listina'!$N:$N,0),1)) ->  | BZ24: =IF(ISNA(MATCH(CONCATENATE(BY$4,$A24),'Výsledková listina'!$N:$N,0)),"",INDEX('Výsledková listina'!$P:$P,MATCH(CONCATENATE(BY$4,$A24),'Výsledková listina'!$N:$N,0),1)) ->  | CD24: =IF(ISNA(MATCH(CONCATENATE(CD$4,$A24),'Výsledková listina'!$N:$N,0)),"",INDEX('Výsledková listina'!$C:$C,MATCH(CONCATENATE(CD$4,$A24),'Výsledková listina'!$N:$N,0),1)) ->  | CE24: =IF(ISNA(MATCH(CONCATENATE(CD$4,$A24),'Výsledková listina'!$N:$N,0)),"",INDEX('Výsledková listina'!$P:$P,MATCH(CONCATENATE(CD$4,$A24),'Výsledková listina'!$N:$N,0),1)) -> 
A25: 20 | B25: =IF(ISNA(MATCH(CONCATENATE(B$4,$A25),'Výsledková listina'!$N:$N,0)),"",INDEX('Výsledková listina'!$C:$C,MATCH(CONCATENATE(B$4,$A25),'Výsledková listina'!$N:$N,0),1)) ->  | C25: =IF(ISNA(MATCH(CONCATENATE(B$4,$A25),'Výsledková listina'!$N:$N,0)),"",INDEX('Výsledková listina'!$P:$P,MATCH(CONCATENATE(B$4,$A25),'Výsledková listina'!$N:$N,0),1)) ->  | H25: =IF(ISNA(MATCH(CONCATENATE(H$4,$A25),'Výsledková listina'!$N:$N,0)),"",INDEX('Výsledková listina'!$C:$C,MATCH(CONCATENATE(H$4,$A25),'Výsledková listina'!$N:$N,0),1)) ->  | I25: =IF(ISNA(MATCH(CONCATENATE(H$4,$A25),'Výsledková listina'!$N:$N,0)),"",INDEX('Výsledková listina'!$P:$P,MATCH(CONCATENATE(H$4,$A25),'Výsledková listina'!$N:$N,0),1)) ->  | N25: =IF(ISNA(MATCH(CONCATENATE(N$4,$A25),'Výsledková listina'!$N:$N,0)),"",INDEX('Výsledková listina'!$C:$C,MATCH(CONCATENATE(N$4,$A25),'Výsledková listina'!$N:$N,0),1)) ->  | O25: =IF(ISNA(MATCH(CONCATENATE(N$4,$A25),'Výsledková listina'!$N:$N,0)),"",INDEX('Výsledková listina'!$P:$P,MATCH(CONCATENATE(N$4,$A25),'Výsledková listina'!$N:$N,0),1)) ->  | T25: =IF(ISNA(MATCH(CONCATENATE(T$4,$A25),'Výsledková listina'!$N:$N,0)),"",INDEX('Výsledková listina'!$C:$C,MATCH(CONCATENATE(T$4,$A25),'Výsledková listina'!$N:$N,0),1)) ->  | U25: =IF(ISNA(MATCH(CONCATENATE(T$4,$A25),'Výsledková listina'!$N:$N,0)),"",INDEX('Výsledková listina'!$P:$P,MATCH(CONCATENATE(T$4,$A25),'Výsledková listina'!$N:$N,0),1)) ->  | Z25: =IF(ISNA(MATCH(CONCATENATE(Z$4,$A25),'Výsledková listina'!$N:$N,0)),"",INDEX('Výsledková listina'!$C:$C,MATCH(CONCATENATE(Z$4,$A25),'Výsledková listina'!$N:$N,0),1)) ->  | AA25: =IF(ISNA(MATCH(CONCATENATE(Z$4,$A25),'Výsledková listina'!$N:$N,0)),"",INDEX('Výsledková listina'!$P:$P,MATCH(CONCATENATE(Z$4,$A25),'Výsledková listina'!$N:$N,0),1)) ->  | AF25: =IF(ISNA(MATCH(CONCATENATE(AF$4,$A25),'Výsledková listina'!$N:$N,0)),"",INDEX('Výsledková listina'!$C:$C,MATCH(CONCATENATE(AF$4,$A25),'Výsledková listina'!$N:$N,0),1)) ->  | AG25: =IF(ISNA(MATCH(CONCATENATE(AF$4,$A25),'Výsledková listina'!$N:$N,0)),"",INDEX('Výsledková listina'!$P:$P,MATCH(CONCATENATE(AF$4,$A25),'Výsledková listina'!$N:$N,0),1)) ->  | AL25: =IF(ISNA(MATCH(CONCATENATE(AL$4,$A25),'Výsledková listina'!$N:$N,0)),"",INDEX('Výsledková listina'!$C:$C,MATCH(CONCATENATE(AL$4,$A25),'Výsledková listina'!$N:$N,0),1)) ->  | AM25: =IF(ISNA(MATCH(CONCATENATE(AL$4,$A25),'Výsledková listina'!$N:$N,0)),"",INDEX('Výsledková listina'!$P:$P,MATCH(CONCATENATE(AL$4,$A25),'Výsledková listina'!$N:$N,0),1)) ->  | AR25: =IF(ISNA(MATCH(CONCATENATE(AR$4,$A25),'Výsledková listina'!$N:$N,0)),"",INDEX('Výsledková listina'!$C:$C,MATCH(CONCATENATE(AR$4,$A25),'Výsledková listina'!$N:$N,0),1)) ->  | AS25: =IF(ISNA(MATCH(CONCATENATE(AR$4,$A25),'Výsledková listina'!$N:$N,0)),"",INDEX('Výsledková listina'!$P:$P,MATCH(CONCATENATE(AR$4,$A25),'Výsledková listina'!$N:$N,0),1)) ->  | AX25: =IF(ISNA(MATCH(CONCATENATE(AX$4,$A25),'Výsledková listina'!$N:$N,0)),"",INDEX('Výsledková listina'!$C:$C,MATCH(CONCATENATE(AX$4,$A25),'Výsledková listina'!$N:$N,0),1)) ->  | AY25: =IF(ISNA(MATCH(CONCATENATE(AX$4,$A25),'Výsledková listina'!$N:$N,0)),"",INDEX('Výsledková listina'!$P:$P,MATCH(CONCATENATE(AX$4,$A25),'Výsledková listina'!$N:$N,0),1)) ->  | BD25: =IF(ISNA(MATCH(CONCATENATE(BD$4,$A25),'Výsledková listina'!$N:$N,0)),"",INDEX('Výsledková listina'!$C:$C,MATCH(CONCATENATE(BD$4,$A25),'Výsledková listina'!$N:$N,0),1)) ->  | BE25: =IF(ISNA(MATCH(CONCATENATE(BD$4,$A25),'Výsledková listina'!$N:$N,0)),"",INDEX('Výsledková listina'!$P:$P,MATCH(CONCATENATE(BD$4,$A25),'Výsledková listina'!$N:$N,0),1)) ->  | BJ25: =IF(ISNA(MATCH(CONCATENATE(BJ$4,$A25),'Výsledková listina'!$N:$N,0)),"",INDEX('Výsledková listina'!$C:$C,MATCH(CONCATENATE(BJ$4,$A25),'Výsledková listina'!$N:$N,0),1)) ->  | BK25: =IF(ISNA(MATCH(CONCATENATE(BJ$4,$A25),'Výsledková listina'!$N:$N,0)),"",INDEX('Výsledková listina'!$P:$P,MATCH(CONCATENATE(BJ$4,$A25),'Výsledková listina'!$N:$N,0),1)) ->  | BO25: =IF(ISNA(MATCH(CONCATENATE(BO$4,$A25),'Výsledková listina'!$N:$N,0)),"",INDEX('Výsledková listina'!$C:$C,MATCH(CONCATENATE(BO$4,$A25),'Výsledková listina'!$N:$N,0),1)) ->  | BP25: =IF(ISNA(MATCH(CONCATENATE(BO$4,$A25),'Výsledková listina'!$N:$N,0)),"",INDEX('Výsledková listina'!$P:$P,MATCH(CONCATENATE(BO$4,$A25),'Výsledková listina'!$N:$N,0),1)) ->  | BT25: =IF(ISNA(MATCH(CONCATENATE(BT$4,$A25),'Výsledková listina'!$N:$N,0)),"",INDEX('Výsledková listina'!$C:$C,MATCH(CONCATENATE(BT$4,$A25),'Výsledková listina'!$N:$N,0),1)) ->  | BU25: =IF(ISNA(MATCH(CONCATENATE(BT$4,$A25),'Výsledková listina'!$N:$N,0)),"",INDEX('Výsledková listina'!$P:$P,MATCH(CONCATENATE(BT$4,$A25),'Výsledková listina'!$N:$N,0),1)) ->  | BY25: =IF(ISNA(MATCH(CONCATENATE(BY$4,$A25),'Výsledková listina'!$N:$N,0)),"",INDEX('Výsledková listina'!$C:$C,MATCH(CONCATENATE(BY$4,$A25),'Výsledková listina'!$N:$N,0),1)) ->  | BZ25: =IF(ISNA(MATCH(CONCATENATE(BY$4,$A25),'Výsledková listina'!$N:$N,0)),"",INDEX('Výsledková listina'!$P:$P,MATCH(CONCATENATE(BY$4,$A25),'Výsledková listina'!$N:$N,0),1)) ->  | CD25: =IF(ISNA(MATCH(CONCATENATE(CD$4,$A25),'Výsledková listina'!$N:$N,0)),"",INDEX('Výsledková listina'!$C:$C,MATCH(CONCATENATE(CD$4,$A25),'Výsledková listina'!$N:$N,0),1)) ->  | CE25: =IF(ISNA(MATCH(CONCATENATE(CD$4,$A25),'Výsledková listina'!$N:$N,0)),"",INDEX('Výsledková listina'!$P:$P,MATCH(CONCATENATE(CD$4,$A25),'Výsledková listina'!$N:$N,0),1)) -> 
A26: 21 | B26: =IF(ISNA(MATCH(CONCATENATE(B$4,$A26),'Výsledková listina'!$N:$N,0)),"",INDEX('Výsledková listina'!$C:$C,MATCH(CONCATENATE(B$4,$A26),'Výsledková listina'!$N:$N,0),1)) ->  | C26: =IF(ISNA(MATCH(CONCATENATE(B$4,$A26),'Výsledková listina'!$N:$N,0)),"",INDEX('Výsledková listina'!$P:$P,MATCH(CONCATENATE(B$4,$A26),'Výsledková listina'!$N:$N,0),1)) ->  | H26: =IF(ISNA(MATCH(CONCATENATE(H$4,$A26),'Výsledková listina'!$N:$N,0)),"",INDEX('Výsledková listina'!$C:$C,MATCH(CONCATENATE(H$4,$A26),'Výsledková listina'!$N:$N,0),1)) ->  | I26: =IF(ISNA(MATCH(CONCATENATE(H$4,$A26),'Výsledková listina'!$N:$N,0)),"",INDEX('Výsledková listina'!$P:$P,MATCH(CONCATENATE(H$4,$A26),'Výsledková listina'!$N:$N,0),1)) ->  | N26: =IF(ISNA(MATCH(CONCATENATE(N$4,$A26),'Výsledková listina'!$N:$N,0)),"",INDEX('Výsledková listina'!$C:$C,MATCH(CONCATENATE(N$4,$A26),'Výsledková listina'!$N:$N,0),1)) ->  | O26: =IF(ISNA(MATCH(CONCATENATE(N$4,$A26),'Výsledková listina'!$N:$N,0)),"",INDEX('Výsledková listina'!$P:$P,MATCH(CONCATENATE(N$4,$A26),'Výsledková listina'!$N:$N,0),1)) ->  | T26: =IF(ISNA(MATCH(CONCATENATE(T$4,$A26),'Výsledková listina'!$N:$N,0)),"",INDEX('Výsledková listina'!$C:$C,MATCH(CONCATENATE(T$4,$A26),'Výsledková listina'!$N:$N,0),1)) ->  | U26: =IF(ISNA(MATCH(CONCATENATE(T$4,$A26),'Výsledková listina'!$N:$N,0)),"",INDEX('Výsledková listina'!$P:$P,MATCH(CONCATENATE(T$4,$A26),'Výsledková listina'!$N:$N,0),1)) ->  | Z26: =IF(ISNA(MATCH(CONCATENATE(Z$4,$A26),'Výsledková listina'!$N:$N,0)),"",INDEX('Výsledková listina'!$C:$C,MATCH(CONCATENATE(Z$4,$A26),'Výsledková listina'!$N:$N,0),1)) ->  | AA26: =IF(ISNA(MATCH(CONCATENATE(Z$4,$A26),'Výsledková listina'!$N:$N,0)),"",INDEX('Výsledková listina'!$P:$P,MATCH(CONCATENATE(Z$4,$A26),'Výsledková listina'!$N:$N,0),1)) ->  | AF26: =IF(ISNA(MATCH(CONCATENATE(AF$4,$A26),'Výsledková listina'!$N:$N,0)),"",INDEX('Výsledková listina'!$C:$C,MATCH(CONCATENATE(AF$4,$A26),'Výsledková listina'!$N:$N,0),1)) ->  | AG26: =IF(ISNA(MATCH(CONCATENATE(AF$4,$A26),'Výsledková listina'!$N:$N,0)),"",INDEX('Výsledková listina'!$P:$P,MATCH(CONCATENATE(AF$4,$A26),'Výsledková listina'!$N:$N,0),1)) ->  | AL26: =IF(ISNA(MATCH(CONCATENATE(AL$4,$A26),'Výsledková listina'!$N:$N,0)),"",INDEX('Výsledková listina'!$C:$C,MATCH(CONCATENATE(AL$4,$A26),'Výsledková listina'!$N:$N,0),1)) ->  | AM26: =IF(ISNA(MATCH(CONCATENATE(AL$4,$A26),'Výsledková listina'!$N:$N,0)),"",INDEX('Výsledková listina'!$P:$P,MATCH(CONCATENATE(AL$4,$A26),'Výsledková listina'!$N:$N,0),1)) ->  | AR26: =IF(ISNA(MATCH(CONCATENATE(AR$4,$A26),'Výsledková listina'!$N:$N,0)),"",INDEX('Výsledková listina'!$C:$C,MATCH(CONCATENATE(AR$4,$A26),'Výsledková listina'!$N:$N,0),1)) ->  | AS26: =IF(ISNA(MATCH(CONCATENATE(AR$4,$A26),'Výsledková listina'!$N:$N,0)),"",INDEX('Výsledková listina'!$P:$P,MATCH(CONCATENATE(AR$4,$A26),'Výsledková listina'!$N:$N,0),1)) ->  | AX26: =IF(ISNA(MATCH(CONCATENATE(AX$4,$A26),'Výsledková listina'!$N:$N,0)),"",INDEX('Výsledková listina'!$C:$C,MATCH(CONCATENATE(AX$4,$A26),'Výsledková listina'!$N:$N,0),1)) ->  | AY26: =IF(ISNA(MATCH(CONCATENATE(AX$4,$A26),'Výsledková listina'!$N:$N,0)),"",INDEX('Výsledková listina'!$P:$P,MATCH(CONCATENATE(AX$4,$A26),'Výsledková listina'!$N:$N,0),1)) ->  | BD26: =IF(ISNA(MATCH(CONCATENATE(BD$4,$A26),'Výsledková listina'!$N:$N,0)),"",INDEX('Výsledková listina'!$C:$C,MATCH(CONCATENATE(BD$4,$A26),'Výsledková listina'!$N:$N,0),1)) ->  | BE26: =IF(ISNA(MATCH(CONCATENATE(BD$4,$A26),'Výsledková listina'!$N:$N,0)),"",INDEX('Výsledková listina'!$P:$P,MATCH(CONCATENATE(BD$4,$A26),'Výsledková listina'!$N:$N,0),1)) ->  | BJ26: =IF(ISNA(MATCH(CONCATENATE(BJ$4,$A26),'Výsledková listina'!$N:$N,0)),"",INDEX('Výsledková listina'!$C:$C,MATCH(CONCATENATE(BJ$4,$A26),'Výsledková listina'!$N:$N,0),1)) ->  | BK26: =IF(ISNA(MATCH(CONCATENATE(BJ$4,$A26),'Výsledková listina'!$N:$N,0)),"",INDEX('Výsledková listina'!$P:$P,MATCH(CONCATENATE(BJ$4,$A26),'Výsledková listina'!$N:$N,0),1)) ->  | BO26: =IF(ISNA(MATCH(CONCATENATE(BO$4,$A26),'Výsledková listina'!$N:$N,0)),"",INDEX('Výsledková listina'!$C:$C,MATCH(CONCATENATE(BO$4,$A26),'Výsledková listina'!$N:$N,0),1)) ->  | BP26: =IF(ISNA(MATCH(CONCATENATE(BO$4,$A26),'Výsledková listina'!$N:$N,0)),"",INDEX('Výsledková listina'!$P:$P,MATCH(CONCATENATE(BO$4,$A26),'Výsledková listina'!$N:$N,0),1)) ->  | BT26: =IF(ISNA(MATCH(CONCATENATE(BT$4,$A26),'Výsledková listina'!$N:$N,0)),"",INDEX('Výsledková listina'!$C:$C,MATCH(CONCATENATE(BT$4,$A26),'Výsledková listina'!$N:$N,0),1)) ->  | BU26: =IF(ISNA(MATCH(CONCATENATE(BT$4,$A26),'Výsledková listina'!$N:$N,0)),"",INDEX('Výsledková listina'!$P:$P,MATCH(CONCATENATE(BT$4,$A26),'Výsledková listina'!$N:$N,0),1)) ->  | BY26: =IF(ISNA(MATCH(CONCATENATE(BY$4,$A26),'Výsledková listina'!$N:$N,0)),"",INDEX('Výsledková listina'!$C:$C,MATCH(CONCATENATE(BY$4,$A26),'Výsledková listina'!$N:$N,0),1)) ->  | BZ26: =IF(ISNA(MATCH(CONCATENATE(BY$4,$A26),'Výsledková listina'!$N:$N,0)),"",INDEX('Výsledková listina'!$P:$P,MATCH(CONCATENATE(BY$4,$A26),'Výsledková listina'!$N:$N,0),1)) ->  | CD26: =IF(ISNA(MATCH(CONCATENATE(CD$4,$A26),'Výsledková listina'!$N:$N,0)),"",INDEX('Výsledková listina'!$C:$C,MATCH(CONCATENATE(CD$4,$A26),'Výsledková listina'!$N:$N,0),1)) ->  | CE26: =IF(ISNA(MATCH(CONCATENATE(CD$4,$A26),'Výsledková listina'!$N:$N,0)),"",INDEX('Výsledková listina'!$P:$P,MATCH(CONCATENATE(CD$4,$A26),'Výsledková listina'!$N:$N,0),1)) -> 
A27: 22 | B27: =IF(ISNA(MATCH(CONCATENATE(B$4,$A27),'Výsledková listina'!$N:$N,0)),"",INDEX('Výsledková listina'!$C:$C,MATCH(CONCATENATE(B$4,$A27),'Výsledková listina'!$N:$N,0),1)) ->  | C27: =IF(ISNA(MATCH(CONCATENATE(B$4,$A27),'Výsledková listina'!$N:$N,0)),"",INDEX('Výsledková listina'!$P:$P,MATCH(CONCATENATE(B$4,$A27),'Výsledková listina'!$N:$N,0),1)) ->  | H27: =IF(ISNA(MATCH(CONCATENATE(H$4,$A27),'Výsledková listina'!$N:$N,0)),"",INDEX('Výsledková listina'!$C:$C,MATCH(CONCATENATE(H$4,$A27),'Výsledková listina'!$N:$N,0),1)) ->  | I27: =IF(ISNA(MATCH(CONCATENATE(H$4,$A27),'Výsledková listina'!$N:$N,0)),"",INDEX('Výsledková listina'!$P:$P,MATCH(CONCATENATE(H$4,$A27),'Výsledková listina'!$N:$N,0),1)) ->  | N27: =IF(ISNA(MATCH(CONCATENATE(N$4,$A27),'Výsledková listina'!$N:$N,0)),"",INDEX('Výsledková listina'!$C:$C,MATCH(CONCATENATE(N$4,$A27),'Výsledková listina'!$N:$N,0),1)) ->  | O27: =IF(ISNA(MATCH(CONCATENATE(N$4,$A27),'Výsledková listina'!$N:$N,0)),"",INDEX('Výsledková listina'!$P:$P,MATCH(CONCATENATE(N$4,$A27),'Výsledková listina'!$N:$N,0),1)) ->  | T27: =IF(ISNA(MATCH(CONCATENATE(T$4,$A27),'Výsledková listina'!$N:$N,0)),"",INDEX('Výsledková listina'!$C:$C,MATCH(CONCATENATE(T$4,$A27),'Výsledková listina'!$N:$N,0),1)) ->  | U27: =IF(ISNA(MATCH(CONCATENATE(T$4,$A27),'Výsledková listina'!$N:$N,0)),"",INDEX('Výsledková listina'!$P:$P,MATCH(CONCATENATE(T$4,$A27),'Výsledková listina'!$N:$N,0),1)) ->  | Z27: =IF(ISNA(MATCH(CONCATENATE(Z$4,$A27),'Výsledková listina'!$N:$N,0)),"",INDEX('Výsledková listina'!$C:$C,MATCH(CONCATENATE(Z$4,$A27),'Výsledková listina'!$N:$N,0),1)) ->  | AA27: =IF(ISNA(MATCH(CONCATENATE(Z$4,$A27),'Výsledková listina'!$N:$N,0)),"",INDEX('Výsledková listina'!$P:$P,MATCH(CONCATENATE(Z$4,$A27),'Výsledková listina'!$N:$N,0),1)) ->  | AF27: =IF(ISNA(MATCH(CONCATENATE(AF$4,$A27),'Výsledková listina'!$N:$N,0)),"",INDEX('Výsledková listina'!$C:$C,MATCH(CONCATENATE(AF$4,$A27),'Výsledková listina'!$N:$N,0),1)) ->  | AG27: =IF(ISNA(MATCH(CONCATENATE(AF$4,$A27),'Výsledková listina'!$N:$N,0)),"",INDEX('Výsledková listina'!$P:$P,MATCH(CONCATENATE(AF$4,$A27),'Výsledková listina'!$N:$N,0),1)) ->  | AL27: =IF(ISNA(MATCH(CONCATENATE(AL$4,$A27),'Výsledková listina'!$N:$N,0)),"",INDEX('Výsledková listina'!$C:$C,MATCH(CONCATENATE(AL$4,$A27),'Výsledková listina'!$N:$N,0),1)) ->  | AM27: =IF(ISNA(MATCH(CONCATENATE(AL$4,$A27),'Výsledková listina'!$N:$N,0)),"",INDEX('Výsledková listina'!$P:$P,MATCH(CONCATENATE(AL$4,$A27),'Výsledková listina'!$N:$N,0),1)) ->  | AR27: =IF(ISNA(MATCH(CONCATENATE(AR$4,$A27),'Výsledková listina'!$N:$N,0)),"",INDEX('Výsledková listina'!$C:$C,MATCH(CONCATENATE(AR$4,$A27),'Výsledková listina'!$N:$N,0),1)) ->  | AS27: =IF(ISNA(MATCH(CONCATENATE(AR$4,$A27),'Výsledková listina'!$N:$N,0)),"",INDEX('Výsledková listina'!$P:$P,MATCH(CONCATENATE(AR$4,$A27),'Výsledková listina'!$N:$N,0),1)) ->  | AX27: =IF(ISNA(MATCH(CONCATENATE(AX$4,$A27),'Výsledková listina'!$N:$N,0)),"",INDEX('Výsledková listina'!$C:$C,MATCH(CONCATENATE(AX$4,$A27),'Výsledková listina'!$N:$N,0),1)) ->  | AY27: =IF(ISNA(MATCH(CONCATENATE(AX$4,$A27),'Výsledková listina'!$N:$N,0)),"",INDEX('Výsledková listina'!$P:$P,MATCH(CONCATENATE(AX$4,$A27),'Výsledková listina'!$N:$N,0),1)) ->  | BD27: =IF(ISNA(MATCH(CONCATENATE(BD$4,$A27),'Výsledková listina'!$N:$N,0)),"",INDEX('Výsledková listina'!$C:$C,MATCH(CONCATENATE(BD$4,$A27),'Výsledková listina'!$N:$N,0),1)) ->  | BE27: =IF(ISNA(MATCH(CONCATENATE(BD$4,$A27),'Výsledková listina'!$N:$N,0)),"",INDEX('Výsledková listina'!$P:$P,MATCH(CONCATENATE(BD$4,$A27),'Výsledková listina'!$N:$N,0),1)) ->  | BJ27: =IF(ISNA(MATCH(CONCATENATE(BJ$4,$A27),'Výsledková listina'!$N:$N,0)),"",INDEX('Výsledková listina'!$C:$C,MATCH(CONCATENATE(BJ$4,$A27),'Výsledková listina'!$N:$N,0),1)) ->  | BK27: =IF(ISNA(MATCH(CONCATENATE(BJ$4,$A27),'Výsledková listina'!$N:$N,0)),"",INDEX('Výsledková listina'!$P:$P,MATCH(CONCATENATE(BJ$4,$A27),'Výsledková listina'!$N:$N,0),1)) ->  | BO27: =IF(ISNA(MATCH(CONCATENATE(BO$4,$A27),'Výsledková listina'!$N:$N,0)),"",INDEX('Výsledková listina'!$C:$C,MATCH(CONCATENATE(BO$4,$A27),'Výsledková listina'!$N:$N,0),1)) ->  | BP27: =IF(ISNA(MATCH(CONCATENATE(BO$4,$A27),'Výsledková listina'!$N:$N,0)),"",INDEX('Výsledková listina'!$P:$P,MATCH(CONCATENATE(BO$4,$A27),'Výsledková listina'!$N:$N,0),1)) ->  | BT27: =IF(ISNA(MATCH(CONCATENATE(BT$4,$A27),'Výsledková listina'!$N:$N,0)),"",INDEX('Výsledková listina'!$C:$C,MATCH(CONCATENATE(BT$4,$A27),'Výsledková listina'!$N:$N,0),1)) ->  | BU27: =IF(ISNA(MATCH(CONCATENATE(BT$4,$A27),'Výsledková listina'!$N:$N,0)),"",INDEX('Výsledková listina'!$P:$P,MATCH(CONCATENATE(BT$4,$A27),'Výsledková listina'!$N:$N,0),1)) ->  | BY27: =IF(ISNA(MATCH(CONCATENATE(BY$4,$A27),'Výsledková listina'!$N:$N,0)),"",INDEX('Výsledková listina'!$C:$C,MATCH(CONCATENATE(BY$4,$A27),'Výsledková listina'!$N:$N,0),1)) ->  | BZ27: =IF(ISNA(MATCH(CONCATENATE(BY$4,$A27),'Výsledková listina'!$N:$N,0)),"",INDEX('Výsledková listina'!$P:$P,MATCH(CONCATENATE(BY$4,$A27),'Výsledková listina'!$N:$N,0),1)) ->  | CD27: =IF(ISNA(MATCH(CONCATENATE(CD$4,$A27),'Výsledková listina'!$N:$N,0)),"",INDEX('Výsledková listina'!$C:$C,MATCH(CONCATENATE(CD$4,$A27),'Výsledková listina'!$N:$N,0),1)) ->  | CE27: =IF(ISNA(MATCH(CONCATENATE(CD$4,$A27),'Výsledková listina'!$N:$N,0)),"",INDEX('Výsledková listina'!$P:$P,MATCH(CONCATENATE(CD$4,$A27),'Výsledková listina'!$N:$N,0),1)) -> 
A28: 23 | B28: =IF(ISNA(MATCH(CONCATENATE(B$4,$A28),'Výsledková listina'!$N:$N,0)),"",INDEX('Výsledková listina'!$C:$C,MATCH(CONCATENATE(B$4,$A28),'Výsledková listina'!$N:$N,0),1)) ->  | C28: =IF(ISNA(MATCH(CONCATENATE(B$4,$A28),'Výsledková listina'!$N:$N,0)),"",INDEX('Výsledková listina'!$P:$P,MATCH(CONCATENATE(B$4,$A28),'Výsledková listina'!$N:$N,0),1)) ->  | H28: =IF(ISNA(MATCH(CONCATENATE(H$4,$A28),'Výsledková listina'!$N:$N,0)),"",INDEX('Výsledková listina'!$C:$C,MATCH(CONCATENATE(H$4,$A28),'Výsledková listina'!$N:$N,0),1)) ->  | I28: =IF(ISNA(MATCH(CONCATENATE(H$4,$A28),'Výsledková listina'!$N:$N,0)),"",INDEX('Výsledková listina'!$P:$P,MATCH(CONCATENATE(H$4,$A28),'Výsledková listina'!$N:$N,0),1)) ->  | N28: =IF(ISNA(MATCH(CONCATENATE(N$4,$A28),'Výsledková listina'!$N:$N,0)),"",INDEX('Výsledková listina'!$C:$C,MATCH(CONCATENATE(N$4,$A28),'Výsledková listina'!$N:$N,0),1)) ->  | O28: =IF(ISNA(MATCH(CONCATENATE(N$4,$A28),'Výsledková listina'!$N:$N,0)),"",INDEX('Výsledková listina'!$P:$P,MATCH(CONCATENATE(N$4,$A28),'Výsledková listina'!$N:$N,0),1)) ->  | T28: =IF(ISNA(MATCH(CONCATENATE(T$4,$A28),'Výsledková listina'!$N:$N,0)),"",INDEX('Výsledková listina'!$C:$C,MATCH(CONCATENATE(T$4,$A28),'Výsledková listina'!$N:$N,0),1)) ->  | U28: =IF(ISNA(MATCH(CONCATENATE(T$4,$A28),'Výsledková listina'!$N:$N,0)),"",INDEX('Výsledková listina'!$P:$P,MATCH(CONCATENATE(T$4,$A28),'Výsledková listina'!$N:$N,0),1)) ->  | Z28: =IF(ISNA(MATCH(CONCATENATE(Z$4,$A28),'Výsledková listina'!$N:$N,0)),"",INDEX('Výsledková listina'!$C:$C,MATCH(CONCATENATE(Z$4,$A28),'Výsledková listina'!$N:$N,0),1)) ->  | AA28: =IF(ISNA(MATCH(CONCATENATE(Z$4,$A28),'Výsledková listina'!$N:$N,0)),"",INDEX('Výsledková listina'!$P:$P,MATCH(CONCATENATE(Z$4,$A28),'Výsledková listina'!$N:$N,0),1)) ->  | AF28: =IF(ISNA(MATCH(CONCATENATE(AF$4,$A28),'Výsledková listina'!$N:$N,0)),"",INDEX('Výsledková listina'!$C:$C,MATCH(CONCATENATE(AF$4,$A28),'Výsledková listina'!$N:$N,0),1)) ->  | AG28: =IF(ISNA(MATCH(CONCATENATE(AF$4,$A28),'Výsledková listina'!$N:$N,0)),"",INDEX('Výsledková listina'!$P:$P,MATCH(CONCATENATE(AF$4,$A28),'Výsledková listina'!$N:$N,0),1)) ->  | AL28: =IF(ISNA(MATCH(CONCATENATE(AL$4,$A28),'Výsledková listina'!$N:$N,0)),"",INDEX('Výsledková listina'!$C:$C,MATCH(CONCATENATE(AL$4,$A28),'Výsledková listina'!$N:$N,0),1)) ->  | AM28: =IF(ISNA(MATCH(CONCATENATE(AL$4,$A28),'Výsledková listina'!$N:$N,0)),"",INDEX('Výsledková listina'!$P:$P,MATCH(CONCATENATE(AL$4,$A28),'Výsledková listina'!$N:$N,0),1)) ->  | AR28: =IF(ISNA(MATCH(CONCATENATE(AR$4,$A28),'Výsledková listina'!$N:$N,0)),"",INDEX('Výsledková listina'!$C:$C,MATCH(CONCATENATE(AR$4,$A28),'Výsledková listina'!$N:$N,0),1)) ->  | AS28: =IF(ISNA(MATCH(CONCATENATE(AR$4,$A28),'Výsledková listina'!$N:$N,0)),"",INDEX('Výsledková listina'!$P:$P,MATCH(CONCATENATE(AR$4,$A28),'Výsledková listina'!$N:$N,0),1)) ->  | AX28: =IF(ISNA(MATCH(CONCATENATE(AX$4,$A28),'Výsledková listina'!$N:$N,0)),"",INDEX('Výsledková listina'!$C:$C,MATCH(CONCATENATE(AX$4,$A28),'Výsledková listina'!$N:$N,0),1)) ->  | AY28: =IF(ISNA(MATCH(CONCATENATE(AX$4,$A28),'Výsledková listina'!$N:$N,0)),"",INDEX('Výsledková listina'!$P:$P,MATCH(CONCATENATE(AX$4,$A28),'Výsledková listina'!$N:$N,0),1)) ->  | BD28: =IF(ISNA(MATCH(CONCATENATE(BD$4,$A28),'Výsledková listina'!$N:$N,0)),"",INDEX('Výsledková listina'!$C:$C,MATCH(CONCATENATE(BD$4,$A28),'Výsledková listina'!$N:$N,0),1)) ->  | BE28: =IF(ISNA(MATCH(CONCATENATE(BD$4,$A28),'Výsledková listina'!$N:$N,0)),"",INDEX('Výsledková listina'!$P:$P,MATCH(CONCATENATE(BD$4,$A28),'Výsledková listina'!$N:$N,0),1)) ->  | BJ28: =IF(ISNA(MATCH(CONCATENATE(BJ$4,$A28),'Výsledková listina'!$N:$N,0)),"",INDEX('Výsledková listina'!$C:$C,MATCH(CONCATENATE(BJ$4,$A28),'Výsledková listina'!$N:$N,0),1)) ->  | BK28: =IF(ISNA(MATCH(CONCATENATE(BJ$4,$A28),'Výsledková listina'!$N:$N,0)),"",INDEX('Výsledková listina'!$P:$P,MATCH(CONCATENATE(BJ$4,$A28),'Výsledková listina'!$N:$N,0),1)) ->  | BO28: =IF(ISNA(MATCH(CONCATENATE(BO$4,$A28),'Výsledková listina'!$N:$N,0)),"",INDEX('Výsledková listina'!$C:$C,MATCH(CONCATENATE(BO$4,$A28),'Výsledková listina'!$N:$N,0),1)) ->  | BP28: =IF(ISNA(MATCH(CONCATENATE(BO$4,$A28),'Výsledková listina'!$N:$N,0)),"",INDEX('Výsledková listina'!$P:$P,MATCH(CONCATENATE(BO$4,$A28),'Výsledková listina'!$N:$N,0),1)) ->  | BT28: =IF(ISNA(MATCH(CONCATENATE(BT$4,$A28),'Výsledková listina'!$N:$N,0)),"",INDEX('Výsledková listina'!$C:$C,MATCH(CONCATENATE(BT$4,$A28),'Výsledková listina'!$N:$N,0),1)) ->  | BU28: =IF(ISNA(MATCH(CONCATENATE(BT$4,$A28),'Výsledková listina'!$N:$N,0)),"",INDEX('Výsledková listina'!$P:$P,MATCH(CONCATENATE(BT$4,$A28),'Výsledková listina'!$N:$N,0),1)) ->  | BY28: =IF(ISNA(MATCH(CONCATENATE(BY$4,$A28),'Výsledková listina'!$N:$N,0)),"",INDEX('Výsledková listina'!$C:$C,MATCH(CONCATENATE(BY$4,$A28),'Výsledková listina'!$N:$N,0),1)) ->  | BZ28: =IF(ISNA(MATCH(CONCATENATE(BY$4,$A28),'Výsledková listina'!$N:$N,0)),"",INDEX('Výsledková listina'!$P:$P,MATCH(CONCATENATE(BY$4,$A28),'Výsledková listina'!$N:$N,0),1)) ->  | CD28: =IF(ISNA(MATCH(CONCATENATE(CD$4,$A28),'Výsledková listina'!$N:$N,0)),"",INDEX('Výsledková listina'!$C:$C,MATCH(CONCATENATE(CD$4,$A28),'Výsledková listina'!$N:$N,0),1)) ->  | CE28: =IF(ISNA(MATCH(CONCATENATE(CD$4,$A28),'Výsledková listina'!$N:$N,0)),"",INDEX('Výsledková listina'!$P:$P,MATCH(CONCATENATE(CD$4,$A28),'Výsledková listina'!$N:$N,0),1)) -> 
A29: 24 | B29: =IF(ISNA(MATCH(CONCATENATE(B$4,$A29),'Výsledková listina'!$N:$N,0)),"",INDEX('Výsledková listina'!$C:$C,MATCH(CONCATENATE(B$4,$A29),'Výsledková listina'!$N:$N,0),1)) ->  | C29: =IF(ISNA(MATCH(CONCATENATE(B$4,$A29),'Výsledková listina'!$N:$N,0)),"",INDEX('Výsledková listina'!$P:$P,MATCH(CONCATENATE(B$4,$A29),'Výsledková listina'!$N:$N,0),1)) ->  | H29: =IF(ISNA(MATCH(CONCATENATE(H$4,$A29),'Výsledková listina'!$N:$N,0)),"",INDEX('Výsledková listina'!$C:$C,MATCH(CONCATENATE(H$4,$A29),'Výsledková listina'!$N:$N,0),1)) ->  | I29: =IF(ISNA(MATCH(CONCATENATE(H$4,$A29),'Výsledková listina'!$N:$N,0)),"",INDEX('Výsledková listina'!$P:$P,MATCH(CONCATENATE(H$4,$A29),'Výsledková listina'!$N:$N,0),1)) ->  | N29: =IF(ISNA(MATCH(CONCATENATE(N$4,$A29),'Výsledková listina'!$N:$N,0)),"",INDEX('Výsledková listina'!$C:$C,MATCH(CONCATENATE(N$4,$A29),'Výsledková listina'!$N:$N,0),1)) ->  | O29: =IF(ISNA(MATCH(CONCATENATE(N$4,$A29),'Výsledková listina'!$N:$N,0)),"",INDEX('Výsledková listina'!$P:$P,MATCH(CONCATENATE(N$4,$A29),'Výsledková listina'!$N:$N,0),1)) ->  | T29: =IF(ISNA(MATCH(CONCATENATE(T$4,$A29),'Výsledková listina'!$N:$N,0)),"",INDEX('Výsledková listina'!$C:$C,MATCH(CONCATENATE(T$4,$A29),'Výsledková listina'!$N:$N,0),1)) ->  | U29: =IF(ISNA(MATCH(CONCATENATE(T$4,$A29),'Výsledková listina'!$N:$N,0)),"",INDEX('Výsledková listina'!$P:$P,MATCH(CONCATENATE(T$4,$A29),'Výsledková listina'!$N:$N,0),1)) ->  | Z29: =IF(ISNA(MATCH(CONCATENATE(Z$4,$A29),'Výsledková listina'!$N:$N,0)),"",INDEX('Výsledková listina'!$C:$C,MATCH(CONCATENATE(Z$4,$A29),'Výsledková listina'!$N:$N,0),1)) ->  | AA29: =IF(ISNA(MATCH(CONCATENATE(Z$4,$A29),'Výsledková listina'!$N:$N,0)),"",INDEX('Výsledková listina'!$P:$P,MATCH(CONCATENATE(Z$4,$A29),'Výsledková listina'!$N:$N,0),1)) ->  | AF29: =IF(ISNA(MATCH(CONCATENATE(AF$4,$A29),'Výsledková listina'!$N:$N,0)),"",INDEX('Výsledková listina'!$C:$C,MATCH(CONCATENATE(AF$4,$A29),'Výsledková listina'!$N:$N,0),1)) ->  | AG29: =IF(ISNA(MATCH(CONCATENATE(AF$4,$A29),'Výsledková listina'!$N:$N,0)),"",INDEX('Výsledková listina'!$P:$P,MATCH(CONCATENATE(AF$4,$A29),'Výsledková listina'!$N:$N,0),1)) ->  | AL29: =IF(ISNA(MATCH(CONCATENATE(AL$4,$A29),'Výsledková listina'!$N:$N,0)),"",INDEX('Výsledková listina'!$C:$C,MATCH(CONCATENATE(AL$4,$A29),'Výsledková listina'!$N:$N,0),1)) ->  | AM29: =IF(ISNA(MATCH(CONCATENATE(AL$4,$A29),'Výsledková listina'!$N:$N,0)),"",INDEX('Výsledková listina'!$P:$P,MATCH(CONCATENATE(AL$4,$A29),'Výsledková listina'!$N:$N,0),1)) ->  | AR29: =IF(ISNA(MATCH(CONCATENATE(AR$4,$A29),'Výsledková listina'!$N:$N,0)),"",INDEX('Výsledková listina'!$C:$C,MATCH(CONCATENATE(AR$4,$A29),'Výsledková listina'!$N:$N,0),1)) ->  | AS29: =IF(ISNA(MATCH(CONCATENATE(AR$4,$A29),'Výsledková listina'!$N:$N,0)),"",INDEX('Výsledková listina'!$P:$P,MATCH(CONCATENATE(AR$4,$A29),'Výsledková listina'!$N:$N,0),1)) ->  | AX29: =IF(ISNA(MATCH(CONCATENATE(AX$4,$A29),'Výsledková listina'!$N:$N,0)),"",INDEX('Výsledková listina'!$C:$C,MATCH(CONCATENATE(AX$4,$A29),'Výsledková listina'!$N:$N,0),1)) ->  | AY29: =IF(ISNA(MATCH(CONCATENATE(AX$4,$A29),'Výsledková listina'!$N:$N,0)),"",INDEX('Výsledková listina'!$P:$P,MATCH(CONCATENATE(AX$4,$A29),'Výsledková listina'!$N:$N,0),1)) ->  | BD29: =IF(ISNA(MATCH(CONCATENATE(BD$4,$A29),'Výsledková listina'!$N:$N,0)),"",INDEX('Výsledková listina'!$C:$C,MATCH(CONCATENATE(BD$4,$A29),'Výsledková listina'!$N:$N,0),1)) ->  | BE29: =IF(ISNA(MATCH(CONCATENATE(BD$4,$A29),'Výsledková listina'!$N:$N,0)),"",INDEX('Výsledková listina'!$P:$P,MATCH(CONCATENATE(BD$4,$A29),'Výsledková listina'!$N:$N,0),1)) ->  | BJ29: =IF(ISNA(MATCH(CONCATENATE(BJ$4,$A29),'Výsledková listina'!$N:$N,0)),"",INDEX('Výsledková listina'!$C:$C,MATCH(CONCATENATE(BJ$4,$A29),'Výsledková listina'!$N:$N,0),1)) ->  | BK29: =IF(ISNA(MATCH(CONCATENATE(BJ$4,$A29),'Výsledková listina'!$N:$N,0)),"",INDEX('Výsledková listina'!$P:$P,MATCH(CONCATENATE(BJ$4,$A29),'Výsledková listina'!$N:$N,0),1)) ->  | BO29: =IF(ISNA(MATCH(CONCATENATE(BO$4,$A29),'Výsledková listina'!$N:$N,0)),"",INDEX('Výsledková listina'!$C:$C,MATCH(CONCATENATE(BO$4,$A29),'Výsledková listina'!$N:$N,0),1)) ->  | BP29: =IF(ISNA(MATCH(CONCATENATE(BO$4,$A29),'Výsledková listina'!$N:$N,0)),"",INDEX('Výsledková listina'!$P:$P,MATCH(CONCATENATE(BO$4,$A29),'Výsledková listina'!$N:$N,0),1)) ->  | BT29: =IF(ISNA(MATCH(CONCATENATE(BT$4,$A29),'Výsledková listina'!$N:$N,0)),"",INDEX('Výsledková listina'!$C:$C,MATCH(CONCATENATE(BT$4,$A29),'Výsledková listina'!$N:$N,0),1)) ->  | BU29: =IF(ISNA(MATCH(CONCATENATE(BT$4,$A29),'Výsledková listina'!$N:$N,0)),"",INDEX('Výsledková listina'!$P:$P,MATCH(CONCATENATE(BT$4,$A29),'Výsledková listina'!$N:$N,0),1)) ->  | BY29: =IF(ISNA(MATCH(CONCATENATE(BY$4,$A29),'Výsledková listina'!$N:$N,0)),"",INDEX('Výsledková listina'!$C:$C,MATCH(CONCATENATE(BY$4,$A29),'Výsledková listina'!$N:$N,0),1)) ->  | BZ29: =IF(ISNA(MATCH(CONCATENATE(BY$4,$A29),'Výsledková listina'!$N:$N,0)),"",INDEX('Výsledková listina'!$P:$P,MATCH(CONCATENATE(BY$4,$A29),'Výsledková listina'!$N:$N,0),1)) ->  | CD29: =IF(ISNA(MATCH(CONCATENATE(CD$4,$A29),'Výsledková listina'!$N:$N,0)),"",INDEX('Výsledková listina'!$C:$C,MATCH(CONCATENATE(CD$4,$A29),'Výsledková listina'!$N:$N,0),1)) ->  | CE29: =IF(ISNA(MATCH(CONCATENATE(CD$4,$A29),'Výsledková listina'!$N:$N,0)),"",INDEX('Výsledková listina'!$P:$P,MATCH(CONCATENATE(CD$4,$A29),'Výsledková listina'!$N:$N,0),1)) -> 
A30: 25 | B30: =IF(ISNA(MATCH(CONCATENATE(B$4,$A30),'Výsledková listina'!$N:$N,0)),"",INDEX('Výsledková listina'!$C:$C,MATCH(CONCATENATE(B$4,$A30),'Výsledková listina'!$N:$N,0),1)) ->  | C30: =IF(ISNA(MATCH(CONCATENATE(B$4,$A30),'Výsledková listina'!$N:$N,0)),"",INDEX('Výsledková listina'!$P:$P,MATCH(CONCATENATE(B$4,$A30),'Výsledková listina'!$N:$N,0),1)) ->  | H30: =IF(ISNA(MATCH(CONCATENATE(H$4,$A30),'Výsledková listina'!$N:$N,0)),"",INDEX('Výsledková listina'!$C:$C,MATCH(CONCATENATE(H$4,$A30),'Výsledková listina'!$N:$N,0),1)) ->  | I30: =IF(ISNA(MATCH(CONCATENATE(H$4,$A30),'Výsledková listina'!$N:$N,0)),"",INDEX('Výsledková listina'!$P:$P,MATCH(CONCATENATE(H$4,$A30),'Výsledková listina'!$N:$N,0),1)) ->  | N30: =IF(ISNA(MATCH(CONCATENATE(N$4,$A30),'Výsledková listina'!$N:$N,0)),"",INDEX('Výsledková listina'!$C:$C,MATCH(CONCATENATE(N$4,$A30),'Výsledková listina'!$N:$N,0),1)) ->  | O30: =IF(ISNA(MATCH(CONCATENATE(N$4,$A30),'Výsledková listina'!$N:$N,0)),"",INDEX('Výsledková listina'!$P:$P,MATCH(CONCATENATE(N$4,$A30),'Výsledková listina'!$N:$N,0),1)) ->  | T30: =IF(ISNA(MATCH(CONCATENATE(T$4,$A30),'Výsledková listina'!$N:$N,0)),"",INDEX('Výsledková listina'!$C:$C,MATCH(CONCATENATE(T$4,$A30),'Výsledková listina'!$N:$N,0),1)) ->  | U30: =IF(ISNA(MATCH(CONCATENATE(T$4,$A30),'Výsledková listina'!$N:$N,0)),"",INDEX('Výsledková listina'!$P:$P,MATCH(CONCATENATE(T$4,$A30),'Výsledková listina'!$N:$N,0),1)) ->  | Z30: =IF(ISNA(MATCH(CONCATENATE(Z$4,$A30),'Výsledková listina'!$N:$N,0)),"",INDEX('Výsledková listina'!$C:$C,MATCH(CONCATENATE(Z$4,$A30),'Výsledková listina'!$N:$N,0),1)) ->  | AA30: =IF(ISNA(MATCH(CONCATENATE(Z$4,$A30),'Výsledková listina'!$N:$N,0)),"",INDEX('Výsledková listina'!$P:$P,MATCH(CONCATENATE(Z$4,$A30),'Výsledková listina'!$N:$N,0),1)) ->  | AF30: =IF(ISNA(MATCH(CONCATENATE(AF$4,$A30),'Výsledková listina'!$N:$N,0)),"",INDEX('Výsledková listina'!$C:$C,MATCH(CONCATENATE(AF$4,$A30),'Výsledková listina'!$N:$N,0),1)) ->  | AG30: =IF(ISNA(MATCH(CONCATENATE(AF$4,$A30),'Výsledková listina'!$N:$N,0)),"",INDEX('Výsledková listina'!$P:$P,MATCH(CONCATENATE(AF$4,$A30),'Výsledková listina'!$N:$N,0),1)) ->  | AL30: =IF(ISNA(MATCH(CONCATENATE(AL$4,$A30),'Výsledková listina'!$N:$N,0)),"",INDEX('Výsledková listina'!$C:$C,MATCH(CONCATENATE(AL$4,$A30),'Výsledková listina'!$N:$N,0),1)) ->  | AM30: =IF(ISNA(MATCH(CONCATENATE(AL$4,$A30),'Výsledková listina'!$N:$N,0)),"",INDEX('Výsledková listina'!$P:$P,MATCH(CONCATENATE(AL$4,$A30),'Výsledková listina'!$N:$N,0),1)) ->  | AR30: =IF(ISNA(MATCH(CONCATENATE(AR$4,$A30),'Výsledková listina'!$N:$N,0)),"",INDEX('Výsledková listina'!$C:$C,MATCH(CONCATENATE(AR$4,$A30),'Výsledková listina'!$N:$N,0),1)) ->  | AS30: =IF(ISNA(MATCH(CONCATENATE(AR$4,$A30),'Výsledková listina'!$N:$N,0)),"",INDEX('Výsledková listina'!$P:$P,MATCH(CONCATENATE(AR$4,$A30),'Výsledková listina'!$N:$N,0),1)) ->  | AX30: =IF(ISNA(MATCH(CONCATENATE(AX$4,$A30),'Výsledková listina'!$N:$N,0)),"",INDEX('Výsledková listina'!$C:$C,MATCH(CONCATENATE(AX$4,$A30),'Výsledková listina'!$N:$N,0),1)) ->  | AY30: =IF(ISNA(MATCH(CONCATENATE(AX$4,$A30),'Výsledková listina'!$N:$N,0)),"",INDEX('Výsledková listina'!$P:$P,MATCH(CONCATENATE(AX$4,$A30),'Výsledková listina'!$N:$N,0),1)) ->  | BD30: =IF(ISNA(MATCH(CONCATENATE(BD$4,$A30),'Výsledková listina'!$N:$N,0)),"",INDEX('Výsledková listina'!$C:$C,MATCH(CONCATENATE(BD$4,$A30),'Výsledková listina'!$N:$N,0),1)) ->  | BE30: =IF(ISNA(MATCH(CONCATENATE(BD$4,$A30),'Výsledková listina'!$N:$N,0)),"",INDEX('Výsledková listina'!$P:$P,MATCH(CONCATENATE(BD$4,$A30),'Výsledková listina'!$N:$N,0),1)) ->  | BJ30: =IF(ISNA(MATCH(CONCATENATE(BJ$4,$A30),'Výsledková listina'!$N:$N,0)),"",INDEX('Výsledková listina'!$C:$C,MATCH(CONCATENATE(BJ$4,$A30),'Výsledková listina'!$N:$N,0),1)) ->  | BK30: =IF(ISNA(MATCH(CONCATENATE(BJ$4,$A30),'Výsledková listina'!$N:$N,0)),"",INDEX('Výsledková listina'!$P:$P,MATCH(CONCATENATE(BJ$4,$A30),'Výsledková listina'!$N:$N,0),1)) ->  | BO30: =IF(ISNA(MATCH(CONCATENATE(BO$4,$A30),'Výsledková listina'!$N:$N,0)),"",INDEX('Výsledková listina'!$C:$C,MATCH(CONCATENATE(BO$4,$A30),'Výsledková listina'!$N:$N,0),1)) ->  | BP30: =IF(ISNA(MATCH(CONCATENATE(BO$4,$A30),'Výsledková listina'!$N:$N,0)),"",INDEX('Výsledková listina'!$P:$P,MATCH(CONCATENATE(BO$4,$A30),'Výsledková listina'!$N:$N,0),1)) ->  | BT30: =IF(ISNA(MATCH(CONCATENATE(BT$4,$A30),'Výsledková listina'!$N:$N,0)),"",INDEX('Výsledková listina'!$C:$C,MATCH(CONCATENATE(BT$4,$A30),'Výsledková listina'!$N:$N,0),1)) ->  | BU30: =IF(ISNA(MATCH(CONCATENATE(BT$4,$A30),'Výsledková listina'!$N:$N,0)),"",INDEX('Výsledková listina'!$P:$P,MATCH(CONCATENATE(BT$4,$A30),'Výsledková listina'!$N:$N,0),1)) ->  | BY30: =IF(ISNA(MATCH(CONCATENATE(BY$4,$A30),'Výsledková listina'!$N:$N,0)),"",INDEX('Výsledková listina'!$C:$C,MATCH(CONCATENATE(BY$4,$A30),'Výsledková listina'!$N:$N,0),1)) ->  | BZ30: =IF(ISNA(MATCH(CONCATENATE(BY$4,$A30),'Výsledková listina'!$N:$N,0)),"",INDEX('Výsledková listina'!$P:$P,MATCH(CONCATENATE(BY$4,$A30),'Výsledková listina'!$N:$N,0),1)) ->  | CD30: =IF(ISNA(MATCH(CONCATENATE(CD$4,$A30),'Výsledková listina'!$N:$N,0)),"",INDEX('Výsledková listina'!$C:$C,MATCH(CONCATENATE(CD$4,$A30),'Výsledková listina'!$N:$N,0),1)) ->  | CE30: =IF(ISNA(MATCH(CONCATENATE(CD$4,$A30),'Výsledková listina'!$N:$N,0)),"",INDEX('Výsledková listina'!$P:$P,MATCH(CONCATENATE(CD$4,$A30),'Výsledková listina'!$N:$N,0),1)) -> 
